Workbook

Sheet Inicio
N2: Fonte: GPP a partir de dados IFAP
A4: Caracterização dos Apoios a Agricultura relativos ao PEPAC atribuídos no âmbito do Pedido Único de 2023
A6: 1. | B6: Seleccione a variável, o tipo de classes de dimensão e o grupo de produtores a representar:
A11: 2. | B11: Visualize os gráficos respetivos:
B16: Visualize os dados em tabela:
B21: Extração de dados selecionados para um novo ficheiro:

Sheet Base (hidden)
D4: Tipo de Beneficiário: | G4: =INDEX(Sheet6!$S$1:$S$6,Sheet3!$A$2) -> Todos os Produtores do PU | N4: Valor total: | P4: =+Base!$DS$34 -> 172464 | R4: =+"(" & (INDEX(Sheet6!$G$2:$G$169,Sheet3!$C$1)) & ")" -> (Nº )
D5: =+INDEX(Sheet6!$D$2:$D$169,Sheet3!$C$1)&" segundo Orientação Técnico Económica e "&INDEX(Sheet6!$P$3:$P$6,Sheet3!$B$1)&" e por NUTSIII em " &Sheet6!$B$1 -> (1) - Nº de Beneficiários segundo Orientação Técnico Económica e Classes de Superfície Agrícola e por NUTSIII em 2023 | AH5: =+D5& " (cont.)" -> (1) - Nº de Beneficiários segundo Orientação Técnico Económica e Classes de Superfície Agrícola e por NUTSIII em 2023 (cont.) | BQ5: =+AH5 -> (1) - Nº de Beneficiários segundo Orientação Técnico Económica e Classes de Superfície Agrícola e por NUTSIII em 2023 (cont.) | CU5: =+INDEX(Sheet6!$D$2:$D$169,Sheet3!$C$1)&" segundo Orientação Técnico Económica por NUTSIII em " &Sheet6!B1 -> (1) - Nº de Beneficiários segundo Orientação Técnico Económica por NUTSIII em 2023 | DN5: =+INDEX(Sheet6!$D$2:$D$169,Sheet3!$C$1)&CHAR(10)& "segundo "&INDEX(Sheet6!$P$3:$P$6,Sheet3!$B$1)& " por NUTSIII em " &Sheet6!$B$1 -> (1) - Nº de Beneficiários segundo Classes de Superfície Agrícola por NUTSIII em 2023
C7: =+"Unidade: "&INDEX(Sheet6!$G$2:$G$169,Sheet3!$C$1) -> Unidade: Nº
C8: OTE | D8: Não classificadas | I8: Arvenses e Outras Cult pred. Regadio | N8: Arvenses e Outras Cult pred. Sequeiro | S8: Arroz | X8: Horticultura e Industriais | AC8: Horticultura e Floricultura | AH8: Vinhos | AM8: Fruticultura | AR8: Olival | AW8: Policultura | BB8: Bovinos Leite | BG8: Bov. Carne semi-int. (>1 < 3CN por ha SF) | BL8: Bov. Carne Int (>= 3CN por ha SF) | BQ8: Bov. Carne Extensivos (<1 CN por ha SF) | BV8: Outros Ruminantes | CA8: Mistas | CF8: Pousio e Pastagem | CK8: Tomate Indústria | CP8: Plantas tuberosas | CU8: Não classificadas | CV8: Arvenses e Outras Cult pred. Regadio | CW8: Arvenses e Outras Cult pred. Sequeiro | CX8: Arroz | CY8: Horticultura e Industriais | CZ8: Horticultura e Floricultura | DA8: Vinhos | DB8: Fruticultura | DC8: Olival | DD8: Policultura | DE8: Bovinos Leite | DF8: =+BG8 -> Bov. Carne semi-int. (>1 < 3CN por ha SF) | DG8: =+BL8 -> Bov. Carne Int (>= 3CN por ha SF) | DH8: =+BQ8 -> Bov. Carne Extensivos (<1 CN por ha SF) | DI8: Outros Ruminantes | DJ8: Mistas | DK8: Pousio e Pastagem | DL8: Tomate Indústria | DM8: Plantas tuberosas | DN8: MP | DO8: P | DP8: M | DQ8: G | DR8: MG | DS8: Total
C9: =+INDEX(Sheet6!P3:P6,Sheet3!B1) -> Classes de Superfície Agrícola | D9: MP | E9: P | F9: M | G9: G | H9: MG | I9: MP | J9: P | K9: M | L9: G | M9: MG | N9: MP | O9: P | P9: M | Q9: G | R9: MG | S9: MP | T9: P | U9: M | V9: G | W9: MG | X9: MP | Y9: P | Z9: M | AA9: G | AB9: MG | AC9: MP | AD9: P | AE9: M | AF9: G | AG9: MG | AH9: MP | AI9: P | AJ9: M | AK9: G | AL9: MG | AM9: MP | AN9: P | AO9: M | AP9: G | AQ9: MG | AR9: MP | AS9: P | AT9: M | AU9: G | AV9: MG | AW9: MP | AX9: P | AY9: M | AZ9: G | BA9: MG | BB9: MP | BC9: P | BD9: M | BE9: G | BF9: MG | BG9: MP | BH9: P | BI9: M | BJ9: G | BK9: MG | BL9: MP | BM9: P | BN9: M | BO9: G | BP9: MG | BQ9: MP | BR9: P | BS9: M | BT9: G | BU9: MG | BV9: MP | BW9: P | BX9: M | BY9: G | BZ9: MG | CA9: MP | CB9: P | CC9: M | CD9: G | CE9: MG | CF9: MP | CG9: P | CH9: M | CI9: G | CJ9: MG | CK9: MP | CL9: P | CM9: M | CN9: G | CO9: MG | CP9: MP | CQ9: P | CR9: M | CS9: G | CT9: MG | CV9: Arvenses e Outras Cult pred. Regadio
A10: NUTS II | B10: Cód. | C10: NUTS III | AG10: =+"Unidade: "&INDEX(Sheet6!$G$2:$G$118,Sheet3!$C$1) -> Unidade: Nº | BK10: =+"Unidade: "&INDEX(Sheet6!$G$2:$G$169,Sheet3!$C$1) -> Unidade: Nº | BP10: =+"Unidade: "&INDEX(Sheet6!$G$2:$G$169,Sheet3!$C$1) -> Unidade: Nº | CT10: =+"Unidade: "&INDEX(Sheet6!$G$2:$G$169,Sheet3!$C$1) -> Unidade: Nº | DS10: =+"Unidade: "&INDEX(Sheet6!$G$2:$G$169,Sheet3!$C$1) -> Unidade: Nº
A11: Norte | B11: 111 | C11: Alto Minho | D11: =+Sheet3!D8/Sheet3!$F$1 -> 3 | E11: =+Sheet3!E8/Sheet3!$F$1 -> 0 | F11: =+Sheet3!F8/Sheet3!$F$1 -> 0 | G11: =+Sheet3!G8/Sheet3!$F$1 -> 0 | H11: =+Sheet3!H8/Sheet3!$F$1 -> 0 | I11: =+Sheet3!I8/Sheet3!$F$1 -> 273 | J11: =+Sheet3!J8/Sheet3!$F$1 -> 0 | K11: =+Sheet3!K8/Sheet3!$F$1 -> 0 | L11: =+Sheet3!L8/Sheet3!$F$1 -> 0 | M11: =+Sheet3!M8/Sheet3!$F$1 -> 0 | N11: =+Sheet3!N8/Sheet3!$F$1 -> 107 | O11: =+Sheet3!O8/Sheet3!$F$1 -> 3 | P11: =+Sheet3!P8/Sheet3!$F$1 -> 0 | Q11: =+Sheet3!Q8/Sheet3!$F$1 -> 0 | R11: =+Sheet3!R8/Sheet3!$F$1 -> 0 | S11: =+Sheet3!S8/Sheet3!$F$1 -> 0 | T11: =+Sheet3!T8/Sheet3!$F$1 -> 0 | U11: =+Sheet3!U8/Sheet3!$F$1 -> 0 | V11: =+Sheet3!V8/Sheet3!$F$1 -> 0 | W11: =+Sheet3!W8/Sheet3!$F$1 -> 0 | X11: =+Sheet3!X8/Sheet3!$F$1 -> 0 | Y11: =+Sheet3!Y8/Sheet3!$F$1 -> 0 | Z11: =+Sheet3!Z8/Sheet3!$F$1 -> 0 | AA11: =+Sheet3!AA8/Sheet3!$F$1 -> 0 | AB11: =+Sheet3!AB8/Sheet3!$F$1 -> 0 | AC11: =+Sheet3!AC8/Sheet3!$F$1 -> 238 | AD11: =+Sheet3!AD8/Sheet3!$F$1 -> 7 | AE11: =+Sheet3!AE8/Sheet3!$F$1 -> 0 | AF11: =+Sheet3!AF8/Sheet3!$F$1 -> 0 | AG11: =+Sheet3!AG8/Sheet3!$F$1 -> 0 | AH11: =+Sheet3!AH8/Sheet3!$F$1 -> 712 | AI11: =+Sheet3!AI8/Sheet3!$F$1 -> 102 | AJ11: =+Sheet3!AJ8/Sheet3!$F$1 -> 7 | AK11: =+Sheet3!AK8/Sheet3!$F$1 -> 0 | AL11: =+Sheet3!AL8/Sheet3!$F$1 -> 0 | AM11: =+Sheet3!AM8/Sheet3!$F$1 -> 124 | AN11: =+Sheet3!AN8/Sheet3!$F$1 -> 17 | AO11: =+Sheet3!AO8/Sheet3!$F$1 -> 4 | AP11: =+Sheet3!AP8/Sheet3!$F$1 -> 0 | AQ11: =+Sheet3!AQ8/Sheet3!$F$1 -> 0 | AR11: =+Sheet3!AR8/Sheet3!$F$1 -> 0 | AS11: =+Sheet3!AS8/Sheet3!$F$1 -> 0 | AT11: =+Sheet3!AT8/Sheet3!$F$1 -> 0 | AU11: =+Sheet3!AU8/Sheet3!$F$1 -> 0 | AV11: =+Sheet3!AV8/Sheet3!$F$1 -> 0 | AW11: =+Sheet3!AW8/Sheet3!$F$1 -> 2151 | AX11: =+Sheet3!AX8/Sheet3!$F$1 -> 38 | AY11: =+Sheet3!AY8/Sheet3!$F$1 -> 0 | AZ11: =+Sheet3!AZ8/Sheet3!$F$1 -> 0 | BA11: =+Sheet3!BA8/Sheet3!$F$1 -> 0 | BB11: =+Sheet3!BB8/Sheet3!$F$1 -> 5 | BC11: =+Sheet3!BC8/Sheet3!$F$1 -> 40 | BD11: =+Sheet3!BD8/Sheet3!$F$1 -> 9 | BE11: =+Sheet3!BE8/Sheet3!$F$1 -> 0 | BF11: =+Sheet3!BF8/Sheet3!$F$1 -> 0 | BG11: =+Sheet3!BG8/Sheet3!$F$1 -> 332 | BH11: =+Sheet3!BH8/Sheet3!$F$1 -> 169 | BI11: =+Sheet3!BI8/Sheet3!$F$1 -> 15 | BJ11: =+Sheet3!BJ8/Sheet3!$F$1 -> 0 | BK11: =+Sheet3!BK8/Sheet3!$F$1 -> 0 | BL11: =+Sheet3!BL8/Sheet3!$F$1 -> 108 | BM11: =+Sheet3!BM8/Sheet3!$F$1 -> 17 | BN11: =+Sheet3!BN8/Sheet3!$F$1 -> 0 | BO11: =+Sheet3!BO8/Sheet3!$F$1 -> 0 | BP11: =+Sheet3!BP8/Sheet3!$F$1 -> 0 | BQ11: =+Sheet3!BQ8/Sheet3!$F$1 -> 355 | BR11: =+Sheet3!BR8/Sheet3!$F$1 -> 267 | BS11: =+Sheet3!BS8/Sheet3!$F$1 -> 53 | BT11: =+Sheet3!BT8/Sheet3!$F$1 -> 9 | BU11: =+Sheet3!BU8/Sheet3!$F$1 -> 0 | BV11: =+Sheet3!BV8/Sheet3!$F$1 -> 1017 | BW11: =+Sheet3!BW8/Sheet3!$F$1 -> 184 | BX11: =+Sheet3!BX8/Sheet3!$F$1 -> 10 | BY11: =+Sheet3!BY8/Sheet3!$F$1 -> 0 | BZ11: =+Sheet3!BZ8/Sheet3!$F$1 -> 0 | CA11: =+Sheet3!CA8/Sheet3!$F$1 -> 989 | CB11: =+Sheet3!CB8/Sheet3!$F$1 -> 49 | CC11: =+Sheet3!CC8/Sheet3!$F$1 -> 0 | CD11: =+Sheet3!CD8/Sheet3!$F$1 -> 0 | CE11: =+Sheet3!CE8/Sheet3!$F$1 -> 0 | CF11: =+Sheet3!CF8/Sheet3!$F$1 -> 314 | CG11: =+Sheet3!CG8/Sheet3!$F$1 -> 14 | CH11: =+Sheet3!CH8/Sheet3!$F$1 -> 0 | CI11: =+Sheet3!CI8/Sheet3!$F$1 -> 0 | CJ11: =+Sheet3!CJ8/Sheet3!$F$1 -> 0 | CK11: =+Sheet3!CK8/Sheet3!$F$1 -> 0 | CL11: =+Sheet3!CL8/Sheet3!$F$1 -> 0 | CM11: =+Sheet3!CM8/Sheet3!$F$1 -> 0 | CN11: =+Sheet3!CN8/Sheet3!$F$1 -> 0 | CO11: =+Sheet3!CO8/Sheet3!$F$1 -> 0 | CP11: =+Sheet3!CP8/Sheet3!$F$1 -> 0 | CQ11: =+Sheet3!CQ8/Sheet3!$F$1 -> 0 | CR11: =+Sheet3!CR8/Sheet3!$F$1 -> 0 | CS11: =+Sheet3!CS8/Sheet3!$F$1 -> 0 | CT11: =+Sheet3!CT8/Sheet3!$F$1 -> 0 | CU11: =+Sheet3!CU8/Sheet3!$F$1 -> 5 | CV11: =+Sheet3!CV8/Sheet3!$F$1 -> 276 | CW11: =+Sheet3!CW8/Sheet3!$F$1 -> 112 | CX11: =+Sheet3!CX8/Sheet3!$F$1 -> 0 | CY11: =+Sheet3!CY8/Sheet3!$F$1 -> 0 | CZ11: =+Sheet3!CZ8/Sheet3!$F$1 -> 249 | DA11: =+Sheet3!DA8/Sheet3!$F$1 -> 824 | DB11: =+Sheet3!DB8/Sheet3!$F$1 -> 147 | DC11: =+Sheet3!DC8/Sheet3!$F$1 -> 0 | DD11: =+Sheet3!DD8/Sheet3!$F$1 -> 2193 | DE11: =+Sheet3!DE8/Sheet3!$F$1 -> 57 | DF11: =+Sheet3!DF8/Sheet3!$F$1 -> 517 | DG11: =+Sheet3!DG8/Sheet3!$F$1 -> 127 | DH11: =+Sheet3!DH8/Sheet3!$F$1 -> 685 | DI11: =+Sheet3!DI8/Sheet3!$F$1 -> 1214 | DJ11: =+Sheet3!DJ8/Sheet3!$F$1 -> 1040 | DK11: =+Sheet3!DK8/Sheet3!$F$1 -> 331 | DL11: =+Sheet3!DL8/Sheet3!$F$1 -> 0 | DM11: =+Sheet3!DM8/Sheet3!$F$1 -> 3 | DN11: =+Sheet3!DN8/Sheet3!$F$1 -> 6738 | DO11: =+Sheet3!DO8/Sheet3!$F$1 -> 924 | DP11: =+Sheet3!DP8/Sheet3!$F$1 -> 110 | DQ11: =+Sheet3!DQ8/Sheet3!$F$1 -> 10 | DR11: =+Sheet3!DR8/Sheet3!$F$1 -> 0 | DS11: =SUM(DN11:DR11) -> 7782
B12: 112 | C12: Cávado | D12: =+Sheet3!D9/Sheet3!$F$1 -> 0 | E12: =+Sheet3!E9/Sheet3!$F$1 -> 0 | F12: =+Sheet3!F9/Sheet3!$F$1 -> 0 | G12: =+Sheet3!G9/Sheet3!$F$1 -> 0 | H12: =+Sheet3!H9/Sheet3!$F$1 -> 0 | I12: =+Sheet3!I9/Sheet3!$F$1 -> 946 | J12: =+Sheet3!J9/Sheet3!$F$1 -> 19 | K12: =+Sheet3!K9/Sheet3!$F$1 -> 0 | L12: =+Sheet3!L9/Sheet3!$F$1 -> 0 | M12: =+Sheet3!M9/Sheet3!$F$1 -> 0 | N12: =+Sheet3!N9/Sheet3!$F$1 -> 328 | O12: =+Sheet3!O9/Sheet3!$F$1 -> 9 | P12: =+Sheet3!P9/Sheet3!$F$1 -> 0 | Q12: =+Sheet3!Q9/Sheet3!$F$1 -> 0 | R12: =+Sheet3!R9/Sheet3!$F$1 -> 0 | S12: =+Sheet3!S9/Sheet3!$F$1 -> 0 | T12: =+Sheet3!T9/Sheet3!$F$1 -> 0 | U12: =+Sheet3!U9/Sheet3!$F$1 -> 0 | V12: =+Sheet3!V9/Sheet3!$F$1 -> 0 | W12: =+Sheet3!W9/Sheet3!$F$1 -> 0 | X12: =+Sheet3!X9/Sheet3!$F$1 -> 0 | Y12: =+Sheet3!Y9/Sheet3!$F$1 -> 0 | Z12: =+Sheet3!Z9/Sheet3!$F$1 -> 0 | AA12: =+Sheet3!AA9/Sheet3!$F$1 -> 0 | AB12: =+Sheet3!AB9/Sheet3!$F$1 -> 0 | AC12: =+Sheet3!AC9/Sheet3!$F$1 -> 451 | AD12: =+Sheet3!AD9/Sheet3!$F$1 -> 7 | AE12: =+Sheet3!AE9/Sheet3!$F$1 -> 0 | AF12: =+Sheet3!AF9/Sheet3!$F$1 -> 0 | AG12: =+Sheet3!AG9/Sheet3!$F$1 -> 0 | AH12: =+Sheet3!AH9/Sheet3!$F$1 -> 84 | AI12: =+Sheet3!AI9/Sheet3!$F$1 -> 49 | AJ12: =+Sheet3!AJ9/Sheet3!$F$1 -> 6 | AK12: =+Sheet3!AK9/Sheet3!$F$1 -> 0 | AL12: =+Sheet3!AL9/Sheet3!$F$1 -> 0 | AM12: =+Sheet3!AM9/Sheet3!$F$1 -> 206 | AN12: =+Sheet3!AN9/Sheet3!$F$1 -> 28 | AO12: =+Sheet3!AO9/Sheet3!$F$1 -> 0 | AP12: =+Sheet3!AP9/Sheet3!$F$1 -> 0 | AQ12: =+Sheet3!AQ9/Sheet3!$F$1 -> 0 | AR12: =+Sheet3!AR9/Sheet3!$F$1 -> 3 | AS12: =+Sheet3!AS9/Sheet3!$F$1 -> 0 | AT12: =+Sheet3!AT9/Sheet3!$F$1 -> 0 | AU12: =+Sheet3!AU9/Sheet3!$F$1 -> 0 | AV12: =+Sheet3!AV9/Sheet3!$F$1 -> 0 | AW12: =+Sheet3!AW9/Sheet3!$F$1 -> 1950 | AX12: =+Sheet3!AX9/Sheet3!$F$1 -> 51 | AY12: =+Sheet3!AY9/Sheet3!$F$1 -> 0 | AZ12: =+Sheet3!AZ9/Sheet3!$F$1 -> 0 | BA12: =+Sheet3!BA9/Sheet3!$F$1 -> 0 | BB12: =+Sheet3!BB9/Sheet3!$F$1 -> 92 | BC12: =+Sheet3!BC9/Sheet3!$F$1 -> 274 | BD12: =+Sheet3!BD9/Sheet3!$F$1 -> 17 | BE12: =+Sheet3!BE9/Sheet3!$F$1 -> 0 | BF12: =+Sheet3!BF9/Sheet3!$F$1 -> 0 | BG12: =+Sheet3!BG9/Sheet3!$F$1 -> 213 | BH12: =+Sheet3!BH9/Sheet3!$F$1 -> 63 | BI12: =+Sheet3!BI9/Sheet3!$F$1 -> 3 | BJ12: =+Sheet3!BJ9/Sheet3!$F$1 -> 0 | BK12: =+Sheet3!BK9/Sheet3!$F$1 -> 0 | BL12: =+Sheet3!BL9/Sheet3!$F$1 -> 375 | BM12: =+Sheet3!BM9/Sheet3!$F$1 -> 52 | BN12: =+Sheet3!BN9/Sheet3!$F$1 -> 0 | BO12: =+Sheet3!BO9/Sheet3!$F$1 -> 0 | BP12: =+Sheet3!BP9/Sheet3!$F$1 -> 0 | BQ12: =+Sheet3!BQ9/Sheet3!$F$1 -> 114 | BR12: =+Sheet3!BR9/Sheet3!$F$1 -> 54 | BS12: =+Sheet3!BS9/Sheet3!$F$1 -> 10 | BT12: =+Sheet3!BT9/Sheet3!$F$1 -> 0 | BU12: =+Sheet3!BU9/Sheet3!$F$1 -> 0 | BV12: =+Sheet3!BV9/Sheet3!$F$1 -> 227 | BW12: =+Sheet3!BW9/Sheet3!$F$1 -> 51 | BX12: =+Sheet3!BX9/Sheet3!$F$1 -> 6 | BY12: =+Sheet3!BY9/Sheet3!$F$1 -> 0 | BZ12: =+Sheet3!BZ9/Sheet3!$F$1 -> 0 | CA12: =+Sheet3!CA9/Sheet3!$F$1 -> 538 | CB12: =+Sheet3!CB9/Sheet3!$F$1 -> 53 | CC12: =+Sheet3!CC9/Sheet3!$F$1 -> 0 | CD12: =+Sheet3!CD9/Sheet3!$F$1 -> 0 | CE12: =+Sheet3!CE9/Sheet3!$F$1 -> 0 | CF12: =+Sheet3!CF9/Sheet3!$F$1 -> 795 | CG12: =+Sheet3!CG9/Sheet3!$F$1 -> 68 | CH12: =+Sheet3!CH9/Sheet3!$F$1 -> 0 | CI12: =+Sheet3!CI9/Sheet3!$F$1 -> 0 | CJ12: =+Sheet3!CJ9/Sheet3!$F$1 -> 0 | CK12: =+Sheet3!CK9/Sheet3!$F$1 -> 0 | CL12: =+Sheet3!CL9/Sheet3!$F$1 -> 0 | CM12: =+Sheet3!CM9/Sheet3!$F$1 -> 0 | CN12: =+Sheet3!CN9/Sheet3!$F$1 -> 0 | CO12: =+Sheet3!CO9/Sheet3!$F$1 -> 0 | CP12: =+Sheet3!CP9/Sheet3!$F$1 -> 0 | CQ12: =+Sheet3!CQ9/Sheet3!$F$1 -> 0 | CR12: =+Sheet3!CR9/Sheet3!$F$1 -> 0 | CS12: =+Sheet3!CS9/Sheet3!$F$1 -> 0 | CT12: =+Sheet3!CT9/Sheet3!$F$1 -> 0 | CU12: =+Sheet3!CU9/Sheet3!$F$1 -> 4 | CV12: =+Sheet3!CV9/Sheet3!$F$1 -> 967 | CW12: =+Sheet3!CW9/Sheet3!$F$1 -> 337 | CX12: =+Sheet3!CX9/Sheet3!$F$1 -> 0 | CY12: =+Sheet3!CY9/Sheet3!$F$1 -> 0 | CZ12: =+Sheet3!CZ9/Sheet3!$F$1 -> 462 | DA12: =+Sheet3!DA9/Sheet3!$F$1 -> 141 | DB12: =+Sheet3!DB9/Sheet3!$F$1 -> 239 | DC12: =+Sheet3!DC9/Sheet3!$F$1 -> 4 | DD12: =+Sheet3!DD9/Sheet3!$F$1 -> 2006 | DE12: =+Sheet3!DE9/Sheet3!$F$1 -> 383 | DF12: =+Sheet3!DF9/Sheet3!$F$1 -> 279 | DG12: =+Sheet3!DG9/Sheet3!$F$1 -> 430 | DH12: =+Sheet3!DH9/Sheet3!$F$1 -> 179 | DI12: =+Sheet3!DI9/Sheet3!$F$1 -> 290 | DJ12: =+Sheet3!DJ9/Sheet3!$F$1 -> 596 | DK12: =+Sheet3!DK9/Sheet3!$F$1 -> 865 | DL12: =+Sheet3!DL9/Sheet3!$F$1 -> 0 | DM12: =+Sheet3!DM9/Sheet3!$F$1 -> 0 | DN12: =+Sheet3!DN9/Sheet3!$F$1 -> 6332 | DO12: =+Sheet3!DO9/Sheet3!$F$1 -> 802 | DP12: =+Sheet3!DP9/Sheet3!$F$1 -> 49 | DQ12: =+Sheet3!DQ9/Sheet3!$F$1 -> 0 | DR12: =+Sheet3!DR9/Sheet3!$F$1 -> 0 | DS12: =SUM(DN12:DR12) -> 7183
B13: 119 | C13: Ave | D13: =+Sheet3!D10/Sheet3!$F$1 -> 3 | E13: =+Sheet3!E10/Sheet3!$F$1 -> 0 | F13: =+Sheet3!F10/Sheet3!$F$1 -> 0 | G13: =+Sheet3!G10/Sheet3!$F$1 -> 0 | H13: =+Sheet3!H10/Sheet3!$F$1 -> 0 | I13: =+Sheet3!I10/Sheet3!$F$1 -> 390 | J13: =+Sheet3!J10/Sheet3!$F$1 -> 19 | K13: =+Sheet3!K10/Sheet3!$F$1 -> 0 | L13: =+Sheet3!L10/Sheet3!$F$1 -> 0 | M13: =+Sheet3!M10/Sheet3!$F$1 -> 0 | N13: =+Sheet3!N10/Sheet3!$F$1 -> 123 | O13: =+Sheet3!O10/Sheet3!$F$1 -> 4 | P13: =+Sheet3!P10/Sheet3!$F$1 -> 0 | Q13: =+Sheet3!Q10/Sheet3!$F$1 -> 0 | R13: =+Sheet3!R10/Sheet3!$F$1 -> 0 | S13: =+Sheet3!S10/Sheet3!$F$1 -> 0 | T13: =+Sheet3!T10/Sheet3!$F$1 -> 0 | U13: =+Sheet3!U10/Sheet3!$F$1 -> 0 | V13: =+Sheet3!V10/Sheet3!$F$1 -> 0 | W13: =+Sheet3!W10/Sheet3!$F$1 -> 0 | X13: =+Sheet3!X10/Sheet3!$F$1 -> 0 | Y13: =+Sheet3!Y10/Sheet3!$F$1 -> 0 | Z13: =+Sheet3!Z10/Sheet3!$F$1 -> 0 | AA13: =+Sheet3!AA10/Sheet3!$F$1 -> 0 | AB13: =+Sheet3!AB10/Sheet3!$F$1 -> 0 | AC13: =+Sheet3!AC10/Sheet3!$F$1 -> 136 | AD13: =+Sheet3!AD10/Sheet3!$F$1 -> 13 | AE13: =+Sheet3!AE10/Sheet3!$F$1 -> 0 | AF13: =+Sheet3!AF10/Sheet3!$F$1 -> 0 | AG13: =+Sheet3!AG10/Sheet3!$F$1 -> 0 | AH13: =+Sheet3!AH10/Sheet3!$F$1 -> 215 | AI13: =+Sheet3!AI10/Sheet3!$F$1 -> 81 | AJ13: =+Sheet3!AJ10/Sheet3!$F$1 -> 10 | AK13: =+Sheet3!AK10/Sheet3!$F$1 -> 0 | AL13: =+Sheet3!AL10/Sheet3!$F$1 -> 0 | AM13: =+Sheet3!AM10/Sheet3!$F$1 -> 159 | AN13: =+Sheet3!AN10/Sheet3!$F$1 -> 32 | AO13: =+Sheet3!AO10/Sheet3!$F$1 -> 3 | AP13: =+Sheet3!AP10/Sheet3!$F$1 -> 0 | AQ13: =+Sheet3!AQ10/Sheet3!$F$1 -> 0 | AR13: =+Sheet3!AR10/Sheet3!$F$1 -> 3 | AS13: =+Sheet3!AS10/Sheet3!$F$1 -> 0 | AT13: =+Sheet3!AT10/Sheet3!$F$1 -> 0 | AU13: =+Sheet3!AU10/Sheet3!$F$1 -> 0 | AV13: =+Sheet3!AV10/Sheet3!$F$1 -> 0 | AW13: =+Sheet3!AW10/Sheet3!$F$1 -> 777 | AX13: =+Sheet3!AX10/Sheet3!$F$1 -> 58 | AY13: =+Sheet3!AY10/Sheet3!$F$1 -> 4 | AZ13: =+Sheet3!AZ10/Sheet3!$F$1 -> 0 | BA13: =+Sheet3!BA10/Sheet3!$F$1 -> 0 | BB13: =+Sheet3!BB10/Sheet3!$F$1 -> 25 | BC13: =+Sheet3!BC10/Sheet3!$F$1 -> 95 | BD13: =+Sheet3!BD10/Sheet3!$F$1 -> 5 | BE13: =+Sheet3!BE10/Sheet3!$F$1 -> 0 | BF13: =+Sheet3!BF10/Sheet3!$F$1 -> 0 | BG13: =+Sheet3!BG10/Sheet3!$F$1 -> 163 | BH13: =+Sheet3!BH10/Sheet3!$F$1 -> 115 | BI13: =+Sheet3!BI10/Sheet3!$F$1 -> 0 | BJ13: =+Sheet3!BJ10/Sheet3!$F$1 -> 0 | BK13: =+Sheet3!BK10/Sheet3!$F$1 -> 0 | BL13: =+Sheet3!BL10/Sheet3!$F$1 -> 181 | BM13: =+Sheet3!BM10/Sheet3!$F$1 -> 26 | BN13: =+Sheet3!BN10/Sheet3!$F$1 -> 0 | BO13: =+Sheet3!BO10/Sheet3!$F$1 -> 0 | BP13: =+Sheet3!BP10/Sheet3!$F$1 -> 0 | BQ13: =+Sheet3!BQ10/Sheet3!$F$1 -> 246 | BR13: =+Sheet3!BR10/Sheet3!$F$1 -> 244 | BS13: =+Sheet3!BS10/Sheet3!$F$1 -> 16 | BT13: =+Sheet3!BT10/Sheet3!$F$1 -> 0 | BU13: =+Sheet3!BU10/Sheet3!$F$1 -> 0 | BV13: =+Sheet3!BV10/Sheet3!$F$1 -> 489 | BW13: =+Sheet3!BW10/Sheet3!$F$1 -> 210 | BX13: =+Sheet3!BX10/Sheet3!$F$1 -> 12 | BY13: =+Sheet3!BY10/Sheet3!$F$1 -> 0 | BZ13: =+Sheet3!BZ10/Sheet3!$F$1 -> 0 | CA13: =+Sheet3!CA10/Sheet3!$F$1 -> 392 | CB13: =+Sheet3!CB10/Sheet3!$F$1 -> 67 | CC13: =+Sheet3!CC10/Sheet3!$F$1 -> 6 | CD13: =+Sheet3!CD10/Sheet3!$F$1 -> 0 | CE13: =+Sheet3!CE10/Sheet3!$F$1 -> 0 | CF13: =+Sheet3!CF10/Sheet3!$F$1 -> 565 | CG13: =+Sheet3!CG10/Sheet3!$F$1 -> 51 | CH13: =+Sheet3!CH10/Sheet3!$F$1 -> 0 | CI13: =+Sheet3!CI10/Sheet3!$F$1 -> 0 | CJ13: =+Sheet3!CJ10/Sheet3!$F$1 -> 0 | CK13: =+Sheet3!CK10/Sheet3!$F$1 -> 0 | CL13: =+Sheet3!CL10/Sheet3!$F$1 -> 0 | CM13: =+Sheet3!CM10/Sheet3!$F$1 -> 0 | CN13: =+Sheet3!CN10/Sheet3!$F$1 -> 0 | CO13: =+Sheet3!CO10/Sheet3!$F$1 -> 0 | CP13: =+Sheet3!CP10/Sheet3!$F$1 -> 0 | CQ13: =+Sheet3!CQ10/Sheet3!$F$1 -> 0 | CR13: =+Sheet3!CR10/Sheet3!$F$1 -> 0 | CS13: =+Sheet3!CS10/Sheet3!$F$1 -> 0 | CT13: =+Sheet3!CT10/Sheet3!$F$1 -> 0 | CU13: =+Sheet3!CU10/Sheet3!$F$1 -> 8 | CV13: =+Sheet3!CV10/Sheet3!$F$1 -> 411 | CW13: =+Sheet3!CW10/Sheet3!$F$1 -> 129 | CX13: =+Sheet3!CX10/Sheet3!$F$1 -> 0 | CY13: =+Sheet3!CY10/Sheet3!$F$1 -> 0 | CZ13: =+Sheet3!CZ10/Sheet3!$F$1 -> 154 | DA13: =+Sheet3!DA10/Sheet3!$F$1 -> 309 | DB13: =+Sheet3!DB10/Sheet3!$F$1 -> 197 | DC13: =+Sheet3!DC10/Sheet3!$F$1 -> 5 | DD13: =+Sheet3!DD10/Sheet3!$F$1 -> 839 | DE13: =+Sheet3!DE10/Sheet3!$F$1 -> 126 | DF13: =+Sheet3!DF10/Sheet3!$F$1 -> 281 | DG13: =+Sheet3!DG10/Sheet3!$F$1 -> 208 | DH13: =+Sheet3!DH10/Sheet3!$F$1 -> 507 | DI13: =+Sheet3!DI10/Sheet3!$F$1 -> 711 | DJ13: =+Sheet3!DJ10/Sheet3!$F$1 -> 468 | DK13: =+Sheet3!DK10/Sheet3!$F$1 -> 616 | DL13: =+Sheet3!DL10/Sheet3!$F$1 -> 0 | DM13: =+Sheet3!DM10/Sheet3!$F$1 -> 3 | DN13: =+Sheet3!DN10/Sheet3!$F$1 -> 3884 | DO13: =+Sheet3!DO10/Sheet3!$F$1 -> 1029 | DP13: =+Sheet3!DP10/Sheet3!$F$1 -> 60 | DQ13: =+Sheet3!DQ10/Sheet3!$F$1 -> 0 | DR13: =+Sheet3!DR10/Sheet3!$F$1 -> 0 | DS13: 4973
B14: 11A | C14: Área Metropolitana do Porto | D14: =+Sheet3!D11/Sheet3!$F$1 -> 0 | E14: =+Sheet3!E11/Sheet3!$F$1 -> 0 | F14: =+Sheet3!F11/Sheet3!$F$1 -> 0 | G14: =+Sheet3!G11/Sheet3!$F$1 -> 0 | H14: =+Sheet3!H11/Sheet3!$F$1 -> 0 | I14: =+Sheet3!I11/Sheet3!$F$1 -> 588 | J14: =+Sheet3!J11/Sheet3!$F$1 -> 30 | K14: =+Sheet3!K11/Sheet3!$F$1 -> 0 | L14: =+Sheet3!L11/Sheet3!$F$1 -> 0 | M14: =+Sheet3!M11/Sheet3!$F$1 -> 0 | N14: =+Sheet3!N11/Sheet3!$F$1 -> 46 | O14: =+Sheet3!O11/Sheet3!$F$1 -> 0 | P14: =+Sheet3!P11/Sheet3!$F$1 -> 0 | Q14: =+Sheet3!Q11/Sheet3!$F$1 -> 0 | R14: =+Sheet3!R11/Sheet3!$F$1 -> 0 | S14: =+Sheet3!S11/Sheet3!$F$1 -> 0 | T14: =+Sheet3!T11/Sheet3!$F$1 -> 0 | U14: =+Sheet3!U11/Sheet3!$F$1 -> 0 | V14: =+Sheet3!V11/Sheet3!$F$1 -> 0 | W14: =+Sheet3!W11/Sheet3!$F$1 -> 0 | X14: =+Sheet3!X11/Sheet3!$F$1 -> 0 | Y14: =+Sheet3!Y11/Sheet3!$F$1 -> 0 | Z14: =+Sheet3!Z11/Sheet3!$F$1 -> 0 | AA14: =+Sheet3!AA11/Sheet3!$F$1 -> 0 | AB14: =+Sheet3!AB11/Sheet3!$F$1 -> 0 | AC14: =+Sheet3!AC11/Sheet3!$F$1 -> 323 | AD14: =+Sheet3!AD11/Sheet3!$F$1 -> 15 | AE14: =+Sheet3!AE11/Sheet3!$F$1 -> 0 | AF14: =+Sheet3!AF11/Sheet3!$F$1 -> 0 | AG14: =+Sheet3!AG11/Sheet3!$F$1 -> 0 | AH14: =+Sheet3!AH11/Sheet3!$F$1 -> 78 | AI14: =+Sheet3!AI11/Sheet3!$F$1 -> 20 | AJ14: =+Sheet3!AJ11/Sheet3!$F$1 -> 5 | AK14: =+Sheet3!AK11/Sheet3!$F$1 -> 0 | AL14: =+Sheet3!AL11/Sheet3!$F$1 -> 0 | AM14: =+Sheet3!AM11/Sheet3!$F$1 -> 165 | AN14: =+Sheet3!AN11/Sheet3!$F$1 -> 36 | AO14: =+Sheet3!AO11/Sheet3!$F$1 -> 0 | AP14: =+Sheet3!AP11/Sheet3!$F$1 -> 0 | AQ14: =+Sheet3!AQ11/Sheet3!$F$1 -> 0 | AR14: =+Sheet3!AR11/Sheet3!$F$1 -> 0 | AS14: =+Sheet3!AS11/Sheet3!$F$1 -> 0 | AT14: =+Sheet3!AT11/Sheet3!$F$1 -> 0 | AU14: =+Sheet3!AU11/Sheet3!$F$1 -> 0 | AV14: =+Sheet3!AV11/Sheet3!$F$1 -> 0 | AW14: =+Sheet3!AW11/Sheet3!$F$1 -> 818 | AX14: =+Sheet3!AX11/Sheet3!$F$1 -> 47 | AY14: =+Sheet3!AY11/Sheet3!$F$1 -> 0 | AZ14: =+Sheet3!AZ11/Sheet3!$F$1 -> 0 | BA14: =+Sheet3!BA11/Sheet3!$F$1 -> 0 | BB14: =+Sheet3!BB11/Sheet3!$F$1 -> 93 | BC14: =+Sheet3!BC11/Sheet3!$F$1 -> 418 | BD14: =+Sheet3!BD11/Sheet3!$F$1 -> 33 | BE14: =+Sheet3!BE11/Sheet3!$F$1 -> 0 | BF14: =+Sheet3!BF11/Sheet3!$F$1 -> 0 | BG14: =+Sheet3!BG11/Sheet3!$F$1 -> 114 | BH14: =+Sheet3!BH11/Sheet3!$F$1 -> 48 | BI14: =+Sheet3!BI11/Sheet3!$F$1 -> 0 | BJ14: =+Sheet3!BJ11/Sheet3!$F$1 -> 0 | BK14: =+Sheet3!BK11/Sheet3!$F$1 -> 0 | BL14: =+Sheet3!BL11/Sheet3!$F$1 -> 237 | BM14: =+Sheet3!BM11/Sheet3!$F$1 -> 58 | BN14: =+Sheet3!BN11/Sheet3!$F$1 -> 0 | BO14: =+Sheet3!BO11/Sheet3!$F$1 -> 0 | BP14: =+Sheet3!BP11/Sheet3!$F$1 -> 0 | BQ14: =+Sheet3!BQ11/Sheet3!$F$1 -> 68 | BR14: =+Sheet3!BR11/Sheet3!$F$1 -> 37 | BS14: =+Sheet3!BS11/Sheet3!$F$1 -> 0 | BT14: =+Sheet3!BT11/Sheet3!$F$1 -> 0 | BU14: =+Sheet3!BU11/Sheet3!$F$1 -> 0 | BV14: =+Sheet3!BV11/Sheet3!$F$1 -> 100 | BW14: =+Sheet3!BW11/Sheet3!$F$1 -> 39 | BX14: =+Sheet3!BX11/Sheet3!$F$1 -> 5 | BY14: =+Sheet3!BY11/Sheet3!$F$1 -> 0 | BZ14: =+Sheet3!BZ11/Sheet3!$F$1 -> 0 | CA14: =+Sheet3!CA11/Sheet3!$F$1 -> 307 | CB14: =+Sheet3!CB11/Sheet3!$F$1 -> 30 | CC14: =+Sheet3!CC11/Sheet3!$F$1 -> 0 | CD14: =+Sheet3!CD11/Sheet3!$F$1 -> 0 | CE14: =+Sheet3!CE11/Sheet3!$F$1 -> 0 | CF14: =+Sheet3!CF11/Sheet3!$F$1 -> 700 | CG14: =+Sheet3!CG11/Sheet3!$F$1 -> 137 | CH14: =+Sheet3!CH11/Sheet3!$F$1 -> 0 | CI14: =+Sheet3!CI11/Sheet3!$F$1 -> 0 | CJ14: =+Sheet3!CJ11/Sheet3!$F$1 -> 0 | CK14: =+Sheet3!CK11/Sheet3!$F$1 -> 0 | CL14: =+Sheet3!CL11/Sheet3!$F$1 -> 0 | CM14: =+Sheet3!CM11/Sheet3!$F$1 -> 0 | CN14: =+Sheet3!CN11/Sheet3!$F$1 -> 0 | CO14: =+Sheet3!CO11/Sheet3!$F$1 -> 0 | CP14: =+Sheet3!CP11/Sheet3!$F$1 -> 7 | CQ14: =+Sheet3!CQ11/Sheet3!$F$1 -> 0 | CR14: =+Sheet3!CR11/Sheet3!$F$1 -> 0 | CS14: =+Sheet3!CS11/Sheet3!$F$1 -> 0 | CT14: =+Sheet3!CT11/Sheet3!$F$1 -> 0 | CU14: =+Sheet3!CU11/Sheet3!$F$1 -> 0 | CV14: =+Sheet3!CV11/Sheet3!$F$1 -> 624 | CW14: =+Sheet3!CW11/Sheet3!$F$1 -> 48 | CX14: =+Sheet3!CX11/Sheet3!$F$1 -> 0 | CY14: =+Sheet3!CY11/Sheet3!$F$1 -> 0 | CZ14: =+Sheet3!CZ11/Sheet3!$F$1 -> 340 | DA14: =+Sheet3!DA11/Sheet3!$F$1 -> 106 | DB14: =+Sheet3!DB11/Sheet3!$F$1 -> 204 | DC14: =+Sheet3!DC11/Sheet3!$F$1 -> 0 | DD14: =+Sheet3!DD11/Sheet3!$F$1 -> 868 | DE14: =+Sheet3!DE11/Sheet3!$F$1 -> 546 | DF14: =+Sheet3!DF11/Sheet3!$F$1 -> 163 | DG14: =+Sheet3!DG11/Sheet3!$F$1 -> 300 | DH14: =+Sheet3!DH11/Sheet3!$F$1 -> 107 | DI14: =+Sheet3!DI11/Sheet3!$F$1 -> 148 | DJ14: =+Sheet3!DJ11/Sheet3!$F$1 -> 341 | DK14: =+Sheet3!DK11/Sheet3!$F$1 -> 840 | DL14: =+Sheet3!DL11/Sheet3!$F$1 -> 0 | DM14: =+Sheet3!DM11/Sheet3!$F$1 -> 8 | DN14: =+Sheet3!DN11/Sheet3!$F$1 -> 3657 | DO14: =+Sheet3!DO11/Sheet3!$F$1 -> 938 | DP14: =+Sheet3!DP11/Sheet3!$F$1 -> 52 | DQ14: =+Sheet3!DQ11/Sheet3!$F$1 -> 0 | DR14: =+Sheet3!DR11/Sheet3!$F$1 -> 0 | DS14: 4647
B15: 11B | C15: Alto Tâmega | D15: =+Sheet3!D12/Sheet3!$F$1 -> 15 | E15: =+Sheet3!E12/Sheet3!$F$1 -> 10 | F15: =+Sheet3!F12/Sheet3!$F$1 -> 0 | G15: =+Sheet3!G12/Sheet3!$F$1 -> 0 | H15: =+Sheet3!H12/Sheet3!$F$1 -> 0 | I15: =+Sheet3!I12/Sheet3!$F$1 -> 136 | J15: =+Sheet3!J12/Sheet3!$F$1 -> 30 | K15: =+Sheet3!K12/Sheet3!$F$1 -> 0 | L15: =+Sheet3!L12/Sheet3!$F$1 -> 0 | M15: =+Sheet3!M12/Sheet3!$F$1 -> 0 | N15: =+Sheet3!N12/Sheet3!$F$1 -> 440 | O15: =+Sheet3!O12/Sheet3!$F$1 -> 83 | P15: =+Sheet3!P12/Sheet3!$F$1 -> 0 | Q15: =+Sheet3!Q12/Sheet3!$F$1 -> 0 | R15: =+Sheet3!R12/Sheet3!$F$1 -> 0 | S15: =+Sheet3!S12/Sheet3!$F$1 -> 0 | T15: =+Sheet3!T12/Sheet3!$F$1 -> 0 | U15: =+Sheet3!U12/Sheet3!$F$1 -> 0 | V15: =+Sheet3!V12/Sheet3!$F$1 -> 0 | W15: =+Sheet3!W12/Sheet3!$F$1 -> 0 | X15: =+Sheet3!X12/Sheet3!$F$1 -> 0 | Y15: =+Sheet3!Y12/Sheet3!$F$1 -> 0 | Z15: =+Sheet3!Z12/Sheet3!$F$1 -> 0 | AA15: =+Sheet3!AA12/Sheet3!$F$1 -> 0 | AB15: =+Sheet3!AB12/Sheet3!$F$1 -> 0 | AC15: =+Sheet3!AC12/Sheet3!$F$1 -> 1225 | AD15: =+Sheet3!AD12/Sheet3!$F$1 -> 121 | AE15: =+Sheet3!AE12/Sheet3!$F$1 -> 0 | AF15: =+Sheet3!AF12/Sheet3!$F$1 -> 0 | AG15: =+Sheet3!AG12/Sheet3!$F$1 -> 0 | AH15: =+Sheet3!AH12/Sheet3!$F$1 -> 75 | AI15: =+Sheet3!AI12/Sheet3!$F$1 -> 30 | AJ15: =+Sheet3!AJ12/Sheet3!$F$1 -> 3 | AK15: =+Sheet3!AK12/Sheet3!$F$1 -> 0 | AL15: =+Sheet3!AL12/Sheet3!$F$1 -> 0 | AM15: =+Sheet3!AM12/Sheet3!$F$1 -> 1175 | AN15: =+Sheet3!AN12/Sheet3!$F$1 -> 466 | AO15: =+Sheet3!AO12/Sheet3!$F$1 -> 18 | AP15: =+Sheet3!AP12/Sheet3!$F$1 -> 0 | AQ15: =+Sheet3!AQ12/Sheet3!$F$1 -> 0 | AR15: =+Sheet3!AR12/Sheet3!$F$1 -> 236 | AS15: =+Sheet3!AS12/Sheet3!$F$1 -> 37 | AT15: =+Sheet3!AT12/Sheet3!$F$1 -> 7 | AU15: =+Sheet3!AU12/Sheet3!$F$1 -> 0 | AV15: =+Sheet3!AV12/Sheet3!$F$1 -> 0 | AW15: =+Sheet3!AW12/Sheet3!$F$1 -> 3217 | AX15: =+Sheet3!AX12/Sheet3!$F$1 -> 913 | AY15: =+Sheet3!AY12/Sheet3!$F$1 -> 19 | AZ15: =+Sheet3!AZ12/Sheet3!$F$1 -> 0 | BA15: =+Sheet3!BA12/Sheet3!$F$1 -> 0 | BB15: =+Sheet3!BB12/Sheet3!$F$1 -> 3 | BC15: =+Sheet3!BC12/Sheet3!$F$1 -> 33 | BD15: =+Sheet3!BD12/Sheet3!$F$1 -> 5 | BE15: =+Sheet3!BE12/Sheet3!$F$1 -> 0 | BF15: =+Sheet3!BF12/Sheet3!$F$1 -> 0 | BG15: =+Sheet3!BG12/Sheet3!$F$1 -> 112 | BH15: =+Sheet3!BH12/Sheet3!$F$1 -> 195 | BI15: =+Sheet3!BI12/Sheet3!$F$1 -> 24 | BJ15: =+Sheet3!BJ12/Sheet3!$F$1 -> 0 | BK15: =+Sheet3!BK12/Sheet3!$F$1 -> 0 | BL15: =+Sheet3!BL12/Sheet3!$F$1 -> 56 | BM15: =+Sheet3!BM12/Sheet3!$F$1 -> 19 | BN15: =+Sheet3!BN12/Sheet3!$F$1 -> 3 | BO15: =+Sheet3!BO12/Sheet3!$F$1 -> 0 | BP15: =+Sheet3!BP12/Sheet3!$F$1 -> 0 | BQ15: =+Sheet3!BQ12/Sheet3!$F$1 -> 274 | BR15: =+Sheet3!BR12/Sheet3!$F$1 -> 1000 | BS15: =+Sheet3!BS12/Sheet3!$F$1 -> 169 | BT15: =+Sheet3!BT12/Sheet3!$F$1 -> 8 | BU15: =+Sheet3!BU12/Sheet3!$F$1 -> 0 | BV15: =+Sheet3!BV12/Sheet3!$F$1 -> 859 | BW15: =+Sheet3!BW12/Sheet3!$F$1 -> 700 | BX15: =+Sheet3!BX12/Sheet3!$F$1 -> 51 | BY15: =+Sheet3!BY12/Sheet3!$F$1 -> 4 | BZ15: =+Sheet3!BZ12/Sheet3!$F$1 -> 0 | CA15: =+Sheet3!CA12/Sheet3!$F$1 -> 449 | CB15: =+Sheet3!CB12/Sheet3!$F$1 -> 410 | CC15: =+Sheet3!CC12/Sheet3!$F$1 -> 14 | CD15: =+Sheet3!CD12/Sheet3!$F$1 -> 0 | CE15: =+Sheet3!CE12/Sheet3!$F$1 -> 0 | CF15: =+Sheet3!CF12/Sheet3!$F$1 -> 400 | CG15: =+Sheet3!CG12/Sheet3!$F$1 -> 80 | CH15: =+Sheet3!CH12/Sheet3!$F$1 -> 3 | CI15: =+Sheet3!CI12/Sheet3!$F$1 -> 0 | CJ15: =+Sheet3!CJ12/Sheet3!$F$1 -> 0 | CK15: =+Sheet3!CK12/Sheet3!$F$1 -> 0 | CL15: =+Sheet3!CL12/Sheet3!$F$1 -> 0 | CM15: =+Sheet3!CM12/Sheet3!$F$1 -> 0 | CN15: =+Sheet3!CN12/Sheet3!$F$1 -> 0 | CO15: =+Sheet3!CO12/Sheet3!$F$1 -> 0 | CP15: =+Sheet3!CP12/Sheet3!$F$1 -> 46 | CQ15: =+Sheet3!CQ12/Sheet3!$F$1 -> 0 | CR15: =+Sheet3!CR12/Sheet3!$F$1 -> 0 | CS15: =+Sheet3!CS12/Sheet3!$F$1 -> 0 | CT15: =+Sheet3!CT12/Sheet3!$F$1 -> 0 | CU15: =+Sheet3!CU12/Sheet3!$F$1 -> 27 | CV15: =+Sheet3!CV12/Sheet3!$F$1 -> 169 | CW15: =+Sheet3!CW12/Sheet3!$F$1 -> 524 | CX15: =+Sheet3!CX12/Sheet3!$F$1 -> 0 | CY15: =+Sheet3!CY12/Sheet3!$F$1 -> 0 | CZ15: =+Sheet3!CZ12/Sheet3!$F$1 -> 1347 | DA15: =+Sheet3!DA12/Sheet3!$F$1 -> 112 | DB15: =+Sheet3!DB12/Sheet3!$F$1 -> 1659 | DC15: =+Sheet3!DC12/Sheet3!$F$1 -> 284 | DD15: =+Sheet3!DD12/Sheet3!$F$1 -> 4149 | DE15: =+Sheet3!DE12/Sheet3!$F$1 -> 44 | DF15: =+Sheet3!DF12/Sheet3!$F$1 -> 334 | DG15: =+Sheet3!DG12/Sheet3!$F$1 -> 81 | DH15: =+Sheet3!DH12/Sheet3!$F$1 -> 1451 | DI15: =+Sheet3!DI12/Sheet3!$F$1 -> 1614 | DJ15: =+Sheet3!DJ12/Sheet3!$F$1 -> 874 | DK15: =+Sheet3!DK12/Sheet3!$F$1 -> 485 | DL15: =+Sheet3!DL12/Sheet3!$F$1 -> 0 | DM15: =+Sheet3!DM12/Sheet3!$F$1 -> 51 | DN15: =+Sheet3!DN12/Sheet3!$F$1 -> 8728 | DO15: =+Sheet3!DO12/Sheet3!$F$1 -> 4143 | DP15: =+Sheet3!DP12/Sheet3!$F$1 -> 322 | DQ15: =+Sheet3!DQ12/Sheet3!$F$1 -> 13 | DR15: =+Sheet3!DR12/Sheet3!$F$1 -> 0 | DS15: 13206
B16: 11C | C16: Tâmega e Sousa | D16: =+Sheet3!D13/Sheet3!$F$1 -> 3 | E16: =+Sheet3!E13/Sheet3!$F$1 -> 0 | F16: =+Sheet3!F13/Sheet3!$F$1 -> 0 | G16: =+Sheet3!G13/Sheet3!$F$1 -> 0 | H16: =+Sheet3!H13/Sheet3!$F$1 -> 0 | I16: =+Sheet3!I13/Sheet3!$F$1 -> 461 | J16: =+Sheet3!J13/Sheet3!$F$1 -> 12 | K16: =+Sheet3!K13/Sheet3!$F$1 -> 0 | L16: =+Sheet3!L13/Sheet3!$F$1 -> 0 | M16: =+Sheet3!M13/Sheet3!$F$1 -> 0 | N16: =+Sheet3!N13/Sheet3!$F$1 -> 30 | O16: =+Sheet3!O13/Sheet3!$F$1 -> 0 | P16: =+Sheet3!P13/Sheet3!$F$1 -> 0 | Q16: =+Sheet3!Q13/Sheet3!$F$1 -> 0 | R16: =+Sheet3!R13/Sheet3!$F$1 -> 0 | S16: =+Sheet3!S13/Sheet3!$F$1 -> 0 | T16: =+Sheet3!T13/Sheet3!$F$1 -> 0 | U16: =+Sheet3!U13/Sheet3!$F$1 -> 0 | V16: =+Sheet3!V13/Sheet3!$F$1 -> 0 | W16: =+Sheet3!W13/Sheet3!$F$1 -> 0 | X16: =+Sheet3!X13/Sheet3!$F$1 -> 0 | Y16: =+Sheet3!Y13/Sheet3!$F$1 -> 0 | Z16: =+Sheet3!Z13/Sheet3!$F$1 -> 0 | AA16: =+Sheet3!AA13/Sheet3!$F$1 -> 0 | AB16: =+Sheet3!AB13/Sheet3!$F$1 -> 0 | AC16: =+Sheet3!AC13/Sheet3!$F$1 -> 425 | AD16: =+Sheet3!AD13/Sheet3!$F$1 -> 14 | AE16: =+Sheet3!AE13/Sheet3!$F$1 -> 0 | AF16: =+Sheet3!AF13/Sheet3!$F$1 -> 0 | AG16: =+Sheet3!AG13/Sheet3!$F$1 -> 0 | AH16: =+Sheet3!AH13/Sheet3!$F$1 -> 677 | AI16: =+Sheet3!AI13/Sheet3!$F$1 -> 244 | AJ16: =+Sheet3!AJ13/Sheet3!$F$1 -> 25 | AK16: =+Sheet3!AK13/Sheet3!$F$1 -> 0 | AL16: =+Sheet3!AL13/Sheet3!$F$1 -> 0 | AM16: =+Sheet3!AM13/Sheet3!$F$1 -> 506 | AN16: =+Sheet3!AN13/Sheet3!$F$1 -> 148 | AO16: =+Sheet3!AO13/Sheet3!$F$1 -> 4 | AP16: =+Sheet3!AP13/Sheet3!$F$1 -> 0 | AQ16: =+Sheet3!AQ13/Sheet3!$F$1 -> 0 | AR16: =+Sheet3!AR13/Sheet3!$F$1 -> 13 | AS16: =+Sheet3!AS13/Sheet3!$F$1 -> 0 | AT16: =+Sheet3!AT13/Sheet3!$F$1 -> 0 | AU16: =+Sheet3!AU13/Sheet3!$F$1 -> 0 | AV16: =+Sheet3!AV13/Sheet3!$F$1 -> 0 | AW16: =+Sheet3!AW13/Sheet3!$F$1 -> 2510 | AX16: =+Sheet3!AX13/Sheet3!$F$1 -> 170 | AY16: =+Sheet3!AY13/Sheet3!$F$1 -> 4 | AZ16: =+Sheet3!AZ13/Sheet3!$F$1 -> 0 | BA16: =+Sheet3!BA13/Sheet3!$F$1 -> 0 | BB16: =+Sheet3!BB13/Sheet3!$F$1 -> 3 | BC16: =+Sheet3!BC13/Sheet3!$F$1 -> 20 | BD16: =+Sheet3!BD13/Sheet3!$F$1 -> 0 | BE16: =+Sheet3!BE13/Sheet3!$F$1 -> 0 | BF16: =+Sheet3!BF13/Sheet3!$F$1 -> 0 | BG16: =+Sheet3!BG13/Sheet3!$F$1 -> 147 | BH16: =+Sheet3!BH13/Sheet3!$F$1 -> 48 | BI16: =+Sheet3!BI13/Sheet3!$F$1 -> 4 | BJ16: =+Sheet3!BJ13/Sheet3!$F$1 -> 0 | BK16: =+Sheet3!BK13/Sheet3!$F$1 -> 0 | BL16: =+Sheet3!BL13/Sheet3!$F$1 -> 135 | BM16: =+Sheet3!BM13/Sheet3!$F$1 -> 21 | BN16: =+Sheet3!BN13/Sheet3!$F$1 -> 0 | BO16: =+Sheet3!BO13/Sheet3!$F$1 -> 0 | BP16: =+Sheet3!BP13/Sheet3!$F$1 -> 0 | BQ16: =+Sheet3!BQ13/Sheet3!$F$1 -> 54 | BR16: =+Sheet3!BR13/Sheet3!$F$1 -> 44 | BS16: =+Sheet3!BS13/Sheet3!$F$1 -> 7 | BT16: =+Sheet3!BT13/Sheet3!$F$1 -> 0 | BU16: =+Sheet3!BU13/Sheet3!$F$1 -> 0 | BV16: =+Sheet3!BV13/Sheet3!$F$1 -> 276 | BW16: =+Sheet3!BW13/Sheet3!$F$1 -> 44 | BX16: =+Sheet3!BX13/Sheet3!$F$1 -> 7 | BY16: =+Sheet3!BY13/Sheet3!$F$1 -> 0 | BZ16: =+Sheet3!BZ13/Sheet3!$F$1 -> 0 | CA16: =+Sheet3!CA13/Sheet3!$F$1 -> 613 | CB16: =+Sheet3!CB13/Sheet3!$F$1 -> 57 | CC16: =+Sheet3!CC13/Sheet3!$F$1 -> 0 | CD16: =+Sheet3!CD13/Sheet3!$F$1 -> 0 | CE16: =+Sheet3!CE13/Sheet3!$F$1 -> 0 | CF16: =+Sheet3!CF13/Sheet3!$F$1 -> 252 | CG16: =+Sheet3!CG13/Sheet3!$F$1 -> 24 | CH16: =+Sheet3!CH13/Sheet3!$F$1 -> 0 | CI16: =+Sheet3!CI13/Sheet3!$F$1 -> 0 | CJ16: =+Sheet3!CJ13/Sheet3!$F$1 -> 0 | CK16: =+Sheet3!CK13/Sheet3!$F$1 -> 0 | CL16: =+Sheet3!CL13/Sheet3!$F$1 -> 0 | CM16: =+Sheet3!CM13/Sheet3!$F$1 -> 0 | CN16: =+Sheet3!CN13/Sheet3!$F$1 -> 0 | CO16: =+Sheet3!CO13/Sheet3!$F$1 -> 0 | CP16: =+Sheet3!CP13/Sheet3!$F$1 -> 0 | CQ16: =+Sheet3!CQ13/Sheet3!$F$1 -> 0 | CR16: =+Sheet3!CR13/Sheet3!$F$1 -> 0 | CS16: =+Sheet3!CS13/Sheet3!$F$1 -> 0 | CT16: =+Sheet3!CT13/Sheet3!$F$1 -> 0 | CU16: =+Sheet3!CU13/Sheet3!$F$1 -> 6 | CV16: =+Sheet3!CV13/Sheet3!$F$1 -> 476 | CW16: =+Sheet3!CW13/Sheet3!$F$1 -> 32 | CX16: =+Sheet3!CX13/Sheet3!$F$1 -> 0 | CY16: =+Sheet3!CY13/Sheet3!$F$1 -> 0 | CZ16: =+Sheet3!CZ13/Sheet3!$F$1 -> 444 | DA16: =+Sheet3!DA13/Sheet3!$F$1 -> 949 | DB16: =+Sheet3!DB13/Sheet3!$F$1 -> 660 | DC16: =+Sheet3!DC13/Sheet3!$F$1 -> 14 | DD16: =+Sheet3!DD13/Sheet3!$F$1 -> 2684 | DE16: =+Sheet3!DE13/Sheet3!$F$1 -> 28 | DF16: =+Sheet3!DF13/Sheet3!$F$1 -> 202 | DG16: =+Sheet3!DG13/Sheet3!$F$1 -> 160 | DH16: =+Sheet3!DH13/Sheet3!$F$1 -> 107 | DI16: =+Sheet3!DI13/Sheet3!$F$1 -> 331 | DJ16: =+Sheet3!DJ13/Sheet3!$F$1 -> 672 | DK16: =+Sheet3!DK13/Sheet3!$F$1 -> 278 | DL16: =+Sheet3!DL13/Sheet3!$F$1 -> 0 | DM16: =+Sheet3!DM13/Sheet3!$F$1 -> 0 | DN16: =+Sheet3!DN13/Sheet3!$F$1 -> 6117 | DO16: =+Sheet3!DO13/Sheet3!$F$1 -> 865 | DP16: =+Sheet3!DP13/Sheet3!$F$1 -> 62 | DQ16: =+Sheet3!DQ13/Sheet3!$F$1 -> 0 | DR16: =+Sheet3!DR13/Sheet3!$F$1 -> 0 | DS16: 7044
B17: 11D | C17: Douro | D17: =+Sheet3!D14/Sheet3!$F$1 -> 4 | E17: =+Sheet3!E14/Sheet3!$F$1 -> 0 | F17: =+Sheet3!F14/Sheet3!$F$1 -> 0 | G17: =+Sheet3!G14/Sheet3!$F$1 -> 0 | H17: =+Sheet3!H14/Sheet3!$F$1 -> 0 | I17: =+Sheet3!I14/Sheet3!$F$1 -> 17 | J17: =+Sheet3!J14/Sheet3!$F$1 -> 0 | K17: =+Sheet3!K14/Sheet3!$F$1 -> 0 | L17: =+Sheet3!L14/Sheet3!$F$1 -> 0 | M17: =+Sheet3!M14/Sheet3!$F$1 -> 0 | N17: =+Sheet3!N14/Sheet3!$F$1 -> 135 | O17: =+Sheet3!O14/Sheet3!$F$1 -> 36 | P17: =+Sheet3!P14/Sheet3!$F$1 -> 0 | Q17: =+Sheet3!Q14/Sheet3!$F$1 -> 0 | R17: =+Sheet3!R14/Sheet3!$F$1 -> 0 | S17: =+Sheet3!S14/Sheet3!$F$1 -> 0 | T17: =+Sheet3!T14/Sheet3!$F$1 -> 0 | U17: =+Sheet3!U14/Sheet3!$F$1 -> 0 | V17: =+Sheet3!V14/Sheet3!$F$1 -> 0 | W17: =+Sheet3!W14/Sheet3!$F$1 -> 0 | X17: =+Sheet3!X14/Sheet3!$F$1 -> 0 | Y17: =+Sheet3!Y14/Sheet3!$F$1 -> 0 | Z17: =+Sheet3!Z14/Sheet3!$F$1 -> 0 | AA17: =+Sheet3!AA14/Sheet3!$F$1 -> 0 | AB17: =+Sheet3!AB14/Sheet3!$F$1 -> 0 | AC17: =+Sheet3!AC14/Sheet3!$F$1 -> 1696 | AD17: =+Sheet3!AD14/Sheet3!$F$1 -> 139 | AE17: =+Sheet3!AE14/Sheet3!$F$1 -> 7 | AF17: =+Sheet3!AF14/Sheet3!$F$1 -> 0 | AG17: =+Sheet3!AG14/Sheet3!$F$1 -> 0 | AH17: =+Sheet3!AH14/Sheet3!$F$1 -> 3898 | AI17: =+Sheet3!AI14/Sheet3!$F$1 -> 1648 | AJ17: =+Sheet3!AJ14/Sheet3!$F$1 -> 237 | AK17: =+Sheet3!AK14/Sheet3!$F$1 -> 11 | AL17: =+Sheet3!AL14/Sheet3!$F$1 -> 0 | AM17: =+Sheet3!AM14/Sheet3!$F$1 -> 976 | AN17: =+Sheet3!AN14/Sheet3!$F$1 -> 688 | AO17: =+Sheet3!AO14/Sheet3!$F$1 -> 76 | AP17: =+Sheet3!AP14/Sheet3!$F$1 -> 0 | AQ17: =+Sheet3!AQ14/Sheet3!$F$1 -> 0 | AR17: =+Sheet3!AR14/Sheet3!$F$1 -> 604 | AS17: =+Sheet3!AS14/Sheet3!$F$1 -> 61 | AT17: =+Sheet3!AT14/Sheet3!$F$1 -> 7 | AU17: =+Sheet3!AU14/Sheet3!$F$1 -> 0 | AV17: =+Sheet3!AV14/Sheet3!$F$1 -> 0 | AW17: =+Sheet3!AW14/Sheet3!$F$1 -> 6454 | AX17: =+Sheet3!AX14/Sheet3!$F$1 -> 1637 | AY17: =+Sheet3!AY14/Sheet3!$F$1 -> 139 | AZ17: =+Sheet3!AZ14/Sheet3!$F$1 -> 0 | BA17: =+Sheet3!BA14/Sheet3!$F$1 -> 0 | BB17: =+Sheet3!BB14/Sheet3!$F$1 -> 18 | BC17: =+Sheet3!BC14/Sheet3!$F$1 -> 35 | BD17: =+Sheet3!BD14/Sheet3!$F$1 -> 4 | BE17: =+Sheet3!BE14/Sheet3!$F$1 -> 0 | BF17: =+Sheet3!BF14/Sheet3!$F$1 -> 0 | BG17: =+Sheet3!BG14/Sheet3!$F$1 -> 52 | BH17: =+Sheet3!BH14/Sheet3!$F$1 -> 32 | BI17: =+Sheet3!BI14/Sheet3!$F$1 -> 4 | BJ17: =+Sheet3!BJ14/Sheet3!$F$1 -> 0 | BK17: =+Sheet3!BK14/Sheet3!$F$1 -> 0 | BL17: =+Sheet3!BL14/Sheet3!$F$1 -> 18 | BM17: =+Sheet3!BM14/Sheet3!$F$1 -> 5 | BN17: =+Sheet3!BN14/Sheet3!$F$1 -> 0 | BO17: =+Sheet3!BO14/Sheet3!$F$1 -> 0 | BP17: =+Sheet3!BP14/Sheet3!$F$1 -> 0 | BQ17: =+Sheet3!BQ14/Sheet3!$F$1 -> 133 | BR17: =+Sheet3!BR14/Sheet3!$F$1 -> 113 | BS17: =+Sheet3!BS14/Sheet3!$F$1 -> 18 | BT17: =+Sheet3!BT14/Sheet3!$F$1 -> 0 | BU17: =+Sheet3!BU14/Sheet3!$F$1 -> 0 | BV17: =+Sheet3!BV14/Sheet3!$F$1 -> 554 | BW17: =+Sheet3!BW14/Sheet3!$F$1 -> 233 | BX17: =+Sheet3!BX14/Sheet3!$F$1 -> 18 | BY17: =+Sheet3!BY14/Sheet3!$F$1 -> 0 | BZ17: =+Sheet3!BZ14/Sheet3!$F$1 -> 0 | CA17: =+Sheet3!CA14/Sheet3!$F$1 -> 322 | CB17: =+Sheet3!CB14/Sheet3!$F$1 -> 138 | CC17: =+Sheet3!CC14/Sheet3!$F$1 -> 16 | CD17: =+Sheet3!CD14/Sheet3!$F$1 -> 0 | CE17: =+Sheet3!CE14/Sheet3!$F$1 -> 0 | CF17: =+Sheet3!CF14/Sheet3!$F$1 -> 77 | CG17: =+Sheet3!CG14/Sheet3!$F$1 -> 15 | CH17: =+Sheet3!CH14/Sheet3!$F$1 -> 0 | CI17: =+Sheet3!CI14/Sheet3!$F$1 -> 0 | CJ17: =+Sheet3!CJ14/Sheet3!$F$1 -> 0 | CK17: =+Sheet3!CK14/Sheet3!$F$1 -> 0 | CL17: =+Sheet3!CL14/Sheet3!$F$1 -> 0 | CM17: =+Sheet3!CM14/Sheet3!$F$1 -> 0 | CN17: =+Sheet3!CN14/Sheet3!$F$1 -> 0 | CO17: =+Sheet3!CO14/Sheet3!$F$1 -> 0 | CP17: =+Sheet3!CP14/Sheet3!$F$1 -> 31 | CQ17: =+Sheet3!CQ14/Sheet3!$F$1 -> 0 | CR17: =+Sheet3!CR14/Sheet3!$F$1 -> 0 | CS17: =+Sheet3!CS14/Sheet3!$F$1 -> 0 | CT17: =+Sheet3!CT14/Sheet3!$F$1 -> 0 | CU17: =+Sheet3!CU14/Sheet3!$F$1 -> 7 | CV17: =+Sheet3!CV14/Sheet3!$F$1 -> 22 | CW17: =+Sheet3!CW14/Sheet3!$F$1 -> 171 | CX17: =+Sheet3!CX14/Sheet3!$F$1 -> 0 | CY17: =+Sheet3!CY14/Sheet3!$F$1 -> 4 | CZ17: =+Sheet3!CZ14/Sheet3!$F$1 -> 1842 | DA17: =+Sheet3!DA14/Sheet3!$F$1 -> 5794 | DB17: =+Sheet3!DB14/Sheet3!$F$1 -> 1741 | DC17: =+Sheet3!DC14/Sheet3!$F$1 -> 674 | DD17: =+Sheet3!DD14/Sheet3!$F$1 -> 8230 | DE17: =+Sheet3!DE14/Sheet3!$F$1 -> 59 | DF17: =+Sheet3!DF14/Sheet3!$F$1 -> 93 | DG17: =+Sheet3!DG14/Sheet3!$F$1 -> 25 | DH17: =+Sheet3!DH14/Sheet3!$F$1 -> 266 | DI17: =+Sheet3!DI14/Sheet3!$F$1 -> 806 | DJ17: =+Sheet3!DJ14/Sheet3!$F$1 -> 478 | DK17: =+Sheet3!DK14/Sheet3!$F$1 -> 98 | DL17: =+Sheet3!DL14/Sheet3!$F$1 -> 0 | DM17: =+Sheet3!DM14/Sheet3!$F$1 -> 33 | DN17: =+Sheet3!DN14/Sheet3!$F$1 -> 15004 | DO17: =+Sheet3!DO14/Sheet3!$F$1 -> 4796 | DP17: =+Sheet3!DP14/Sheet3!$F$1 -> 532 | DQ17: =+Sheet3!DQ14/Sheet3!$F$1 -> 11 | DR17: =+Sheet3!DR14/Sheet3!$F$1 -> 0 | DS17: 20343
B18: 11E | C18: Terras de Trás-os-Montes | D18: =+Sheet3!D15/Sheet3!$F$1 -> 53 | E18: =+Sheet3!E15/Sheet3!$F$1 -> 16 | F18: =+Sheet3!F15/Sheet3!$F$1 -> 4 | G18: =+Sheet3!G15/Sheet3!$F$1 -> 0 | H18: =+Sheet3!H15/Sheet3!$F$1 -> 0 | I18: =+Sheet3!I15/Sheet3!$F$1 -> 4 | J18: =+Sheet3!J15/Sheet3!$F$1 -> 3 | K18: =+Sheet3!K15/Sheet3!$F$1 -> 0 | L18: =+Sheet3!L15/Sheet3!$F$1 -> 0 | M18: =+Sheet3!M15/Sheet3!$F$1 -> 0 | N18: =+Sheet3!N15/Sheet3!$F$1 -> 367 | O18: =+Sheet3!O15/Sheet3!$F$1 -> 329 | P18: =+Sheet3!P15/Sheet3!$F$1 -> 27 | Q18: =+Sheet3!Q15/Sheet3!$F$1 -> 0 | R18: =+Sheet3!R15/Sheet3!$F$1 -> 0 | S18: =+Sheet3!S15/Sheet3!$F$1 -> 0 | T18: =+Sheet3!T15/Sheet3!$F$1 -> 0 | U18: =+Sheet3!U15/Sheet3!$F$1 -> 0 | V18: =+Sheet3!V15/Sheet3!$F$1 -> 0 | W18: =+Sheet3!W15/Sheet3!$F$1 -> 0 | X18: =+Sheet3!X15/Sheet3!$F$1 -> 4 | Y18: =+Sheet3!Y15/Sheet3!$F$1 -> 5 | Z18: =+Sheet3!Z15/Sheet3!$F$1 -> 0 | AA18: =+Sheet3!AA15/Sheet3!$F$1 -> 0 | AB18: =+Sheet3!AB15/Sheet3!$F$1 -> 0 | AC18: =+Sheet3!AC15/Sheet3!$F$1 -> 3232 | AD18: =+Sheet3!AD15/Sheet3!$F$1 -> 1637 | AE18: =+Sheet3!AE15/Sheet3!$F$1 -> 174 | AF18: =+Sheet3!AF15/Sheet3!$F$1 -> 0 | AG18: =+Sheet3!AG15/Sheet3!$F$1 -> 0 | AH18: =+Sheet3!AH15/Sheet3!$F$1 -> 119 | AI18: =+Sheet3!AI15/Sheet3!$F$1 -> 68 | AJ18: =+Sheet3!AJ15/Sheet3!$F$1 -> 10 | AK18: =+Sheet3!AK15/Sheet3!$F$1 -> 0 | AL18: =+Sheet3!AL15/Sheet3!$F$1 -> 0 | AM18: =+Sheet3!AM15/Sheet3!$F$1 -> 1405 | AN18: =+Sheet3!AN15/Sheet3!$F$1 -> 1272 | AO18: =+Sheet3!AO15/Sheet3!$F$1 -> 129 | AP18: =+Sheet3!AP15/Sheet3!$F$1 -> 0 | AQ18: =+Sheet3!AQ15/Sheet3!$F$1 -> 0 | AR18: =+Sheet3!AR15/Sheet3!$F$1 -> 1820 | AS18: =+Sheet3!AS15/Sheet3!$F$1 -> 463 | AT18: =+Sheet3!AT15/Sheet3!$F$1 -> 91 | AU18: =+Sheet3!AU15/Sheet3!$F$1 -> 0 | AV18: =+Sheet3!AV15/Sheet3!$F$1 -> 0 | AW18: =+Sheet3!AW15/Sheet3!$F$1 -> 5648 | AX18: =+Sheet3!AX15/Sheet3!$F$1 -> 4712 | AY18: =+Sheet3!AY15/Sheet3!$F$1 -> 495 | AZ18: =+Sheet3!AZ15/Sheet3!$F$1 -> 0 | BA18: =+Sheet3!BA15/Sheet3!$F$1 -> 0 | BB18: =+Sheet3!BB15/Sheet3!$F$1 -> 0 | BC18: =+Sheet3!BC15/Sheet3!$F$1 -> 0 | BD18: =+Sheet3!BD15/Sheet3!$F$1 -> 14 | BE18: =+Sheet3!BE15/Sheet3!$F$1 -> 0 | BF18: =+Sheet3!BF15/Sheet3!$F$1 -> 0 | BG18: =+Sheet3!BG15/Sheet3!$F$1 -> 15 | BH18: =+Sheet3!BH15/Sheet3!$F$1 -> 53 | BI18: =+Sheet3!BI15/Sheet3!$F$1 -> 52 | BJ18: =+Sheet3!BJ15/Sheet3!$F$1 -> 0 | BK18: =+Sheet3!BK15/Sheet3!$F$1 -> 0 | BL18: =+Sheet3!BL15/Sheet3!$F$1 -> 30 | BM18: =+Sheet3!BM15/Sheet3!$F$1 -> 16 | BN18: =+Sheet3!BN15/Sheet3!$F$1 -> 0 | BO18: =+Sheet3!BO15/Sheet3!$F$1 -> 0 | BP18: =+Sheet3!BP15/Sheet3!$F$1 -> 0 | BQ18: =+Sheet3!BQ15/Sheet3!$F$1 -> 0 | BR18: =+Sheet3!BR15/Sheet3!$F$1 -> 48 | BS18: =+Sheet3!BS15/Sheet3!$F$1 -> 54 | BT18: =+Sheet3!BT15/Sheet3!$F$1 -> 3 | BU18: =+Sheet3!BU15/Sheet3!$F$1 -> 0 | BV18: =+Sheet3!BV15/Sheet3!$F$1 -> 266 | BW18: =+Sheet3!BW15/Sheet3!$F$1 -> 374 | BX18: =+Sheet3!BX15/Sheet3!$F$1 -> 91 | BY18: =+Sheet3!BY15/Sheet3!$F$1 -> 0 | BZ18: =+Sheet3!BZ15/Sheet3!$F$1 -> 0 | CA18: =+Sheet3!CA15/Sheet3!$F$1 -> 153 | CB18: =+Sheet3!CB15/Sheet3!$F$1 -> 538 | CC18: =+Sheet3!CC15/Sheet3!$F$1 -> 289 | CD18: =+Sheet3!CD15/Sheet3!$F$1 -> 0 | CE18: =+Sheet3!CE15/Sheet3!$F$1 -> 0 | CF18: =+Sheet3!CF15/Sheet3!$F$1 -> 130 | CG18: =+Sheet3!CG15/Sheet3!$F$1 -> 70 | CH18: =+Sheet3!CH15/Sheet3!$F$1 -> 8 | CI18: =+Sheet3!CI15/Sheet3!$F$1 -> 0 | CJ18: =+Sheet3!CJ15/Sheet3!$F$1 -> 0 | CK18: =+Sheet3!CK15/Sheet3!$F$1 -> 0 | CL18: =+Sheet3!CL15/Sheet3!$F$1 -> 0 | CM18: =+Sheet3!CM15/Sheet3!$F$1 -> 0 | CN18: =+Sheet3!CN15/Sheet3!$F$1 -> 0 | CO18: =+Sheet3!CO15/Sheet3!$F$1 -> 0 | CP18: =+Sheet3!CP15/Sheet3!$F$1 -> 3 | CQ18: =+Sheet3!CQ15/Sheet3!$F$1 -> 0 | CR18: =+Sheet3!CR15/Sheet3!$F$1 -> 0 | CS18: =+Sheet3!CS15/Sheet3!$F$1 -> 0 | CT18: =+Sheet3!CT15/Sheet3!$F$1 -> 0 | CU18: =+Sheet3!CU15/Sheet3!$F$1 -> 76 | CV18: =+Sheet3!CV15/Sheet3!$F$1 -> 9 | CW18: =+Sheet3!CW15/Sheet3!$F$1 -> 727 | CX18: =+Sheet3!CX15/Sheet3!$F$1 -> 0 | CY18: =+Sheet3!CY15/Sheet3!$F$1 -> 12 | CZ18: =+Sheet3!CZ15/Sheet3!$F$1 -> 5045 | DA18: =+Sheet3!DA15/Sheet3!$F$1 -> 201 | DB18: =+Sheet3!DB15/Sheet3!$F$1 -> 2807 | DC18: =+Sheet3!DC15/Sheet3!$F$1 -> 2377 | DD18: =+Sheet3!DD15/Sheet3!$F$1 -> 10857 | DE18: =+Sheet3!DE15/Sheet3!$F$1 -> 18 | DF18: =+Sheet3!DF15/Sheet3!$F$1 -> 123 | DG18: =+Sheet3!DG15/Sheet3!$F$1 -> 47 | DH18: =+Sheet3!DH15/Sheet3!$F$1 -> 114 | DI18: =+Sheet3!DI15/Sheet3!$F$1 -> 732 | DJ18: =+Sheet3!DJ15/Sheet3!$F$1 -> 982 | DK18: =+Sheet3!DK15/Sheet3!$F$1 -> 210 | DL18: =+Sheet3!DL15/Sheet3!$F$1 -> 0 | DM18: =+Sheet3!DM15/Sheet3!$F$1 -> 5 | DN18: =+Sheet3!DN15/Sheet3!$F$1 -> 13267 | DO18: =+Sheet3!DO15/Sheet3!$F$1 -> 9614 | DP18: =+Sheet3!DP15/Sheet3!$F$1 -> 1452 | DQ18: =+Sheet3!DQ15/Sheet3!$F$1 -> 8 | DR18: =+Sheet3!DR15/Sheet3!$F$1 -> 0 | DS18: 24341
A19: Centro | B19: 16B | C19: Oeste | D19: =+Sheet3!D16/Sheet3!$F$1 -> 56 | E19: =+Sheet3!E16/Sheet3!$F$1 -> 13 | F19: =+Sheet3!F16/Sheet3!$F$1 -> 5 | G19: =+Sheet3!G16/Sheet3!$F$1 -> 0 | H19: =+Sheet3!H16/Sheet3!$F$1 -> 0 | I19: =+Sheet3!I16/Sheet3!$F$1 -> 4 | J19: =+Sheet3!J16/Sheet3!$F$1 -> 4 | K19: =+Sheet3!K16/Sheet3!$F$1 -> 0 | L19: =+Sheet3!L16/Sheet3!$F$1 -> 0 | M19: =+Sheet3!M16/Sheet3!$F$1 -> 0 | N19: =+Sheet3!N16/Sheet3!$F$1 -> 34 | O19: =+Sheet3!O16/Sheet3!$F$1 -> 27 | P19: =+Sheet3!P16/Sheet3!$F$1 -> 0 | Q19: =+Sheet3!Q16/Sheet3!$F$1 -> 0 | R19: =+Sheet3!R16/Sheet3!$F$1 -> 0 | S19: =+Sheet3!S16/Sheet3!$F$1 -> 0 | T19: =+Sheet3!T16/Sheet3!$F$1 -> 0 | U19: =+Sheet3!U16/Sheet3!$F$1 -> 0 | V19: =+Sheet3!V16/Sheet3!$F$1 -> 0 | W19: =+Sheet3!W16/Sheet3!$F$1 -> 0 | X19: =+Sheet3!X16/Sheet3!$F$1 -> 0 | Y19: =+Sheet3!Y16/Sheet3!$F$1 -> 0 | Z19: =+Sheet3!Z16/Sheet3!$F$1 -> 0 | AA19: =+Sheet3!AA16/Sheet3!$F$1 -> 0 | AB19: =+Sheet3!AB16/Sheet3!$F$1 -> 0 | AC19: =+Sheet3!AC16/Sheet3!$F$1 -> 115 | AD19: =+Sheet3!AD16/Sheet3!$F$1 -> 79 | AE19: =+Sheet3!AE16/Sheet3!$F$1 -> 4 | AF19: =+Sheet3!AF16/Sheet3!$F$1 -> 0 | AG19: =+Sheet3!AG16/Sheet3!$F$1 -> 0 | AH19: =+Sheet3!AH16/Sheet3!$F$1 -> 62 | AI19: =+Sheet3!AI16/Sheet3!$F$1 -> 149 | AJ19: =+Sheet3!AJ16/Sheet3!$F$1 -> 69 | AK19: =+Sheet3!AK16/Sheet3!$F$1 -> 0 | AL19: =+Sheet3!AL16/Sheet3!$F$1 -> 0 | AM19: =+Sheet3!AM16/Sheet3!$F$1 -> 199 | AN19: =+Sheet3!AN16/Sheet3!$F$1 -> 400 | AO19: =+Sheet3!AO16/Sheet3!$F$1 -> 103 | AP19: =+Sheet3!AP16/Sheet3!$F$1 -> 0 | AQ19: =+Sheet3!AQ16/Sheet3!$F$1 -> 0 | AR19: =+Sheet3!AR16/Sheet3!$F$1 -> 0 | AS19: =+Sheet3!AS16/Sheet3!$F$1 -> 0 | AT19: =+Sheet3!AT16/Sheet3!$F$1 -> 0 | AU19: =+Sheet3!AU16/Sheet3!$F$1 -> 0 | AV19: =+Sheet3!AV16/Sheet3!$F$1 -> 0 | AW19: =+Sheet3!AW16/Sheet3!$F$1 -> 119 | AX19: =+Sheet3!AX16/Sheet3!$F$1 -> 99 | AY19: =+Sheet3!AY16/Sheet3!$F$1 -> 24 | AZ19: =+Sheet3!AZ16/Sheet3!$F$1 -> 0 | BA19: =+Sheet3!BA16/Sheet3!$F$1 -> 0 | BB19: =+Sheet3!BB16/Sheet3!$F$1 -> 0 | BC19: =+Sheet3!BC16/Sheet3!$F$1 -> 4 | BD19: =+Sheet3!BD16/Sheet3!$F$1 -> 0 | BE19: =+Sheet3!BE16/Sheet3!$F$1 -> 0 | BF19: =+Sheet3!BF16/Sheet3!$F$1 -> 0 | BG19: =+Sheet3!BG16/Sheet3!$F$1 -> 5 | BH19: =+Sheet3!BH16/Sheet3!$F$1 -> 9 | BI19: =+Sheet3!BI16/Sheet3!$F$1 -> 5 | BJ19: =+Sheet3!BJ16/Sheet3!$F$1 -> 0 | BK19: =+Sheet3!BK16/Sheet3!$F$1 -> 0 | BL19: =+Sheet3!BL16/Sheet3!$F$1 -> 71 | BM19: =+Sheet3!BM16/Sheet3!$F$1 -> 24 | BN19: =+Sheet3!BN16/Sheet3!$F$1 -> 3 | BO19: =+Sheet3!BO16/Sheet3!$F$1 -> 0 | BP19: =+Sheet3!BP16/Sheet3!$F$1 -> 0 | BQ19: =+Sheet3!BQ16/Sheet3!$F$1 -> 7 | BR19: =+Sheet3!BR16/Sheet3!$F$1 -> 9 | BS19: =+Sheet3!BS16/Sheet3!$F$1 -> 6 | BT19: =+Sheet3!BT16/Sheet3!$F$1 -> 0 | BU19: =+Sheet3!BU16/Sheet3!$F$1 -> 0 | BV19: =+Sheet3!BV16/Sheet3!$F$1 -> 450 | BW19: =+Sheet3!BW16/Sheet3!$F$1 -> 28 | BX19: =+Sheet3!BX16/Sheet3!$F$1 -> 3 | BY19: =+Sheet3!BY16/Sheet3!$F$1 -> 0 | BZ19: =+Sheet3!BZ16/Sheet3!$F$1 -> 0 | CA19: =+Sheet3!CA16/Sheet3!$F$1 -> 52 | CB19: =+Sheet3!CB16/Sheet3!$F$1 -> 21 | CC19: =+Sheet3!CC16/Sheet3!$F$1 -> 0 | CD19: =+Sheet3!CD16/Sheet3!$F$1 -> 0 | CE19: =+Sheet3!CE16/Sheet3!$F$1 -> 0 | CF19: =+Sheet3!CF16/Sheet3!$F$1 -> 150 | CG19: =+Sheet3!CG16/Sheet3!$F$1 -> 44 | CH19: =+Sheet3!CH16/Sheet3!$F$1 -> 12 | CI19: =+Sheet3!CI16/Sheet3!$F$1 -> 0 | CJ19: =+Sheet3!CJ16/Sheet3!$F$1 -> 0 | CK19: =+Sheet3!CK16/Sheet3!$F$1 -> 0 | CL19: =+Sheet3!CL16/Sheet3!$F$1 -> 0 | CM19: =+Sheet3!CM16/Sheet3!$F$1 -> 0 | CN19: =+Sheet3!CN16/Sheet3!$F$1 -> 0 | CO19: =+Sheet3!CO16/Sheet3!$F$1 -> 0 | CP19: =+Sheet3!CP16/Sheet3!$F$1 -> 14 | CQ19: =+Sheet3!CQ16/Sheet3!$F$1 -> 8 | CR19: =+Sheet3!CR16/Sheet3!$F$1 -> 0 | CS19: =+Sheet3!CS16/Sheet3!$F$1 -> 0 | CT19: =+Sheet3!CT16/Sheet3!$F$1 -> 0 | CU19: =+Sheet3!CU16/Sheet3!$F$1 -> 75 | CV19: =+Sheet3!CV16/Sheet3!$F$1 -> 14 | CW19: =+Sheet3!CW16/Sheet3!$F$1 -> 69 | CX19: =+Sheet3!CX16/Sheet3!$F$1 -> 0 | CY19: =+Sheet3!CY16/Sheet3!$F$1 -> 3 | CZ19: =+Sheet3!CZ16/Sheet3!$F$1 -> 201 | DA19: =+Sheet3!DA16/Sheet3!$F$1 -> 283 | DB19: =+Sheet3!DB16/Sheet3!$F$1 -> 703 | DC19: =+Sheet3!DC16/Sheet3!$F$1 -> 3 | DD19: =+Sheet3!DD16/Sheet3!$F$1 -> 248 | DE19: =+Sheet3!DE16/Sheet3!$F$1 -> 7 | DF19: =+Sheet3!DF16/Sheet3!$F$1 -> 24 | DG19: =+Sheet3!DG16/Sheet3!$F$1 -> 100 | DH19: =+Sheet3!DH16/Sheet3!$F$1 -> 23 | DI19: =+Sheet3!DI16/Sheet3!$F$1 -> 482 | DJ19: =+Sheet3!DJ16/Sheet3!$F$1 -> 77 | DK19: =+Sheet3!DK16/Sheet3!$F$1 -> 209 | DL19: =+Sheet3!DL16/Sheet3!$F$1 -> 0 | DM19: =+Sheet3!DM16/Sheet3!$F$1 -> 22 | DN19: =+Sheet3!DN16/Sheet3!$F$1 -> 1354 | DO19: =+Sheet3!DO16/Sheet3!$F$1 -> 934 | DP19: =+Sheet3!DP16/Sheet3!$F$1 -> 252 | DQ19: =+Sheet3!DQ16/Sheet3!$F$1 -> 6 | DR19: =+Sheet3!DR16/Sheet3!$F$1 -> 0 | DS19: 2546
B20: 16D | C20: Região de Aveiro | D20: =+Sheet3!D17/Sheet3!$F$1 -> 10 | E20: =+Sheet3!E17/Sheet3!$F$1 -> 0 | F20: =+Sheet3!F17/Sheet3!$F$1 -> 0 | G20: =+Sheet3!G17/Sheet3!$F$1 -> 0 | H20: =+Sheet3!H17/Sheet3!$F$1 -> 0 | I20: =+Sheet3!I17/Sheet3!$F$1 -> 721 | J20: =+Sheet3!J17/Sheet3!$F$1 -> 63 | K20: =+Sheet3!K17/Sheet3!$F$1 -> 10 | L20: =+Sheet3!L17/Sheet3!$F$1 -> 0 | M20: =+Sheet3!M17/Sheet3!$F$1 -> 0 | N20: =+Sheet3!N17/Sheet3!$F$1 -> 577 | O20: =+Sheet3!O17/Sheet3!$F$1 -> 42 | P20: =+Sheet3!P17/Sheet3!$F$1 -> 0 | Q20: =+Sheet3!Q17/Sheet3!$F$1 -> 0 | R20: =+Sheet3!R17/Sheet3!$F$1 -> 0 | S20: =+Sheet3!S17/Sheet3!$F$1 -> 0 | T20: =+Sheet3!T17/Sheet3!$F$1 -> 4 | U20: =+Sheet3!U17/Sheet3!$F$1 -> 4 | V20: =+Sheet3!V17/Sheet3!$F$1 -> 0 | W20: =+Sheet3!W17/Sheet3!$F$1 -> 0 | X20: =+Sheet3!X17/Sheet3!$F$1 -> 0 | Y20: =+Sheet3!Y17/Sheet3!$F$1 -> 0 | Z20: =+Sheet3!Z17/Sheet3!$F$1 -> 0 | AA20: =+Sheet3!AA17/Sheet3!$F$1 -> 0 | AB20: =+Sheet3!AB17/Sheet3!$F$1 -> 0 | AC20: =+Sheet3!AC17/Sheet3!$F$1 -> 259 | AD20: =+Sheet3!AD17/Sheet3!$F$1 -> 13 | AE20: =+Sheet3!AE17/Sheet3!$F$1 -> 3 | AF20: =+Sheet3!AF17/Sheet3!$F$1 -> 0 | AG20: =+Sheet3!AG17/Sheet3!$F$1 -> 0 | AH20: =+Sheet3!AH17/Sheet3!$F$1 -> 43 | AI20: =+Sheet3!AI17/Sheet3!$F$1 -> 26 | AJ20: =+Sheet3!AJ17/Sheet3!$F$1 -> 7 | AK20: =+Sheet3!AK17/Sheet3!$F$1 -> 0 | AL20: =+Sheet3!AL17/Sheet3!$F$1 -> 0 | AM20: =+Sheet3!AM17/Sheet3!$F$1 -> 214 | AN20: =+Sheet3!AN17/Sheet3!$F$1 -> 20 | AO20: =+Sheet3!AO17/Sheet3!$F$1 -> 0 | AP20: =+Sheet3!AP17/Sheet3!$F$1 -> 0 | AQ20: =+Sheet3!AQ17/Sheet3!$F$1 -> 0 | AR20: =+Sheet3!AR17/Sheet3!$F$1 -> 0 | AS20: =+Sheet3!AS17/Sheet3!$F$1 -> 0 | AT20: =+Sheet3!AT17/Sheet3!$F$1 -> 0 | AU20: =+Sheet3!AU17/Sheet3!$F$1 -> 0 | AV20: =+Sheet3!AV17/Sheet3!$F$1 -> 0 | AW20: =+Sheet3!AW17/Sheet3!$F$1 -> 764 | AX20: =+Sheet3!AX17/Sheet3!$F$1 -> 31 | AY20: =+Sheet3!AY17/Sheet3!$F$1 -> 0 | AZ20: =+Sheet3!AZ17/Sheet3!$F$1 -> 0 | BA20: =+Sheet3!BA17/Sheet3!$F$1 -> 0 | BB20: =+Sheet3!BB17/Sheet3!$F$1 -> 57 | BC20: =+Sheet3!BC17/Sheet3!$F$1 -> 110 | BD20: =+Sheet3!BD17/Sheet3!$F$1 -> 13 | BE20: =+Sheet3!BE17/Sheet3!$F$1 -> 0 | BF20: =+Sheet3!BF17/Sheet3!$F$1 -> 0 | BG20: =+Sheet3!BG17/Sheet3!$F$1 -> 49 | BH20: =+Sheet3!BH17/Sheet3!$F$1 -> 30 | BI20: =+Sheet3!BI17/Sheet3!$F$1 -> 5 | BJ20: =+Sheet3!BJ17/Sheet3!$F$1 -> 0 | BK20: =+Sheet3!BK17/Sheet3!$F$1 -> 0 | BL20: =+Sheet3!BL17/Sheet3!$F$1 -> 128 | BM20: =+Sheet3!BM17/Sheet3!$F$1 -> 31 | BN20: =+Sheet3!BN17/Sheet3!$F$1 -> 0 | BO20: =+Sheet3!BO17/Sheet3!$F$1 -> 0 | BP20: =+Sheet3!BP17/Sheet3!$F$1 -> 0 | BQ20: =+Sheet3!BQ17/Sheet3!$F$1 -> 27 | BR20: =+Sheet3!BR17/Sheet3!$F$1 -> 14 | BS20: =+Sheet3!BS17/Sheet3!$F$1 -> 0 | BT20: =+Sheet3!BT17/Sheet3!$F$1 -> 0 | BU20: =+Sheet3!BU17/Sheet3!$F$1 -> 0 | BV20: =+Sheet3!BV17/Sheet3!$F$1 -> 66 | BW20: =+Sheet3!BW17/Sheet3!$F$1 -> 7 | BX20: =+Sheet3!BX17/Sheet3!$F$1 -> 0 | BY20: =+Sheet3!BY17/Sheet3!$F$1 -> 0 | BZ20: =+Sheet3!BZ17/Sheet3!$F$1 -> 0 | CA20: =+Sheet3!CA17/Sheet3!$F$1 -> 254 | CB20: =+Sheet3!CB17/Sheet3!$F$1 -> 27 | CC20: =+Sheet3!CC17/Sheet3!$F$1 -> 0 | CD20: =+Sheet3!CD17/Sheet3!$F$1 -> 0 | CE20: =+Sheet3!CE17/Sheet3!$F$1 -> 0 | CF20: =+Sheet3!CF17/Sheet3!$F$1 -> 369 | CG20: =+Sheet3!CG17/Sheet3!$F$1 -> 50 | CH20: =+Sheet3!CH17/Sheet3!$F$1 -> 0 | CI20: =+Sheet3!CI17/Sheet3!$F$1 -> 0 | CJ20: =+Sheet3!CJ17/Sheet3!$F$1 -> 0 | CK20: =+Sheet3!CK17/Sheet3!$F$1 -> 0 | CL20: =+Sheet3!CL17/Sheet3!$F$1 -> 0 | CM20: =+Sheet3!CM17/Sheet3!$F$1 -> 0 | CN20: =+Sheet3!CN17/Sheet3!$F$1 -> 0 | CO20: =+Sheet3!CO17/Sheet3!$F$1 -> 0 | CP20: =+Sheet3!CP17/Sheet3!$F$1 -> 30 | CQ20: =+Sheet3!CQ17/Sheet3!$F$1 -> 3 | CR20: =+Sheet3!CR17/Sheet3!$F$1 -> 0 | CS20: =+Sheet3!CS17/Sheet3!$F$1 -> 0 | CT20: =+Sheet3!CT17/Sheet3!$F$1 -> 0 | CU20: =+Sheet3!CU17/Sheet3!$F$1 -> 12 | CV20: =+Sheet3!CV17/Sheet3!$F$1 -> 797 | CW20: =+Sheet3!CW17/Sheet3!$F$1 -> 621 | CX20: =+Sheet3!CX17/Sheet3!$F$1 -> 9 | CY20: =+Sheet3!CY17/Sheet3!$F$1 -> 0 | CZ20: =+Sheet3!CZ17/Sheet3!$F$1 -> 276 | DA20: =+Sheet3!DA17/Sheet3!$F$1 -> 79 | DB20: =+Sheet3!DB17/Sheet3!$F$1 -> 235 | DC20: =+Sheet3!DC17/Sheet3!$F$1 -> 3 | DD20: =+Sheet3!DD17/Sheet3!$F$1 -> 801 | DE20: =+Sheet3!DE17/Sheet3!$F$1 -> 180 | DF20: =+Sheet3!DF17/Sheet3!$F$1 -> 84 | DG20: =+Sheet3!DG17/Sheet3!$F$1 -> 163 | DH20: =+Sheet3!DH17/Sheet3!$F$1 -> 42 | DI20: =+Sheet3!DI17/Sheet3!$F$1 -> 73 | DJ20: =+Sheet3!DJ17/Sheet3!$F$1 -> 286 | DK20: =+Sheet3!DK17/Sheet3!$F$1 -> 421 | DL20: =+Sheet3!DL17/Sheet3!$F$1 -> 0 | DM20: =+Sheet3!DM17/Sheet3!$F$1 -> 34 | DN20: =+Sheet3!DN17/Sheet3!$F$1 -> 3584 | DO20: =+Sheet3!DO17/Sheet3!$F$1 -> 482 | DP20: =+Sheet3!DP17/Sheet3!$F$1 -> 51 | DQ20: =+Sheet3!DQ17/Sheet3!$F$1 -> 0 | DR20: =+Sheet3!DR17/Sheet3!$F$1 -> 0 | DS20: 4117
B21: 16E | C21: Região de Coimbra | D21: =+Sheet3!D18/Sheet3!$F$1 -> 24 | E21: =+Sheet3!E18/Sheet3!$F$1 -> 0 | F21: =+Sheet3!F18/Sheet3!$F$1 -> 0 | G21: =+Sheet3!G18/Sheet3!$F$1 -> 0 | H21: =+Sheet3!H18/Sheet3!$F$1 -> 0 | I21: =+Sheet3!I18/Sheet3!$F$1 -> 692 | J21: =+Sheet3!J18/Sheet3!$F$1 -> 226 | K21: =+Sheet3!K18/Sheet3!$F$1 -> 58 | L21: =+Sheet3!L18/Sheet3!$F$1 -> 0 | M21: =+Sheet3!M18/Sheet3!$F$1 -> 0 | N21: =+Sheet3!N18/Sheet3!$F$1 -> 305 | O21: =+Sheet3!O18/Sheet3!$F$1 -> 22 | P21: =+Sheet3!P18/Sheet3!$F$1 -> 3 | Q21: =+Sheet3!Q18/Sheet3!$F$1 -> 0 | R21: =+Sheet3!R18/Sheet3!$F$1 -> 0 | S21: =+Sheet3!S18/Sheet3!$F$1 -> 115 | T21: =+Sheet3!T18/Sheet3!$F$1 -> 113 | U21: =+Sheet3!U18/Sheet3!$F$1 -> 46 | V21: =+Sheet3!V18/Sheet3!$F$1 -> 0 | W21: =+Sheet3!W18/Sheet3!$F$1 -> 0 | X21: =+Sheet3!X18/Sheet3!$F$1 -> 0 | Y21: =+Sheet3!Y18/Sheet3!$F$1 -> 0 | Z21: =+Sheet3!Z18/Sheet3!$F$1 -> 0 | AA21: =+Sheet3!AA18/Sheet3!$F$1 -> 0 | AB21: =+Sheet3!AB18/Sheet3!$F$1 -> 0 | AC21: =+Sheet3!AC18/Sheet3!$F$1 -> 656 | AD21: =+Sheet3!AD18/Sheet3!$F$1 -> 37 | AE21: =+Sheet3!AE18/Sheet3!$F$1 -> 5 | AF21: =+Sheet3!AF18/Sheet3!$F$1 -> 0 | AG21: =+Sheet3!AG18/Sheet3!$F$1 -> 0 | AH21: =+Sheet3!AH18/Sheet3!$F$1 -> 84 | AI21: =+Sheet3!AI18/Sheet3!$F$1 -> 41 | AJ21: =+Sheet3!AJ18/Sheet3!$F$1 -> 0 | AK21: =+Sheet3!AK18/Sheet3!$F$1 -> 0 | AL21: =+Sheet3!AL18/Sheet3!$F$1 -> 0 | AM21: =+Sheet3!AM18/Sheet3!$F$1 -> 177 | AN21: =+Sheet3!AN18/Sheet3!$F$1 -> 72 | AO21: =+Sheet3!AO18/Sheet3!$F$1 -> 4 | AP21: =+Sheet3!AP18/Sheet3!$F$1 -> 0 | AQ21: =+Sheet3!AQ18/Sheet3!$F$1 -> 0 | AR21: =+Sheet3!AR18/Sheet3!$F$1 -> 134 | AS21: =+Sheet3!AS18/Sheet3!$F$1 -> 3 | AT21: =+Sheet3!AT18/Sheet3!$F$1 -> 0 | AU21: =+Sheet3!AU18/Sheet3!$F$1 -> 0 | AV21: =+Sheet3!AV18/Sheet3!$F$1 -> 0 | AW21: =+Sheet3!AW18/Sheet3!$F$1 -> 1723 | AX21: =+Sheet3!AX18/Sheet3!$F$1 -> 120 | AY21: =+Sheet3!AY18/Sheet3!$F$1 -> 11 | AZ21: =+Sheet3!AZ18/Sheet3!$F$1 -> 0 | BA21: =+Sheet3!BA18/Sheet3!$F$1 -> 0 | BB21: =+Sheet3!BB18/Sheet3!$F$1 -> 39 | BC21: =+Sheet3!BC18/Sheet3!$F$1 -> 34 | BD21: =+Sheet3!BD18/Sheet3!$F$1 -> 5 | BE21: =+Sheet3!BE18/Sheet3!$F$1 -> 0 | BF21: =+Sheet3!BF18/Sheet3!$F$1 -> 0 | BG21: =+Sheet3!BG18/Sheet3!$F$1 -> 38 | BH21: =+Sheet3!BH18/Sheet3!$F$1 -> 10 | BI21: =+Sheet3!BI18/Sheet3!$F$1 -> 6 | BJ21: =+Sheet3!BJ18/Sheet3!$F$1 -> 0 | BK21: =+Sheet3!BK18/Sheet3!$F$1 -> 0 | BL21: =+Sheet3!BL18/Sheet3!$F$1 -> 105 | BM21: =+Sheet3!BM18/Sheet3!$F$1 -> 13 | BN21: =+Sheet3!BN18/Sheet3!$F$1 -> 0 | BO21: =+Sheet3!BO18/Sheet3!$F$1 -> 0 | BP21: =+Sheet3!BP18/Sheet3!$F$1 -> 0 | BQ21: =+Sheet3!BQ18/Sheet3!$F$1 -> 14 | BR21: =+Sheet3!BR18/Sheet3!$F$1 -> 7 | BS21: =+Sheet3!BS18/Sheet3!$F$1 -> 5 | BT21: =+Sheet3!BT18/Sheet3!$F$1 -> 0 | BU21: =+Sheet3!BU18/Sheet3!$F$1 -> 0 | BV21: =+Sheet3!BV18/Sheet3!$F$1 -> 458 | BW21: =+Sheet3!BW18/Sheet3!$F$1 -> 80 | BX21: =+Sheet3!BX18/Sheet3!$F$1 -> 6 | BY21: =+Sheet3!BY18/Sheet3!$F$1 -> 0 | BZ21: =+Sheet3!BZ18/Sheet3!$F$1 -> 0 | CA21: =+Sheet3!CA18/Sheet3!$F$1 -> 389 | CB21: =+Sheet3!CB18/Sheet3!$F$1 -> 58 | CC21: =+Sheet3!CC18/Sheet3!$F$1 -> 8 | CD21: =+Sheet3!CD18/Sheet3!$F$1 -> 0 | CE21: =+Sheet3!CE18/Sheet3!$F$1 -> 0 | CF21: =+Sheet3!CF18/Sheet3!$F$1 -> 371 | CG21: =+Sheet3!CG18/Sheet3!$F$1 -> 30 | CH21: =+Sheet3!CH18/Sheet3!$F$1 -> 0 | CI21: =+Sheet3!CI18/Sheet3!$F$1 -> 0 | CJ21: =+Sheet3!CJ18/Sheet3!$F$1 -> 0 | CK21: =+Sheet3!CK18/Sheet3!$F$1 -> 0 | CL21: =+Sheet3!CL18/Sheet3!$F$1 -> 0 | CM21: =+Sheet3!CM18/Sheet3!$F$1 -> 0 | CN21: =+Sheet3!CN18/Sheet3!$F$1 -> 0 | CO21: =+Sheet3!CO18/Sheet3!$F$1 -> 0 | CP21: =+Sheet3!CP18/Sheet3!$F$1 -> 22 | CQ21: =+Sheet3!CQ18/Sheet3!$F$1 -> 3 | CR21: =+Sheet3!CR18/Sheet3!$F$1 -> 0 | CS21: =+Sheet3!CS18/Sheet3!$F$1 -> 0 | CT21: =+Sheet3!CT18/Sheet3!$F$1 -> 0 | CU21: =+Sheet3!CU18/Sheet3!$F$1 -> 29 | CV21: =+Sheet3!CV18/Sheet3!$F$1 -> 979 | CW21: =+Sheet3!CW18/Sheet3!$F$1 -> 330 | CX21: =+Sheet3!CX18/Sheet3!$F$1 -> 277 | CY21: =+Sheet3!CY18/Sheet3!$F$1 -> 4 | CZ21: =+Sheet3!CZ18/Sheet3!$F$1 -> 701 | DA21: =+Sheet3!DA18/Sheet3!$F$1 -> 126 | DB21: =+Sheet3!DB18/Sheet3!$F$1 -> 253 | DC21: =+Sheet3!DC18/Sheet3!$F$1 -> 143 | DD21: =+Sheet3!DD18/Sheet3!$F$1 -> 1858 | DE21: =+Sheet3!DE18/Sheet3!$F$1 -> 78 | DF21: =+Sheet3!DF18/Sheet3!$F$1 -> 56 | DG21: =+Sheet3!DG18/Sheet3!$F$1 -> 119 | DH21: =+Sheet3!DH18/Sheet3!$F$1 -> 29 | DI21: =+Sheet3!DI18/Sheet3!$F$1 -> 546 | DJ21: =+Sheet3!DJ18/Sheet3!$F$1 -> 457 | DK21: =+Sheet3!DK18/Sheet3!$F$1 -> 404 | DL21: =+Sheet3!DL18/Sheet3!$F$1 -> 0 | DM21: =+Sheet3!DM18/Sheet3!$F$1 -> 27 | DN21: =+Sheet3!DN18/Sheet3!$F$1 -> 5358 | DO21: =+Sheet3!DO18/Sheet3!$F$1 -> 890 | DP21: =+Sheet3!DP18/Sheet3!$F$1 -> 166 | DQ21: =+Sheet3!DQ18/Sheet3!$F$1 -> 0 | DR21: =+Sheet3!DR18/Sheet3!$F$1 -> 0 | DS21: 6414
B22: 16F | C22: Região de Leiria | D22: =+Sheet3!D19/Sheet3!$F$1 -> 30 | E22: =+Sheet3!E19/Sheet3!$F$1 -> 3 | F22: =+Sheet3!F19/Sheet3!$F$1 -> 0 | G22: =+Sheet3!G19/Sheet3!$F$1 -> 0 | H22: =+Sheet3!H19/Sheet3!$F$1 -> 0 | I22: =+Sheet3!I19/Sheet3!$F$1 -> 116 | J22: =+Sheet3!J19/Sheet3!$F$1 -> 19 | K22: =+Sheet3!K19/Sheet3!$F$1 -> 5 | L22: =+Sheet3!L19/Sheet3!$F$1 -> 0 | M22: =+Sheet3!M19/Sheet3!$F$1 -> 0 | N22: =+Sheet3!N19/Sheet3!$F$1 -> 99 | O22: =+Sheet3!O19/Sheet3!$F$1 -> 5 | P22: =+Sheet3!P19/Sheet3!$F$1 -> 0 | Q22: =+Sheet3!Q19/Sheet3!$F$1 -> 0 | R22: =+Sheet3!R19/Sheet3!$F$1 -> 0 | S22: =+Sheet3!S19/Sheet3!$F$1 -> 10 | T22: =+Sheet3!T19/Sheet3!$F$1 -> 11 | U22: =+Sheet3!U19/Sheet3!$F$1 -> 0 | V22: =+Sheet3!V19/Sheet3!$F$1 -> 0 | W22: =+Sheet3!W19/Sheet3!$F$1 -> 0 | X22: =+Sheet3!X19/Sheet3!$F$1 -> 0 | Y22: =+Sheet3!Y19/Sheet3!$F$1 -> 0 | Z22: =+Sheet3!Z19/Sheet3!$F$1 -> 0 | AA22: =+Sheet3!AA19/Sheet3!$F$1 -> 0 | AB22: =+Sheet3!AB19/Sheet3!$F$1 -> 0 | AC22: =+Sheet3!AC19/Sheet3!$F$1 -> 371 | AD22: =+Sheet3!AD19/Sheet3!$F$1 -> 12 | AE22: =+Sheet3!AE19/Sheet3!$F$1 -> 5 | AF22: =+Sheet3!AF19/Sheet3!$F$1 -> 0 | AG22: =+Sheet3!AG19/Sheet3!$F$1 -> 0 | AH22: =+Sheet3!AH19/Sheet3!$F$1 -> 0 | AI22: =+Sheet3!AI19/Sheet3!$F$1 -> 3 | AJ22: =+Sheet3!AJ19/Sheet3!$F$1 -> 0 | AK22: =+Sheet3!AK19/Sheet3!$F$1 -> 0 | AL22: =+Sheet3!AL19/Sheet3!$F$1 -> 0 | AM22: =+Sheet3!AM19/Sheet3!$F$1 -> 94 | AN22: =+Sheet3!AN19/Sheet3!$F$1 -> 29 | AO22: =+Sheet3!AO19/Sheet3!$F$1 -> 3 | AP22: =+Sheet3!AP19/Sheet3!$F$1 -> 0 | AQ22: =+Sheet3!AQ19/Sheet3!$F$1 -> 0 | AR22: =+Sheet3!AR19/Sheet3!$F$1 -> 239 | AS22: =+Sheet3!AS19/Sheet3!$F$1 -> 14 | AT22: =+Sheet3!AT19/Sheet3!$F$1 -> 0 | AU22: =+Sheet3!AU19/Sheet3!$F$1 -> 0 | AV22: =+Sheet3!AV19/Sheet3!$F$1 -> 0 | AW22: =+Sheet3!AW19/Sheet3!$F$1 -> 866 | AX22: =+Sheet3!AX19/Sheet3!$F$1 -> 40 | AY22: =+Sheet3!AY19/Sheet3!$F$1 -> 0 | AZ22: =+Sheet3!AZ19/Sheet3!$F$1 -> 0 | BA22: =+Sheet3!BA19/Sheet3!$F$1 -> 0 | BB22: =+Sheet3!BB19/Sheet3!$F$1 -> 0 | BC22: =+Sheet3!BC19/Sheet3!$F$1 -> 8 | BD22: =+Sheet3!BD19/Sheet3!$F$1 -> 0 | BE22: =+Sheet3!BE19/Sheet3!$F$1 -> 0 | BF22: =+Sheet3!BF19/Sheet3!$F$1 -> 0 | BG22: =+Sheet3!BG19/Sheet3!$F$1 -> 12 | BH22: =+Sheet3!BH19/Sheet3!$F$1 -> 25 | BI22: =+Sheet3!BI19/Sheet3!$F$1 -> 6 | BJ22: =+Sheet3!BJ19/Sheet3!$F$1 -> 0 | BK22: =+Sheet3!BK19/Sheet3!$F$1 -> 0 | BL22: =+Sheet3!BL19/Sheet3!$F$1 -> 86 | BM22: =+Sheet3!BM19/Sheet3!$F$1 -> 27 | BN22: =+Sheet3!BN19/Sheet3!$F$1 -> 3 | BO22: =+Sheet3!BO19/Sheet3!$F$1 -> 0 | BP22: =+Sheet3!BP19/Sheet3!$F$1 -> 0 | BQ22: =+Sheet3!BQ19/Sheet3!$F$1 -> 0 | BR22: =+Sheet3!BR19/Sheet3!$F$1 -> 7 | BS22: =+Sheet3!BS19/Sheet3!$F$1 -> 3 | BT22: =+Sheet3!BT19/Sheet3!$F$1 -> 0 | BU22: =+Sheet3!BU19/Sheet3!$F$1 -> 0 | BV22: =+Sheet3!BV19/Sheet3!$F$1 -> 385 | BW22: =+Sheet3!BW19/Sheet3!$F$1 -> 56 | BX22: =+Sheet3!BX19/Sheet3!$F$1 -> 6 | BY22: =+Sheet3!BY19/Sheet3!$F$1 -> 0 | BZ22: =+Sheet3!BZ19/Sheet3!$F$1 -> 0 | CA22: =+Sheet3!CA19/Sheet3!$F$1 -> 295 | CB22: =+Sheet3!CB19/Sheet3!$F$1 -> 44 | CC22: =+Sheet3!CC19/Sheet3!$F$1 -> 3 | CD22: =+Sheet3!CD19/Sheet3!$F$1 -> 0 | CE22: =+Sheet3!CE19/Sheet3!$F$1 -> 0 | CF22: =+Sheet3!CF19/Sheet3!$F$1 -> 114 | CG22: =+Sheet3!CG19/Sheet3!$F$1 -> 5 | CH22: =+Sheet3!CH19/Sheet3!$F$1 -> 0 | CI22: =+Sheet3!CI19/Sheet3!$F$1 -> 0 | CJ22: =+Sheet3!CJ19/Sheet3!$F$1 -> 0 | CK22: =+Sheet3!CK19/Sheet3!$F$1 -> 0 | CL22: =+Sheet3!CL19/Sheet3!$F$1 -> 0 | CM22: =+Sheet3!CM19/Sheet3!$F$1 -> 0 | CN22: =+Sheet3!CN19/Sheet3!$F$1 -> 0 | CO22: =+Sheet3!CO19/Sheet3!$F$1 -> 0 | CP22: =+Sheet3!CP19/Sheet3!$F$1 -> 0 | CQ22: =+Sheet3!CQ19/Sheet3!$F$1 -> 0 | CR22: =+Sheet3!CR19/Sheet3!$F$1 -> 0 | CS22: =+Sheet3!CS19/Sheet3!$F$1 -> 0 | CT22: =+Sheet3!CT19/Sheet3!$F$1 -> 0 | CU22: =+Sheet3!CU19/Sheet3!$F$1 -> 35 | CV22: =+Sheet3!CV19/Sheet3!$F$1 -> 142 | CW22: =+Sheet3!CW19/Sheet3!$F$1 -> 105 | CX22: =+Sheet3!CX19/Sheet3!$F$1 -> 24 | CY22: =+Sheet3!CY19/Sheet3!$F$1 -> 0 | CZ22: =+Sheet3!CZ19/Sheet3!$F$1 -> 389 | DA22: =+Sheet3!DA19/Sheet3!$F$1 -> 6 | DB22: =+Sheet3!DB19/Sheet3!$F$1 -> 129 | DC22: =+Sheet3!DC19/Sheet3!$F$1 -> 257 | DD22: =+Sheet3!DD19/Sheet3!$F$1 -> 909 | DE22: =+Sheet3!DE19/Sheet3!$F$1 -> 13 | DF22: =+Sheet3!DF19/Sheet3!$F$1 -> 45 | DG22: =+Sheet3!DG19/Sheet3!$F$1 -> 116 | DH22: =+Sheet3!DH19/Sheet3!$F$1 -> 14 | DI22: =+Sheet3!DI19/Sheet3!$F$1 -> 449 | DJ22: =+Sheet3!DJ19/Sheet3!$F$1 -> 345 | DK22: =+Sheet3!DK19/Sheet3!$F$1 -> 121 | DL22: =+Sheet3!DL19/Sheet3!$F$1 -> 0 | DM22: =+Sheet3!DM19/Sheet3!$F$1 -> 0 | DN22: =+Sheet3!DN19/Sheet3!$F$1 -> 2730 | DO22: =+Sheet3!DO19/Sheet3!$F$1 -> 326 | DP22: =+Sheet3!DP19/Sheet3!$F$1 -> 44 | DQ22: =+Sheet3!DQ19/Sheet3!$F$1 -> 0 | DR22: =+Sheet3!DR19/Sheet3!$F$1 -> 0 | DS22: 3100
B23: 16G | C23: Viseu Dão Lafões | D23: =+Sheet3!D20/Sheet3!$F$1 -> 20 | E23: =+Sheet3!E20/Sheet3!$F$1 -> 0 | F23: =+Sheet3!F20/Sheet3!$F$1 -> 0 | G23: =+Sheet3!G20/Sheet3!$F$1 -> 0 | H23: =+Sheet3!H20/Sheet3!$F$1 -> 0 | I23: =+Sheet3!I20/Sheet3!$F$1 -> 181 | J23: =+Sheet3!J20/Sheet3!$F$1 -> 0 | K23: =+Sheet3!K20/Sheet3!$F$1 -> 0 | L23: =+Sheet3!L20/Sheet3!$F$1 -> 0 | M23: =+Sheet3!M20/Sheet3!$F$1 -> 0 | N23: =+Sheet3!N20/Sheet3!$F$1 -> 238 | O23: =+Sheet3!O20/Sheet3!$F$1 -> 17 | P23: =+Sheet3!P20/Sheet3!$F$1 -> 0 | Q23: =+Sheet3!Q20/Sheet3!$F$1 -> 0 | R23: =+Sheet3!R20/Sheet3!$F$1 -> 0 | S23: =+Sheet3!S20/Sheet3!$F$1 -> 0 | T23: =+Sheet3!T20/Sheet3!$F$1 -> 0 | U23: =+Sheet3!U20/Sheet3!$F$1 -> 0 | V23: =+Sheet3!V20/Sheet3!$F$1 -> 0 | W23: =+Sheet3!W20/Sheet3!$F$1 -> 0 | X23: =+Sheet3!X20/Sheet3!$F$1 -> 0 | Y23: =+Sheet3!Y20/Sheet3!$F$1 -> 0 | Z23: =+Sheet3!Z20/Sheet3!$F$1 -> 0 | AA23: =+Sheet3!AA20/Sheet3!$F$1 -> 0 | AB23: =+Sheet3!AB20/Sheet3!$F$1 -> 0 | AC23: =+Sheet3!AC20/Sheet3!$F$1 -> 1027 | AD23: =+Sheet3!AD20/Sheet3!$F$1 -> 17 | AE23: =+Sheet3!AE20/Sheet3!$F$1 -> 0 | AF23: =+Sheet3!AF20/Sheet3!$F$1 -> 0 | AG23: =+Sheet3!AG20/Sheet3!$F$1 -> 0 | AH23: =+Sheet3!AH20/Sheet3!$F$1 -> 269 | AI23: =+Sheet3!AI20/Sheet3!$F$1 -> 134 | AJ23: =+Sheet3!AJ20/Sheet3!$F$1 -> 18 | AK23: =+Sheet3!AK20/Sheet3!$F$1 -> 0 | AL23: =+Sheet3!AL20/Sheet3!$F$1 -> 0 | AM23: =+Sheet3!AM20/Sheet3!$F$1 -> 474 | AN23: =+Sheet3!AN20/Sheet3!$F$1 -> 82 | AO23: =+Sheet3!AO20/Sheet3!$F$1 -> 5 | AP23: =+Sheet3!AP20/Sheet3!$F$1 -> 0 | AQ23: =+Sheet3!AQ20/Sheet3!$F$1 -> 0 | AR23: =+Sheet3!AR20/Sheet3!$F$1 -> 60 | AS23: =+Sheet3!AS20/Sheet3!$F$1 -> 4 | AT23: =+Sheet3!AT20/Sheet3!$F$1 -> 0 | AU23: =+Sheet3!AU20/Sheet3!$F$1 -> 0 | AV23: =+Sheet3!AV20/Sheet3!$F$1 -> 0 | AW23: =+Sheet3!AW20/Sheet3!$F$1 -> 2647 | AX23: =+Sheet3!AX20/Sheet3!$F$1 -> 137 | AY23: =+Sheet3!AY20/Sheet3!$F$1 -> 7 | AZ23: =+Sheet3!AZ20/Sheet3!$F$1 -> 0 | BA23: =+Sheet3!BA20/Sheet3!$F$1 -> 0 | BB23: =+Sheet3!BB20/Sheet3!$F$1 -> 15 | BC23: =+Sheet3!BC20/Sheet3!$F$1 -> 18 | BD23: =+Sheet3!BD20/Sheet3!$F$1 -> 0 | BE23: =+Sheet3!BE20/Sheet3!$F$1 -> 0 | BF23: =+Sheet3!BF20/Sheet3!$F$1 -> 0 | BG23: =+Sheet3!BG20/Sheet3!$F$1 -> 66 | BH23: =+Sheet3!BH20/Sheet3!$F$1 -> 37 | BI23: =+Sheet3!BI20/Sheet3!$F$1 -> 3 | BJ23: =+Sheet3!BJ20/Sheet3!$F$1 -> 0 | BK23: =+Sheet3!BK20/Sheet3!$F$1 -> 0 | BL23: =+Sheet3!BL20/Sheet3!$F$1 -> 75 | BM23: =+Sheet3!BM20/Sheet3!$F$1 -> 11 | BN23: =+Sheet3!BN20/Sheet3!$F$1 -> 0 | BO23: =+Sheet3!BO20/Sheet3!$F$1 -> 0 | BP23: =+Sheet3!BP20/Sheet3!$F$1 -> 0 | BQ23: =+Sheet3!BQ20/Sheet3!$F$1 -> 53 | BR23: =+Sheet3!BR20/Sheet3!$F$1 -> 74 | BS23: =+Sheet3!BS20/Sheet3!$F$1 -> 11 | BT23: =+Sheet3!BT20/Sheet3!$F$1 -> 0 | BU23: =+Sheet3!BU20/Sheet3!$F$1 -> 0 | BV23: =+Sheet3!BV20/Sheet3!$F$1 -> 748 | BW23: =+Sheet3!BW20/Sheet3!$F$1 -> 162 | BX23: =+Sheet3!BX20/Sheet3!$F$1 -> 13 | BY23: =+Sheet3!BY20/Sheet3!$F$1 -> 0 | BZ23: =+Sheet3!BZ20/Sheet3!$F$1 -> 0 | CA23: =+Sheet3!CA20/Sheet3!$F$1 -> 891 | CB23: =+Sheet3!CB20/Sheet3!$F$1 -> 113 | CC23: =+Sheet3!CC20/Sheet3!$F$1 -> 4 | CD23: =+Sheet3!CD20/Sheet3!$F$1 -> 0 | CE23: =+Sheet3!CE20/Sheet3!$F$1 -> 0 | CF23: =+Sheet3!CF20/Sheet3!$F$1 -> 139 | CG23: =+Sheet3!CG20/Sheet3!$F$1 -> 9 | CH23: =+Sheet3!CH20/Sheet3!$F$1 -> 0 | CI23: =+Sheet3!CI20/Sheet3!$F$1 -> 0 | CJ23: =+Sheet3!CJ20/Sheet3!$F$1 -> 0 | CK23: =+Sheet3!CK20/Sheet3!$F$1 -> 0 | CL23: =+Sheet3!CL20/Sheet3!$F$1 -> 0 | CM23: =+Sheet3!CM20/Sheet3!$F$1 -> 0 | CN23: =+Sheet3!CN20/Sheet3!$F$1 -> 0 | CO23: =+Sheet3!CO20/Sheet3!$F$1 -> 0 | CP23: =+Sheet3!CP20/Sheet3!$F$1 -> 14 | CQ23: =+Sheet3!CQ20/Sheet3!$F$1 -> 0 | CR23: =+Sheet3!CR20/Sheet3!$F$1 -> 0 | CS23: =+Sheet3!CS20/Sheet3!$F$1 -> 0 | CT23: =+Sheet3!CT20/Sheet3!$F$1 -> 0 | CU23: =+Sheet3!CU20/Sheet3!$F$1 -> 25 | CV23: =+Sheet3!CV20/Sheet3!$F$1 -> 184 | CW23: =+Sheet3!CW20/Sheet3!$F$1 -> 256 | CX23: =+Sheet3!CX20/Sheet3!$F$1 -> 0 | CY23: =+Sheet3!CY20/Sheet3!$F$1 -> 0 | CZ23: =+Sheet3!CZ20/Sheet3!$F$1 -> 1044 | DA23: =+Sheet3!DA20/Sheet3!$F$1 -> 426 | DB23: =+Sheet3!DB20/Sheet3!$F$1 -> 563 | DC23: =+Sheet3!DC20/Sheet3!$F$1 -> 67 | DD23: =+Sheet3!DD20/Sheet3!$F$1 -> 2791 | DE23: =+Sheet3!DE20/Sheet3!$F$1 -> 36 | DF23: =+Sheet3!DF20/Sheet3!$F$1 -> 110 | DG23: =+Sheet3!DG20/Sheet3!$F$1 -> 87 | DH23: =+Sheet3!DH20/Sheet3!$F$1 -> 140 | DI23: =+Sheet3!DI20/Sheet3!$F$1 -> 923 | DJ23: =+Sheet3!DJ20/Sheet3!$F$1 -> 1009 | DK23: =+Sheet3!DK20/Sheet3!$F$1 -> 148 | DL23: =+Sheet3!DL20/Sheet3!$F$1 -> 0 | DM23: =+Sheet3!DM20/Sheet3!$F$1 -> 14 | DN23: =+Sheet3!DN20/Sheet3!$F$1 -> 6926 | DO23: =+Sheet3!DO20/Sheet3!$F$1 -> 831 | DP23: =+Sheet3!DP20/Sheet3!$F$1 -> 68 | DQ23: =+Sheet3!DQ20/Sheet3!$F$1 -> 0 | DR23: =+Sheet3!DR20/Sheet3!$F$1 -> 0 | DS23: 7825
B24: 16H | C24: Beira Baixa | D24: =+Sheet3!D21/Sheet3!$F$1 -> 24 | E24: =+Sheet3!E21/Sheet3!$F$1 -> 3 | F24: =+Sheet3!F21/Sheet3!$F$1 -> 0 | G24: =+Sheet3!G21/Sheet3!$F$1 -> 0 | H24: =+Sheet3!H21/Sheet3!$F$1 -> 0 | I24: =+Sheet3!I21/Sheet3!$F$1 -> 3 | J24: =+Sheet3!J21/Sheet3!$F$1 -> 4 | K24: =+Sheet3!K21/Sheet3!$F$1 -> 4 | L24: =+Sheet3!L21/Sheet3!$F$1 -> 0 | M24: =+Sheet3!M21/Sheet3!$F$1 -> 0 | N24: =+Sheet3!N21/Sheet3!$F$1 -> 50 | O24: =+Sheet3!O21/Sheet3!$F$1 -> 61 | P24: =+Sheet3!P21/Sheet3!$F$1 -> 32 | Q24: =+Sheet3!Q21/Sheet3!$F$1 -> 3 | R24: =+Sheet3!R21/Sheet3!$F$1 -> 0 | S24: =+Sheet3!S21/Sheet3!$F$1 -> 0 | T24: =+Sheet3!T21/Sheet3!$F$1 -> 0 | U24: =+Sheet3!U21/Sheet3!$F$1 -> 0 | V24: =+Sheet3!V21/Sheet3!$F$1 -> 0 | W24: =+Sheet3!W21/Sheet3!$F$1 -> 0 | X24: =+Sheet3!X21/Sheet3!$F$1 -> 0 | Y24: =+Sheet3!Y21/Sheet3!$F$1 -> 0 | Z24: =+Sheet3!Z21/Sheet3!$F$1 -> 0 | AA24: =+Sheet3!AA21/Sheet3!$F$1 -> 0 | AB24: =+Sheet3!AB21/Sheet3!$F$1 -> 0 | AC24: =+Sheet3!AC21/Sheet3!$F$1 -> 265 | AD24: =+Sheet3!AD21/Sheet3!$F$1 -> 18 | AE24: =+Sheet3!AE21/Sheet3!$F$1 -> 10 | AF24: =+Sheet3!AF21/Sheet3!$F$1 -> 0 | AG24: =+Sheet3!AG21/Sheet3!$F$1 -> 0 | AH24: =+Sheet3!AH21/Sheet3!$F$1 -> 3 | AI24: =+Sheet3!AI21/Sheet3!$F$1 -> 0 | AJ24: =+Sheet3!AJ21/Sheet3!$F$1 -> 0 | AK24: =+Sheet3!AK21/Sheet3!$F$1 -> 0 | AL24: =+Sheet3!AL21/Sheet3!$F$1 -> 0 | AM24: =+Sheet3!AM21/Sheet3!$F$1 -> 206 | AN24: =+Sheet3!AN21/Sheet3!$F$1 -> 65 | AO24: =+Sheet3!AO21/Sheet3!$F$1 -> 37 | AP24: =+Sheet3!AP21/Sheet3!$F$1 -> 8 | AQ24: =+Sheet3!AQ21/Sheet3!$F$1 -> 0 | AR24: =+Sheet3!AR21/Sheet3!$F$1 -> 582 | AS24: =+Sheet3!AS21/Sheet3!$F$1 -> 122 | AT24: =+Sheet3!AT21/Sheet3!$F$1 -> 19 | AU24: =+Sheet3!AU21/Sheet3!$F$1 -> 0 | AV24: =+Sheet3!AV21/Sheet3!$F$1 -> 0 | AW24: =+Sheet3!AW21/Sheet3!$F$1 -> 944 | AX24: =+Sheet3!AX21/Sheet3!$F$1 -> 311 | AY24: =+Sheet3!AY21/Sheet3!$F$1 -> 63 | AZ24: =+Sheet3!AZ21/Sheet3!$F$1 -> 5 | BA24: =+Sheet3!BA21/Sheet3!$F$1 -> 0 | BB24: =+Sheet3!BB21/Sheet3!$F$1 -> 0 | BC24: =+Sheet3!BC21/Sheet3!$F$1 -> 0 | BD24: =+Sheet3!BD21/Sheet3!$F$1 -> 0 | BE24: =+Sheet3!BE21/Sheet3!$F$1 -> 0 | BF24: =+Sheet3!BF21/Sheet3!$F$1 -> 0 | BG24: =+Sheet3!BG21/Sheet3!$F$1 -> 0 | BH24: =+Sheet3!BH21/Sheet3!$F$1 -> 11 | BI24: =+Sheet3!BI21/Sheet3!$F$1 -> 28 | BJ24: =+Sheet3!BJ21/Sheet3!$F$1 -> 0 | BK24: =+Sheet3!BK21/Sheet3!$F$1 -> 0 | BL24: =+Sheet3!BL21/Sheet3!$F$1 -> 7 | BM24: =+Sheet3!BM21/Sheet3!$F$1 -> 8 | BN24: =+Sheet3!BN21/Sheet3!$F$1 -> 0 | BO24: =+Sheet3!BO21/Sheet3!$F$1 -> 0 | BP24: =+Sheet3!BP21/Sheet3!$F$1 -> 0 | BQ24: =+Sheet3!BQ21/Sheet3!$F$1 -> 0 | BR24: =+Sheet3!BR21/Sheet3!$F$1 -> 15 | BS24: =+Sheet3!BS21/Sheet3!$F$1 -> 92 | BT24: =+Sheet3!BT21/Sheet3!$F$1 -> 72 | BU24: =+Sheet3!BU21/Sheet3!$F$1 -> 0 | BV24: =+Sheet3!BV21/Sheet3!$F$1 -> 333 | BW24: =+Sheet3!BW21/Sheet3!$F$1 -> 288 | BX24: =+Sheet3!BX21/Sheet3!$F$1 -> 253 | BY24: =+Sheet3!BY21/Sheet3!$F$1 -> 44 | BZ24: =+Sheet3!BZ21/Sheet3!$F$1 -> 3 | CA24: =+Sheet3!CA21/Sheet3!$F$1 -> 109 | CB24: =+Sheet3!CB21/Sheet3!$F$1 -> 84 | CC24: =+Sheet3!CC21/Sheet3!$F$1 -> 47 | CD24: =+Sheet3!CD21/Sheet3!$F$1 -> 7 | CE24: =+Sheet3!CE21/Sheet3!$F$1 -> 0 | CF24: =+Sheet3!CF21/Sheet3!$F$1 -> 90 | CG24: =+Sheet3!CG21/Sheet3!$F$1 -> 127 | CH24: =+Sheet3!CH21/Sheet3!$F$1 -> 93 | CI24: =+Sheet3!CI21/Sheet3!$F$1 -> 15 | CJ24: =+Sheet3!CJ21/Sheet3!$F$1 -> 0 | CK24: =+Sheet3!CK21/Sheet3!$F$1 -> 0 | CL24: =+Sheet3!CL21/Sheet3!$F$1 -> 0 | CM24: =+Sheet3!CM21/Sheet3!$F$1 -> 0 | CN24: =+Sheet3!CN21/Sheet3!$F$1 -> 0 | CO24: =+Sheet3!CO21/Sheet3!$F$1 -> 0 | CP24: =+Sheet3!CP21/Sheet3!$F$1 -> 0 | CQ24: =+Sheet3!CQ21/Sheet3!$F$1 -> 0 | CR24: =+Sheet3!CR21/Sheet3!$F$1 -> 0 | CS24: =+Sheet3!CS21/Sheet3!$F$1 -> 0 | CT24: =+Sheet3!CT21/Sheet3!$F$1 -> 0 | CU24: =+Sheet3!CU21/Sheet3!$F$1 -> 30 | CV24: =+Sheet3!CV21/Sheet3!$F$1 -> 16 | CW24: =+Sheet3!CW21/Sheet3!$F$1 -> 150 | CX24: =+Sheet3!CX21/Sheet3!$F$1 -> 0 | CY24: =+Sheet3!CY21/Sheet3!$F$1 -> 0 | CZ24: =+Sheet3!CZ21/Sheet3!$F$1 -> 295 | DA24: =+Sheet3!DA21/Sheet3!$F$1 -> 10 | DB24: =+Sheet3!DB21/Sheet3!$F$1 -> 319 | DC24: =+Sheet3!DC21/Sheet3!$F$1 -> 731 | DD24: =+Sheet3!DD21/Sheet3!$F$1 -> 1325 | DE24: =+Sheet3!DE21/Sheet3!$F$1 -> 3 | DF24: =+Sheet3!DF21/Sheet3!$F$1 -> 42 | DG24: =+Sheet3!DG21/Sheet3!$F$1 -> 16 | DH24: =+Sheet3!DH21/Sheet3!$F$1 -> 184 | DI24: =+Sheet3!DI21/Sheet3!$F$1 -> 921 | DJ24: =+Sheet3!DJ21/Sheet3!$F$1 -> 249 | DK24: =+Sheet3!DK21/Sheet3!$F$1 -> 328 | DL24: =+Sheet3!DL21/Sheet3!$F$1 -> 0 | DM24: =+Sheet3!DM21/Sheet3!$F$1 -> 0 | DN24: =+Sheet3!DN21/Sheet3!$F$1 -> 2630 | DO24: =+Sheet3!DO21/Sheet3!$F$1 -> 1129 | DP24: =+Sheet3!DP21/Sheet3!$F$1 -> 694 | DQ24: =+Sheet3!DQ21/Sheet3!$F$1 -> 161 | DR24: =+Sheet3!DR21/Sheet3!$F$1 -> 7 | DS24: 4621
B25: 16I | C25: Médio Tejo | D25: =+Sheet3!D22/Sheet3!$F$1 -> 9 | E25: =+Sheet3!E22/Sheet3!$F$1 -> 3 | F25: =+Sheet3!F22/Sheet3!$F$1 -> 0 | G25: =+Sheet3!G22/Sheet3!$F$1 -> 0 | H25: =+Sheet3!H22/Sheet3!$F$1 -> 0 | I25: =+Sheet3!I22/Sheet3!$F$1 -> 18 | J25: =+Sheet3!J22/Sheet3!$F$1 -> 15 | K25: =+Sheet3!K22/Sheet3!$F$1 -> 18 | L25: =+Sheet3!L22/Sheet3!$F$1 -> 0 | M25: =+Sheet3!M22/Sheet3!$F$1 -> 0 | N25: =+Sheet3!N22/Sheet3!$F$1 -> 35 | O25: =+Sheet3!O22/Sheet3!$F$1 -> 18 | P25: =+Sheet3!P22/Sheet3!$F$1 -> 7 | Q25: =+Sheet3!Q22/Sheet3!$F$1 -> 0 | R25: =+Sheet3!R22/Sheet3!$F$1 -> 0 | S25: =+Sheet3!S22/Sheet3!$F$1 -> 0 | T25: =+Sheet3!T22/Sheet3!$F$1 -> 0 | U25: =+Sheet3!U22/Sheet3!$F$1 -> 0 | V25: =+Sheet3!V22/Sheet3!$F$1 -> 0 | W25: =+Sheet3!W22/Sheet3!$F$1 -> 0 | X25: =+Sheet3!X22/Sheet3!$F$1 -> 0 | Y25: =+Sheet3!Y22/Sheet3!$F$1 -> 0 | Z25: =+Sheet3!Z22/Sheet3!$F$1 -> 0 | AA25: =+Sheet3!AA22/Sheet3!$F$1 -> 0 | AB25: =+Sheet3!AB22/Sheet3!$F$1 -> 0 | AC25: =+Sheet3!AC22/Sheet3!$F$1 -> 194 | AD25: =+Sheet3!AD22/Sheet3!$F$1 -> 11 | AE25: =+Sheet3!AE22/Sheet3!$F$1 -> 0 | AF25: =+Sheet3!AF22/Sheet3!$F$1 -> 0 | AG25: =+Sheet3!AG22/Sheet3!$F$1 -> 0 | AH25: =+Sheet3!AH22/Sheet3!$F$1 -> 41 | AI25: =+Sheet3!AI22/Sheet3!$F$1 -> 9 | AJ25: =+Sheet3!AJ22/Sheet3!$F$1 -> 6 | AK25: =+Sheet3!AK22/Sheet3!$F$1 -> 0 | AL25: =+Sheet3!AL22/Sheet3!$F$1 -> 0 | AM25: =+Sheet3!AM22/Sheet3!$F$1 -> 243 | AN25: =+Sheet3!AN22/Sheet3!$F$1 -> 81 | AO25: =+Sheet3!AO22/Sheet3!$F$1 -> 14 | AP25: =+Sheet3!AP22/Sheet3!$F$1 -> 0 | AQ25: =+Sheet3!AQ22/Sheet3!$F$1 -> 0 | AR25: =+Sheet3!AR22/Sheet3!$F$1 -> 614 | AS25: =+Sheet3!AS22/Sheet3!$F$1 -> 75 | AT25: =+Sheet3!AT22/Sheet3!$F$1 -> 10 | AU25: =+Sheet3!AU22/Sheet3!$F$1 -> 0 | AV25: =+Sheet3!AV22/Sheet3!$F$1 -> 0 | AW25: =+Sheet3!AW22/Sheet3!$F$1 -> 1363 | AX25: =+Sheet3!AX22/Sheet3!$F$1 -> 216 | AY25: =+Sheet3!AY22/Sheet3!$F$1 -> 29 | AZ25: =+Sheet3!AZ22/Sheet3!$F$1 -> 7 | BA25: =+Sheet3!BA22/Sheet3!$F$1 -> 0 | BB25: =+Sheet3!BB22/Sheet3!$F$1 -> 0 | BC25: =+Sheet3!BC22/Sheet3!$F$1 -> 5 | BD25: =+Sheet3!BD22/Sheet3!$F$1 -> 0 | BE25: =+Sheet3!BE22/Sheet3!$F$1 -> 0 | BF25: =+Sheet3!BF22/Sheet3!$F$1 -> 0 | BG25: =+Sheet3!BG22/Sheet3!$F$1 -> 6 | BH25: =+Sheet3!BH22/Sheet3!$F$1 -> 15 | BI25: =+Sheet3!BI22/Sheet3!$F$1 -> 6 | BJ25: =+Sheet3!BJ22/Sheet3!$F$1 -> 0 | BK25: =+Sheet3!BK22/Sheet3!$F$1 -> 0 | BL25: =+Sheet3!BL22/Sheet3!$F$1 -> 45 | BM25: =+Sheet3!BM22/Sheet3!$F$1 -> 20 | BN25: =+Sheet3!BN22/Sheet3!$F$1 -> 4 | BO25: =+Sheet3!BO22/Sheet3!$F$1 -> 0 | BP25: =+Sheet3!BP22/Sheet3!$F$1 -> 0 | BQ25: =+Sheet3!BQ22/Sheet3!$F$1 -> 0 | BR25: =+Sheet3!BR22/Sheet3!$F$1 -> 4 | BS25: =+Sheet3!BS22/Sheet3!$F$1 -> 5 | BT25: =+Sheet3!BT22/Sheet3!$F$1 -> 0 | BU25: =+Sheet3!BU22/Sheet3!$F$1 -> 0 | BV25: =+Sheet3!BV22/Sheet3!$F$1 -> 334 | BW25: =+Sheet3!BW22/Sheet3!$F$1 -> 60 | BX25: =+Sheet3!BX22/Sheet3!$F$1 -> 21 | BY25: =+Sheet3!BY22/Sheet3!$F$1 -> 0 | BZ25: =+Sheet3!BZ22/Sheet3!$F$1 -> 0 | CA25: =+Sheet3!CA22/Sheet3!$F$1 -> 251 | CB25: =+Sheet3!CB22/Sheet3!$F$1 -> 64 | CC25: =+Sheet3!CC22/Sheet3!$F$1 -> 20 | CD25: =+Sheet3!CD22/Sheet3!$F$1 -> 4 | CE25: =+Sheet3!CE22/Sheet3!$F$1 -> 0 | CF25: =+Sheet3!CF22/Sheet3!$F$1 -> 79 | CG25: =+Sheet3!CG22/Sheet3!$F$1 -> 47 | CH25: =+Sheet3!CH22/Sheet3!$F$1 -> 34 | CI25: =+Sheet3!CI22/Sheet3!$F$1 -> 0 | CJ25: =+Sheet3!CJ22/Sheet3!$F$1 -> 0 | CK25: =+Sheet3!CK22/Sheet3!$F$1 -> 0 | CL25: =+Sheet3!CL22/Sheet3!$F$1 -> 0 | CM25: =+Sheet3!CM22/Sheet3!$F$1 -> 0 | CN25: =+Sheet3!CN22/Sheet3!$F$1 -> 0 | CO25: =+Sheet3!CO22/Sheet3!$F$1 -> 0 | CP25: =+Sheet3!CP22/Sheet3!$F$1 -> 0 | CQ25: =+Sheet3!CQ22/Sheet3!$F$1 -> 0 | CR25: =+Sheet3!CR22/Sheet3!$F$1 -> 0 | CS25: =+Sheet3!CS22/Sheet3!$F$1 -> 0 | CT25: =+Sheet3!CT22/Sheet3!$F$1 -> 0 | CU25: =+Sheet3!CU22/Sheet3!$F$1 -> 18 | CV25: =+Sheet3!CV22/Sheet3!$F$1 -> 52 | CW25: =+Sheet3!CW22/Sheet3!$F$1 -> 62 | CX25: =+Sheet3!CX22/Sheet3!$F$1 -> 0 | CY25: =+Sheet3!CY22/Sheet3!$F$1 -> 3 | CZ25: =+Sheet3!CZ22/Sheet3!$F$1 -> 208 | DA25: =+Sheet3!DA22/Sheet3!$F$1 -> 63 | DB25: =+Sheet3!DB22/Sheet3!$F$1 -> 340 | DC25: =+Sheet3!DC22/Sheet3!$F$1 -> 702 | DD25: =+Sheet3!DD22/Sheet3!$F$1 -> 1617 | DE25: =+Sheet3!DE22/Sheet3!$F$1 -> 8 | DF25: =+Sheet3!DF22/Sheet3!$F$1 -> 33 | DG25: =+Sheet3!DG22/Sheet3!$F$1 -> 70 | DH25: =+Sheet3!DH22/Sheet3!$F$1 -> 14 | DI25: =+Sheet3!DI22/Sheet3!$F$1 -> 418 | DJ25: =+Sheet3!DJ22/Sheet3!$F$1 -> 344 | DK25: =+Sheet3!DK22/Sheet3!$F$1 -> 162 | DL25: =+Sheet3!DL22/Sheet3!$F$1 -> 0 | DM25: =+Sheet3!DM22/Sheet3!$F$1 -> 0 | DN25: =+Sheet3!DN22/Sheet3!$F$1 -> 3250 | DO25: =+Sheet3!DO22/Sheet3!$F$1 -> 658 | DP25: =+Sheet3!DP22/Sheet3!$F$1 -> 185 | DQ25: =+Sheet3!DQ22/Sheet3!$F$1 -> 21 | DR25: =+Sheet3!DR22/Sheet3!$F$1 -> 0 | DS25: 4114
B26: 16J | C26: Beiras e Serra da Estrela | D26: =+Sheet3!D23/Sheet3!$F$1 -> 72 | E26: =+Sheet3!E23/Sheet3!$F$1 -> 4 | F26: =+Sheet3!F23/Sheet3!$F$1 -> 5 | G26: =+Sheet3!G23/Sheet3!$F$1 -> 0 | H26: =+Sheet3!H23/Sheet3!$F$1 -> 0 | I26: =+Sheet3!I23/Sheet3!$F$1 -> 45 | J26: =+Sheet3!J23/Sheet3!$F$1 -> 20 | K26: =+Sheet3!K23/Sheet3!$F$1 -> 9 | L26: =+Sheet3!L23/Sheet3!$F$1 -> 0 | M26: =+Sheet3!M23/Sheet3!$F$1 -> 0 | N26: =+Sheet3!N23/Sheet3!$F$1 -> 616 | O26: =+Sheet3!O23/Sheet3!$F$1 -> 343 | P26: =+Sheet3!P23/Sheet3!$F$1 -> 56 | Q26: =+Sheet3!Q23/Sheet3!$F$1 -> 0 | R26: =+Sheet3!R23/Sheet3!$F$1 -> 0 | S26: =+Sheet3!S23/Sheet3!$F$1 -> 0 | T26: =+Sheet3!T23/Sheet3!$F$1 -> 0 | U26: =+Sheet3!U23/Sheet3!$F$1 -> 0 | V26: =+Sheet3!V23/Sheet3!$F$1 -> 0 | W26: =+Sheet3!W23/Sheet3!$F$1 -> 0 | X26: =+Sheet3!X23/Sheet3!$F$1 -> 0 | Y26: =+Sheet3!Y23/Sheet3!$F$1 -> 3 | Z26: =+Sheet3!Z23/Sheet3!$F$1 -> 0 | AA26: =+Sheet3!AA23/Sheet3!$F$1 -> 0 | AB26: =+Sheet3!AB23/Sheet3!$F$1 -> 0 | AC26: =+Sheet3!AC23/Sheet3!$F$1 -> 1416 | AD26: =+Sheet3!AD23/Sheet3!$F$1 -> 168 | AE26: =+Sheet3!AE23/Sheet3!$F$1 -> 35 | AF26: =+Sheet3!AF23/Sheet3!$F$1 -> 0 | AG26: =+Sheet3!AG23/Sheet3!$F$1 -> 0 | AH26: =+Sheet3!AH23/Sheet3!$F$1 -> 286 | AI26: =+Sheet3!AI23/Sheet3!$F$1 -> 183 | AJ26: =+Sheet3!AJ23/Sheet3!$F$1 -> 37 | AK26: =+Sheet3!AK23/Sheet3!$F$1 -> 0 | AL26: =+Sheet3!AL23/Sheet3!$F$1 -> 0 | AM26: =+Sheet3!AM23/Sheet3!$F$1 -> 826 | AN26: =+Sheet3!AN23/Sheet3!$F$1 -> 504 | AO26: =+Sheet3!AO23/Sheet3!$F$1 -> 121 | AP26: =+Sheet3!AP23/Sheet3!$F$1 -> 0 | AQ26: =+Sheet3!AQ23/Sheet3!$F$1 -> 0 | AR26: =+Sheet3!AR23/Sheet3!$F$1 -> 544 | AS26: =+Sheet3!AS23/Sheet3!$F$1 -> 69 | AT26: =+Sheet3!AT23/Sheet3!$F$1 -> 11 | AU26: =+Sheet3!AU23/Sheet3!$F$1 -> 0 | AV26: =+Sheet3!AV23/Sheet3!$F$1 -> 0 | AW26: =+Sheet3!AW23/Sheet3!$F$1 -> 4196 | AX26: =+Sheet3!AX23/Sheet3!$F$1 -> 1554 | AY26: =+Sheet3!AY23/Sheet3!$F$1 -> 137 | AZ26: =+Sheet3!AZ23/Sheet3!$F$1 -> 0 | BA26: =+Sheet3!BA23/Sheet3!$F$1 -> 0 | BB26: =+Sheet3!BB23/Sheet3!$F$1 -> 0 | BC26: =+Sheet3!BC23/Sheet3!$F$1 -> 13 | BD26: =+Sheet3!BD23/Sheet3!$F$1 -> 17 | BE26: =+Sheet3!BE23/Sheet3!$F$1 -> 0 | BF26: =+Sheet3!BF23/Sheet3!$F$1 -> 0 | BG26: =+Sheet3!BG23/Sheet3!$F$1 -> 14 | BH26: =+Sheet3!BH23/Sheet3!$F$1 -> 123 | BI26: =+Sheet3!BI23/Sheet3!$F$1 -> 145 | BJ26: =+Sheet3!BJ23/Sheet3!$F$1 -> 0 | BK26: =+Sheet3!BK23/Sheet3!$F$1 -> 0 | BL26: =+Sheet3!BL23/Sheet3!$F$1 -> 23 | BM26: =+Sheet3!BM23/Sheet3!$F$1 -> 21 | BN26: =+Sheet3!BN23/Sheet3!$F$1 -> 3 | BO26: =+Sheet3!BO23/Sheet3!$F$1 -> 0 | BP26: =+Sheet3!BP23/Sheet3!$F$1 -> 0 | BQ26: =+Sheet3!BQ23/Sheet3!$F$1 -> 14 | BR26: =+Sheet3!BR23/Sheet3!$F$1 -> 128 | BS26: =+Sheet3!BS23/Sheet3!$F$1 -> 347 | BT26: =+Sheet3!BT23/Sheet3!$F$1 -> 12 | BU26: =+Sheet3!BU23/Sheet3!$F$1 -> 0 | BV26: =+Sheet3!BV23/Sheet3!$F$1 -> 728 | BW26: =+Sheet3!BW23/Sheet3!$F$1 -> 917 | BX26: =+Sheet3!BX23/Sheet3!$F$1 -> 355 | BY26: =+Sheet3!BY23/Sheet3!$F$1 -> 6 | BZ26: =+Sheet3!BZ23/Sheet3!$F$1 -> 0 | CA26: =+Sheet3!CA23/Sheet3!$F$1 -> 378 | CB26: =+Sheet3!CB23/Sheet3!$F$1 -> 472 | CC26: =+Sheet3!CC23/Sheet3!$F$1 -> 196 | CD26: =+Sheet3!CD23/Sheet3!$F$1 -> 0 | CE26: =+Sheet3!CE23/Sheet3!$F$1 -> 0 | CF26: =+Sheet3!CF23/Sheet3!$F$1 -> 212 | CG26: =+Sheet3!CG23/Sheet3!$F$1 -> 113 | CH26: =+Sheet3!CH23/Sheet3!$F$1 -> 21 | CI26: =+Sheet3!CI23/Sheet3!$F$1 -> 0 | CJ26: =+Sheet3!CJ23/Sheet3!$F$1 -> 0 | CK26: =+Sheet3!CK23/Sheet3!$F$1 -> 0 | CL26: =+Sheet3!CL23/Sheet3!$F$1 -> 0 | CM26: =+Sheet3!CM23/Sheet3!$F$1 -> 0 | CN26: =+Sheet3!CN23/Sheet3!$F$1 -> 0 | CO26: =+Sheet3!CO23/Sheet3!$F$1 -> 0 | CP26: =+Sheet3!CP23/Sheet3!$F$1 -> 10 | CQ26: =+Sheet3!CQ23/Sheet3!$F$1 -> 0 | CR26: =+Sheet3!CR23/Sheet3!$F$1 -> 0 | CS26: =+Sheet3!CS23/Sheet3!$F$1 -> 0 | CT26: =+Sheet3!CT23/Sheet3!$F$1 -> 0 | CU26: =+Sheet3!CU23/Sheet3!$F$1 -> 84 | CV26: =+Sheet3!CV23/Sheet3!$F$1 -> 76 | CW26: =+Sheet3!CW23/Sheet3!$F$1 -> 1016 | CX26: =+Sheet3!CX23/Sheet3!$F$1 -> 0 | CY26: =+Sheet3!CY23/Sheet3!$F$1 -> 7 | CZ26: =+Sheet3!CZ23/Sheet3!$F$1 -> 1621 | DA26: =+Sheet3!DA23/Sheet3!$F$1 -> 507 | DB26: =+Sheet3!DB23/Sheet3!$F$1 -> 1452 | DC26: =+Sheet3!DC23/Sheet3!$F$1 -> 625 | DD26: =+Sheet3!DD23/Sheet3!$F$1 -> 5891 | DE26: =+Sheet3!DE23/Sheet3!$F$1 -> 36 | DF26: =+Sheet3!DF23/Sheet3!$F$1 -> 288 | DG26: =+Sheet3!DG23/Sheet3!$F$1 -> 50 | DH26: =+Sheet3!DH23/Sheet3!$F$1 -> 504 | DI26: =+Sheet3!DI23/Sheet3!$F$1 -> 2007 | DJ26: =+Sheet3!DJ23/Sheet3!$F$1 -> 1048 | DK26: =+Sheet3!DK23/Sheet3!$F$1 -> 349 | DL26: =+Sheet3!DL23/Sheet3!$F$1 -> 0 | DM26: =+Sheet3!DM23/Sheet3!$F$1 -> 11 | DN26: =+Sheet3!DN23/Sheet3!$F$1 -> 9398 | DO26: =+Sheet3!DO23/Sheet3!$F$1 -> 4641 | DP26: =+Sheet3!DP23/Sheet3!$F$1 -> 1507 | DQ26: =+Sheet3!DQ23/Sheet3!$F$1 -> 26 | DR26: =+Sheet3!DR23/Sheet3!$F$1 -> 0 | DS26: 15572
A27: AML | B27: 170 | C27: Área Metropolitana de Lisboa | D27: =+Sheet3!D24/Sheet3!$F$1 -> 12 | E27: =+Sheet3!E24/Sheet3!$F$1 -> 4 | F27: =+Sheet3!F24/Sheet3!$F$1 -> 3 | G27: =+Sheet3!G24/Sheet3!$F$1 -> 0 | H27: =+Sheet3!H24/Sheet3!$F$1 -> 0 | I27: =+Sheet3!I24/Sheet3!$F$1 -> 8 | J27: =+Sheet3!J24/Sheet3!$F$1 -> 21 | K27: =+Sheet3!K24/Sheet3!$F$1 -> 12 | L27: =+Sheet3!L24/Sheet3!$F$1 -> 0 | M27: =+Sheet3!M24/Sheet3!$F$1 -> 0 | N27: =+Sheet3!N24/Sheet3!$F$1 -> 15 | O27: =+Sheet3!O24/Sheet3!$F$1 -> 11 | P27: =+Sheet3!P24/Sheet3!$F$1 -> 8 | Q27: =+Sheet3!Q24/Sheet3!$F$1 -> 0 | R27: =+Sheet3!R24/Sheet3!$F$1 -> 0 | S27: =+Sheet3!S24/Sheet3!$F$1 -> 0 | T27: =+Sheet3!T24/Sheet3!$F$1 -> 5 | U27: =+Sheet3!U24/Sheet3!$F$1 -> 50 | V27: =+Sheet3!V24/Sheet3!$F$1 -> 3 | W27: =+Sheet3!W24/Sheet3!$F$1 -> 0 | X27: =+Sheet3!X24/Sheet3!$F$1 -> 0 | Y27: =+Sheet3!Y24/Sheet3!$F$1 -> 0 | Z27: =+Sheet3!Z24/Sheet3!$F$1 -> 0 | AA27: =+Sheet3!AA24/Sheet3!$F$1 -> 0 | AB27: =+Sheet3!AB24/Sheet3!$F$1 -> 0 | AC27: =+Sheet3!AC24/Sheet3!$F$1 -> 35 | AD27: =+Sheet3!AD24/Sheet3!$F$1 -> 26 | AE27: =+Sheet3!AE24/Sheet3!$F$1 -> 11 | AF27: =+Sheet3!AF24/Sheet3!$F$1 -> 0 | AG27: =+Sheet3!AG24/Sheet3!$F$1 -> 0 | AH27: =+Sheet3!AH24/Sheet3!$F$1 -> 36 | AI27: =+Sheet3!AI24/Sheet3!$F$1 -> 87 | AJ27: =+Sheet3!AJ24/Sheet3!$F$1 -> 52 | AK27: =+Sheet3!AK24/Sheet3!$F$1 -> 0 | AL27: =+Sheet3!AL24/Sheet3!$F$1 -> 0 | AM27: =+Sheet3!AM24/Sheet3!$F$1 -> 33 | AN27: =+Sheet3!AN24/Sheet3!$F$1 -> 31 | AO27: =+Sheet3!AO24/Sheet3!$F$1 -> 29 | AP27: =+Sheet3!AP24/Sheet3!$F$1 -> 7 | AQ27: =+Sheet3!AQ24/Sheet3!$F$1 -> 0 | AR27: =+Sheet3!AR24/Sheet3!$F$1 -> 0 | AS27: =+Sheet3!AS24/Sheet3!$F$1 -> 0 | AT27: =+Sheet3!AT24/Sheet3!$F$1 -> 0 | AU27: =+Sheet3!AU24/Sheet3!$F$1 -> 0 | AV27: =+Sheet3!AV24/Sheet3!$F$1 -> 0 | AW27: =+Sheet3!AW24/Sheet3!$F$1 -> 52 | AX27: =+Sheet3!AX24/Sheet3!$F$1 -> 54 | AY27: =+Sheet3!AY24/Sheet3!$F$1 -> 37 | AZ27: =+Sheet3!AZ24/Sheet3!$F$1 -> 8 | BA27: =+Sheet3!BA24/Sheet3!$F$1 -> 0 | BB27: =+Sheet3!BB24/Sheet3!$F$1 -> 3 | BC27: =+Sheet3!BC24/Sheet3!$F$1 -> 10 | BD27: =+Sheet3!BD24/Sheet3!$F$1 -> 6 | BE27: =+Sheet3!BE24/Sheet3!$F$1 -> 0 | BF27: =+Sheet3!BF24/Sheet3!$F$1 -> 0 | BG27: =+Sheet3!BG24/Sheet3!$F$1 -> 4 | BH27: =+Sheet3!BH24/Sheet3!$F$1 -> 20 | BI27: =+Sheet3!BI24/Sheet3!$F$1 -> 15 | BJ27: =+Sheet3!BJ24/Sheet3!$F$1 -> 6 | BK27: =+Sheet3!BK24/Sheet3!$F$1 -> 0 | BL27: =+Sheet3!BL24/Sheet3!$F$1 -> 58 | BM27: =+Sheet3!BM24/Sheet3!$F$1 -> 26 | BN27: =+Sheet3!BN24/Sheet3!$F$1 -> 6 | BO27: =+Sheet3!BO24/Sheet3!$F$1 -> 0 | BP27: =+Sheet3!BP24/Sheet3!$F$1 -> 0 | BQ27: =+Sheet3!BQ24/Sheet3!$F$1 -> 0 | BR27: =+Sheet3!BR24/Sheet3!$F$1 -> 16 | BS27: =+Sheet3!BS24/Sheet3!$F$1 -> 12 | BT27: =+Sheet3!BT24/Sheet3!$F$1 -> 6 | BU27: =+Sheet3!BU24/Sheet3!$F$1 -> 0 | BV27: =+Sheet3!BV24/Sheet3!$F$1 -> 299 | BW27: =+Sheet3!BW24/Sheet3!$F$1 -> 49 | BX27: =+Sheet3!BX24/Sheet3!$F$1 -> 19 | BY27: =+Sheet3!BY24/Sheet3!$F$1 -> 0 | BZ27: =+Sheet3!BZ24/Sheet3!$F$1 -> 0 | CA27: =+Sheet3!CA24/Sheet3!$F$1 -> 38 | CB27: =+Sheet3!CB24/Sheet3!$F$1 -> 11 | CC27: =+Sheet3!CC24/Sheet3!$F$1 -> 11 | CD27: =+Sheet3!CD24/Sheet3!$F$1 -> 11 | CE27: =+Sheet3!CE24/Sheet3!$F$1 -> 0 | CF27: =+Sheet3!CF24/Sheet3!$F$1 -> 72 | CG27: =+Sheet3!CG24/Sheet3!$F$1 -> 83 | CH27: =+Sheet3!CH24/Sheet3!$F$1 -> 30 | CI27: =+Sheet3!CI24/Sheet3!$F$1 -> 3 | CJ27: =+Sheet3!CJ24/Sheet3!$F$1 -> 0 | CK27: =+Sheet3!CK24/Sheet3!$F$1 -> 0 | CL27: =+Sheet3!CL24/Sheet3!$F$1 -> 15 | CM27: =+Sheet3!CM24/Sheet3!$F$1 -> 15 | CN27: =+Sheet3!CN24/Sheet3!$F$1 -> 8 | CO27: =+Sheet3!CO24/Sheet3!$F$1 -> 0 | CP27: =+Sheet3!CP24/Sheet3!$F$1 -> 5 | CQ27: =+Sheet3!CQ24/Sheet3!$F$1 -> 5 | CR27: =+Sheet3!CR24/Sheet3!$F$1 -> 0 | CS27: =+Sheet3!CS24/Sheet3!$F$1 -> 0 | CT27: =+Sheet3!CT24/Sheet3!$F$1 -> 0 | CU27: =+Sheet3!CU24/Sheet3!$F$1 -> 23 | CV27: =+Sheet3!CV24/Sheet3!$F$1 -> 48 | CW27: =+Sheet3!CW24/Sheet3!$F$1 -> 43 | CX27: =+Sheet3!CX24/Sheet3!$F$1 -> 58 | CY27: =+Sheet3!CY24/Sheet3!$F$1 -> 5 | CZ27: =+Sheet3!CZ24/Sheet3!$F$1 -> 76 | DA27: =+Sheet3!DA24/Sheet3!$F$1 -> 180 | DB27: =+Sheet3!DB24/Sheet3!$F$1 -> 103 | DC27: =+Sheet3!DC24/Sheet3!$F$1 -> 0 | DD27: =+Sheet3!DD24/Sheet3!$F$1 -> 156 | DE27: =+Sheet3!DE24/Sheet3!$F$1 -> 21 | DF27: =+Sheet3!DF24/Sheet3!$F$1 -> 49 | DG27: =+Sheet3!DG24/Sheet3!$F$1 -> 93 | DH27: =+Sheet3!DH24/Sheet3!$F$1 -> 40 | DI27: =+Sheet3!DI24/Sheet3!$F$1 -> 371 | DJ27: =+Sheet3!DJ24/Sheet3!$F$1 -> 78 | DK27: =+Sheet3!DK24/Sheet3!$F$1 -> 192 | DL27: =+Sheet3!DL24/Sheet3!$F$1 -> 41 | DM27: =+Sheet3!DM24/Sheet3!$F$1 -> 13 | DN27: =+Sheet3!DN24/Sheet3!$F$1 -> 694 | DO27: =+Sheet3!DO24/Sheet3!$F$1 -> 503 | DP27: =+Sheet3!DP24/Sheet3!$F$1 -> 326 | DQ27: =+Sheet3!DQ24/Sheet3!$F$1 -> 64 | DR27: =+Sheet3!DR24/Sheet3!$F$1 -> 4 | DS27: 1591
A28: Alentejo | B28: 181 | C28: Alentejo Litoral | D28: =+Sheet3!D25/Sheet3!$F$1 -> 47 | E28: =+Sheet3!E25/Sheet3!$F$1 -> 0 | F28: =+Sheet3!F25/Sheet3!$F$1 -> 6 | G28: =+Sheet3!G25/Sheet3!$F$1 -> 3 | H28: =+Sheet3!H25/Sheet3!$F$1 -> 0 | I28: =+Sheet3!I25/Sheet3!$F$1 -> 0 | J28: =+Sheet3!J25/Sheet3!$F$1 -> 0 | K28: =+Sheet3!K25/Sheet3!$F$1 -> 12 | L28: =+Sheet3!L25/Sheet3!$F$1 -> 0 | M28: =+Sheet3!M25/Sheet3!$F$1 -> 0 | N28: =+Sheet3!N25/Sheet3!$F$1 -> 11 | O28: =+Sheet3!O25/Sheet3!$F$1 -> 21 | P28: =+Sheet3!P25/Sheet3!$F$1 -> 31 | Q28: =+Sheet3!Q25/Sheet3!$F$1 -> 4 | R28: =+Sheet3!R25/Sheet3!$F$1 -> 0 | S28: =+Sheet3!S25/Sheet3!$F$1 -> 9 | T28: =+Sheet3!T25/Sheet3!$F$1 -> 41 | U28: =+Sheet3!U25/Sheet3!$F$1 -> 48 | V28: =+Sheet3!V25/Sheet3!$F$1 -> 3 | W28: =+Sheet3!W25/Sheet3!$F$1 -> 0 | X28: =+Sheet3!X25/Sheet3!$F$1 -> 0 | Y28: =+Sheet3!Y25/Sheet3!$F$1 -> 0 | Z28: =+Sheet3!Z25/Sheet3!$F$1 -> 11 | AA28: =+Sheet3!AA25/Sheet3!$F$1 -> 3 | AB28: =+Sheet3!AB25/Sheet3!$F$1 -> 0 | AC28: =+Sheet3!AC25/Sheet3!$F$1 -> 66 | AD28: =+Sheet3!AD25/Sheet3!$F$1 -> 29 | AE28: =+Sheet3!AE25/Sheet3!$F$1 -> 18 | AF28: =+Sheet3!AF25/Sheet3!$F$1 -> 0 | AG28: =+Sheet3!AG25/Sheet3!$F$1 -> 0 | AH28: =+Sheet3!AH25/Sheet3!$F$1 -> 0 | AI28: =+Sheet3!AI25/Sheet3!$F$1 -> 9 | AJ28: =+Sheet3!AJ25/Sheet3!$F$1 -> 6 | AK28: =+Sheet3!AK25/Sheet3!$F$1 -> 0 | AL28: =+Sheet3!AL25/Sheet3!$F$1 -> 0 | AM28: =+Sheet3!AM25/Sheet3!$F$1 -> 38 | AN28: =+Sheet3!AN25/Sheet3!$F$1 -> 90 | AO28: =+Sheet3!AO25/Sheet3!$F$1 -> 148 | AP28: =+Sheet3!AP25/Sheet3!$F$1 -> 31 | AQ28: =+Sheet3!AQ25/Sheet3!$F$1 -> 0 | AR28: =+Sheet3!AR25/Sheet3!$F$1 -> 53 | AS28: =+Sheet3!AS25/Sheet3!$F$1 -> 5 | AT28: =+Sheet3!AT25/Sheet3!$F$1 -> 18 | AU28: =+Sheet3!AU25/Sheet3!$F$1 -> 5 | AV28: =+Sheet3!AV25/Sheet3!$F$1 -> 0 | AW28: =+Sheet3!AW25/Sheet3!$F$1 -> 91 | AX28: =+Sheet3!AX25/Sheet3!$F$1 -> 150 | AY28: =+Sheet3!AY25/Sheet3!$F$1 -> 122 | AZ28: =+Sheet3!AZ25/Sheet3!$F$1 -> 35 | BA28: =+Sheet3!BA25/Sheet3!$F$1 -> 5 | BB28: =+Sheet3!BB25/Sheet3!$F$1 -> 0 | BC28: =+Sheet3!BC25/Sheet3!$F$1 -> 0 | BD28: =+Sheet3!BD25/Sheet3!$F$1 -> 10 | BE28: =+Sheet3!BE25/Sheet3!$F$1 -> 3 | BF28: =+Sheet3!BF25/Sheet3!$F$1 -> 0 | BG28: =+Sheet3!BG25/Sheet3!$F$1 -> 5 | BH28: =+Sheet3!BH25/Sheet3!$F$1 -> 40 | BI28: =+Sheet3!BI25/Sheet3!$F$1 -> 54 | BJ28: =+Sheet3!BJ25/Sheet3!$F$1 -> 7 | BK28: =+Sheet3!BK25/Sheet3!$F$1 -> 0 | BL28: =+Sheet3!BL25/Sheet3!$F$1 -> 32 | BM28: =+Sheet3!BM25/Sheet3!$F$1 -> 13 | BN28: =+Sheet3!BN25/Sheet3!$F$1 -> 0 | BO28: =+Sheet3!BO25/Sheet3!$F$1 -> 0 | BP28: =+Sheet3!BP25/Sheet3!$F$1 -> 0 | BQ28: =+Sheet3!BQ25/Sheet3!$F$1 -> 0 | BR28: =+Sheet3!BR25/Sheet3!$F$1 -> 67 | BS28: =+Sheet3!BS25/Sheet3!$F$1 -> 195 | BT28: =+Sheet3!BT25/Sheet3!$F$1 -> 91 | BU28: =+Sheet3!BU25/Sheet3!$F$1 -> 4 | BV28: =+Sheet3!BV25/Sheet3!$F$1 -> 143 | BW28: =+Sheet3!BW25/Sheet3!$F$1 -> 207 | BX28: =+Sheet3!BX25/Sheet3!$F$1 -> 244 | BY28: =+Sheet3!BY25/Sheet3!$F$1 -> 51 | BZ28: =+Sheet3!BZ25/Sheet3!$F$1 -> 0 | CA28: =+Sheet3!CA25/Sheet3!$F$1 -> 38 | CB28: =+Sheet3!CB25/Sheet3!$F$1 -> 49 | CC28: =+Sheet3!CC25/Sheet3!$F$1 -> 58 | CD28: =+Sheet3!CD25/Sheet3!$F$1 -> 47 | CE28: =+Sheet3!CE25/Sheet3!$F$1 -> 4 | CF28: =+Sheet3!CF25/Sheet3!$F$1 -> 166 | CG28: =+Sheet3!CG25/Sheet3!$F$1 -> 299 | CH28: =+Sheet3!CH25/Sheet3!$F$1 -> 328 | CI28: =+Sheet3!CI25/Sheet3!$F$1 -> 33 | CJ28: =+Sheet3!CJ25/Sheet3!$F$1 -> 0 | CK28: =+Sheet3!CK25/Sheet3!$F$1 -> 0 | CL28: =+Sheet3!CL25/Sheet3!$F$1 -> 0 | CM28: =+Sheet3!CM25/Sheet3!$F$1 -> 12 | CN28: =+Sheet3!CN25/Sheet3!$F$1 -> 0 | CO28: =+Sheet3!CO25/Sheet3!$F$1 -> 0 | CP28: =+Sheet3!CP25/Sheet3!$F$1 -> 0 | CQ28: =+Sheet3!CQ25/Sheet3!$F$1 -> 0 | CR28: =+Sheet3!CR25/Sheet3!$F$1 -> 0 | CS28: =+Sheet3!CS25/Sheet3!$F$1 -> 0 | CT28: =+Sheet3!CT25/Sheet3!$F$1 -> 0 | CU28: =+Sheet3!CU25/Sheet3!$F$1 -> 65 | CV28: =+Sheet3!CV25/Sheet3!$F$1 -> 15 | CW28: =+Sheet3!CW25/Sheet3!$F$1 -> 71 | CX28: =+Sheet3!CX25/Sheet3!$F$1 -> 106 | CY28: =+Sheet3!CY25/Sheet3!$F$1 -> 15 | CZ28: =+Sheet3!CZ25/Sheet3!$F$1 -> 120 | DA28: =+Sheet3!DA25/Sheet3!$F$1 -> 22 | DB28: =+Sheet3!DB25/Sheet3!$F$1 -> 315 | DC28: =+Sheet3!DC25/Sheet3!$F$1 -> 86 | DD28: =+Sheet3!DD25/Sheet3!$F$1 -> 404 | DE28: =+Sheet3!DE25/Sheet3!$F$1 -> 14 | DF28: =+Sheet3!DF25/Sheet3!$F$1 -> 112 | DG28: =+Sheet3!DG25/Sheet3!$F$1 -> 51 | DH28: =+Sheet3!DH25/Sheet3!$F$1 -> 360 | DI28: =+Sheet3!DI25/Sheet3!$F$1 -> 650 | DJ28: =+Sheet3!DJ25/Sheet3!$F$1 -> 201 | DK28: =+Sheet3!DK25/Sheet3!$F$1 -> 827 | DL28: =+Sheet3!DL25/Sheet3!$F$1 -> 14 | DM28: =+Sheet3!DM25/Sheet3!$F$1 -> 0 | DN28: =+Sheet3!DN25/Sheet3!$F$1 -> 718 | DO28: =+Sheet3!DO25/Sheet3!$F$1 -> 1049 | DP28: =+Sheet3!DP25/Sheet3!$F$1 -> 1335 | DQ28: =+Sheet3!DQ25/Sheet3!$F$1 -> 327 | DR28: =+Sheet3!DR25/Sheet3!$F$1 -> 19 | DS28: 3448
B29: 184 | C29: Baixo Alentejo | D29: =+Sheet3!D26/Sheet3!$F$1 -> 73 | E29: =+Sheet3!E26/Sheet3!$F$1 -> 5 | F29: =+Sheet3!F26/Sheet3!$F$1 -> 6 | G29: =+Sheet3!G26/Sheet3!$F$1 -> 0 | H29: =+Sheet3!H26/Sheet3!$F$1 -> 0 | I29: =+Sheet3!I26/Sheet3!$F$1 -> 4 | J29: =+Sheet3!J26/Sheet3!$F$1 -> 6 | K29: =+Sheet3!K26/Sheet3!$F$1 -> 46 | L29: =+Sheet3!L26/Sheet3!$F$1 -> 14 | M29: =+Sheet3!M26/Sheet3!$F$1 -> 0 | N29: =+Sheet3!N26/Sheet3!$F$1 -> 144 | O29: =+Sheet3!O26/Sheet3!$F$1 -> 199 | P29: =+Sheet3!P26/Sheet3!$F$1 -> 220 | Q29: =+Sheet3!Q26/Sheet3!$F$1 -> 34 | R29: =+Sheet3!R26/Sheet3!$F$1 -> 0 | S29: =+Sheet3!S26/Sheet3!$F$1 -> 0 | T29: =+Sheet3!T26/Sheet3!$F$1 -> 0 | U29: =+Sheet3!U26/Sheet3!$F$1 -> 0 | V29: =+Sheet3!V26/Sheet3!$F$1 -> 0 | W29: =+Sheet3!W26/Sheet3!$F$1 -> 0 | X29: =+Sheet3!X26/Sheet3!$F$1 -> 10 | Y29: =+Sheet3!Y26/Sheet3!$F$1 -> 30 | Z29: =+Sheet3!Z26/Sheet3!$F$1 -> 45 | AA29: =+Sheet3!AA26/Sheet3!$F$1 -> 5 | AB29: =+Sheet3!AB26/Sheet3!$F$1 -> 0 | AC29: =+Sheet3!AC26/Sheet3!$F$1 -> 57 | AD29: =+Sheet3!AD26/Sheet3!$F$1 -> 31 | AE29: =+Sheet3!AE26/Sheet3!$F$1 -> 20 | AF29: =+Sheet3!AF26/Sheet3!$F$1 -> 7 | AG29: =+Sheet3!AG26/Sheet3!$F$1 -> 0 | AH29: =+Sheet3!AH26/Sheet3!$F$1 -> 92 | AI29: =+Sheet3!AI26/Sheet3!$F$1 -> 107 | AJ29: =+Sheet3!AJ26/Sheet3!$F$1 -> 46 | AK29: =+Sheet3!AK26/Sheet3!$F$1 -> 0 | AL29: =+Sheet3!AL26/Sheet3!$F$1 -> 0 | AM29: =+Sheet3!AM26/Sheet3!$F$1 -> 41 | AN29: =+Sheet3!AN26/Sheet3!$F$1 -> 95 | AO29: =+Sheet3!AO26/Sheet3!$F$1 -> 275 | AP29: =+Sheet3!AP26/Sheet3!$F$1 -> 57 | AQ29: =+Sheet3!AQ26/Sheet3!$F$1 -> 3 | AR29: =+Sheet3!AR26/Sheet3!$F$1 -> 862 | AS29: =+Sheet3!AS26/Sheet3!$F$1 -> 596 | AT29: =+Sheet3!AT26/Sheet3!$F$1 -> 474 | AU29: =+Sheet3!AU26/Sheet3!$F$1 -> 92 | AV29: =+Sheet3!AV26/Sheet3!$F$1 -> 3 | AW29: =+Sheet3!AW26/Sheet3!$F$1 -> 338 | AX29: =+Sheet3!AX26/Sheet3!$F$1 -> 355 | AY29: =+Sheet3!AY26/Sheet3!$F$1 -> 244 | AZ29: =+Sheet3!AZ26/Sheet3!$F$1 -> 62 | BA29: =+Sheet3!BA26/Sheet3!$F$1 -> 0 | BB29: =+Sheet3!BB26/Sheet3!$F$1 -> 0 | BC29: =+Sheet3!BC26/Sheet3!$F$1 -> 0 | BD29: =+Sheet3!BD26/Sheet3!$F$1 -> 0 | BE29: =+Sheet3!BE26/Sheet3!$F$1 -> 0 | BF29: =+Sheet3!BF26/Sheet3!$F$1 -> 0 | BG29: =+Sheet3!BG26/Sheet3!$F$1 -> 3 | BH29: =+Sheet3!BH26/Sheet3!$F$1 -> 16 | BI29: =+Sheet3!BI26/Sheet3!$F$1 -> 55 | BJ29: =+Sheet3!BJ26/Sheet3!$F$1 -> 20 | BK29: =+Sheet3!BK26/Sheet3!$F$1 -> 0 | BL29: =+Sheet3!BL26/Sheet3!$F$1 -> 36 | BM29: =+Sheet3!BM26/Sheet3!$F$1 -> 21 | BN29: =+Sheet3!BN26/Sheet3!$F$1 -> 6 | BO29: =+Sheet3!BO26/Sheet3!$F$1 -> 3 | BP29: =+Sheet3!BP26/Sheet3!$F$1 -> 0 | BQ29: =+Sheet3!BQ26/Sheet3!$F$1 -> 0 | BR29: =+Sheet3!BR26/Sheet3!$F$1 -> 5 | BS29: =+Sheet3!BS26/Sheet3!$F$1 -> 257 | BT29: =+Sheet3!BT26/Sheet3!$F$1 -> 236 | BU29: =+Sheet3!BU26/Sheet3!$F$1 -> 6 | BV29: =+Sheet3!BV26/Sheet3!$F$1 -> 469 | BW29: =+Sheet3!BW26/Sheet3!$F$1 -> 399 | BX29: =+Sheet3!BX26/Sheet3!$F$1 -> 549 | BY29: =+Sheet3!BY26/Sheet3!$F$1 -> 146 | BZ29: =+Sheet3!BZ26/Sheet3!$F$1 -> 3 | CA29: =+Sheet3!CA26/Sheet3!$F$1 -> 60 | CB29: =+Sheet3!CB26/Sheet3!$F$1 -> 110 | CC29: =+Sheet3!CC26/Sheet3!$F$1 -> 177 | CD29: =+Sheet3!CD26/Sheet3!$F$1 -> 124 | CE29: =+Sheet3!CE26/Sheet3!$F$1 -> 11 | CF29: =+Sheet3!CF26/Sheet3!$F$1 -> 252 | CG29: =+Sheet3!CG26/Sheet3!$F$1 -> 335 | CH29: =+Sheet3!CH26/Sheet3!$F$1 -> 420 | CI29: =+Sheet3!CI26/Sheet3!$F$1 -> 32 | CJ29: =+Sheet3!CJ26/Sheet3!$F$1 -> 0 | CK29: =+Sheet3!CK26/Sheet3!$F$1 -> 0 | CL29: =+Sheet3!CL26/Sheet3!$F$1 -> 4 | CM29: =+Sheet3!CM26/Sheet3!$F$1 -> 4 | CN29: =+Sheet3!CN26/Sheet3!$F$1 -> 0 | CO29: =+Sheet3!CO26/Sheet3!$F$1 -> 0 | CP29: =+Sheet3!CP26/Sheet3!$F$1 -> 0 | CQ29: =+Sheet3!CQ26/Sheet3!$F$1 -> 0 | CR29: =+Sheet3!CR26/Sheet3!$F$1 -> 0 | CS29: =+Sheet3!CS26/Sheet3!$F$1 -> 0 | CT29: =+Sheet3!CT26/Sheet3!$F$1 -> 0 | CU29: =+Sheet3!CU26/Sheet3!$F$1 -> 86 | CV29: =+Sheet3!CV26/Sheet3!$F$1 -> 72 | CW29: =+Sheet3!CW26/Sheet3!$F$1 -> 603 | CX29: =+Sheet3!CX26/Sheet3!$F$1 -> 0 | CY29: =+Sheet3!CY26/Sheet3!$F$1 -> 93 | CZ29: =+Sheet3!CZ26/Sheet3!$F$1 -> 119 | DA29: =+Sheet3!DA26/Sheet3!$F$1 -> 252 | DB29: =+Sheet3!DB26/Sheet3!$F$1 -> 475 | DC29: =+Sheet3!DC26/Sheet3!$F$1 -> 2028 | DD29: =+Sheet3!DD26/Sheet3!$F$1 -> 1009 | DE29: =+Sheet3!DE26/Sheet3!$F$1 -> 4 | DF29: =+Sheet3!DF26/Sheet3!$F$1 -> 96 | DG29: =+Sheet3!DG26/Sheet3!$F$1 -> 68 | DH29: =+Sheet3!DH26/Sheet3!$F$1 -> 508 | DI29: =+Sheet3!DI26/Sheet3!$F$1 -> 1571 | DJ29: =+Sheet3!DJ26/Sheet3!$F$1 -> 486 | DK29: =+Sheet3!DK26/Sheet3!$F$1 -> 1041 | DL29: =+Sheet3!DL26/Sheet3!$F$1 -> 11 | DM29: =+Sheet3!DM26/Sheet3!$F$1 -> 0 | DN29: =+Sheet3!DN26/Sheet3!$F$1 -> 2453 | DO29: =+Sheet3!DO26/Sheet3!$F$1 -> 2335 | DP29: =+Sheet3!DP26/Sheet3!$F$1 -> 2864 | DQ29: =+Sheet3!DQ26/Sheet3!$F$1 -> 841 | DR29: =+Sheet3!DR26/Sheet3!$F$1 -> 30 | DS29: 8523
B30: 185 | C30: Lezíria do Tejo | D30: =+Sheet3!D27/Sheet3!$F$1 -> 41 | E30: =+Sheet3!E27/Sheet3!$F$1 -> 19 | F30: =+Sheet3!F27/Sheet3!$F$1 -> 9 | G30: =+Sheet3!G27/Sheet3!$F$1 -> 3 | H30: =+Sheet3!H27/Sheet3!$F$1 -> 0 | I30: =+Sheet3!I27/Sheet3!$F$1 -> 57 | J30: =+Sheet3!J27/Sheet3!$F$1 -> 99 | K30: =+Sheet3!K27/Sheet3!$F$1 -> 137 | L30: =+Sheet3!L27/Sheet3!$F$1 -> 15 | M30: =+Sheet3!M27/Sheet3!$F$1 -> 0 | N30: =+Sheet3!N27/Sheet3!$F$1 -> 27 | O30: =+Sheet3!O27/Sheet3!$F$1 -> 50 | P30: =+Sheet3!P27/Sheet3!$F$1 -> 29 | Q30: =+Sheet3!Q27/Sheet3!$F$1 -> 5 | R30: =+Sheet3!R27/Sheet3!$F$1 -> 0 | S30: =+Sheet3!S27/Sheet3!$F$1 -> 0 | T30: =+Sheet3!T27/Sheet3!$F$1 -> 26 | U30: =+Sheet3!U27/Sheet3!$F$1 -> 83 | V30: =+Sheet3!V27/Sheet3!$F$1 -> 5 | W30: =+Sheet3!W27/Sheet3!$F$1 -> 0 | X30: =+Sheet3!X27/Sheet3!$F$1 -> 9 | Y30: =+Sheet3!Y27/Sheet3!$F$1 -> 15 | Z30: =+Sheet3!Z27/Sheet3!$F$1 -> 7 | AA30: =+Sheet3!AA27/Sheet3!$F$1 -> 0 | AB30: =+Sheet3!AB27/Sheet3!$F$1 -> 0 | AC30: =+Sheet3!AC27/Sheet3!$F$1 -> 31 | AD30: =+Sheet3!AD27/Sheet3!$F$1 -> 21 | AE30: =+Sheet3!AE27/Sheet3!$F$1 -> 16 | AF30: =+Sheet3!AF27/Sheet3!$F$1 -> 3 | AG30: =+Sheet3!AG27/Sheet3!$F$1 -> 0 | AH30: =+Sheet3!AH27/Sheet3!$F$1 -> 35 | AI30: =+Sheet3!AI27/Sheet3!$F$1 -> 89 | AJ30: =+Sheet3!AJ27/Sheet3!$F$1 -> 31 | AK30: =+Sheet3!AK27/Sheet3!$F$1 -> 0 | AL30: =+Sheet3!AL27/Sheet3!$F$1 -> 0 | AM30: =+Sheet3!AM27/Sheet3!$F$1 -> 56 | AN30: =+Sheet3!AN27/Sheet3!$F$1 -> 65 | AO30: =+Sheet3!AO27/Sheet3!$F$1 -> 91 | AP30: =+Sheet3!AP27/Sheet3!$F$1 -> 31 | AQ30: =+Sheet3!AQ27/Sheet3!$F$1 -> 3 | AR30: =+Sheet3!AR27/Sheet3!$F$1 -> 177 | AS30: =+Sheet3!AS27/Sheet3!$F$1 -> 44 | AT30: =+Sheet3!AT27/Sheet3!$F$1 -> 8 | AU30: =+Sheet3!AU27/Sheet3!$F$1 -> 0 | AV30: =+Sheet3!AV27/Sheet3!$F$1 -> 0 | AW30: =+Sheet3!AW27/Sheet3!$F$1 -> 262 | AX30: =+Sheet3!AX27/Sheet3!$F$1 -> 184 | AY30: =+Sheet3!AY27/Sheet3!$F$1 -> 112 | AZ30: =+Sheet3!AZ27/Sheet3!$F$1 -> 36 | BA30: =+Sheet3!BA27/Sheet3!$F$1 -> 6 | BB30: =+Sheet3!BB27/Sheet3!$F$1 -> 6 | BC30: =+Sheet3!BC27/Sheet3!$F$1 -> 3 | BD30: =+Sheet3!BD27/Sheet3!$F$1 -> 7 | BE30: =+Sheet3!BE27/Sheet3!$F$1 -> 5 | BF30: =+Sheet3!BF27/Sheet3!$F$1 -> 0 | BG30: =+Sheet3!BG27/Sheet3!$F$1 -> 7 | BH30: =+Sheet3!BH27/Sheet3!$F$1 -> 13 | BI30: =+Sheet3!BI27/Sheet3!$F$1 -> 18 | BJ30: =+Sheet3!BJ27/Sheet3!$F$1 -> 5 | BK30: =+Sheet3!BK27/Sheet3!$F$1 -> 0 | BL30: =+Sheet3!BL27/Sheet3!$F$1 -> 49 | BM30: =+Sheet3!BM27/Sheet3!$F$1 -> 15 | BN30: =+Sheet3!BN27/Sheet3!$F$1 -> 9 | BO30: =+Sheet3!BO27/Sheet3!$F$1 -> 0 | BP30: =+Sheet3!BP27/Sheet3!$F$1 -> 0 | BQ30: =+Sheet3!BQ27/Sheet3!$F$1 -> 5 | BR30: =+Sheet3!BR27/Sheet3!$F$1 -> 8 | BS30: =+Sheet3!BS27/Sheet3!$F$1 -> 19 | BT30: =+Sheet3!BT27/Sheet3!$F$1 -> 17 | BU30: =+Sheet3!BU27/Sheet3!$F$1 -> 0 | BV30: =+Sheet3!BV27/Sheet3!$F$1 -> 195 | BW30: =+Sheet3!BW27/Sheet3!$F$1 -> 51 | BX30: =+Sheet3!BX27/Sheet3!$F$1 -> 37 | BY30: =+Sheet3!BY27/Sheet3!$F$1 -> 4 | BZ30: =+Sheet3!BZ27/Sheet3!$F$1 -> 0 | CA30: =+Sheet3!CA27/Sheet3!$F$1 -> 34 | CB30: =+Sheet3!CB27/Sheet3!$F$1 -> 35 | CC30: =+Sheet3!CC27/Sheet3!$F$1 -> 25 | CD30: =+Sheet3!CD27/Sheet3!$F$1 -> 32 | CE30: =+Sheet3!CE27/Sheet3!$F$1 -> 7 | CF30: =+Sheet3!CF27/Sheet3!$F$1 -> 196 | CG30: =+Sheet3!CG27/Sheet3!$F$1 -> 163 | CH30: =+Sheet3!CH27/Sheet3!$F$1 -> 119 | CI30: =+Sheet3!CI27/Sheet3!$F$1 -> 14 | CJ30: =+Sheet3!CJ27/Sheet3!$F$1 -> 0 | CK30: =+Sheet3!CK27/Sheet3!$F$1 -> 4 | CL30: =+Sheet3!CL27/Sheet3!$F$1 -> 63 | CM30: =+Sheet3!CM27/Sheet3!$F$1 -> 106 | CN30: =+Sheet3!CN27/Sheet3!$F$1 -> 13 | CO30: =+Sheet3!CO27/Sheet3!$F$1 -> 0 | CP30: =+Sheet3!CP27/Sheet3!$F$1 -> 0 | CQ30: =+Sheet3!CQ27/Sheet3!$F$1 -> 5 | CR30: =+Sheet3!CR27/Sheet3!$F$1 -> 7 | CS30: =+Sheet3!CS27/Sheet3!$F$1 -> 0 | CT30: =+Sheet3!CT27/Sheet3!$F$1 -> 0 | CU30: =+Sheet3!CU27/Sheet3!$F$1 -> 73 | CV30: =+Sheet3!CV27/Sheet3!$F$1 -> 314 | CW30: =+Sheet3!CW27/Sheet3!$F$1 -> 114 | CX30: =+Sheet3!CX27/Sheet3!$F$1 -> 114 | CY30: =+Sheet3!CY27/Sheet3!$F$1 -> 33 | CZ30: =+Sheet3!CZ27/Sheet3!$F$1 -> 75 | DA30: =+Sheet3!DA27/Sheet3!$F$1 -> 162 | DB30: =+Sheet3!DB27/Sheet3!$F$1 -> 250 | DC30: =+Sheet3!DC27/Sheet3!$F$1 -> 232 | DD30: =+Sheet3!DD27/Sheet3!$F$1 -> 600 | DE30: =+Sheet3!DE27/Sheet3!$F$1 -> 21 | DF30: =+Sheet3!DF27/Sheet3!$F$1 -> 46 | DG30: =+Sheet3!DG27/Sheet3!$F$1 -> 77 | DH30: =+Sheet3!DH27/Sheet3!$F$1 -> 56 | DI30: =+Sheet3!DI27/Sheet3!$F$1 -> 293 | DJ30: =+Sheet3!DJ27/Sheet3!$F$1 -> 137 | DK30: =+Sheet3!DK27/Sheet3!$F$1 -> 494 | DL30: =+Sheet3!DL27/Sheet3!$F$1 -> 191 | DM30: =+Sheet3!DM27/Sheet3!$F$1 -> 13 | DN30: =+Sheet3!DN27/Sheet3!$F$1 -> 1207 | DO30: =+Sheet3!DO27/Sheet3!$F$1 -> 988 | DP30: =+Sheet3!DP27/Sheet3!$F$1 -> 882 | DQ30: =+Sheet3!DQ27/Sheet3!$F$1 -> 197 | DR30: =+Sheet3!DR27/Sheet3!$F$1 -> 21 | DS30: 3295
B31: 186 | C31: Alto Alentejo | D31: =+Sheet3!D28/Sheet3!$F$1 -> 6 | E31: =+Sheet3!E28/Sheet3!$F$1 -> 0 | F31: =+Sheet3!F28/Sheet3!$F$1 -> 3 | G31: =+Sheet3!G28/Sheet3!$F$1 -> 0 | H31: =+Sheet3!H28/Sheet3!$F$1 -> 0 | I31: =+Sheet3!I28/Sheet3!$F$1 -> 0 | J31: =+Sheet3!J28/Sheet3!$F$1 -> 4 | K31: =+Sheet3!K28/Sheet3!$F$1 -> 13 | L31: =+Sheet3!L28/Sheet3!$F$1 -> 0 | M31: =+Sheet3!M28/Sheet3!$F$1 -> 0 | N31: =+Sheet3!N28/Sheet3!$F$1 -> 17 | O31: =+Sheet3!O28/Sheet3!$F$1 -> 29 | P31: =+Sheet3!P28/Sheet3!$F$1 -> 14 | Q31: =+Sheet3!Q28/Sheet3!$F$1 -> 3 | R31: =+Sheet3!R28/Sheet3!$F$1 -> 0 | S31: =+Sheet3!S28/Sheet3!$F$1 -> 0 | T31: =+Sheet3!T28/Sheet3!$F$1 -> 0 | U31: =+Sheet3!U28/Sheet3!$F$1 -> 0 | V31: =+Sheet3!V28/Sheet3!$F$1 -> 0 | W31: =+Sheet3!W28/Sheet3!$F$1 -> 0 | X31: =+Sheet3!X28/Sheet3!$F$1 -> 0 | Y31: =+Sheet3!Y28/Sheet3!$F$1 -> 0 | Z31: =+Sheet3!Z28/Sheet3!$F$1 -> 18 | AA31: =+Sheet3!AA28/Sheet3!$F$1 -> 4 | AB31: =+Sheet3!AB28/Sheet3!$F$1 -> 0 | AC31: =+Sheet3!AC28/Sheet3!$F$1 -> 66 | AD31: =+Sheet3!AD28/Sheet3!$F$1 -> 30 | AE31: =+Sheet3!AE28/Sheet3!$F$1 -> 33 | AF31: =+Sheet3!AF28/Sheet3!$F$1 -> 5 | AG31: =+Sheet3!AG28/Sheet3!$F$1 -> 0 | AH31: =+Sheet3!AH28/Sheet3!$F$1 -> 29 | AI31: =+Sheet3!AI28/Sheet3!$F$1 -> 33 | AJ31: =+Sheet3!AJ28/Sheet3!$F$1 -> 26 | AK31: =+Sheet3!AK28/Sheet3!$F$1 -> 0 | AL31: =+Sheet3!AL28/Sheet3!$F$1 -> 0 | AM31: =+Sheet3!AM28/Sheet3!$F$1 -> 42 | AN31: =+Sheet3!AN28/Sheet3!$F$1 -> 42 | AO31: =+Sheet3!AO28/Sheet3!$F$1 -> 44 | AP31: =+Sheet3!AP28/Sheet3!$F$1 -> 8 | AQ31: =+Sheet3!AQ28/Sheet3!$F$1 -> 0 | AR31: =+Sheet3!AR28/Sheet3!$F$1 -> 794 | AS31: =+Sheet3!AS28/Sheet3!$F$1 -> 332 | AT31: =+Sheet3!AT28/Sheet3!$F$1 -> 135 | AU31: =+Sheet3!AU28/Sheet3!$F$1 -> 23 | AV31: =+Sheet3!AV28/Sheet3!$F$1 -> 0 | AW31: =+Sheet3!AW28/Sheet3!$F$1 -> 430 | AX31: =+Sheet3!AX28/Sheet3!$F$1 -> 307 | AY31: =+Sheet3!AY28/Sheet3!$F$1 -> 142 | AZ31: =+Sheet3!AZ28/Sheet3!$F$1 -> 32 | BA31: =+Sheet3!BA28/Sheet3!$F$1 -> 3 | BB31: =+Sheet3!BB28/Sheet3!$F$1 -> 0 | BC31: =+Sheet3!BC28/Sheet3!$F$1 -> 0 | BD31: =+Sheet3!BD28/Sheet3!$F$1 -> 7 | BE31: =+Sheet3!BE28/Sheet3!$F$1 -> 3 | BF31: =+Sheet3!BF28/Sheet3!$F$1 -> 0 | BG31: =+Sheet3!BG28/Sheet3!$F$1 -> 0 | BH31: =+Sheet3!BH28/Sheet3!$F$1 -> 33 | BI31: =+Sheet3!BI28/Sheet3!$F$1 -> 86 | BJ31: =+Sheet3!BJ28/Sheet3!$F$1 -> 25 | BK31: =+Sheet3!BK28/Sheet3!$F$1 -> 0 | BL31: =+Sheet3!BL28/Sheet3!$F$1 -> 10 | BM31: =+Sheet3!BM28/Sheet3!$F$1 -> 12 | BN31: =+Sheet3!BN28/Sheet3!$F$1 -> 9 | BO31: =+Sheet3!BO28/Sheet3!$F$1 -> 0 | BP31: =+Sheet3!BP28/Sheet3!$F$1 -> 0 | BQ31: =+Sheet3!BQ28/Sheet3!$F$1 -> 0 | BR31: =+Sheet3!BR28/Sheet3!$F$1 -> 18 | BS31: =+Sheet3!BS28/Sheet3!$F$1 -> 318 | BT31: =+Sheet3!BT28/Sheet3!$F$1 -> 288 | BU31: =+Sheet3!BU28/Sheet3!$F$1 -> 19 | BV31: =+Sheet3!BV28/Sheet3!$F$1 -> 504 | BW31: =+Sheet3!BW28/Sheet3!$F$1 -> 435 | BX31: =+Sheet3!BX28/Sheet3!$F$1 -> 326 | BY31: =+Sheet3!BY28/Sheet3!$F$1 -> 68 | BZ31: =+Sheet3!BZ28/Sheet3!$F$1 -> 3 | CA31: =+Sheet3!CA28/Sheet3!$F$1 -> 127 | CB31: =+Sheet3!CB28/Sheet3!$F$1 -> 161 | CC31: =+Sheet3!CC28/Sheet3!$F$1 -> 130 | CD31: =+Sheet3!CD28/Sheet3!$F$1 -> 90 | CE31: =+Sheet3!CE28/Sheet3!$F$1 -> 8 | CF31: =+Sheet3!CF28/Sheet3!$F$1 -> 106 | CG31: =+Sheet3!CG28/Sheet3!$F$1 -> 144 | CH31: =+Sheet3!CH28/Sheet3!$F$1 -> 159 | CI31: =+Sheet3!CI28/Sheet3!$F$1 -> 21 | CJ31: =+Sheet3!CJ28/Sheet3!$F$1 -> 0 | CK31: =+Sheet3!CK28/Sheet3!$F$1 -> 0 | CL31: =+Sheet3!CL28/Sheet3!$F$1 -> 0 | CM31: =+Sheet3!CM28/Sheet3!$F$1 -> 10 | CN31: =+Sheet3!CN28/Sheet3!$F$1 -> 0 | CO31: =+Sheet3!CO28/Sheet3!$F$1 -> 0 | CP31: =+Sheet3!CP28/Sheet3!$F$1 -> 0 | CQ31: =+Sheet3!CQ28/Sheet3!$F$1 -> 0 | CR31: =+Sheet3!CR28/Sheet3!$F$1 -> 0 | CS31: =+Sheet3!CS28/Sheet3!$F$1 -> 0 | CT31: =+Sheet3!CT28/Sheet3!$F$1 -> 0 | CU31: =+Sheet3!CU28/Sheet3!$F$1 -> 15 | CV31: =+Sheet3!CV28/Sheet3!$F$1 -> 23 | CW31: =+Sheet3!CW28/Sheet3!$F$1 -> 64 | CX31: =+Sheet3!CX28/Sheet3!$F$1 -> 3 | CY31: =+Sheet3!CY28/Sheet3!$F$1 -> 28 | CZ31: =+Sheet3!CZ28/Sheet3!$F$1 -> 138 | DA31: =+Sheet3!DA28/Sheet3!$F$1 -> 94 | DB31: =+Sheet3!DB28/Sheet3!$F$1 -> 142 | DC31: =+Sheet3!DC28/Sheet3!$F$1 -> 1291 | DD31: =+Sheet3!DD28/Sheet3!$F$1 -> 915 | DE31: =+Sheet3!DE28/Sheet3!$F$1 -> 10 | DF31: =+Sheet3!DF28/Sheet3!$F$1 -> 149 | DG31: =+Sheet3!DG28/Sheet3!$F$1 -> 36 | DH31: =+Sheet3!DH28/Sheet3!$F$1 -> 649 | DI31: =+Sheet3!DI28/Sheet3!$F$1 -> 1339 | DJ31: =+Sheet3!DJ28/Sheet3!$F$1 -> 517 | DK31: =+Sheet3!DK28/Sheet3!$F$1 -> 431 | DL31: =+Sheet3!DL28/Sheet3!$F$1 -> 12 | DM31: =+Sheet3!DM28/Sheet3!$F$1 -> 0 | DN31: =+Sheet3!DN28/Sheet3!$F$1 -> 2152 | DO31: =+Sheet3!DO28/Sheet3!$F$1 -> 1603 | DP31: =+Sheet3!DP28/Sheet3!$F$1 -> 1488 | DQ31: =+Sheet3!DQ28/Sheet3!$F$1 -> 577 | DR31: =+Sheet3!DR28/Sheet3!$F$1 -> 36 | DS31: 5856
B32: 187 | C32: Alentejo Central | D32: =+Sheet3!D29/Sheet3!$F$1 -> 11 | E32: =+Sheet3!E29/Sheet3!$F$1 -> 7 | F32: =+Sheet3!F29/Sheet3!$F$1 -> 5 | G32: =+Sheet3!G29/Sheet3!$F$1 -> 4 | H32: =+Sheet3!H29/Sheet3!$F$1 -> 0 | I32: =+Sheet3!I29/Sheet3!$F$1 -> 6 | J32: =+Sheet3!J29/Sheet3!$F$1 -> 6 | K32: =+Sheet3!K29/Sheet3!$F$1 -> 4 | L32: =+Sheet3!L29/Sheet3!$F$1 -> 3 | M32: =+Sheet3!M29/Sheet3!$F$1 -> 0 | N32: =+Sheet3!N29/Sheet3!$F$1 -> 75 | O32: =+Sheet3!O29/Sheet3!$F$1 -> 87 | P32: =+Sheet3!P29/Sheet3!$F$1 -> 38 | Q32: =+Sheet3!Q29/Sheet3!$F$1 -> 7 | R32: =+Sheet3!R29/Sheet3!$F$1 -> 0 | S32: =+Sheet3!S29/Sheet3!$F$1 -> 0 | T32: =+Sheet3!T29/Sheet3!$F$1 -> 0 | U32: =+Sheet3!U29/Sheet3!$F$1 -> 7 | V32: =+Sheet3!V29/Sheet3!$F$1 -> 0 | W32: =+Sheet3!W29/Sheet3!$F$1 -> 0 | X32: =+Sheet3!X29/Sheet3!$F$1 -> 0 | Y32: =+Sheet3!Y29/Sheet3!$F$1 -> 7 | Z32: =+Sheet3!Z29/Sheet3!$F$1 -> 37 | AA32: =+Sheet3!AA29/Sheet3!$F$1 -> 5 | AB32: =+Sheet3!AB29/Sheet3!$F$1 -> 0 | AC32: =+Sheet3!AC29/Sheet3!$F$1 -> 70 | AD32: =+Sheet3!AD29/Sheet3!$F$1 -> 28 | AE32: =+Sheet3!AE29/Sheet3!$F$1 -> 50 | AF32: =+Sheet3!AF29/Sheet3!$F$1 -> 18 | AG32: =+Sheet3!AG29/Sheet3!$F$1 -> 0 | AH32: =+Sheet3!AH29/Sheet3!$F$1 -> 175 | AI32: =+Sheet3!AI29/Sheet3!$F$1 -> 310 | AJ32: =+Sheet3!AJ29/Sheet3!$F$1 -> 149 | AK32: =+Sheet3!AK29/Sheet3!$F$1 -> 12 | AL32: =+Sheet3!AL29/Sheet3!$F$1 -> 0 | AM32: =+Sheet3!AM29/Sheet3!$F$1 -> 53 | AN32: =+Sheet3!AN29/Sheet3!$F$1 -> 50 | AO32: =+Sheet3!AO29/Sheet3!$F$1 -> 64 | AP32: =+Sheet3!AP29/Sheet3!$F$1 -> 35 | AQ32: =+Sheet3!AQ29/Sheet3!$F$1 -> 0 | AR32: =+Sheet3!AR29/Sheet3!$F$1 -> 652 | AS32: =+Sheet3!AS29/Sheet3!$F$1 -> 229 | AT32: =+Sheet3!AT29/Sheet3!$F$1 -> 72 | AU32: =+Sheet3!AU29/Sheet3!$F$1 -> 12 | AV32: =+Sheet3!AV29/Sheet3!$F$1 -> 0 | AW32: =+Sheet3!AW29/Sheet3!$F$1 -> 323 | AX32: =+Sheet3!AX29/Sheet3!$F$1 -> 288 | AY32: =+Sheet3!AY29/Sheet3!$F$1 -> 132 | AZ32: =+Sheet3!AZ29/Sheet3!$F$1 -> 45 | BA32: =+Sheet3!BA29/Sheet3!$F$1 -> 0 | BB32: =+Sheet3!BB29/Sheet3!$F$1 -> 0 | BC32: =+Sheet3!BC29/Sheet3!$F$1 -> 3 | BD32: =+Sheet3!BD29/Sheet3!$F$1 -> 14 | BE32: =+Sheet3!BE29/Sheet3!$F$1 -> 0 | BF32: =+Sheet3!BF29/Sheet3!$F$1 -> 0 | BG32: =+Sheet3!BG29/Sheet3!$F$1 -> 3 | BH32: =+Sheet3!BH29/Sheet3!$F$1 -> 25 | BI32: =+Sheet3!BI29/Sheet3!$F$1 -> 96 | BJ32: =+Sheet3!BJ29/Sheet3!$F$1 -> 31 | BK32: =+Sheet3!BK29/Sheet3!$F$1 -> 0 | BL32: =+Sheet3!BL29/Sheet3!$F$1 -> 67 | BM32: =+Sheet3!BM29/Sheet3!$F$1 -> 9 | BN32: =+Sheet3!BN29/Sheet3!$F$1 -> 11 | BO32: =+Sheet3!BO29/Sheet3!$F$1 -> 5 | BP32: =+Sheet3!BP29/Sheet3!$F$1 -> 0 | BQ32: =+Sheet3!BQ29/Sheet3!$F$1 -> 0 | BR32: =+Sheet3!BR29/Sheet3!$F$1 -> 16 | BS32: =+Sheet3!BS29/Sheet3!$F$1 -> 323 | BT32: =+Sheet3!BT29/Sheet3!$F$1 -> 356 | BU32: =+Sheet3!BU29/Sheet3!$F$1 -> 22 | BV32: =+Sheet3!BV29/Sheet3!$F$1 -> 653 | BW32: =+Sheet3!BW29/Sheet3!$F$1 -> 398 | BX32: =+Sheet3!BX29/Sheet3!$F$1 -> 297 | BY32: =+Sheet3!BY29/Sheet3!$F$1 -> 92 | BZ32: =+Sheet3!BZ29/Sheet3!$F$1 -> 8 | CA32: =+Sheet3!CA29/Sheet3!$F$1 -> 118 | CB32: =+Sheet3!CB29/Sheet3!$F$1 -> 133 | CC32: =+Sheet3!CC29/Sheet3!$F$1 -> 122 | CD32: =+Sheet3!CD29/Sheet3!$F$1 -> 116 | CE32: =+Sheet3!CE29/Sheet3!$F$1 -> 20 | CF32: =+Sheet3!CF29/Sheet3!$F$1 -> 199 | CG32: =+Sheet3!CG29/Sheet3!$F$1 -> 232 | CH32: =+Sheet3!CH29/Sheet3!$F$1 -> 242 | CI32: =+Sheet3!CI29/Sheet3!$F$1 -> 46 | CJ32: =+Sheet3!CJ29/Sheet3!$F$1 -> 0 | CK32: =+Sheet3!CK29/Sheet3!$F$1 -> 0 | CL32: =+Sheet3!CL29/Sheet3!$F$1 -> 0 | CM32: =+Sheet3!CM29/Sheet3!$F$1 -> 9 | CN32: =+Sheet3!CN29/Sheet3!$F$1 -> 0 | CO32: =+Sheet3!CO29/Sheet3!$F$1 -> 0 | CP32: =+Sheet3!CP29/Sheet3!$F$1 -> 0 | CQ32: =+Sheet3!CQ29/Sheet3!$F$1 -> 0 | CR32: =+Sheet3!CR29/Sheet3!$F$1 -> 0 | CS32: =+Sheet3!CS29/Sheet3!$F$1 -> 0 | CT32: =+Sheet3!CT29/Sheet3!$F$1 -> 0 | CU32: =+Sheet3!CU29/Sheet3!$F$1 -> 32 | CV32: =+Sheet3!CV29/Sheet3!$F$1 -> 20 | CW32: =+Sheet3!CW29/Sheet3!$F$1 -> 209 | CX32: =+Sheet3!CX29/Sheet3!$F$1 -> 8 | CY32: =+Sheet3!CY29/Sheet3!$F$1 -> 51 | CZ32: =+Sheet3!CZ29/Sheet3!$F$1 -> 171 | DA32: =+Sheet3!DA29/Sheet3!$F$1 -> 647 | DB32: =+Sheet3!DB29/Sheet3!$F$1 -> 208 | DC32: =+Sheet3!DC29/Sheet3!$F$1 -> 970 | DD32: =+Sheet3!DD29/Sheet3!$F$1 -> 791 | DE32: =+Sheet3!DE29/Sheet3!$F$1 -> 19 | DF32: =+Sheet3!DF29/Sheet3!$F$1 -> 160 | DG32: =+Sheet3!DG29/Sheet3!$F$1 -> 95 | DH32: =+Sheet3!DH29/Sheet3!$F$1 -> 722 | DI32: =+Sheet3!DI29/Sheet3!$F$1 -> 1450 | DJ32: =+Sheet3!DJ29/Sheet3!$F$1 -> 513 | DK32: =+Sheet3!DK29/Sheet3!$F$1 -> 719 | DL32: =+Sheet3!DL29/Sheet3!$F$1 -> 11 | DM32: =+Sheet3!DM29/Sheet3!$F$1 -> 0 | DN32: =+Sheet3!DN29/Sheet3!$F$1 -> 2417 | DO32: =+Sheet3!DO29/Sheet3!$F$1 -> 1838 | DP32: =+Sheet3!DP29/Sheet3!$F$1 -> 1688 | DQ32: =+Sheet3!DQ29/Sheet3!$F$1 -> 794 | DR32: =+Sheet3!DR29/Sheet3!$F$1 -> 59 | DS32: 6796
A33: Algarve | B33: 150 | C33: Algarve | D33: =+Sheet3!D30/Sheet3!$F$1 -> 14 | E33: =+Sheet3!E30/Sheet3!$F$1 -> 4 | F33: =+Sheet3!F30/Sheet3!$F$1 -> 0 | G33: =+Sheet3!G30/Sheet3!$F$1 -> 0 | H33: =+Sheet3!H30/Sheet3!$F$1 -> 0 | I33: =+Sheet3!I30/Sheet3!$F$1 -> 0 | J33: =+Sheet3!J30/Sheet3!$F$1 -> 0 | K33: =+Sheet3!K30/Sheet3!$F$1 -> 0 | L33: =+Sheet3!L30/Sheet3!$F$1 -> 0 | M33: =+Sheet3!M30/Sheet3!$F$1 -> 0 | N33: =+Sheet3!N30/Sheet3!$F$1 -> 53 | O33: =+Sheet3!O30/Sheet3!$F$1 -> 44 | P33: =+Sheet3!P30/Sheet3!$F$1 -> 9 | Q33: =+Sheet3!Q30/Sheet3!$F$1 -> 0 | R33: =+Sheet3!R30/Sheet3!$F$1 -> 0 | S33: =+Sheet3!S30/Sheet3!$F$1 -> 0 | T33: =+Sheet3!T30/Sheet3!$F$1 -> 0 | U33: =+Sheet3!U30/Sheet3!$F$1 -> 0 | V33: =+Sheet3!V30/Sheet3!$F$1 -> 0 | W33: =+Sheet3!W30/Sheet3!$F$1 -> 0 | X33: =+Sheet3!X30/Sheet3!$F$1 -> 0 | Y33: =+Sheet3!Y30/Sheet3!$F$1 -> 0 | Z33: =+Sheet3!Z30/Sheet3!$F$1 -> 0 | AA33: =+Sheet3!AA30/Sheet3!$F$1 -> 0 | AB33: =+Sheet3!AB30/Sheet3!$F$1 -> 0 | AC33: =+Sheet3!AC30/Sheet3!$F$1 -> 145 | AD33: =+Sheet3!AD30/Sheet3!$F$1 -> 74 | AE33: =+Sheet3!AE30/Sheet3!$F$1 -> 0 | AF33: =+Sheet3!AF30/Sheet3!$F$1 -> 0 | AG33: =+Sheet3!AG30/Sheet3!$F$1 -> 0 | AH33: =+Sheet3!AH30/Sheet3!$F$1 -> 6 | AI33: =+Sheet3!AI30/Sheet3!$F$1 -> 3 | AJ33: =+Sheet3!AJ30/Sheet3!$F$1 -> 4 | AK33: =+Sheet3!AK30/Sheet3!$F$1 -> 0 | AL33: =+Sheet3!AL30/Sheet3!$F$1 -> 0 | AM33: =+Sheet3!AM30/Sheet3!$F$1 -> 499 | AN33: =+Sheet3!AN30/Sheet3!$F$1 -> 864 | AO33: =+Sheet3!AO30/Sheet3!$F$1 -> 300 | AP33: =+Sheet3!AP30/Sheet3!$F$1 -> 6 | AQ33: =+Sheet3!AQ30/Sheet3!$F$1 -> 0 | AR33: =+Sheet3!AR30/Sheet3!$F$1 -> 14 | AS33: =+Sheet3!AS30/Sheet3!$F$1 -> 5 | AT33: =+Sheet3!AT30/Sheet3!$F$1 -> 0 | AU33: =+Sheet3!AU30/Sheet3!$F$1 -> 0 | AV33: =+Sheet3!AV30/Sheet3!$F$1 -> 0 | AW33: =+Sheet3!AW30/Sheet3!$F$1 -> 1094 | AX33: =+Sheet3!AX30/Sheet3!$F$1 -> 1081 | AY33: =+Sheet3!AY30/Sheet3!$F$1 -> 123 | AZ33: =+Sheet3!AZ30/Sheet3!$F$1 -> 0 | BA33: =+Sheet3!BA30/Sheet3!$F$1 -> 0 | BB33: =+Sheet3!BB30/Sheet3!$F$1 -> 0 | BC33: =+Sheet3!BC30/Sheet3!$F$1 -> 0 | BD33: =+Sheet3!BD30/Sheet3!$F$1 -> 0 | BE33: =+Sheet3!BE30/Sheet3!$F$1 -> 0 | BF33: =+Sheet3!BF30/Sheet3!$F$1 -> 0 | BG33: =+Sheet3!BG30/Sheet3!$F$1 -> 5 | BH33: =+Sheet3!BH30/Sheet3!$F$1 -> 20 | BI33: =+Sheet3!BI30/Sheet3!$F$1 -> 15 | BJ33: =+Sheet3!BJ30/Sheet3!$F$1 -> 0 | BK33: =+Sheet3!BK30/Sheet3!$F$1 -> 0 | BL33: =+Sheet3!BL30/Sheet3!$F$1 -> 27 | BM33: =+Sheet3!BM30/Sheet3!$F$1 -> 8 | BN33: =+Sheet3!BN30/Sheet3!$F$1 -> 0 | BO33: =+Sheet3!BO30/Sheet3!$F$1 -> 0 | BP33: =+Sheet3!BP30/Sheet3!$F$1 -> 0 | BQ33: =+Sheet3!BQ30/Sheet3!$F$1 -> 0 | BR33: =+Sheet3!BR30/Sheet3!$F$1 -> 15 | BS33: =+Sheet3!BS30/Sheet3!$F$1 -> 21 | BT33: =+Sheet3!BT30/Sheet3!$F$1 -> 0 | BU33: =+Sheet3!BU30/Sheet3!$F$1 -> 0 | BV33: =+Sheet3!BV30/Sheet3!$F$1 -> 125 | BW33: =+Sheet3!BW30/Sheet3!$F$1 -> 80 | BX33: =+Sheet3!BX30/Sheet3!$F$1 -> 42 | BY33: =+Sheet3!BY30/Sheet3!$F$1 -> 0 | BZ33: =+Sheet3!BZ30/Sheet3!$F$1 -> 0 | CA33: =+Sheet3!CA30/Sheet3!$F$1 -> 51 | CB33: =+Sheet3!CB30/Sheet3!$F$1 -> 66 | CC33: =+Sheet3!CC30/Sheet3!$F$1 -> 38 | CD33: =+Sheet3!CD30/Sheet3!$F$1 -> 3 | CE33: =+Sheet3!CE30/Sheet3!$F$1 -> 0 | CF33: =+Sheet3!CF30/Sheet3!$F$1 -> 90 | CG33: =+Sheet3!CG30/Sheet3!$F$1 -> 86 | CH33: =+Sheet3!CH30/Sheet3!$F$1 -> 30 | CI33: =+Sheet3!CI30/Sheet3!$F$1 -> 0 | CJ33: =+Sheet3!CJ30/Sheet3!$F$1 -> 0 | CK33: =+Sheet3!CK30/Sheet3!$F$1 -> 0 | CL33: =+Sheet3!CL30/Sheet3!$F$1 -> 0 | CM33: =+Sheet3!CM30/Sheet3!$F$1 -> 0 | CN33: =+Sheet3!CN30/Sheet3!$F$1 -> 0 | CO33: =+Sheet3!CO30/Sheet3!$F$1 -> 0 | CP33: =+Sheet3!CP30/Sheet3!$F$1 -> 0 | CQ33: =+Sheet3!CQ30/Sheet3!$F$1 -> 0 | CR33: =+Sheet3!CR30/Sheet3!$F$1 -> 0 | CS33: =+Sheet3!CS30/Sheet3!$F$1 -> 0 | CT33: =+Sheet3!CT30/Sheet3!$F$1 -> 0 | CU33: =+Sheet3!CU30/Sheet3!$F$1 -> 23 | CV33: =+Sheet3!CV30/Sheet3!$F$1 -> 5 | CW33: =+Sheet3!CW30/Sheet3!$F$1 -> 109 | CX33: =+Sheet3!CX30/Sheet3!$F$1 -> 0 | CY33: =+Sheet3!CY30/Sheet3!$F$1 -> 0 | CZ33: =+Sheet3!CZ30/Sheet3!$F$1 -> 224 | DA33: =+Sheet3!DA30/Sheet3!$F$1 -> 13 | DB33: =+Sheet3!DB30/Sheet3!$F$1 -> 1670 | DC33: =+Sheet3!DC30/Sheet3!$F$1 -> 21 | DD33: =+Sheet3!DD30/Sheet3!$F$1 -> 2302 | DE33: =+Sheet3!DE30/Sheet3!$F$1 -> 0 | DF33: =+Sheet3!DF30/Sheet3!$F$1 -> 42 | DG33: =+Sheet3!DG30/Sheet3!$F$1 -> 41 | DH33: =+Sheet3!DH30/Sheet3!$F$1 -> 42 | DI33: =+Sheet3!DI30/Sheet3!$F$1 -> 253 | DJ33: =+Sheet3!DJ30/Sheet3!$F$1 -> 161 | DK33: =+Sheet3!DK30/Sheet3!$F$1 -> 210 | DL33: =+Sheet3!DL30/Sheet3!$F$1 -> 0 | DM33: =+Sheet3!DM30/Sheet3!$F$1 -> 0 | DN33: =+Sheet3!DN30/Sheet3!$F$1 -> 2138 | DO33: =+Sheet3!DO30/Sheet3!$F$1 -> 2365 | DP33: =+Sheet3!DP30/Sheet3!$F$1 -> 600 | DQ33: =+Sheet3!DQ30/Sheet3!$F$1 -> 18 | DR33: =+Sheet3!DR30/Sheet3!$F$1 -> 0 | DS33: 5121
A34: Continente | D34: =+Sheet3!D31/Sheet3!$F$1 -> 565 | E34: =+Sheet3!E31/Sheet3!$F$1 -> 125 | F34: =+Sheet3!F31/Sheet3!$F$1 -> 54 | G34: =+Sheet3!G31/Sheet3!$F$1 -> 13 | H34: =+Sheet3!H31/Sheet3!$F$1 -> 3 | I34: =+Sheet3!I31/Sheet3!$F$1 -> 4699 | J34: =+Sheet3!J31/Sheet3!$F$1 -> 633 | K34: =+Sheet3!K31/Sheet3!$F$1 -> 338 | L34: =+Sheet3!L31/Sheet3!$F$1 -> 41 | M34: =+Sheet3!M31/Sheet3!$F$1 -> 0 | N34: =+Sheet3!N31/Sheet3!$F$1 -> 3887 | O34: =+Sheet3!O31/Sheet3!$F$1 -> 1462 | P34: =+Sheet3!P31/Sheet3!$F$1 -> 490 | Q34: =+Sheet3!Q31/Sheet3!$F$1 -> 61 | R34: =+Sheet3!R31/Sheet3!$F$1 -> 2 | S34: =+Sheet3!S31/Sheet3!$F$1 -> 138 | T34: =+Sheet3!T31/Sheet3!$F$1 -> 204 | U34: =+Sheet3!U31/Sheet3!$F$1 -> 247 | V34: =+Sheet3!V31/Sheet3!$F$1 -> 13 | W34: =+Sheet3!W31/Sheet3!$F$1 -> 1 | X34: =+Sheet3!X31/Sheet3!$F$1 -> 50 | Y34: =+Sheet3!Y31/Sheet3!$F$1 -> 75 | Z34: =+Sheet3!Z31/Sheet3!$F$1 -> 125 | AA34: =+Sheet3!AA31/Sheet3!$F$1 -> 18 | AB34: =+Sheet3!AB31/Sheet3!$F$1 -> 0 | AC34: =+Sheet3!AC31/Sheet3!$F$1 -> 12514 | AD34: =+Sheet3!AD31/Sheet3!$F$1 -> 2583 | AE34: =+Sheet3!AE31/Sheet3!$F$1 -> 407 | AF34: =+Sheet3!AF31/Sheet3!$F$1 -> 37 | AG34: =+Sheet3!AG31/Sheet3!$F$1 -> 0 | AH34: =+Sheet3!AH31/Sheet3!$F$1 -> 7047 | AI34: =+Sheet3!AI31/Sheet3!$F$1 -> 3450 | AJ34: =+Sheet3!AJ31/Sheet3!$F$1 -> 773 | AK34: =+Sheet3!AK31/Sheet3!$F$1 -> 34 | AL34: =+Sheet3!AL31/Sheet3!$F$1 -> 2 | AM34: =+Sheet3!AM31/Sheet3!$F$1 -> 7922 | AN34: =+Sheet3!AN31/Sheet3!$F$1 -> 5197 | AO34: =+Sheet3!AO31/Sheet3!$F$1 -> 1487 | AP34: =+Sheet3!AP31/Sheet3!$F$1 -> 192 | AQ34: =+Sheet3!AQ31/Sheet3!$F$1 -> 13 | AR34: =+Sheet3!AR31/Sheet3!$F$1 -> 7430 | AS34: =+Sheet3!AS31/Sheet3!$F$1 -> 2077 | AT34: =+Sheet3!AT31/Sheet3!$F$1 -> 868 | AU34: =+Sheet3!AU31/Sheet3!$F$1 -> 140 | AV34: =+Sheet3!AV31/Sheet3!$F$1 -> 6 | AW34: =+Sheet3!AW31/Sheet3!$F$1 -> 38745 | AX34: =+Sheet3!AX31/Sheet3!$F$1 -> 12573 | AY34: =+Sheet3!AY31/Sheet3!$F$1 -> 1868 | AZ34: =+Sheet3!AZ31/Sheet3!$F$1 -> 239 | BA34: =+Sheet3!BA31/Sheet3!$F$1 -> 18 | BB34: =+Sheet3!BB31/Sheet3!$F$1 -> 384 | BC34: =+Sheet3!BC31/Sheet3!$F$1 -> 1131 | BD34: =+Sheet3!BD31/Sheet3!$F$1 -> 179 | BE34: =+Sheet3!BE31/Sheet3!$F$1 -> 17 | BF34: =+Sheet3!BF31/Sheet3!$F$1 -> 0 | BG34: =+Sheet3!BG31/Sheet3!$F$1 -> 1396 | BH34: =+Sheet3!BH31/Sheet3!$F$1 -> 1178 | BI34: =+Sheet3!BI31/Sheet3!$F$1 -> 654 | BJ34: =+Sheet3!BJ31/Sheet3!$F$1 -> 98 | BK34: =+Sheet3!BK31/Sheet3!$F$1 -> 2 | BL34: =+Sheet3!BL31/Sheet3!$F$1 -> 1983 | BM34: =+Sheet3!BM31/Sheet3!$F$1 -> 496 | BN34: =+Sheet3!BN31/Sheet3!$F$1 -> 71 | BO34: =+Sheet3!BO31/Sheet3!$F$1 -> 10 | BP34: =+Sheet3!BP31/Sheet3!$F$1 -> 0 | BQ34: =+Sheet3!BQ31/Sheet3!$F$1 -> 1395 | BR34: =+Sheet3!BR31/Sheet3!$F$1 -> 2232 | BS34: =+Sheet3!BS31/Sheet3!$F$1 -> 1956 | BT34: =+Sheet3!BT31/Sheet3!$F$1 -> 1103 | BU34: =+Sheet3!BU31/Sheet3!$F$1 -> 57 | BV34: =+Sheet3!BV31/Sheet3!$F$1 -> 9678 | BW34: =+Sheet3!BW31/Sheet3!$F$1 -> 5075 | BX34: =+Sheet3!BX31/Sheet3!$F$1 -> 2394 | BY34: =+Sheet3!BY31/Sheet3!$F$1 -> 425 | BZ34: =+Sheet3!BZ31/Sheet3!$F$1 -> 20 | CA34: =+Sheet3!CA31/Sheet3!$F$1 -> 6852 | CB34: =+Sheet3!CB31/Sheet3!$F$1 -> 2824 | CC34: =+Sheet3!CC31/Sheet3!$F$1 -> 1190 | CD34: =+Sheet3!CD31/Sheet3!$F$1 -> 439 | CE34: =+Sheet3!CE31/Sheet3!$F$1 -> 54 | CF34: =+Sheet3!CF31/Sheet3!$F$1 -> 5840 | CG34: =+Sheet3!CG31/Sheet3!$F$1 -> 2249 | CH34: =+Sheet3!CH31/Sheet3!$F$1 -> 1519 | CI34: =+Sheet3!CI31/Sheet3!$F$1 -> 171 | CJ34: =+Sheet3!CJ31/Sheet3!$F$1 -> 0 | CK34: =+Sheet3!CK31/Sheet3!$F$1 -> 10 | CL34: =+Sheet3!CL31/Sheet3!$F$1 -> 88 | CM34: =+Sheet3!CM31/Sheet3!$F$1 -> 158 | CN34: =+Sheet3!CN31/Sheet3!$F$1 -> 27 | CO34: =+Sheet3!CO31/Sheet3!$F$1 -> 0 | CP34: =+Sheet3!CP31/Sheet3!$F$1 -> 201 | CQ34: =+Sheet3!CQ31/Sheet3!$F$1 -> 31 | CR34: =+Sheet3!CR31/Sheet3!$F$1 -> 11 | CS34: =+Sheet3!CS31/Sheet3!$F$1 -> 0 | CT34: =+Sheet3!CT31/Sheet3!$F$1 -> 0 | CU34: =+Sheet3!CU31/Sheet3!$F$1 -> 760 | CV34: =+Sheet3!CV31/Sheet3!$F$1 -> 5711 | CW34: =+Sheet3!CW31/Sheet3!$F$1 -> 5902 | CX34: =+Sheet3!CX31/Sheet3!$F$1 -> 603 | CY34: =+Sheet3!CY31/Sheet3!$F$1 -> 268 | CZ34: =+Sheet3!CZ31/Sheet3!$F$1 -> 15541 | DA34: =+Sheet3!DA31/Sheet3!$F$1 -> 11306 | DB34: =+Sheet3!DB31/Sheet3!$F$1 -> 14811 | DC34: =+Sheet3!DC31/Sheet3!$F$1 -> 10521 | DD34: =+Sheet3!DD31/Sheet3!$F$1 -> 53443 | DE34: =+Sheet3!DE31/Sheet3!$F$1 -> 1711 | DF34: =+Sheet3!DF31/Sheet3!$F$1 -> 3328 | DG34: =+Sheet3!DG31/Sheet3!$F$1 -> 2560 | DH34: =+Sheet3!DH31/Sheet3!$F$1 -> 6743 | DI34: =+Sheet3!DI31/Sheet3!$F$1 -> 17592 | DJ34: =+Sheet3!DJ31/Sheet3!$F$1 -> 11359 | DK34: =+Sheet3!DK31/Sheet3!$F$1 -> 9779 | DL34: =+Sheet3!DL31/Sheet3!$F$1 -> 283 | DM34: =+Sheet3!DM31/Sheet3!$F$1 -> 243 | DN34: =+Sheet3!DN31/Sheet3!$F$1 -> 110736 | DO34: =+Sheet3!DO31/Sheet3!$F$1 -> 43683 | DP34: =+Sheet3!DP31/Sheet3!$F$1 -> 14789 | DQ34: =+Sheet3!DQ31/Sheet3!$F$1 -> 3078 | DR34: =+Sheet3!DR31/Sheet3!$F$1 -> 178 | DS34: =SUM(DN34:DR34) -> 172464
B37: Legenda
B38: MP | C38: =+INDEX(Sheet6!R8:T8,1,Sheet3!$B$1) -> < 5 ha
B39: P | C39: =+INDEX(Sheet6!R9:T9,1,Sheet3!$B$1) -> >= 5 e < 25 ha
B40: M | C40: =+INDEX(Sheet6!R10:T10,1,Sheet3!$B$1) -> >= 25 e < 200 ha
B41: G | C41: =+INDEX(Sheet6!R11:T11,1,Sheet3!$B$1) -> >= 200 e < 1 000 ha
B42: MG | C42: =+INDEX(Sheet6!R12:T12,1,Sheet3!$B$1) -> >= 1 000 ha
A43: Fonte: GPP a partir de dados IFAP
D45: =+INDEX(Sheet6!$D$2:$D$118,Sheet3!$C$1)&" segundo Orientação Técnico Económica e "&INDEX(Sheet6!$P$3:$P$6,Sheet3!$B$1)&" e por NUTSIII em " &Sheet6!$B$1 -> (1) - Nº de Beneficiários segundo Orientação Técnico Económica e Classes de Superfície Agrícola e por NUTSIII em 2023 | AH45: =+D45& " (cont.)" -> (1) - Nº de Beneficiários segundo Orientação Técnico Económica e Classes de Superfície Agrícola e por NUTSIII em 2023 (cont.) | BQ45: =+AH45 -> (1) - Nº de Beneficiários segundo Orientação Técnico Económica e Classes de Superfície Agrícola e por NUTSIII em 2023 (cont.) | CU45: =+INDEX(Sheet6!$D$2:$D$118,Sheet3!$C$1)&" segundo Orientação Técnico Económica por NUTSIII em " &Sheet6!B44 -> (1) - Nº de Beneficiários segundo Orientação Técnico Económica por NUTSIII em 42 | DN45: =+INDEX(Sheet6!$D$2:$D$118,Sheet3!$C$1)&CHAR(10)& "segundo "&INDEX(Sheet6!$P$3:$P$6,Sheet3!$B$1)& " por NUTSIII em " &Sheet6!$B$1 -> (1) - Nº de Beneficiários segundo Classes de Superfície Agrícola por NUTSIII em 2023
C46: Unidade (%)
C47: OTE | D47: Não classificadas | I47: Arvenses e Outras Cult pred. Regadio | N47: Arvenses e Outras Cult pred. Sequeiro | S47: Arroz | X47: Horticultura e Industriais | AC47: Horticultura e Floricultura | AH47: Vinhos | AM47: Fruticultura | AR47: Olival | AW47: Policultura | BB47: Bovinos Leite | BG47: =+BG8 -> Bov. Carne semi-int. (>1 < 3CN por ha SF) | BL47: =+BL8 -> Bov. Carne Int (>= 3CN por ha SF) | BQ47: =+BQ8 -> Bov. Carne Extensivos (<1 CN por ha SF) | BV47: Outros Ruminantes | CA47: Mistas | CF47: Pousio e Pastagem | CK47: Tomate Indústria | CP47: Plantas tuberosas | CU47: Não classificadas | CV47: Arvenses e Outras Cult pred. Regadio | CW47: Arvenses e Outras Cult pred. Sequeiro | CX47: Arroz | CY47: Horticultura e Industriais | CZ47: Horticultura e Floricultura | DA47: Vinhos | DB47: Fruticultura | DC47: Olival | DD47: Policultura | DE47: Bovinos Leite | DF47: =+DF8 -> Bov. Carne semi-int. (>1 < 3CN por ha SF) | DG47: =+DG8 -> Bov. Carne Int (>= 3CN por ha SF) | DH47: =+DH8 -> Bov. Carne Extensivos (<1 CN por ha SF) | DI47: Outros Ruminantes | DJ47: Mistas | DK47: Pousio e Pastagem | DL47: Tomate Indústria | DM47: Plantas tuberosas | DN47: MP | DO47: P | DP47: M | DQ47: G | DR47: MG | DS47: Total
C48: =+C9 -> Classes de Superfície Agrícola | D48: MP | E48: P | F48: M | G48: G | H48: MG | I48: MP | J48: P | K48: M | L48: G | M48: MG | N48: MP | O48: P | P48: M | Q48: G | R48: MG | S48: MP | T48: P | U48: M | V48: G | W48: MG | X48: MP | Y48: P | Z48: M | AA48: G | AB48: MG | AC48: MP | AD48: P | AE48: M | AF48: G | AG48: MG | AH48: MP | AI48: P | AJ48: M | AK48: G | AL48: MG | AM48: MP | AN48: P | AO48: M | AP48: G | AQ48: MG | AR48: MP | AS48: P | AT48: M | AU48: G | AV48: MG | AW48: MP | AX48: P | AY48: M | AZ48: G | BA48: MG | BB48: MP | BC48: P | BD48: M | BE48: G | BF48: MG | BG48: MP | BH48: P | BI48: M | BJ48: G | BK48: MG | BL48: MP | BM48: P | BN48: M | BO48: G | BP48: MG | BQ48: MP | BR48: P | BS48: M | BT48: G | BU48: MG | BV48: MP | BW48: P | BX48: M | BY48: G | BZ48: MG | CA48: MP | CB48: P | CC48: M | CD48: G | CE48: MG | CF48: MP | CG48: P | CH48: M | CI48: G | CJ48: MG | CK48: MP | CL48: P | CM48: M | CN48: G | CO48: MG | CP48: MP | CQ48: P | CR48: M | CS48: G | CT48: MG | CV48: Arvenses e Outras Cult pred. Regadio
A49: NUTS II | B49: Cód. | C49: NUTS III | AG49: =+"Unidade: % " -> Unidade: % | BK49: =+"Unidade: % " -> Unidade: % | CT49: =+"Unidade: % " -> Unidade: % | DS49: Unidade: %
A50: Norte | B50: 111 | C50: Alto Minho | D50: =+D11/$DS$34*100 -> 0.00173949346 | E50: 0 | F50: 0 | G50: 0 | H50: 0 | I50: 0.1582939048 | J50: 0 | K50: 0 | L50: 0 | M50: 0 | N50: 0.06204193339 | O50: 0.00173949346 | P50: 0 | Q50: 0 | R50: 0 | S50: 0 | T50: 0 | U50: 0 | V50: 0 | W50: 0 | X50: 0 | Y50: 0 | Z50: 0 | AA50: 0 | AB50: 0 | AC50: 0.1379998145 | AD50: 0.004058818072 | AE50: 0 | AF50: 0 | AG50: 0 | AH50: 0.4128397811 | AI50: 0.05914277762 | AJ50: =+AJ11/$DS$34*100 -> 0.004058818072 | AK50: 0 | AL50: 0 | AM50: 0.07189906299 | AN50: 0.009857129604 | AO50: 0.002319324613 | AP50: 0 | AQ50: 0 | AR50: 0 | AS50: 0 | AT50: 0 | AU50: 0 | AV50: 0 | AW50: 1.24721681 | AX50: 0.02203358382 | AY50: 0 | AZ50: 0 | BA50: 0 | BB50: 0.002899155766 | BC50: 0.02319324613 | BD50: 0.005218480379 | BE50: 0 | BF50: 0 | BG50: 0.1925039429 | BH50: 0.09799146489 | BI50: 0.008697467298 | BJ50: 0 | BK50: 0 | BL50: 0.06262176454 | BM50: 0.009857129604 | BN50: 0 | BO50: 0 | BP50: =+BP11/$DS$34*100 -> 0 | BQ50: 0.2058400594 | BR50: 0.1548149179 | BS50: 0.03073105112 | BT50: 0.005218480379 | BU50: 0 | BV50: 0.5896882828 | BW50: 0.1066889322 | BX50: 0.005798311532 | BY50: 0 | BZ50: 0 | CA50: 0.5734530105 | CB50: 0.02841172651 | CC50: 0 | CD50: 0 | CE50: 0 | CF50: 0.1820669821 | CG50: 0.008117636144 | CH50: 0 | CI50: 0 | CJ50: 0 | CK50: 0 | CL50: 0 | CM50: 0 | CN50: 0 | CO50: 0 | CP50: 0 | CQ50: 0 | CR50: 0 | CS50: 0 | CT50: 0 | CU50: 0.002899155766 | CV50: =+CV11/$DS$34*100 -> 0.1600333983 | CW50: 0.06494108915 | CX50: 0 | CY50: 0 | CZ50: 0.1443779571 | DA50: 0.4777808702 | DB50: 0.08523517952 | DC50: 0 | DD50: 1.271569719 | DE50: 0.03305037573 | DF50: 0.2997727062 | DG50: 0.07363855645 | DH50: 0.3971843399 | DI50: 0.7039150199 | DJ50: 0.6030243993 | DK50: 0.1919241117 | DL50: 0 | DM50: 0.00173949346 | DN50: 3.90690231 | DO50: 0.5357639855 | DP50: 0.06378142685 | DQ50: 0.005798311532 | DR50: 0 | DS50: =SUM(DN50:DR50) -> 4.512246034
B51: 112 | C51: Cávado | D51: =+D12/$DS$34*100 -> 0 | E51: 0 | F51: 0 | G51: 0 | H51: 0 | I51: 0.5485202709 | J51: 0.01101679191 | K51: 0 | L51: 0 | M51: 0 | N51: 0.1901846182 | O51: 0.005218480379 | P51: 0 | Q51: 0 | R51: 0 | S51: 0 | T51: 0 | U51: 0 | V51: 0 | W51: 0 | X51: 0 | Y51: 0 | Z51: 0 | AA51: 0 | AB51: 0 | AC51: 0.2615038501 | AD51: 0.004058818072 | AE51: 0 | AF51: 0 | AG51: 0 | AH51: 0.04870581687 | AI51: 0.02841172651 | AJ51: =+AJ12/$DS$34*100 -> 0.003478986919 | AK51: 0 | AL51: 0 | AM51: 0.1194452176 | AN51: 0.01623527229 | AO51: 0 | AP51: 0 | AQ51: 0 | AR51: 0.00173949346 | AS51: 0 | AT51: 0 | AU51: 0 | AV51: 0 | AW51: 1.130670749 | AX51: 0.02957138881 | AY51: 0 | AZ51: 0 | BA51: 0 | BB51: 0.05334446609 | BC51: 0.158873736 | BD51: 0.009857129604 | BE51: 0 | BF51: 0 | BG51: 0.1235040356 | BH51: 0.03652936265 | BI51: 0.00173949346 | BJ51: 0 | BK51: 0 | BL51: 0.2174366824 | BM51: 0.03015121996 | BN51: 0 | BO51: 0 | BP51: =+BP12/$DS$34*100 -> 0 | BQ51: 0.06610075146 | BR51: 0.03131088227 | BS51: 0.005798311532 | BT51: 0 | BU51: 0 | BV51: 0.1316216718 | BW51: 0.02957138881 | BX51: 0.003478986919 | BY51: 0 | BZ51: 0 | CA51: 0.3119491604 | CB51: 0.03073105112 | CC51: 0 | CD51: 0 | CE51: 0 | CF51: 0.4609657668 | CG51: 0.03942851842 | CH51: 0 | CI51: 0 | CJ51: 0 | CK51: 0 | CL51: 0 | CM51: 0 | CN51: 0 | CO51: 0 | CP51: 0 | CQ51: 0 | CR51: 0 | CS51: 0 | CT51: 0 | CU51: 0.002319324613 | CV51: =+CV12/$DS$34*100 -> 0.5606967251 | CW51: 0.1954030986 | CX51: 0 | CY51: 0 | CZ51: 0.2678819928 | DA51: 0.0817561926 | DB51: 0.1385796456 | DC51: 0.002319324613 | DD51: 1.163141293 | DE51: 0.2220753317 | DF51: 0.1617728917 | DG51: 0.2493273959 | DH51: 0.1037897764 | DI51: 0.1681510344 | DJ51: 0.3455793673 | DK51: 0.5015539475 | DL51: 0 | DM51: 0 | DN51: 3.671490862 | DO51: 0.4650245848 | DP51: 0.02841172651 | DQ51: 0 | DR51: 0 | DS51: =SUM(DN51:DR51) -> 4.164927173
B52: 119 | C52: Ave | D52: =+D13/$DS$34*100 -> 0.00173949346 | E52: 0 | F52: 0 | G52: 0 | H52: 0 | I52: 0.2261341497 | J52: 0.01101679191 | K52: 0 | L52: 0 | M52: 0 | N52: 0.07131923184 | O52: 0.002319324613 | P52: 0 | Q52: 0 | R52: 0 | S52: 0 | T52: 0 | U52: 0 | V52: 0 | W52: 0 | X52: 0 | Y52: 0 | Z52: 0 | AA52: 0 | AB52: 0 | AC52: 0.07885703683 | AD52: 0.007537804991 | AE52: 0 | AF52: 0 | AG52: 0 | AH52: 0.1246636979 | AI52: 0.04696632341 | AJ52: =+AJ13/$DS$34*100 -> 0.005798311532 | AK52: 0 | AL52: 0 | AM52: 0.09219315335 | AN52: 0.0185545969 | AO52: 0.00173949346 | AP52: 0 | AQ52: 0 | AR52: 0.00173949346 | AS52: 0 | AT52: 0 | AU52: 0 | AV52: 0 | AW52: 0.450528806 | AX52: 0.03363020688 | AY52: 0.002319324613 | AZ52: 0 | BA52: 0 | BB52: 0.01449577883 | BC52: 0.05508395955 | BD52: 0.002899155766 | BE52: 0 | BF52: 0 | BG52: 0.09451247797 | BH52: 0.06668058261 | BI52: 0 | BJ52: 0 | BK52: 0 | BL52: =+BL13/$DS$34*100 -> 0.1049494387 | BM52: 0.01507560998 | BN52: 0 | BO52: 0 | BP52: 0 | BQ52: 0.1426384637 | BR52: 0.1414788014 | BS52: 0.009277298451 | BT52: 0 | BU52: =+BU13/$DS$34*100 -> 0 | BV52: 0.2835374339 | BW52: 0.1217645422 | BX52: 0.006957973838 | BY52: 0 | BZ52: 0 | CA52: 0.227293812 | CB52: 0.03884868726 | CC52: 0.003478986919 | CD52: 0 | CE52: 0 | CF52: 0.3276046015 | CG52: 0.02957138881 | CH52: 0 | CI52: 0 | CJ52: 0 | CK52: 0 | CL52: 0 | CM52: 0 | CN52: 0 | CO52: 0 | CP52: 0 | CQ52: 0 | CR52: 0 | CS52: 0 | CT52: 0 | CU52: 0.004638649225 | CV52: 0.238310604 | CW52: 0.07479821876 | CX52: 0 | CY52: 0 | CZ52: 0.08929399759 | DA52: =+DA13/$DS$34*100 -> 0.1791678263 | DB52: 0.1142267372 | DC52: 0.002899155766 | DD52: 0.4864783375 | DE52: 0.0730587253 | DF52: 0.162932554 | DG52: =+DG13/$DS$34*100 -> 0.1206048799 | DH52: 0.2939743947 | DI52: 0.4122599499 | DJ52: 0.2713609797 | DK52: 0.3571759904 | DL52: 0 | DM52: 0.00173949346 | DN52: 2.252064199 | DO52: 0.5966462566 | DP52: 0.03478986919 | DQ52: 0 | DR52: 0 | DS52: 2.883500325
B53: 11A | C53: Área Metropolitana do Porto | D53: =+D14/$DS$34*100 -> 0 | E53: 0 | F53: 0 | G53: 0 | H53: 0 | I53: 0.3409407181 | J53: 0.0173949346 | K53: 0 | L53: 0 | M53: 0 | N53: 0.02667223305 | O53: 0 | P53: 0 | Q53: 0 | R53: 0 | S53: 0 | T53: 0 | U53: 0 | V53: 0 | W53: 0 | X53: 0 | Y53: 0 | Z53: 0 | AA53: 0 | AB53: 0 | AC53: 0.1872854625 | AD53: 0.008697467298 | AE53: 0 | AF53: 0 | AG53: 0 | AH53: 0.04522682995 | AI53: 0.01159662306 | AJ53: =+AJ14/$DS$34*100 -> 0.002899155766 | AK53: 0 | AL53: 0 | AM53: 0.09567214027 | AN53: 0.02087392151 | AO53: 0 | AP53: 0 | AQ53: 0 | AR53: 0 | AS53: 0 | AT53: 0 | AU53: 0 | AV53: 0 | AW53: 0.4743018833 | AX53: 0.0272520642 | AY53: 0 | AZ53: 0 | BA53: 0 | BB53: 0.05392429724 | BC53: 0.242369422 | BD53: 0.01913442805 | BE53: 0 | BF53: 0 | BG53: 0.06610075146 | BH53: 0.02783189535 | BI53: 0 | BJ53: 0 | BK53: 0 | BL53: =+BL14/$DS$34*100 -> 0.1374199833 | BM53: 0.03363020688 | BN53: 0 | BO53: 0 | BP53: 0 | BQ53: 0.03942851842 | BR53: 0.02145375267 | BS53: 0 | BT53: 0 | BU53: =+BU14/$DS$34*100 -> 0 | BV53: 0.05798311532 | BW53: 0.02261341497 | BX53: 0.002899155766 | BY53: 0 | BZ53: 0 | CA53: 0.178008164 | CB53: 0.0173949346 | CC53: 0 | CD53: 0 | CE53: 0 | CF53: 0.4058818072 | CG53: 0.07943686798 | CH53: 0 | CI53: 0 | CJ53: 0 | CK53: 0 | CL53: 0 | CM53: 0 | CN53: 0 | CO53: 0 | CP53: 0.004058818072 | CQ53: 0 | CR53: 0 | CS53: 0 | CT53: 0 | CU53: 0 | CV53: 0.3618146396 | CW53: 0.02783189535 | CX53: 0 | CY53: 0 | CZ53: 0.1971425921 | DA53: =+DA14/$DS$34*100 -> 0.06146210224 | DB53: 0.1182855552 | DC53: 0 | DD53: 0.5032934409 | DE53: 0.3165878096 | DF53: 0.09451247797 | DG53: =+DG14/$DS$34*100 -> 0.173949346 | DH53: 0.06204193339 | DI53: 0.08581501067 | DJ53: 0.1977224232 | DK53: 0.4870581687 | DL53: 0 | DM53: 0.004638649225 | DN53: 2.120442527 | DO53: 0.5438816217 | DP53: 0.03015121996 | DQ53: 0 | DR53: 0 | DS53: 2.694475369
B54: 11B | C54: Alto Tâmega | D54: =+D15/$DS$34*100 -> 0.008697467298 | E54: 0.005798311532 | F54: 0 | G54: 0 | H54: 0 | I54: 0.07885703683 | J54: 0.0173949346 | K54: 0 | L54: 0 | M54: 0 | N54: 0.2551257074 | O54: 0.04812598571 | P54: 0 | Q54: 0 | R54: 0 | S54: 0 | T54: 0 | U54: 0 | V54: 0 | W54: 0 | X54: 0 | Y54: 0 | Z54: 0 | AA54: 0 | AB54: 0 | AC54: 0.7102931626 | AD54: 0.07015956953 | AE54: 0 | AF54: 0 | AG54: 0 | AH54: 0.04348733649 | AI54: 0.0173949346 | AJ54: =+AJ15/$DS$34*100 -> 0.00173949346 | AK54: 0 | AL54: 0 | AM54: 0.681301605 | AN54: 0.2702013174 | AO54: 0.01043696076 | AP54: 0 | AQ54: 0 | AR54: 0.1368401521 | AS54: 0.02145375267 | AT54: 0.004058818072 | AU54: 0 | AV54: 0 | AW54: 1.86531682 | AX54: 0.5293858428 | AY54: 0.01101679191 | AZ54: 0 | BA54: 0 | BB54: 0.00173949346 | BC54: 0.01913442805 | BD54: 0.002899155766 | BE54: 0 | BF54: 0 | BG54: 0.06494108915 | BH54: 0.1130670749 | BI54: 0.01391594768 | BJ54: 0 | BK54: 0 | BL54: =+BL15/$DS$34*100 -> 0.03247054458 | BM54: 0.01101679191 | BN54: 0.00173949346 | BO54: 0 | BP54: 0 | BQ54: 0.158873736 | BR54: 0.5798311532 | BS54: 0.09799146489 | BT54: 0.004638649225 | BU54: =+BU15/$DS$34*100 -> 0 | BV54: 0.4980749606 | BW54: 0.4058818072 | BX54: 0.02957138881 | BY54: 0.002319324613 | BZ54: 0 | CA54: 0.2603441878 | CB54: 0.2377307728 | CC54: 0.008117636144 | CD54: 0 | CE54: 0 | CF54: 0.2319324613 | CG54: 0.04638649225 | CH54: 0.00173949346 | CI54: 0 | CJ54: 0 | CK54: 0 | CL54: 0 | CM54: 0 | CN54: 0 | CO54: 0 | CP54: 0.02667223305 | CQ54: 0 | CR54: 0 | CS54: 0 | CT54: 0 | CU54: 0.01565544114 | CV54: 0.09799146489 | CW54: 0.3038315243 | CX54: 0 | CY54: 0 | CZ54: 0.7810325633 | DA54: =+DA15/$DS$34*100 -> 0.06494108915 | DB54: 0.9619398831 | DC54: 0.1646720475 | DD54: 2.405719454 | DE54: 0.02551257074 | DF54: 0.1936636052 | DG54: =+DG15/$DS$34*100 -> 0.04696632341 | DH54: 0.8413350032 | DI54: 0.9358474812 | DJ54: 0.5067724279 | DK54: 0.2812181093 | DL54: 0 | DM54: 0.02957138881 | DN54: 5.060766305 | DO54: 2.402240468 | DP54: 0.1867056313 | DQ54: 0.007537804991 | DR54: 0 | DS54: 7.657250209
B55: 11C | C55: Tâmega e Sousa | D55: =+D16/$DS$34*100 -> 0.00173949346 | E55: 0 | F55: 0 | G55: 0 | H55: 0 | I55: 0.2673021616 | J55: 0.006957973838 | K55: 0 | L55: 0 | M55: 0 | N55: 0.0173949346 | O55: 0 | P55: 0 | Q55: 0 | R55: 0 | S55: 0 | T55: 0 | U55: 0 | V55: 0 | W55: 0 | X55: 0 | Y55: 0 | Z55: 0 | AA55: 0 | AB55: 0 | AC55: 0.2464282401 | AD55: 0.008117636144 | AE55: 0 | AF55: 0 | AG55: 0 | AH55: 0.3925456907 | AI55: 0.1414788014 | AJ55: =+AJ16/$DS$34*100 -> 0.01449577883 | AK55: 0 | AL55: 0 | AM55: 0.2933945635 | AN55: 0.08581501067 | AO55: 0.002319324613 | AP55: 0 | AQ55: 0 | AR55: 0.007537804991 | AS55: 0 | AT55: 0 | AU55: 0 | AV55: 0 | AW55: 1.455376194 | AX55: 0.09857129604 | AY55: 0.002319324613 | AZ55: 0 | BA55: 0 | BB55: 0.00173949346 | BC55: 0.01159662306 | BD55: 0 | BE55: 0 | BF55: 0 | BG55: 0.08523517952 | BH55: 0.02783189535 | BI55: 0.002319324613 | BJ55: 0 | BK55: 0 | BL55: =+BL16/$DS$34*100 -> 0.07827720568 | BM55: 0.01217645422 | BN55: 0 | BO55: 0 | BP55: 0 | BQ55: 0.03131088227 | BR55: 0.02551257074 | BS55: 0.004058818072 | BT55: 0 | BU55: =+BU16/$DS$34*100 -> 0 | BV55: 0.1600333983 | BW55: 0.02551257074 | BX55: 0.004058818072 | BY55: 0 | BZ55: 0 | CA55: 0.3554364969 | CB55: 0.03305037573 | CC55: 0 | CD55: 0 | CE55: 0 | CF55: 0.1461174506 | CG55: 0.01391594768 | CH55: 0 | CI55: 0 | CJ55: 0 | CK55: 0 | CL55: 0 | CM55: 0 | CN55: 0 | CO55: 0 | CP55: 0 | CQ55: 0 | CR55: 0 | CS55: 0 | CT55: 0 | CU55: 0.003478986919 | CV55: 0.2759996289 | CW55: 0.0185545969 | CX55: 0 | CY55: 0 | CZ55: 0.257445032 | DA55: =+DA16/$DS$34*100 -> 0.5502597644 | DB55: 0.3826885611 | DC55: 0.008117636144 | DD55: 1.556266815 | DE55: 0.01623527229 | DF55: 0.1171258929 | DG55: =+DG16/$DS$34*100 -> 0.09277298451 | DH55: 0.06204193339 | DI55: 0.1919241117 | DJ55: 0.3896465349 | DK55: 0.1611930606 | DL55: 0 | DM55: 0 | DN55: 3.546827164 | DO55: 0.5015539475 | DP55: 0.0359495315 | DQ55: 0 | DR55: 0 | DS55: 4.084330643
B56: 11D | C56: Douro | D56: =+D17/$DS$34*100 -> 0.002319324613 | E56: 0 | F56: 0 | G56: 0 | H56: 0 | I56: 0.009857129604 | J56: 0 | K56: 0 | L56: 0 | M56: 0 | N56: 0.07827720568 | O56: 0.02087392151 | P56: 0 | Q56: 0 | R56: 0 | S56: 0 | T56: 0 | U56: 0 | V56: 0 | W56: 0 | X56: 0 | Y56: 0 | Z56: 0 | AA56: 0 | AB56: 0 | AC56: 0.9833936358 | AD56: 0.08059653029 | AE56: 0.004058818072 | AF56: 0 | AG56: 0 | AH56: 2.260181835 | AI56: 0.9555617404 | AJ56: =+AJ17/$DS$34*100 -> 0.1374199833 | AK56: 0.006378142685 | AL56: 0 | AM56: 0.5659152055 | AN56: 0.3989238334 | AO56: 0.04406716764 | AP56: 0 | AQ56: 0 | AR56: 0.3502180165 | AS56: 0.03536970034 | AT56: 0.004058818072 | AU56: 0 | AV56: 0 | AW56: 3.742230263 | AX56: 0.9491835977 | AY56: 0.08059653029 | AZ56: 0 | BA56: 0 | BB56: 0.01043696076 | BC56: 0.02029409036 | BD56: 0.002319324613 | BE56: 0 | BF56: 0 | BG56: 0.03015121996 | BH56: 0.0185545969 | BI56: 0.002319324613 | BJ56: 0 | BK56: 0 | BL56: =+BL17/$DS$34*100 -> 0.01043696076 | BM56: 0.002899155766 | BN56: 0 | BO56: 0 | BP56: 0 | BQ56: 0.07711754337 | BR56: 0.06552092031 | BS56: 0.01043696076 | BT56: 0 | BU56: =+BU17/$DS$34*100 -> 0 | BV56: 0.3212264589 | BW56: 0.1351006587 | BX56: 0.01043696076 | BY56: 0 | BZ56: 0 | CA56: 0.1867056313 | CB56: 0.08001669914 | CC56: 0.009277298451 | CD56: 0 | CE56: 0 | CF56: 0.04464699879 | CG56: 0.008697467298 | CH56: 0 | CI56: 0 | CJ56: 0 | CK56: 0 | CL56: 0 | CM56: 0 | CN56: 0 | CO56: 0 | CP56: 0.01797476575 | CQ56: 0 | CR56: 0 | CS56: 0 | CT56: 0 | CU56: 0.004058818072 | CV56: 0.01275628537 | CW56: 0.09915112719 | CX56: 0 | CY56: 0.002319324613 | CZ56: 1.068048984 | DA56: =+DA17/$DS$34*100 -> 3.359541701 | DB56: 1.009486038 | DC56: 0.3908061972 | DD56: 4.772010391 | DE56: 0.03421003804 | DF56: 0.05392429724 | DG56: =+DG17/$DS$34*100 -> 0.01449577883 | DH56: 0.1542350867 | DI56: 0.4673439095 | DJ56: 0.2771592912 | DK56: 0.05682345301 | DL56: 0 | DM56: 0.01913442805 | DN56: 8.699786622 | DO56: 2.780870211 | DP56: 0.3084701735 | DQ56: 0.006378142685 | DR56: 0 | DS56: 11.79550515
B57: 11E | C57: Terras de Trás-os-Montes | D57: =+D18/$DS$34*100 -> 0.03073105112 | E57: 0.009277298451 | F57: 0.002319324613 | G57: 0 | H57: 0 | I57: 0.002319324613 | J57: 0.00173949346 | K57: 0 | L57: 0 | M57: 0 | N57: 0.2127980332 | O57: 0.1907644494 | P57: 0.01565544114 | Q57: 0 | R57: 0 | S57: 0 | T57: 0 | U57: 0 | V57: 0 | W57: 0 | X57: 0.002319324613 | Y57: 0.002899155766 | Z57: 0 | AA57: 0 | AB57: 0 | AC57: 1.874014287 | AD57: 0.9491835977 | AE57: 0.1008906207 | AF57: 0 | AG57: 0 | AH57: 0.06899990723 | AI57: 0.03942851842 | AJ57: =+AJ18/$DS$34*100 -> 0.005798311532 | AK57: 0 | AL57: 0 | AM57: 0.8146627702 | AN57: 0.7375452268 | AO57: 0.07479821876 | AP57: 0 | AQ57: 0 | AR57: 1.055292699 | AS57: 0.2684618239 | AT57: 0.05276463494 | AU57: 0 | AV57: 0 | AW57: 3.274886353 | AX57: 2.732164394 | AY57: 0.2870164208 | AZ57: 0 | BA57: 0 | BB57: 0 | BC57: 0 | BD57: 0.008117636144 | BE57: 0 | BF57: 0 | BG57: 0.008697467298 | BH57: 0.03073105112 | BI57: 0.03015121996 | BJ57: 0 | BK57: 0 | BL57: =+BL18/$DS$34*100 -> 0.0173949346 | BM57: 0.009277298451 | BN57: 0 | BO57: 0 | BP57: 0 | BQ57: 0 | BR57: 0.02783189535 | BS57: 0.03131088227 | BT57: 0.00173949346 | BU57: =+BU18/$DS$34*100 -> 0 | BV57: 0.1542350867 | BW57: 0.2168568513 | BX57: 0.05276463494 | BY57: 0 | BZ57: 0 | CA57: 0.08871416643 | CB57: 0.3119491604 | CC57: 0.1675712033 | CD57: 0 | CE57: 0 | CF57: 0.07537804991 | CG57: 0.04058818072 | CH57: 0.004638649225 | CI57: 0 | CJ57: 0 | CK57: 0 | CL57: 0 | CM57: 0 | CN57: 0 | CO57: 0 | CP57: 0.00173949346 | CQ57: 0 | CR57: 0 | CS57: 0 | CT57: 0 | CU57: 0.04406716764 | CV57: 0.005218480379 | CW57: 0.4215372484 | CX57: 0 | CY57: 0.006957973838 | CZ57: 2.925248168 | DA57: =+DA18/$DS$34*100 -> 0.1165460618 | DB57: 1.627586047 | DC57: 1.378258651 | DD57: 6.29522683 | DE57: 0.01043696076 | DF57: 0.07131923184 | DG57: =+DG18/$DS$34*100 -> 0.0272520642 | DH57: 0.06610075146 | DI57: 0.4244364041 | DJ57: 0.5693941924 | DK57: 0.1217645422 | DL57: 0 | DM57: 0.002899155766 | DN57: 7.692619909 | DO57: 5.574496707 | DP57: 0.8419148344 | DQ57: 0.004638649225 | DR57: 0 | DS57: 14.1136701
A58: Centro | B58: 16B | C58: Oeste | D58: =+D19/$DS$34*100 -> 0.03247054458 | E58: 0.007537804991 | F58: 0.002899155766 | G58: 0 | H58: 0 | I58: 0.002319324613 | J58: 0.002319324613 | K58: 0 | L58: 0 | M58: 0 | N58: 0.01971425921 | O58: 0.01565544114 | P58: 0 | Q58: 0 | R58: 0 | S58: 0 | T58: 0 | U58: 0 | V58: 0 | W58: 0 | X58: 0 | Y58: 0 | Z58: 0 | AA58: 0 | AB58: 0 | AC58: 0.06668058261 | AD58: 0.0458066611 | AE58: 0.002319324613 | AF58: 0 | AG58: 0 | AH58: 0.0359495315 | AI58: 0.08639484182 | AJ58: =+AJ19/$DS$34*100 -> 0.04000834957 | AK58: 0 | AL58: 0 | AM58: 0.1153863995 | AN58: 0.2319324613 | AO58: 0.05972260878 | AP58: 0 | AQ58: 0 | AR58: 0 | AS58: 0 | AT58: 0 | AU58: 0 | AV58: 0 | AW58: 0.06899990723 | AX58: 0.05740328416 | AY58: 0.01391594768 | AZ58: 0 | BA58: 0 | BB58: 0 | BC58: 0.002319324613 | BD58: 0 | BE58: 0 | BF58: 0 | BG58: 0.002899155766 | BH58: 0.005218480379 | BI58: 0.002899155766 | BJ58: 0 | BK58: 0 | BL58: =+BL19/$DS$34*100 -> 0.04116801187 | BM58: 0.01391594768 | BN58: 0.00173949346 | BO58: 0 | BP58: 0 | BQ58: 0.004058818072 | BR58: 0.005218480379 | BS58: 0.003478986919 | BT58: 0 | BU58: =+BU19/$DS$34*100 -> 0 | BV58: 0.2609240189 | BW58: 0.01623527229 | BX58: 0.00173949346 | BY58: 0 | BZ58: 0 | CA58: 0.03015121996 | CB58: 0.01217645422 | CC58: 0 | CD58: 0 | CE58: 0 | CF58: 0.08697467298 | CG58: 0.02551257074 | CH58: 0.006957973838 | CI58: 0 | CJ58: 0 | CK58: 0 | CL58: 0 | CM58: 0 | CN58: 0 | CO58: 0 | CP58: 0.008117636144 | CQ58: 0.004638649225 | CR58: 0 | CS58: 0 | CT58: 0 | CU58: 0.04348733649 | CV58: 0.008117636144 | CW58: 0.04000834957 | CX58: 0 | CY58: 0.00173949346 | CZ58: 0.1165460618 | DA58: =+DA19/$DS$34*100 -> 0.1640922163 | DB58: 0.4076213007 | DC58: 0.00173949346 | DD58: 0.143798126 | DE58: 0.004058818072 | DF58: 0.01391594768 | DG58: =+DG19/$DS$34*100 -> 0.05798311532 | DH58: 0.01333611652 | DI58: 0.2794786158 | DJ58: 0.04464699879 | DK58: 0.121184711 | DL58: 0 | DM58: 0.01275628537 | DN58: 0.7850913814 | DO58: 0.5415622971 | DP58: 0.1461174506 | DQ58: 0.003478986919 | DR58: 0 | DS58: 1.476250116
B59: 16D | C59: Região de Aveiro | D59: =+D20/$DS$34*100 -> 0.005798311532 | E59: 0 | F59: 0 | G59: 0 | H59: 0 | I59: 0.4180582614 | J59: 0.03652936265 | K59: 0.005798311532 | L59: 0 | M59: 0 | N59: 0.3345625754 | O59: 0.02435290843 | P59: 0 | Q59: 0 | R59: 0 | S59: 0 | T59: 0.002319324613 | U59: 0.002319324613 | V59: 0 | W59: 0 | X59: 0 | Y59: 0 | Z59: 0 | AA59: 0 | AB59: 0 | AC59: 0.1501762687 | AD59: 0.007537804991 | AE59: 0.00173949346 | AF59: 0 | AG59: 0 | AH59: 0.02493273959 | AI59: 0.01507560998 | AJ59: =+AJ20/$DS$34*100 -> 0.004058818072 | AK59: 0 | AL59: 0 | AM59: 0.1240838668 | AN59: 0.01159662306 | AO59: 0 | AP59: 0 | AQ59: 0 | AR59: 0 | AS59: 0 | AT59: 0 | AU59: 0 | AV59: 0 | AW59: 0.442991001 | AX59: 0.01797476575 | AY59: 0 | AZ59: 0 | BA59: 0 | BB59: 0.03305037573 | BC59: 0.06378142685 | BD59: 0.007537804991 | BE59: 0 | BF59: 0 | BG59: 0.02841172651 | BH59: 0.0173949346 | BI59: 0.002899155766 | BJ59: 0 | BK59: 0 | BL59: =+BL20/$DS$34*100 -> 0.07421838761 | BM59: 0.01797476575 | BN59: 0 | BO59: 0 | BP59: 0 | BQ59: 0.01565544114 | BR59: 0.008117636144 | BS59: 0 | BT59: 0 | BU59: =+BU20/$DS$34*100 -> 0 | BV59: 0.03826885611 | BW59: 0.004058818072 | BX59: 0 | BY59: 0 | BZ59: 0 | CA59: 0.1472771129 | CB59: 0.01565544114 | CC59: 0 | CD59: 0 | CE59: 0 | CF59: 0.2139576955 | CG59: 0.02899155766 | CH59: 0 | CI59: 0 | CJ59: 0 | CK59: 0 | CL59: 0 | CM59: 0 | CN59: 0 | CO59: 0 | CP59: 0.0173949346 | CQ59: 0.00173949346 | CR59: 0 | CS59: 0 | CT59: 0 | CU59: 0.006957973838 | CV59: 0.4621254291 | CW59: 0.3600751461 | CX59: 0.005218480379 | CY59: 0 | CZ59: 0.1600333983 | DA59: =+DA20/$DS$34*100 -> 0.0458066611 | DB59: 0.136260321 | DC59: 0.00173949346 | DD59: 0.4644447537 | DE59: 0.1043696076 | DF59: 0.04870581687 | DG59: =+DG20/$DS$34*100 -> 0.09451247797 | DH59: 0.02435290843 | DI59: 0.04232767418 | DJ59: 0.1658317098 | DK59: 0.2441089155 | DL59: 0 | DM59: 0.01971425921 | DN59: 2.078114853 | DO59: 0.2794786158 | DP59: 0.02957138881 | DQ59: 0 | DR59: 0 | DS59: 2.387164858
B60: 16E | C60: Região de Coimbra | D60: =+D21/$DS$34*100 -> 0.01391594768 | E60: 0 | F60: 0 | G60: 0 | H60: 0 | I60: 0.401243158 | J60: 0.1310418406 | K60: 0.03363020688 | L60: 0 | M60: 0 | N60: 0.1768485017 | O60: 0.01275628537 | P60: 0.00173949346 | Q60: 0 | R60: 0 | S60: 0.06668058261 | T60: 0.06552092031 | U60: 0.02667223305 | V60: 0 | W60: 0 | X60: 0 | Y60: 0 | Z60: 0 | AA60: 0 | AB60: 0 | AC60: 0.3803692365 | AD60: 0.02145375267 | AE60: 0.002899155766 | AF60: 0 | AG60: 0 | AH60: 0.04870581687 | AI60: 0.02377307728 | AJ60: =+AJ21/$DS$34*100 -> 0 | AK60: 0 | AL60: 0 | AM60: 0.1026301141 | AN60: 0.04174784303 | AO60: 0.002319324613 | AP60: 0 | AQ60: 0 | AR60: 0.07769737452 | AS60: 0.00173949346 | AT60: 0 | AU60: 0 | AV60: 0 | AW60: 0.9990490769 | AX60: 0.06957973838 | AY60: 0.006378142685 | AZ60: 0 | BA60: 0 | BB60: 0.02261341497 | BC60: 0.01971425921 | BD60: 0.002899155766 | BE60: 0 | BF60: 0 | BG60: 0.02203358382 | BH60: 0.005798311532 | BI60: 0.003478986919 | BJ60: 0 | BK60: 0 | BL60: =+BL21/$DS$34*100 -> 0.06088227108 | BM60: 0.007537804991 | BN60: 0 | BO60: 0 | BP60: 0 | BQ60: 0.008117636144 | BR60: 0.004058818072 | BS60: 0.002899155766 | BT60: 0 | BU60: =+BU21/$DS$34*100 -> 0 | BV60: 0.2655626682 | BW60: 0.04638649225 | BX60: 0.003478986919 | BY60: 0 | BZ60: 0 | CA60: 0.2255543186 | CB60: 0.03363020688 | CC60: 0.004638649225 | CD60: 0 | CE60: 0 | CF60: 0.2151173578 | CG60: 0.0173949346 | CH60: 0 | CI60: 0 | CJ60: 0 | CK60: 0 | CL60: 0 | CM60: 0 | CN60: 0 | CO60: 0 | CP60: 0.01275628537 | CQ60: 0.00173949346 | CR60: 0 | CS60: 0 | CT60: 0 | CU60: 0.01681510344 | CV60: 0.567654699 | CW60: 0.1913442805 | CX60: 0.1606132294 | CY60: 0.002319324613 | CZ60: 0.4064616384 | DA60: =+DA21/$DS$34*100 -> 0.0730587253 | DB60: 0.1466972818 | DC60: 0.0829158549 | DD60: 1.077326283 | DE60: 0.04522682995 | DF60: 0.03247054458 | DG60: =+DG21/$DS$34*100 -> 0.06899990723 | DH60: 0.01681510344 | DI60: 0.3165878096 | DJ60: 0.264982837 | DK60: 0.2342517859 | DL60: 0 | DM60: 0.01565544114 | DN60: 3.106735319 | DO60: 0.5160497263 | DP60: 0.09625197143 | DQ60: 0 | DR60: 0 | DS60: 3.719037016
B61: 16F | C61: Região de Leiria | D61: =+D22/$DS$34*100 -> 0.0173949346 | E61: 0.00173949346 | F61: 0 | G61: 0 | H61: 0 | I61: 0.06726041377 | J61: 0.01101679191 | K61: 0.002899155766 | L61: 0 | M61: 0 | N61: 0.05740328416 | O61: 0.002899155766 | P61: 0 | Q61: 0 | R61: 0 | S61: 0.005798311532 | T61: 0.006378142685 | U61: 0 | V61: 0 | W61: 0 | X61: 0 | Y61: 0 | Z61: 0 | AA61: 0 | AB61: 0 | AC61: 0.2151173578 | AD61: 0.006957973838 | AE61: 0.002899155766 | AF61: 0 | AG61: 0 | AH61: 0 | AI61: 0.00173949346 | AJ61: =+AJ22/$DS$34*100 -> 0 | AK61: 0 | AL61: 0 | AM61: 0.0545041284 | AN61: 0.01681510344 | AO61: 0.00173949346 | AP61: 0 | AQ61: 0 | AR61: 0.1385796456 | AS61: 0.008117636144 | AT61: 0 | AU61: 0 | AV61: 0 | AW61: 0.5021337786 | AX61: 0.02319324613 | AY61: 0 | AZ61: 0 | BA61: 0 | BB61: 0 | BC61: 0.004638649225 | BD61: 0 | BE61: 0 | BF61: 0 | BG61: 0.006957973838 | BH61: 0.01449577883 | BI61: 0.003478986919 | BJ61: 0 | BK61: 0 | BL61: =+BL22/$DS$34*100 -> 0.04986547917 | BM61: 0.01565544114 | BN61: 0.00173949346 | BO61: 0 | BP61: 0 | BQ61: 0 | BR61: 0.004058818072 | BS61: 0.00173949346 | BT61: 0 | BU61: =+BU22/$DS$34*100 -> 0 | BV61: 0.223234994 | BW61: 0.03247054458 | BX61: 0.003478986919 | BY61: 0 | BZ61: 0 | CA61: 0.1710501902 | CB61: 0.02551257074 | CC61: 0.00173949346 | CD61: 0 | CE61: 0 | CF61: 0.06610075146 | CG61: 0.002899155766 | CH61: 0 | CI61: 0 | CJ61: 0 | CK61: 0 | CL61: 0 | CM61: 0 | CN61: 0 | CO61: 0 | CP61: 0 | CQ61: 0 | CR61: 0 | CS61: 0 | CT61: 0 | CU61: 0.02029409036 | CV61: 0.08233602375 | CW61: 0.06088227108 | CX61: 0.01391594768 | CY61: 0 | CZ61: 0.2255543186 | DA61: =+DA22/$DS$34*100 -> 0.003478986919 | DB61: 0.07479821876 | DC61: 0.1490166064 | DD61: 0.5270665182 | DE61: 0.007537804991 | DF61: 0.02609240189 | DG61: =+DG22/$DS$34*100 -> 0.06726041377 | DH61: 0.008117636144 | DI61: 0.2603441878 | DJ61: 0.2000417478 | DK61: 0.07015956953 | DL61: 0 | DM61: 0 | DN61: 1.582939048 | DO61: 0.1890249559 | DP61: 0.02551257074 | DQ61: 0 | DR61: 0 | DS61: 1.797476575
B62: 16G | C62: Viseu Dão Lafões | D62: =+D23/$DS$34*100 -> 0.01159662306 | E62: 0 | F62: 0 | G62: 0 | H62: 0 | I62: 0.1049494387 | J62: 0 | K62: 0 | L62: 0 | M62: 0 | N62: 0.1379998145 | O62: 0.009857129604 | P62: 0 | Q62: 0 | R62: 0 | S62: 0 | T62: 0 | U62: 0 | V62: 0 | W62: 0 | X62: 0 | Y62: 0 | Z62: 0 | AA62: 0 | AB62: 0 | AC62: 0.5954865943 | AD62: 0.009857129604 | AE62: 0 | AF62: 0 | AG62: 0 | AH62: 0.1559745802 | AI62: 0.07769737452 | AJ62: =+AJ23/$DS$34*100 -> 0.01043696076 | AK62: 0 | AL62: 0 | AM62: 0.2748399666 | AN62: 0.04754615456 | AO62: 0.002899155766 | AP62: 0 | AQ62: 0 | AR62: 0.03478986919 | AS62: 0.002319324613 | AT62: 0 | AU62: 0 | AV62: 0 | AW62: 1.534813062 | AX62: 0.07943686798 | AY62: 0.004058818072 | AZ62: 0 | BA62: 0 | BB62: 0.008697467298 | BC62: 0.01043696076 | BD62: 0 | BE62: 0 | BF62: 0 | BG62: 0.03826885611 | BH62: 0.02145375267 | BI62: 0.00173949346 | BJ62: 0 | BK62: 0 | BL62: =+BL23/$DS$34*100 -> 0.04348733649 | BM62: 0.006378142685 | BN62: 0 | BO62: 0 | BP62: 0 | BQ62: 0.03073105112 | BR62: 0.04290750533 | BS62: 0.006378142685 | BT62: 0 | BU62: =+BU23/$DS$34*100 -> 0 | BV62: 0.4337137026 | BW62: 0.09393264681 | BX62: 0.007537804991 | BY62: 0 | BZ62: 0 | CA62: 0.5166295575 | CB62: 0.06552092031 | CC62: 0.002319324613 | CD62: 0 | CE62: 0 | CF62: 0.08059653029 | CG62: 0.005218480379 | CH62: 0 | CI62: 0 | CJ62: 0 | CK62: 0 | CL62: 0 | CM62: 0 | CN62: 0 | CO62: 0 | CP62: 0.008117636144 | CQ62: 0 | CR62: 0 | CS62: 0 | CT62: 0 | CU62: 0.01449577883 | CV62: 0.1066889322 | CW62: 0.1484367752 | CX62: 0 | CY62: 0 | CZ62: 0.6053437239 | DA62: =+DA23/$DS$34*100 -> 0.2470080712 | DB62: 0.3264449392 | DC62: 0.03884868726 | DD62: 1.618308748 | DE62: 0.02087392151 | DF62: 0.06378142685 | DG62: =+DG23/$DS$34*100 -> 0.05044531033 | DH62: 0.08117636144 | DI62: 0.5351841544 | DJ62: 0.5850496335 | DK62: 0.08581501067 | DL62: 0 | DM62: 0.008117636144 | DN62: 4.015910567 | DO62: 0.4818396883 | DP62: 0.03942851842 | DQ62: 0 | DR62: 0 | DS62: 4.537178774
B63: 16H | C63: Beira Baixa | D63: =+D24/$DS$34*100 -> 0.01391594768 | E63: 0.00173949346 | F63: 0 | G63: 0 | H63: 0 | I63: 0.00173949346 | J63: 0.002319324613 | K63: 0.002319324613 | L63: 0 | M63: 0 | N63: 0.02899155766 | O63: 0.03536970034 | P63: 0.0185545969 | Q63: 0.00173949346 | R63: 0 | S63: 0 | T63: 0 | U63: 0 | V63: 0 | W63: 0 | X63: 0 | Y63: 0 | Z63: 0 | AA63: 0 | AB63: 0 | AC63: 0.1536552556 | AD63: 0.01043696076 | AE63: 0.005798311532 | AF63: 0 | AG63: 0 | AH63: 0.00173949346 | AI63: 0 | AJ63: =+AJ24/$DS$34*100 -> 0 | AK63: 0 | AL63: 0 | AM63: 0.1194452176 | AN63: 0.03768902496 | AO63: 0.02145375267 | AP63: 0.004638649225 | AQ63: 0 | AR63: 0.3374617311 | AS63: 0.07073940069 | AT63: 0.01101679191 | AU63: 0 | AV63: 0 | AW63: 0.5473606086 | AX63: 0.1803274886 | AY63: 0.03652936265 | AZ63: 0.002899155766 | BA63: 0 | BB63: 0 | BC63: 0 | BD63: 0 | BE63: 0 | BF63: 0 | BG63: 0 | BH63: 0.006378142685 | BI63: 0.01623527229 | BJ63: 0 | BK63: 0 | BL63: =+BL24/$DS$34*100 -> 0.004058818072 | BM63: 0.004638649225 | BN63: 0 | BO63: 0 | BP63: 0 | BQ63: 0 | BR63: 0.008697467298 | BS63: 0.05334446609 | BT63: 0.04174784303 | BU63: =+BU24/$DS$34*100 -> 0 | BV63: 0.193083774 | BW63: 0.1669913721 | BX63: 0.1466972818 | BY63: 0.02551257074 | BZ63: 0.00173949346 | CA63: 0.0632015957 | CB63: 0.04870581687 | CC63: 0.0272520642 | CD63: 0.004058818072 | CE63: 0 | CF63: 0.05218480379 | CG63: 0.07363855645 | CH63: 0.05392429724 | CI63: 0.008697467298 | CJ63: 0 | CK63: 0 | CL63: 0 | CM63: 0 | CN63: 0 | CO63: 0 | CP63: 0 | CQ63: 0 | CR63: 0 | CS63: 0 | CT63: 0 | CU63: 0.0173949346 | CV63: 0.009277298451 | CW63: 0.08697467298 | CX63: 0 | CY63: 0 | CZ63: 0.1710501902 | DA63: =+DA24/$DS$34*100 -> 0.005798311532 | DB63: 0.1849661379 | DC63: 0.423856573 | DD63: 0.7682762779 | DE63: 0.00173949346 | DF63: 0.02435290843 | DG63: =+DG24/$DS$34*100 -> 0.009277298451 | DH63: 0.1066889322 | DI63: 0.5340244921 | DJ63: 0.1443779571 | DK63: 0.1901846182 | DL63: 0 | DM63: 0 | DN63: 1.524955933 | DO63: 0.6546293719 | DP63: 0.4024028203 | DQ63: 0.09335281566 | DR63: 0.004058818072 | DS63: 2.679399759
B64: 16I | C64: Médio Tejo | D64: =+D25/$DS$34*100 -> 0.005218480379 | E64: 0.00173949346 | F64: 0 | G64: 0 | H64: 0 | I64: 0.01043696076 | J64: 0.008697467298 | K64: 0.01043696076 | L64: 0 | M64: 0 | N64: 0.02029409036 | O64: 0.01043696076 | P64: 0.004058818072 | Q64: 0 | R64: 0 | S64: 0 | T64: 0 | U64: 0 | V64: 0 | W64: 0 | X64: 0 | Y64: 0 | Z64: 0 | AA64: 0 | AB64: 0 | AC64: 0.1124872437 | AD64: 0.006378142685 | AE64: 0 | AF64: 0 | AG64: 0 | AH64: 0.02377307728 | AI64: 0.005218480379 | AJ64: =+AJ25/$DS$34*100 -> 0.003478986919 | AK64: 0 | AL64: 0 | AM64: 0.1408989702 | AN64: 0.04696632341 | AO64: 0.008117636144 | AP64: 0 | AQ64: 0 | AR64: 0.356016328 | AS64: 0.04348733649 | AT64: 0.005798311532 | AU64: 0 | AV64: 0 | AW64: 0.7903098618 | AX64: 0.1252435291 | AY64: 0.01681510344 | AZ64: 0.004058818072 | BA64: 0 | BB64: 0 | BC64: 0.002899155766 | BD64: 0 | BE64: 0 | BF64: 0 | BG64: 0.003478986919 | BH64: 0.008697467298 | BI64: 0.003478986919 | BJ64: 0 | BK64: 0 | BL64: =+BL25/$DS$34*100 -> 0.02609240189 | BM64: 0.01159662306 | BN64: 0.002319324613 | BO64: 0 | BP64: 0 | BQ64: 0 | BR64: 0.002319324613 | BS64: 0.002899155766 | BT64: 0 | BU64: =+BU25/$DS$34*100 -> 0 | BV64: 0.1936636052 | BW64: 0.03478986919 | BX64: 0.01217645422 | BY64: 0 | BZ64: 0 | CA64: 0.1455376194 | CB64: 0.0371091938 | CC64: 0.01159662306 | CD64: 0.002319324613 | CE64: 0 | CF64: 0.0458066611 | CG64: 0.0272520642 | CH64: 0.01971425921 | CI64: 0 | CJ64: 0 | CK64: 0 | CL64: 0 | CM64: 0 | CN64: 0 | CO64: 0 | CP64: 0 | CQ64: 0 | CR64: 0 | CS64: 0 | CT64: 0 | CU64: 0.01043696076 | CV64: 0.03015121996 | CW64: 0.0359495315 | CX64: 0 | CY64: 0.00173949346 | CZ64: 0.1206048799 | DA64: =+DA25/$DS$34*100 -> 0.03652936265 | DB64: 0.1971425921 | DC64: 0.4070414695 | DD64: 0.9375869747 | DE64: 0.004638649225 | DF64: 0.01913442805 | DG64: =+DG25/$DS$34*100 -> 0.04058818072 | DH64: 0.008117636144 | DI64: 0.242369422 | DJ64: 0.1994619167 | DK64: 0.09393264681 | DL64: 0 | DM64: 0 | DN64: 1.884451248 | DO64: 0.3815288988 | DP64: 0.1072687633 | DQ64: 0.01217645422 | DR64: 0 | DS64: 2.385425364
B65: 16J | C65: Beiras e Serra da Estrela | D65: =+D26/$DS$34*100 -> 0.04174784303 | E65: 0.002319324613 | F65: 0.002899155766 | G65: 0 | H65: 0 | I65: 0.02609240189 | J65: 0.01159662306 | K65: 0.005218480379 | L65: 0 | M65: 0 | N65: 0.3571759904 | O65: 0.1988820855 | P65: 0.03247054458 | Q65: 0 | R65: 0 | S65: 0 | T65: 0 | U65: 0 | V65: 0 | W65: 0 | X65: 0 | Y65: 0.00173949346 | Z65: 0 | AA65: 0 | AB65: 0 | AC65: 0.8210409129 | AD65: 0.09741163373 | AE65: 0.02029409036 | AF65: 0 | AG65: 0 | AH65: 0.1658317098 | AI65: 0.106109101 | AJ65: =+AJ26/$DS$34*100 -> 0.02145375267 | AK65: 0 | AL65: 0 | AM65: 0.4789405325 | AN65: 0.2922349012 | AO65: 0.07015956953 | AP65: 0 | AQ65: 0 | AR65: 0.3154281473 | AS65: 0.04000834957 | AT65: 0.006378142685 | AU65: 0 | AV65: 0 | AW65: 2.432971519 | AX65: 0.901057612 | AY65: 0.07943686798 | AZ65: 0 | BA65: 0 | BB65: 0 | BC65: 0.007537804991 | BD65: 0.009857129604 | BE65: 0 | BF65: 0 | BG65: 0.008117636144 | BH65: 0.07131923184 | BI65: 0.08407551721 | BJ65: 0 | BK65: 0 | BL65: =+BL26/$DS$34*100 -> 0.01333611652 | BM65: 0.01217645422 | BN65: 0.00173949346 | BO65: 0 | BP65: 0 | BQ65: 0.008117636144 | BR65: 0.07421838761 | BS65: 0.2012014101 | BT65: 0.006957973838 | BU65: =+BU26/$DS$34*100 -> 0 | BV65: 0.4221170795 | BW65: 0.5317051675 | BX65: 0.2058400594 | BY65: 0.003478986919 | BZ65: 0 | CA65: 0.2191761759 | CB65: 0.2736803043 | CC65: 0.113646906 | CD65: 0 | CE65: 0 | CF65: 0.1229242045 | CG65: 0.06552092031 | CH65: 0.01217645422 | CI65: 0 | CJ65: 0 | CK65: 0 | CL65: 0 | CM65: 0 | CN65: 0 | CO65: 0 | CP65: 0.005798311532 | CQ65: 0 | CR65: 0 | CS65: 0 | CT65: 0 | CU65: 0.04870581687 | CV65: 0.04406716764 | CW65: 0.5891084516 | CX65: 0 | CY65: 0.004058818072 | CZ65: 0.9399062993 | DA65: =+DA26/$DS$34*100 -> 0.2939743947 | DB65: 0.8419148344 | DC65: 0.3623944707 | DD65: 3.415785323 | DE65: 0.02087392151 | DF65: 0.1669913721 | DG65: =+DG26/$DS$34*100 -> 0.02899155766 | DH65: 0.2922349012 | DI65: 1.163721124 | DJ65: 0.6076630485 | DK65: 0.2023610725 | DL65: 0 | DM65: 0.006378142685 | DN65: 5.449253177 | DO65: 2.690996382 | DP65: 0.8738055478 | DQ65: 0.01507560998 | DR65: 0 | DS65: 9.029130717
A66: AML | B66: 170 | C66: Área Metropolitana de Lisboa | D66: =+D27/$DS$34*100 -> 0.006957973838 | E66: 0.002319324613 | F66: 0.00173949346 | G66: 0 | H66: 0 | I66: 0.004638649225 | J66: 0.01217645422 | K66: 0.006957973838 | L66: 0 | M66: 0 | N66: 0.008697467298 | O66: 0.006378142685 | P66: 0.004638649225 | Q66: 0 | R66: 0 | S66: 0 | T66: 0.002899155766 | U66: 0.02899155766 | V66: 0.00173949346 | W66: 0 | X66: 0 | Y66: 0 | Z66: 0 | AA66: 0 | AB66: 0 | AC66: 0.02029409036 | AD66: 0.01507560998 | AE66: 0.006378142685 | AF66: 0 | AG66: 0 | AH66: 0.02087392151 | AI66: 0.05044531033 | AJ66: =+AJ27/$DS$34*100 -> 0.03015121996 | AK66: 0 | AL66: 0 | AM66: 0.01913442805 | AN66: 0.01797476575 | AO66: 0.01681510344 | AP66: 0.004058818072 | AQ66: 0 | AR66: 0 | AS66: 0 | AT66: 0 | AU66: 0 | AV66: 0 | AW66: 0.03015121996 | AX66: 0.03131088227 | AY66: 0.02145375267 | AZ66: 0.004638649225 | BA66: 0 | BB66: 0.00173949346 | BC66: 0.005798311532 | BD66: 0.003478986919 | BE66: 0 | BF66: 0 | BG66: 0.002319324613 | BH66: 0.01159662306 | BI66: 0.008697467298 | BJ66: 0.003478986919 | BK66: 0 | BL66: =+BL27/$DS$34*100 -> 0.03363020688 | BM66: 0.01507560998 | BN66: 0.003478986919 | BO66: 0 | BP66: 0 | BQ66: 0 | BR66: 0.009277298451 | BS66: 0.006957973838 | BT66: 0.003478986919 | BU66: =+BU27/$DS$34*100 -> 0 | BV66: 0.1733695148 | BW66: 0.02841172651 | BX66: 0.01101679191 | BY66: 0 | BZ66: 0 | CA66: 0.02203358382 | CB66: 0.006378142685 | CC66: 0.006378142685 | CD66: 0.006378142685 | CE66: 0 | CF66: 0.04174784303 | CG66: 0.04812598571 | CH66: 0.0173949346 | CI66: 0.00173949346 | CJ66: 0 | CK66: 0 | CL66: 0.008697467298 | CM66: 0.008697467298 | CN66: 0.004638649225 | CO66: 0 | CP66: 0.002899155766 | CQ66: 0.002899155766 | CR66: 0 | CS66: 0 | CT66: 0 | CU66: 0.01333611652 | CV66: 0.02783189535 | CW66: 0.02493273959 | CX66: 0.03363020688 | CY66: 0.002899155766 | CZ66: 0.04406716764 | DA66: =+DA27/$DS$34*100 -> 0.1043696076 | DB66: 0.05972260878 | DC66: 0 | DD66: 0.09045365989 | DE66: 0.01217645422 | DF66: 0.02841172651 | DG66: =+DG27/$DS$34*100 -> 0.05392429724 | DH66: 0.02319324613 | DI66: 0.2151173578 | DJ66: 0.04522682995 | DK66: 0.1113275814 | DL66: 0.02377307728 | DM66: 0.007537804991 | DN66: 0.4024028203 | DO66: 0.29165507 | DP66: 0.1890249559 | DQ66: 0.0371091938 | DR66: 0.002319324613 | DS66: 0.9225113647
A67: Alentejo | B67: 181 | C67: Alentejo Litoral | D67: =+D28/$DS$34*100 -> 0.0272520642 | E67: 0 | F67: 0.003478986919 | G67: 0.00173949346 | H67: 0 | I67: 0 | J67: 0 | K67: 0.006957973838 | L67: 0 | M67: 0 | N67: 0.006378142685 | O67: 0.01217645422 | P67: 0.01797476575 | Q67: 0.002319324613 | R67: 0 | S67: 0.005218480379 | T67: 0.02377307728 | U67: 0.02783189535 | V67: 0.00173949346 | W67: 0 | X67: 0 | Y67: 0 | Z67: 0.006378142685 | AA67: 0.00173949346 | AB67: 0 | AC67: 0.03826885611 | AD67: 0.01681510344 | AE67: 0.01043696076 | AF67: 0 | AG67: 0 | AH67: 0 | AI67: 0.005218480379 | AJ67: =+AJ28/$DS$34*100 -> 0.003478986919 | AK67: 0 | AL67: 0 | AM67: 0.02203358382 | AN67: 0.05218480379 | AO67: 0.08581501067 | AP67: 0.01797476575 | AQ67: 0 | AR67: 0.03073105112 | AS67: 0.002899155766 | AT67: 0.01043696076 | AU67: 0.002899155766 | AV67: 0 | AW67: 0.05276463494 | AX67: 0.08697467298 | AY67: 0.07073940069 | AZ67: 0.02029409036 | BA67: 0.002899155766 | BB67: 0 | BC67: 0 | BD67: 0.005798311532 | BE67: 0.00173949346 | BF67: 0 | BG67: 0.002899155766 | BH67: 0.02319324613 | BI67: 0.03131088227 | BJ67: 0.004058818072 | BK67: 0 | BL67: =+BL28/$DS$34*100 -> 0.0185545969 | BM67: 0.007537804991 | BN67: 0 | BO67: 0 | BP67: 0 | BQ67: 0 | BR67: 0.03884868726 | BS67: 0.1130670749 | BT67: 0.05276463494 | BU67: =+BU28/$DS$34*100 -> 0.002319324613 | BV67: 0.0829158549 | BW67: 0.1200250487 | BX67: 0.1414788014 | BY67: 0.02957138881 | BZ67: 0 | CA67: 0.02203358382 | CB67: 0.02841172651 | CC67: 0.03363020688 | CD67: 0.0272520642 | CE67: 0.002319324613 | CF67: 0.09625197143 | CG67: 0.1733695148 | CH67: 0.1901846182 | CI67: 0.01913442805 | CJ67: 0 | CK67: 0 | CL67: 0 | CM67: 0.006957973838 | CN67: 0 | CO67: 0 | CP67: 0 | CQ67: 0 | CR67: 0 | CS67: 0 | CT67: 0 | CU67: 0.03768902496 | CV67: 0.008697467298 | CW67: 0.04116801187 | CX67: 0.06146210224 | CY67: 0.008697467298 | CZ67: 0.06957973838 | DA67: =+DA28/$DS$34*100 -> 0.01275628537 | DB67: 0.1826468132 | DC67: 0.04986547917 | DD67: 0.2342517859 | DE67: 0.008117636144 | DF67: 0.06494108915 | DG67: =+DG28/$DS$34*100 -> 0.02957138881 | DH67: 0.2087392151 | DI67: 0.3768902496 | DJ67: 0.1165460618 | DK67: 0.4795203637 | DL67: 0.008117636144 | DM67: 0 | DN67: 0.416318768 | DO67: 0.6082428797 | DP67: 0.7740745895 | DQ67: 0.1896047871 | DR67: 0.01101679191 | DS67: 1.999257816
B68: 184 | C68: Baixo Alentejo | D68: =+D29/$DS$34*100 -> 0.04232767418 | E68: 0.002899155766 | F68: 0.003478986919 | G68: 0 | H68: 0 | I68: 0.002319324613 | J68: 0.003478986919 | K68: 0.02667223305 | L68: 0.008117636144 | M68: 0 | N68: 0.08349568606 | O68: 0.1153863995 | P68: 0.1275628537 | Q68: 0.01971425921 | R68: 0 | S68: 0 | T68: 0 | U68: 0 | V68: 0 | W68: 0 | X68: 0.005798311532 | Y68: 0.0173949346 | Z68: 0.02609240189 | AA68: 0.002899155766 | AB68: 0 | AC68: 0.03305037573 | AD68: 0.01797476575 | AE68: 0.01159662306 | AF68: 0.004058818072 | AG68: 0 | AH68: 0.05334446609 | AI68: 0.06204193339 | AJ68: =+AJ29/$DS$34*100 -> 0.02667223305 | AK68: 0 | AL68: 0 | AM68: 0.02377307728 | AN68: 0.05508395955 | AO68: 0.1594535671 | AP68: 0.03305037573 | AQ68: 0.00173949346 | AR68: 0.499814454 | AS68: 0.3455793673 | AT68: 0.2748399666 | AU68: 0.05334446609 | AV68: 0.00173949346 | AW68: 0.1959829298 | AX68: 0.2058400594 | AY68: 0.1414788014 | AZ68: 0.0359495315 | BA68: 0 | BB68: 0 | BC68: 0 | BD68: 0 | BE68: 0 | BF68: 0 | BG68: 0.00173949346 | BH68: 0.009277298451 | BI68: 0.03189071342 | BJ68: 0.01159662306 | BK68: 0 | BL68: =+BL29/$DS$34*100 -> 0.02087392151 | BM68: 0.01217645422 | BN68: 0.003478986919 | BO68: 0.00173949346 | BP68: 0 | BQ68: 0 | BR68: 0.002899155766 | BS68: 0.1490166064 | BT68: 0.1368401521 | BU68: =+BU29/$DS$34*100 -> 0.003478986919 | BV68: 0.2719408108 | BW68: 0.2313526301 | BX68: 0.3183273031 | BY68: 0.08465534836 | BZ68: 0.00173949346 | CA68: 0.03478986919 | CB68: 0.06378142685 | CC68: 0.1026301141 | CD68: 0.07189906299 | CE68: 0.006378142685 | CF68: 0.1461174506 | CG68: 0.1942434363 | CH68: 0.2435290843 | CI68: 0.0185545969 | CJ68: 0 | CK68: 0 | CL68: 0.002319324613 | CM68: 0.002319324613 | CN68: 0 | CO68: 0 | CP68: 0 | CQ68: 0 | CR68: 0 | CS68: 0 | CT68: 0 | CU68: 0.04986547917 | CV68: 0.04174784303 | CW68: 0.3496381854 | CX68: 0 | CY68: 0.05392429724 | CZ68: 0.06899990723 | DA68: =+DA29/$DS$34*100 -> 0.1461174506 | DB68: 0.2754197978 | DC68: 1.175897579 | DD68: 0.5850496335 | DE68: 0.002319324613 | DF68: 0.0556637907 | DG68: =+DG29/$DS$34*100 -> 0.03942851842 | DH68: 0.2945542258 | DI68: 0.9109147416 | DJ68: 0.2817979404 | DK68: 0.6036042304 | DL68: 0.006378142685 | DM68: 0 | DN68: 1.422325819 | DO68: 1.353905743 | DP68: 1.660636423 | DQ68: 0.4876379998 | DR68: 0.0173949346 | DS68: 4.941900918
B69: 185 | C69: Lezíria do Tejo | D69: =+D30/$DS$34*100 -> 0.02377307728 | E69: 0.01101679191 | F69: 0.005218480379 | G69: 0.00173949346 | H69: 0 | I69: 0.03305037573 | J69: 0.05740328416 | K69: 0.07943686798 | L69: 0.008697467298 | M69: 0 | N69: 0.01565544114 | O69: 0.02899155766 | P69: 0.01681510344 | Q69: 0.002899155766 | R69: 0 | S69: 0 | T69: 0.01507560998 | U69: 0.04812598571 | V69: 0.002899155766 | W69: 0 | X69: 0.005218480379 | Y69: 0.008697467298 | Z69: 0.004058818072 | AA69: 0 | AB69: 0 | AC69: 0.01797476575 | AD69: 0.01217645422 | AE69: 0.009277298451 | AF69: 0.00173949346 | AG69: 0 | AH69: 0.02029409036 | AI69: 0.05160497263 | AJ69: =+AJ30/$DS$34*100 -> 0.01797476575 | AK69: 0 | AL69: 0 | AM69: 0.03247054458 | AN69: 0.03768902496 | AO69: 0.05276463494 | AP69: 0.01797476575 | AQ69: 0.00173949346 | AR69: 0.1026301141 | AS69: 0.02551257074 | AT69: 0.004638649225 | AU69: 0 | AV69: 0 | AW69: 0.1519157621 | AX69: 0.1066889322 | AY69: 0.06494108915 | AZ69: 0.02087392151 | BA69: 0.003478986919 | BB69: 0.003478986919 | BC69: 0.00173949346 | BD69: 0.004058818072 | BE69: 0.002899155766 | BF69: 0 | BG69: 0.004058818072 | BH69: 0.007537804991 | BI69: 0.01043696076 | BJ69: 0.002899155766 | BK69: 0 | BL69: =+BL30/$DS$34*100 -> 0.02841172651 | BM69: 0.008697467298 | BN69: 0.005218480379 | BO69: 0 | BP69: 0 | BQ69: 0.002899155766 | BR69: 0.004638649225 | BS69: 0.01101679191 | BT69: 0.009857129604 | BU69: =+BU30/$DS$34*100 -> 0 | BV69: 0.1130670749 | BW69: 0.02957138881 | BX69: 0.02145375267 | BY69: 0.002319324613 | BZ69: 0 | CA69: 0.01971425921 | CB69: 0.02029409036 | CC69: 0.01449577883 | CD69: 0.0185545969 | CE69: 0.004058818072 | CF69: 0.113646906 | CG69: 0.09451247797 | CH69: 0.06899990723 | CI69: 0.008117636144 | CJ69: 0 | CK69: 0.002319324613 | CL69: 0.03652936265 | CM69: 0.06146210224 | CN69: 0.007537804991 | CO69: 0 | CP69: 0 | CQ69: 0.002899155766 | CR69: 0.004058818072 | CS69: 0 | CT69: 0 | CU69: 0.04232767418 | CV69: 0.1820669821 | CW69: 0.06610075146 | CX69: 0.06610075146 | CY69: 0.01913442805 | CZ69: 0.04348733649 | DA69: =+DA30/$DS$34*100 -> 0.09393264681 | DB69: 0.1449577883 | DC69: 0.1345208275 | DD69: 0.3478986919 | DE69: 0.01217645422 | DF69: 0.02667223305 | DG69: =+DG30/$DS$34*100 -> 0.04464699879 | DH69: 0.03247054458 | DI69: 0.1698905279 | DJ69: 0.07943686798 | DK69: 0.2864365897 | DL69: 0.1107477503 | DM69: 0.007537804991 | DN69: 0.6998562019 | DO69: 0.5728731793 | DP69: 0.5114110771 | DQ69: 0.1142267372 | DR69: 0.01217645422 | DS69: 1.91054365
B70: 186 | C70: Alto Alentejo | D70: =+D31/$DS$34*100 -> 0.003478986919 | E70: 0 | F70: 0.00173949346 | G70: 0 | H70: 0 | I70: 0 | J70: 0.002319324613 | K70: 0.007537804991 | L70: 0 | M70: 0 | N70: 0.009857129604 | O70: 0.01681510344 | P70: 0.008117636144 | Q70: 0.00173949346 | R70: 0 | S70: 0 | T70: 0 | U70: 0 | V70: 0 | W70: 0 | X70: 0 | Y70: 0 | Z70: 0.01043696076 | AA70: 0.002319324613 | AB70: 0 | AC70: 0.03826885611 | AD70: 0.0173949346 | AE70: 0.01913442805 | AF70: 0.002899155766 | AG70: 0 | AH70: 0.01681510344 | AI70: 0.01913442805 | AJ70: =+AJ31/$DS$34*100 -> 0.01507560998 | AK70: 0 | AL70: 0 | AM70: 0.02435290843 | AN70: 0.02435290843 | AO70: 0.02551257074 | AP70: 0.004638649225 | AQ70: 0 | AR70: 0.4603859356 | AS70: 0.1925039429 | AT70: 0.07827720568 | AU70: 0.01333611652 | AV70: 0 | AW70: 0.2493273959 | AX70: 0.178008164 | AY70: 0.08233602375 | AZ70: 0.0185545969 | BA70: 0.00173949346 | BB70: 0 | BC70: 0 | BD70: 0.004058818072 | BE70: 0.00173949346 | BF70: 0 | BG70: 0 | BH70: 0.01913442805 | BI70: 0.04986547917 | BJ70: 0.01449577883 | BK70: 0 | BL70: =+BL31/$DS$34*100 -> 0.005798311532 | BM70: 0.006957973838 | BN70: 0.005218480379 | BO70: 0 | BP70: 0 | BQ70: 0 | BR70: 0.01043696076 | BS70: 0.1843863067 | BT70: 0.1669913721 | BU70: =+BU31/$DS$34*100 -> 0.01101679191 | BV70: 0.2922349012 | BW70: 0.2522265516 | BX70: 0.1890249559 | BY70: 0.03942851842 | BZ70: 0.00173949346 | CA70: 0.07363855645 | CB70: 0.09335281566 | CC70: 0.07537804991 | CD70: 0.05218480379 | CE70: 0.004638649225 | CF70: 0.06146210224 | CG70: 0.08349568606 | CH70: 0.09219315335 | CI70: 0.01217645422 | CJ70: 0 | CK70: 0 | CL70: 0 | CM70: 0.005798311532 | CN70: 0 | CO70: 0 | CP70: 0 | CQ70: 0 | CR70: 0 | CS70: 0 | CT70: 0 | CU70: 0.008697467298 | CV70: 0.01333611652 | CW70: 0.0371091938 | CX70: 0.00173949346 | CY70: 0.01623527229 | CZ70: 0.08001669914 | DA70: =+DA31/$DS$34*100 -> 0.0545041284 | DB70: 0.08233602375 | DC70: 0.7485620187 | DD70: 0.5305455051 | DE70: 0.005798311532 | DF70: 0.08639484182 | DG70: =+DG31/$DS$34*100 -> 0.02087392151 | DH70: 0.3763104184 | DI70: 0.7763939141 | DJ70: 0.2997727062 | DK70: 0.249907227 | DL70: 0.006957973838 | DM70: 0 | DN70: 1.247796642 | DO70: 0.9294693385 | DP70: 0.8627887559 | DQ70: 0.3345625754 | DR70: 0.02087392151 | DS70: 3.395491233
B71: 187 | C71: Alentejo Central | D71: =+D32/$DS$34*100 -> 0.006378142685 | E71: 0.004058818072 | F71: 0.002899155766 | G71: 0.002319324613 | H71: 0 | I71: 0.003478986919 | J71: 0.003478986919 | K71: 0.002319324613 | L71: 0.00173949346 | M71: 0 | N71: 0.04348733649 | O71: 0.05044531033 | P71: 0.02203358382 | Q71: 0.004058818072 | R71: 0 | S71: 0 | T71: 0 | U71: 0.004058818072 | V71: 0 | W71: 0 | X71: 0 | Y71: 0.004058818072 | Z71: 0.02145375267 | AA71: 0.002899155766 | AB71: 0 | AC71: 0.04058818072 | AD71: 0.01623527229 | AE71: 0.02899155766 | AF71: 0.01043696076 | AG71: 0 | AH71: 0.1014704518 | AI71: 0.1797476575 | AJ71: =+AJ32/$DS$34*100 -> 0.08639484182 | AK71: 0.006957973838 | AL71: 0 | AM71: 0.03073105112 | AN71: 0.02899155766 | AO71: 0.0371091938 | AP71: 0.02029409036 | AQ71: 0 | AR71: 0.3780499119 | AS71: 0.1327813341 | AT71: 0.04174784303 | AU71: 0.006957973838 | AV71: 0 | AW71: 0.1872854625 | AX71: 0.1669913721 | AY71: 0.07653771222 | AZ71: 0.02609240189 | BA71: 0 | BB71: 0 | BC71: 0.00173949346 | BD71: 0.008117636144 | BE71: 0 | BF71: 0 | BG71: 0.00173949346 | BH71: 0.01449577883 | BI71: 0.0556637907 | BJ71: 0.01797476575 | BK71: 0 | BL71: =+BL32/$DS$34*100 -> 0.03884868726 | BM71: 0.005218480379 | BN71: 0.006378142685 | BO71: 0.002899155766 | BP71: 0 | BQ71: 0 | BR71: 0.009277298451 | BS71: 0.1872854625 | BT71: 0.2064198905 | BU71: =+BU32/$DS$34*100 -> 0.01275628537 | BV71: 0.378629743 | BW71: 0.230772799 | BX71: 0.1722098525 | BY71: 0.05334446609 | BZ71: 0.004638649225 | CA71: 0.06842007607 | CB71: 0.07711754337 | CC71: 0.07073940069 | CD71: 0.06726041377 | CE71: 0.01159662306 | CF71: 0.1153863995 | CG71: 0.1345208275 | CH71: 0.1403191391 | CI71: 0.02667223305 | CJ71: 0 | CK71: 0 | CL71: 0 | CM71: 0.005218480379 | CN71: 0 | CO71: 0 | CP71: 0 | CQ71: 0 | CR71: 0 | CS71: 0 | CT71: 0 | CU71: 0.0185545969 | CV71: 0.01159662306 | CW71: 0.121184711 | CX71: 0.004638649225 | CY71: 0.02957138881 | CZ71: 0.09915112719 | DA71: =+DA32/$DS$34*100 -> 0.3751507561 | DB71: 0.1206048799 | DC71: 0.5624362186 | DD71: 0.4586464422 | DE71: 0.01101679191 | DF71: 0.09277298451 | DG71: =+DG32/$DS$34*100 -> 0.05508395955 | DH71: 0.4186380926 | DI71: 0.8407551721 | DJ71: 0.2974533816 | DK71: 0.4168985991 | DL71: 0.006378142685 | DM71: 0 | DN71: 1.401451897 | DO71: 1.06572966 | DP71: 0.9787549865 | DQ71: 0.4603859356 | DR71: 0.03421003804 | DS71: 3.940532517
A72: Algarve | B72: 150 | C72: Algarve | D72: =+D33/$DS$34*100 -> 0.008117636144 | E72: 0.002319324613 | F72: 0 | G72: 0 | H72: 0 | I72: 0 | J72: 0 | K72: 0 | L72: 0 | M72: 0 | N72: 0.03073105112 | O72: 0.02551257074 | P72: 0.005218480379 | Q72: 0 | R72: 0 | S72: 0 | T72: 0 | U72: 0 | V72: 0 | W72: 0 | X72: 0 | Y72: 0 | Z72: 0 | AA72: 0 | AB72: 0 | AC72: 0.08407551721 | AD72: 0.04290750533 | AE72: 0 | AF72: 0 | AG72: 0 | AH72: 0.003478986919 | AI72: 0.00173949346 | AJ72: =+AJ33/$DS$34*100 -> 0.002319324613 | AK72: 0 | AL72: 0 | AM72: 0.2893357454 | AN72: 0.5009741163 | AO72: 0.173949346 | AP72: 0.003478986919 | AQ72: 0 | AR72: 0.008117636144 | AS72: 0.002899155766 | AT72: 0 | AU72: 0 | AV72: 0 | AW72: 0.6343352816 | AX72: 0.6267974766 | AY72: 0.07131923184 | AZ72: 0 | BA72: 0 | BB72: 0 | BC72: 0 | BD72: 0 | BE72: 0 | BF72: 0 | BG72: 0.002899155766 | BH72: 0.01159662306 | BI72: 0.008697467298 | BJ72: 0 | BK72: 0 | BL72: =+BL33/$DS$34*100 -> 0.01565544114 | BM72: 0.004638649225 | BN72: 0 | BO72: 0 | BP72: 0 | BQ72: 0 | BR72: 0.008697467298 | BS72: 0.01217645422 | BT72: 0 | BU72: =+BU33/$DS$34*100 -> 0 | BV72: 0.07247889415 | BW72: 0.04638649225 | BX72: 0.02435290843 | BY72: 0 | BZ72: 0 | CA72: 0.02957138881 | CB72: 0.03826885611 | CC72: 0.02203358382 | CD72: 0.00173949346 | CE72: 0 | CF72: 0.05218480379 | CG72: 0.04986547917 | CH72: 0.0173949346 | CI72: 0 | CJ72: 0 | CK72: 0 | CL72: 0 | CM72: 0 | CN72: 0 | CO72: 0 | CP72: 0 | CQ72: 0 | CR72: 0 | CS72: 0 | CT72: 0 | CU72: 0.01333611652 | CV72: 0.002899155766 | CW72: 0.0632015957 | CX72: 0 | CY72: 0 | CZ72: 0.1298821783 | DA72: =+DA33/$DS$34*100 -> 0.007537804991 | DB72: 0.9683180258 | DC72: 0.01217645422 | DD72: 1.334771315 | DE72: 0 | DF72: 0.02435290843 | DG72: =+DG33/$DS$34*100 -> 0.02377307728 | DH72: 0.02435290843 | DI72: 0.1466972818 | DJ72: 0.09335281566 | DK72: 0.1217645422 | DL72: 0 | DM72: 0 | DN72: 1.239679005 | DO72: 1.371300677 | DP72: 0.3478986919 | DQ72: 0.01043696076 | DR72: 0 | DS72: 2.969315335
A73: Continente | D73: =+D34/$DS$34*100 -> 0.3276046015 | E73: 0.07247889415 | F73: 0.03131088227 | G73: 0.007537804991 | H73: 0.00173949346 | I73: 2.724626589 | J73: 0.36703312 | K73: 0.1959829298 | L73: 0.02377307728 | M73: 0 | N73: 2.253803692 | O73: 0.8477131459 | P73: 0.2841172651 | Q73: 0.03536970034 | R73: 0.001159662306 | S73: 0.08001669914 | T73: 0.1182855552 | U73: 0.1432182948 | V73: 0.007537804991 | W73: 0.0005798311532 | X73: 0.02899155766 | Y73: 0.04348733649 | Z73: 0.07247889415 | AA73: 0.01043696076 | AB73: 0 | AC73: 7.256007051 | AD73: 1.497703869 | AE73: 0.2359912793 | AF73: 0.02145375267 | AG73: 0 | AH73: 4.086070136 | AI73: 2.000417478 | AJ73: =+AJ34/$DS$34*100 -> 0.4482094814 | AK73: 0.01971425921 | AL73: 0.001159662306 | AM73: 4.593422395 | AN73: 3.013382503 | AO73: 0.8622089248 | AP73: 0.1113275814 | AQ73: 0.007537804991 | AR73: 4.308145468 | AS73: 1.204309305 | AT73: 0.5032934409 | AU73: 0.08117636144 | AV73: 0.003478986919 | AW73: 22.46555803 | AX73: 7.290217089 | AY73: 1.083124594 | AZ73: 0.1385796456 | BA73: 0.01043696076 | BB73: 0.2226551628 | BC73: 0.6557890342 | BD73: 0.1037897764 | BE73: 0.009857129604 | BF73: 0 | BG73: 0.8094442898 | BH73: 0.6830410984 | BI73: 0.3792095742 | BJ73: 0.05682345301 | BK73: 0.001159662306 | BL73: =+BL34/$DS$34*100 -> 1.149805177 | BM73: 0.287596252 | BN73: 0.04116801187 | BO73: 0.005798311532 | BP73: 0 | BQ73: 0.8088644587 | BR73: 1.294183134 | BS73: 1.134149736 | BT73: 0.6395537619 | BU73: =+BU34/$DS$34*100 -> 0.03305037573 | BV73: 5.6116059 | BW73: 2.942643102 | BX73: 1.388115781 | BY73: 0.2464282401 | BZ73: 0.01159662306 | CA73: 3.973003062 | CB73: 1.637443177 | CC73: 0.6899990723 | CD73: 0.2545458762 | CE73: 0.03131088227 | CF73: 3.386213935 | CG73: 1.304040263 | CH73: 0.8807635217 | CI73: 0.09915112719 | CJ73: 0 | CK73: 0.005798311532 | CL73: 0.05102514148 | CM73: 0.0916133222 | CN73: 0.01565544114 | CO73: 0 | CP73: 0.1165460618 | CQ73: 0.01797476575 | CR73: 0.006378142685 | CS73: 0 | CT73: 0 | CU73: 0.4406716764 | CV73: 3.311415716 | CW73: 3.422163466 | CX73: 0.3496381854 | CY73: 0.155394749 | CZ73: 9.011155951 | DA73: =+DA34/$DS$34*100 -> 6.555571018 | DB73: 8.58787921 | DC73: 6.100403562 | DD73: 30.98791632 | DE73: 0.9920911031 | DF73: 1.929678078 | DG73: =+DG34/$DS$34*100 -> 1.484367752 | DH73: 3.909801466 | DI73: 10.20038965 | DJ73: 6.586302069 | DK73: 5.670168847 | DL73: 0.1640922163 | DM73: 0.1408989702 | DN73: 64.20818258 | DO73: 25.32876426 | DP73: 8.575122924 | DQ73: 1.784720289 | DR73: 0.1032099453 | DS73: =SUM(DS50:DS72) -> 99.99652101
B76: Legenda
B77: MP | C77: =+C38 -> < 5 ha
B78: P | C78: =+C39 -> >= 5 e < 25 ha
B79: M | C79: >= 25 e < 200 ha
B80: G | C80: >= 200 e < 1 000 ha
B81: MG | C81: >= 1 000 ha
A82: Fonte: GPP a partir de dados IFAP

Sheet CHART-Geral (hidden)
A1: =+"Valores Globais " & TRIM(INDEX(Sheet6!$D$2:$D$169,Sheet3!$C$1)) -> Valores Globais (1) - Nº de Beneficiários
B3: Tipo de Beneficiário: | C3: =INDEX(Sheet6!$S$1:$S$6,Sheet3!$A$2) -> Todos os Produtores do PU | O3: Valor total: | P3: =+Base!$DS$34 -> 172464 | Q3: =+"(" & (INDEX(Sheet6!$G$2:$G$169,Sheet3!$C$1)) & ")" -> (Nº )
AK4: =+Base!A11 -> Norte | AL4: =+SUM(Base!DS11:DS18) -> 89519
C5: =+"Por " & INDEX(Sheet6!$P$3:$P$6,Sheet3!$B$1) -> Por Classes de Superfície Agrícola | M5: Por NUTII | AK5: =+Base!A19 -> Centro | AL5: =+SUM(Base!DS19:DS26) -> 48309
AK6: =+Base!A27 -> AML | AL6: =+SUM(Base!DS27) -> 1591
AK7: =+Base!A28 -> Alentejo | AL7: =+SUM(Base!DS28:DS32) -> 27918
AK8: =+Base!A33 -> Algarve | AL8: =+SUM(Base!DS33) -> 5121
AL9: =SUM(AL4:AL8) -> 172458 | AM9: =+AL9-Base!DS34 -> -6
AK13: Grandes Culturas (Arvenses e Industriais) | AL13: =+SUM(Base!CV34:CY34)+Base!DL34+Base!DM34 -> 13010
AK14: Horticultura Intensiva | AL14: =+Base!CZ34 -> 15541
AK15: Culturas Permanentes | AL15: =+SUM(Base!DA34:DC34) -> 36638
AK16: Leite | AL16: =+Base!DE34 -> 1711
AK17: Outros herbívoros | AL17: =+SUM(Base!DF34:DI34) -> 30223
AK18: Mistas | AL18: =+Base!DD34+Base!DJ34+Base!DK34+Base!CU34 -> 75341
AL19: =SUM(AL13:AL18) -> 172464
A25: Legenda
A26: MP | B26: =+Base!C38 -> < 5 ha
A27: P | B27: =+Base!C39 -> >= 5 e < 25 ha
A28: M | B28: =+Base!C40 -> >= 25 e < 200 ha
A29: G | B29: =+Base!C41 -> >= 200 e < 1 000 ha
A30: MG | B30: =+Base!C42 -> >= 1 000 ha
H31: Por Grande Orientação Produtiva
A59: Fonte: GPP a partir de dados IFAP

Sheet CHART-NUTIII-DE (hidden)
A1: =+INDEX(Sheet6!$D$2:$D$169,Sheet3!$C$1)& " por NUTIII e por " & INDEX(Sheet6!$P$3:$P$6,Sheet3!$B$1) -> (1) - Nº de Beneficiários por NUTIII e por Classes de Superfície Agrícola
A3: =+Base!C7 -> Unidade: Nº | D3: Tipo de Beneficiário: | E3: =INDEX(Sheet6!$S$1:$S$6,Sheet3!$A$2) -> Todos os Produtores do PU | P3: Valor total: | Q3: =+Base!$DS$34 -> 172464 | S3: =+"(" & (INDEX(Sheet6!$G$2:$G$169,Sheet3!$C$1)) & ")" -> (Nº )
A40: Legenda
A41: MP | B41: =+Base!C38 -> < 5 ha
A42: P | B42: =+Base!C39 -> >= 5 e < 25 ha
A43: M | B43: =+Base!C40 -> >= 25 e < 200 ha
A44: G | B44: =+Base!C41 -> >= 200 e < 1 000 ha
A45: MG | B45: =+Base!C42 -> >= 1 000 ha
A47: =+"Estrutura: "&INDEX(Sheet6!$D$2:$D$169,Sheet3!$C$1)& ", por NUTIII e por " & INDEX(Sheet6!$P$3:$P$6,Sheet3!$B$1) -> Estrutura: (1) - Nº de Beneficiários, por NUTIII e por Classes de Superfície Agrícola
A89: Fonte: GPP a partir de dados IFAP

Sheet CHART-NUTIII-GOP (hidden)
A1: =+INDEX(Sheet6!$D$2:$D$169,Sheet3!$C$1)& " por NUTIII e por Grande Orientação Produtiva" -> (1) - Nº de Beneficiários por NUTIII e por Grande Orientação Produtiva
A3: =+Base!C7 -> Unidade: Nº | D3: Tipo de Beneficiário: | E3: =INDEX(Sheet6!$S$1:$S$6,Sheet3!$A$2) -> Todos os Produtores do PU | P3: Valor total: | Q3: =+Base!$DS$34 -> 172464 | S3: =+"(" & (INDEX(Sheet6!$G$2:$G$169,Sheet3!$C$1)) & ")" -> (Nº )
AK5: Grandes Culturas (Arvenses e Industriais) | AL5: Horticultura Intensiva | AM5: Culturas Permanentes | AN5: Leite | AO5: Outros herbívoros | AP5: Mistas
AJ6: =Base!C11 -> Alto Minho | AK6: =SUM(Base!CV11:CY11)+Base!DL11+Base!DM11 -> 391 | AL6: =Base!CZ11 -> 249 | AM6: =SUM(Base!DA11:DC11) -> 971 | AN6: =Base!DE11 -> 57 | AO6: =SUM(Base!DF11:DI11) -> 2543 | AP6: =Base!DD11+Base!DJ11+Base!DK11+Base!CU11 -> 3569
AJ7: =Base!C12 -> Cávado | AK7: =SUM(Base!CV12:CY12)+Base!DL12+Base!DM12 -> 1304 | AL7: =Base!CZ12 -> 462 | AM7: =SUM(Base!DA12:DC12) -> 384 | AN7: =Base!DE12 -> 383 | AO7: =SUM(Base!DF12:DI12) -> 1178 | AP7: =Base!DD12+Base!DJ12+Base!DK12+Base!CU12 -> 3471
AJ8: =Base!C13 -> Ave | AK8: =SUM(Base!CV13:CY13)+Base!DL13+Base!DM13 -> 543 | AL8: =Base!CZ13 -> 154 | AM8: =SUM(Base!DA13:DC13) -> 511 | AN8: =Base!DE13 -> 126 | AO8: =SUM(Base!DF13:DI13) -> 1707 | AP8: =Base!DD13+Base!DJ13+Base!DK13+Base!CU13 -> 1931
AJ9: =Base!C14 -> Área Metropolitana do Porto | AK9: =SUM(Base!CV14:CY14)+Base!DL14+Base!DM14 -> 680 | AL9: =Base!CZ14 -> 340 | AM9: =SUM(Base!DA14:DC14) -> 310 | AN9: =Base!DE14 -> 546 | AO9: =SUM(Base!DF14:DI14) -> 718 | AP9: =Base!DD14+Base!DJ14+Base!DK14+Base!CU14 -> 2049
AJ10: =Base!C15 -> Alto Tâmega | AK10: =SUM(Base!CV15:CY15)+Base!DL15+Base!DM15 -> 744 | AL10: =Base!CZ15 -> 1347 | AM10: =SUM(Base!DA15:DC15) -> 2055 | AN10: =Base!DE15 -> 44 | AO10: =SUM(Base!DF15:DI15) -> 3480 | AP10: =Base!DD15+Base!DJ15+Base!DK15+Base!CU15 -> 5535
AJ11: =Base!C16 -> Tâmega e Sousa | AK11: =SUM(Base!CV16:CY16)+Base!DL16+Base!DM16 -> 508 | AL11: =Base!CZ16 -> 444 | AM11: =SUM(Base!DA16:DC16) -> 1623 | AN11: =Base!DE16 -> 28 | AO11: =SUM(Base!DF16:DI16) -> 800 | AP11: =Base!DD16+Base!DJ16+Base!DK16+Base!CU16 -> 3640
AJ12: =Base!C17 -> Douro | AK12: =SUM(Base!CV17:CY17)+Base!DL17+Base!DM17 -> 230 | AL12: =Base!CZ17 -> 1842 | AM12: =SUM(Base!DA17:DC17) -> 8209 | AN12: =Base!DE17 -> 59 | AO12: =SUM(Base!DF17:DI17) -> 1190 | AP12: =Base!DD17+Base!DJ17+Base!DK17+Base!CU17 -> 8813
AJ13: =Base!C18 -> Terras de Trás-os-Montes | AK13: =SUM(Base!CV18:CY18)+Base!DL18+Base!DM18 -> 753 | AL13: =Base!CZ18 -> 5045 | AM13: =SUM(Base!DA18:DC18) -> 5385 | AN13: =Base!DE18 -> 18 | AO13: =SUM(Base!DF18:DI18) -> 1016 | AP13: =Base!DD18+Base!DJ18+Base!DK18+Base!CU18 -> 12125
AJ14: =Base!C19 -> Oeste | AK14: =SUM(Base!CV19:CY19)+Base!DL19+Base!DM19 -> 108 | AL14: =Base!CZ19 -> 201 | AM14: =SUM(Base!DA19:DC19) -> 989 | AN14: =Base!DE19 -> 7 | AO14: =SUM(Base!DF19:DI19) -> 629 | AP14: =Base!DD19+Base!DJ19+Base!DK19+Base!CU19 -> 609
AJ15: =Base!C20 -> Região de Aveiro | AK15: =SUM(Base!CV20:CY20)+Base!DL20+Base!DM20 -> 1461 | AL15: =Base!CZ20 -> 276 | AM15: =SUM(Base!DA20:DC20) -> 317 | AN15: =Base!DE20 -> 180 | AO15: =SUM(Base!DF20:DI20) -> 362 | AP15: =Base!DD20+Base!DJ20+Base!DK20+Base!CU20 -> 1520
AJ16: =Base!C21 -> Região de Coimbra | AK16: =SUM(Base!CV21:CY21)+Base!DL21+Base!DM21 -> 1617 | AL16: =Base!CZ21 -> 701 | AM16: =SUM(Base!DA21:DC21) -> 522 | AN16: =Base!DE21 -> 78 | AO16: =SUM(Base!DF21:DI21) -> 750 | AP16: =Base!DD21+Base!DJ21+Base!DK21+Base!CU21 -> 2748
AJ17: =Base!C22 -> Região de Leiria | AK17: =SUM(Base!CV22:CY22)+Base!DL22+Base!DM22 -> 271 | AL17: =Base!CZ22 -> 389 | AM17: =SUM(Base!DA22:DC22) -> 392 | AN17: =Base!DE22 -> 13 | AO17: =SUM(Base!DF22:DI22) -> 624 | AP17: =Base!DD22+Base!DJ22+Base!DK22+Base!CU22 -> 1410
AJ18: =Base!C23 -> Viseu Dão Lafões | AK18: =SUM(Base!CV23:CY23)+Base!DL23+Base!DM23 -> 454 | AL18: =Base!CZ23 -> 1044 | AM18: =SUM(Base!DA23:DC23) -> 1056 | AN18: =Base!DE23 -> 36 | AO18: =SUM(Base!DF23:DI23) -> 1260 | AP18: =Base!DD23+Base!DJ23+Base!DK23+Base!CU23 -> 3973
AJ19: =Base!C24 -> Beira Baixa | AK19: =SUM(Base!CV24:CY24)+Base!DL24+Base!DM24 -> 166 | AL19: =Base!CZ24 -> 295 | AM19: =SUM(Base!DA24:DC24) -> 1060 | AN19: =Base!DE24 -> 3 | AO19: =SUM(Base!DF24:DI24) -> 1163 | AP19: =Base!DD24+Base!DJ24+Base!DK24+Base!CU24 -> 1932
AJ20: =Base!C25 -> Médio Tejo | AK20: =SUM(Base!CV25:CY25)+Base!DL25+Base!DM25 -> 117 | AL20: =Base!CZ25 -> 208 | AM20: =SUM(Base!DA25:DC25) -> 1105 | AN20: =Base!DE25 -> 8 | AO20: =SUM(Base!DF25:DI25) -> 535 | AP20: =Base!DD25+Base!DJ25+Base!DK25+Base!CU25 -> 2141
AJ21: =Base!C26 -> Beiras e Serra da Estrela | AK21: =SUM(Base!CV26:CY26)+Base!DL26+Base!DM26 -> 1110 | AL21: =Base!CZ26 -> 1621 | AM21: =SUM(Base!DA26:DC26) -> 2584 | AN21: =Base!DE26 -> 36 | AO21: =SUM(Base!DF26:DI26) -> 2849 | AP21: =Base!DD26+Base!DJ26+Base!DK26+Base!CU26 -> 7372
AJ22: =Base!C27 -> Área Metropolitana de Lisboa | AK22: =SUM(Base!CV27:CY27)+Base!DL27+Base!DM27 -> 208 | AL22: =Base!CZ27 -> 76 | AM22: =SUM(Base!DA27:DC27) -> 283 | AN22: =Base!DE27 -> 21 | AO22: =SUM(Base!DF27:DI27) -> 553 | AP22: =Base!DD27+Base!DJ27+Base!DK27+Base!CU27 -> 449
AJ23: =Base!C28 -> Alentejo Litoral | AK23: =SUM(Base!CV28:CY28)+Base!DL28+Base!DM28 -> 221 | AL23: =Base!CZ28 -> 120 | AM23: =SUM(Base!DA28:DC28) -> 423 | AN23: =Base!DE28 -> 14 | AO23: =SUM(Base!DF28:DI28) -> 1173 | AP23: =Base!DD28+Base!DJ28+Base!DK28+Base!CU28 -> 1497
AJ24: =Base!C29 -> Baixo Alentejo | AK24: =SUM(Base!CV29:CY29)+Base!DL29+Base!DM29 -> 779 | AL24: =Base!CZ29 -> 119 | AM24: =SUM(Base!DA29:DC29) -> 2755 | AN24: =Base!DE29 -> 4 | AO24: =SUM(Base!DF29:DI29) -> 2243 | AP24: =Base!DD29+Base!DJ29+Base!DK29+Base!CU29 -> 2622
AJ25: =Base!C30 -> Lezíria do Tejo | AK25: =SUM(Base!CV30:CY30)+Base!DL30+Base!DM30 -> 779 | AL25: =Base!CZ30 -> 75 | AM25: =SUM(Base!DA30:DC30) -> 644 | AN25: =Base!DE30 -> 21 | AO25: =SUM(Base!DF30:DI30) -> 472 | AP25: =Base!DD30+Base!DJ30+Base!DK30+Base!CU30 -> 1304
AJ26: =Base!C31 -> Alto Alentejo | AK26: =SUM(Base!CV31:CY31)+Base!DL31+Base!DM31 -> 130 | AL26: =Base!CZ31 -> 138 | AM26: =SUM(Base!DA31:DC31) -> 1527 | AN26: =Base!DE31 -> 10 | AO26: =SUM(Base!DF31:DI31) -> 2173 | AP26: =Base!DD31+Base!DJ31+Base!DK31+Base!CU31 -> 1878
AJ27: =Base!C32 -> Alentejo Central | AK27: =SUM(Base!CV32:CY32)+Base!DL32+Base!DM32 -> 299 | AL27: =Base!CZ32 -> 171 | AM27: =SUM(Base!DA32:DC32) -> 1825 | AN27: =Base!DE32 -> 19 | AO27: =SUM(Base!DF32:DI32) -> 2427 | AP27: =Base!DD32+Base!DJ32+Base!DK32+Base!CU32 -> 2055
AJ28: =Base!C33 -> Algarve | AK28: =SUM(Base!CV33:CY33)+Base!DL33+Base!DM33 -> 114 | AL28: =Base!CZ33 -> 224 | AM28: =SUM(Base!DA33:DC33) -> 1704 | AN28: =Base!DE33 -> 0 | AO28: =SUM(Base!DF33:DI33) -> 378 | AP28: =Base!DD33+Base!DJ33+Base!DK33+Base!CU33 -> 2696
AJ29: Continente | AK29: =SUM(AK6:AK28) -> 12987 | AL29: =SUM(AL6:AL28) -> 15541 | AM29: 36634 | AN29: 1711 | AO29: 30223 | AP29: 75339
A47: =+"Estrutura: "&INDEX(Sheet6!$D$2:$D$169,Sheet3!$C$1)& ", por NUTIII e por Grande Orientação Produtiva" -> Estrutura: (1) - Nº de Beneficiários, por NUTIII e por Grande Orientação Produtiva
A89: Fonte: GPP a partir de dados IFAP

Sheet CHART-OTE-DE (hidden)
A1: =+INDEX(Sheet6!$D$2:$D$169,Sheet3!$C$1)& " por OTE e por " & INDEX(Sheet6!$P$3:$P$6,Sheet3!$B$1) -> (1) - Nº de Beneficiários por OTE e por Classes de Superfície Agrícola
A3: =+Base!C7 -> Unidade: Nº | D3: Tipo de Beneficiário: | E3: =INDEX(Sheet6!$S$1:$S$6,Sheet3!$A$2) -> Todos os Produtores do PU | P3: Valor total: | Q3: =+Base!$DS$34 -> 172464 | S3: =+"(" & (INDEX(Sheet6!$G$2:$G$169,Sheet3!$C$1)) & ")" -> (Nº )
A43: Legenda
A44: MP | B44: =+Base!C38 -> < 5 ha
A45: P | B45: =+Base!C39 -> >= 5 e < 25 ha
A46: M | B46: =+Base!C40 -> >= 25 e < 200 ha
A47: G | B47: =+Base!C41 -> >= 200 e < 1 000 ha
A48: MG | B48: =+Base!C42 -> >= 1 000 ha
A50: Fonte: GPP a partir de dados IFAP
A52: =+INDEX(Sheet6!$D$2:$D$169,Sheet3!$C$1)& " por " & INDEX(Sheet6!$P$3:$P$6,Sheet3!$B$1) -> (1) - Nº de Beneficiários por Classes de Superfície Agrícola | H52: =+INDEX(Sheet6!$D$2:$D$169,Sheet3!$C$1)& " por OTE" -> (1) - Nº de Beneficiários por OTE

Sheet Sheet6 (hidden)
A1: Ano | B1: 2023 | F1: desmultiplicador | G1: Unidade | S1: Todos os Produtores do PU | T1: <5
A2: CountOfGPP_ID | B2: 1 | C2: CountOfGPP_ID | D2: =+"("&I2& ") - " & H2 -> (1) - Nº de Beneficiários | E2: 1 | F2: 1 | G2: Nº | H2: Nº de Beneficiários | I2: 1 | S2: Beneficiários do RPA | T2: 1 | X2: ContarDeGPP_ID
A3: SumOfVpp | B3: 2 | C3: SumOfVpp | D3: =+"("&I3& ") - " & H3 -> (2) - Valor de Produção Padrão | E3: 2 | F3: 1000 | G3: 1000 € | H3: Valor de Produção Padrão | I3: =+I2+1 -> 2 | P3: Classe de DE | Q3: 1 | S3: Beneficiários do RPB | T3: 2 | X3: SomaDeVpp
A4: SumOfSAU | B4: 3 | C4: SumOfSAU | D4: (3) - Superfície Elegível (inclui Superfície Agrícola e Agro-Florestal Elegível) | E4: 3 | F4: 1 | G4: ha | H4: Superfície Elegível (inclui Superfície Agrícola e Agro-Florestal Elegível) | I4: =+I3+1 -> 3 | P4: Classes de Superfície Agrícola | Q4: 2 | S4: Apenas Pagamentos ligados e 2º Pilar | T4: 3 | X4: SomaDeSAU
A5: SumOfD_RPB | B5: 4 | C5: SumOfD_RPB | D5: (4) - Nº de Direitos de RPB | E5: 3a | F5: 1 | G5: Nº | H5: Nº de Direitos de RPB | I5: 4 | P5: Classe de Pag. Produtores | Q5: 3 | S5: Apenas outras ajudas 2º Pilar | T5: 4
A6: SumOfMG_Direitos | B6: 5 | C6: SumOfMG_Direitos | D6: (5) - Montante Global dos Direitos de RPB | E6: 3b | F6: 1000 | G6: 1000 € | H6: Montante Global dos Direitos de RPB | I6: 5 | X6: SomaDeSAU_IRRIG
A7: SumOfSAU_est | B7: 6 | C7: SumOfSAU_est | D7: (6) - Superfície Agrícola (inc. Pastagens arbustivas) | E7: 3c | F7: 1 | G7: ha | H7: Superfície Agrícola (inc. Pastagens arbustivas) | I7: 6 | X7: SomaDeCult_Temp
A8: SumOfSAU_IRRIG | B8: 7 | C8: SumOfSAU_IRRIG | D8: (7) - Superfície Agrícola de Regadio | E8: 4 | F8: 1 | G8: ha | H8: Superfície Agrícola de Regadio | I8: 7 | P8: MP | Q8: Muito Pequenas | R8: < 4 000 € de VPP | S8: < 5 ha | T8: < 1250 € | X8: SomaDeSF
A9: SumOfCult_Temp | B9: 8 | C9: SumOfCult_Temp | D9: (8) - Culturas Temporárias | E9: 5 | F9: 1 | G9: ha | H9: Culturas Temporárias | I9: 8 | P9: P | Q9: Pequenas | R9: >= 4 000 e < 25 000 € de VPP | S9: >= 5 e < 25 ha | T9: >= 1 250 e < 5 000 € | X9: SomaDePousio
A10: SumOfSF | B10: 11 | C10: SumOfSF | D10: (9) - Superfície Forrageira Temporária | E10: 6 | F10: 1 | G10: ha | H10: Superfície Forrageira Temporária | I10: 9 | P10: MP | Q10: Médias | R10: >= 25 000 e < 100 000 € de VPP | S10: >= 25 e < 200 ha | T10: >= 5 000 e < 50 000 € | X10: SomaDeCP
A11: SumOfPousio | B11: 12 | C11: SumOfPousio | D11: (10) - Superfície de Pousio | E11: 7 | F11: 1 | G11: ha | H11: Superfície de Pousio | I11: 10 | P11: G | Q11: Grandes | R11: >= 100 000 e < 500 000 € de VPP | S11: >= 200 e < 1 000 ha | T11: >= 50 000 e < 300 000 € | X11: SomaDePP
A12: SumOfCP | B12: 13 | C12: SumOfCP | D12: (11) - Culturas Permanentes | E12: 8 | F12: 1 | G12: ha | H12: Culturas Permanentes | I12: 11 | P12: MG | Q12: Muito Grandes | R12: >= 500 000 € de VPP | S12: >= 1 000 ha | T12: >= 300 000 € | X12: SomaDeCNH
A13: SumOfPP | B13: 14 | C13: SumOfPP | D13: (12) - Superfície de Pastagens Permanentes | E13: 9 | F13: 1 | G13: ha | H13: Superfície de Pastagens Permanentes | I13: 12 | X13: SomaDeCNT
A14: SumOfpp_02cn | B14: 15 | C14: SumOfpp_02cn | D14: (13) - Superfície de Pastagens com encabeçamento inferior a 0,2CN/ha de PP | E14: 9a | F14: 1 | G14: ha | H14: Superfície de Pastagens com encabeçamento inferior a 0,2CN/ha de PP | I14: 13 | X14: SomaDeS_RPB
A15: SumOfCNH | B15: 16 | C15: SumOfCNH | D15: (14) - Nº de Cabeças Normais (Cn) de Herbívoros | E15: 10 | F15: 1 | G15: CN | H15: Nº de Cabeças Normais (Cn) de Herbívoros | I15: 14 | P15: MP | Q15: P | R15: MP | S15: G | T15: MG | X15: SomaDeS_MAA
A16: SumOfCNT | B16: 17 | C16: SumOfCNT | D16: (15) - Nº de Cabeças Normais (Cn) Totais | E16: 11 | F16: 1 | G16: CN | H16: Nº de Cabeças Normais (Cn) Totais | I16: 15 | P16: MP | Q16: P | R16: MP | S16: G | T16: MG | X16: SomaDeS_MZD
A17: SumOfS_RPB | B17: 18 | C17: SumOfS_RPB | D17: (16) - Superfície Agrícola Declarada para Activar Direitos de RPB | E17: 12 | F17: 1 | G17: ha | H17: Superfície Agrícola Declarada para Activar Direitos de RPB | I17: 16 | P17: Muito Pequenas | Q17: Pequenas | R17: Médias | S17: Grandes | T17: Muito Grandes | X17: SomaDeAD_Totais2015
A18: SumOfS_MAA | B18: 19 | C18: SumOfS_MAA | D18: (17) - Superfície Agrícola Declarada para Medidas Agroambientais | E18: 13 | F18: 1 | G18: ha | H18: Superfície Agrícola Declarada para Medidas Agroambientais | I18: 17 | P18: < 4000€ de VPP | Q18: >= 4000 e <25 000€ de VPP | R18: >=25000 e <100 000€ de VPP | S18: >= 100 000 e < 500 000 € de VPP | T18: >= 500 000 € de VPP | X18: Ajudas_desligadas
A19: SumOfS_MZD | B19: 20 | C19: SumOfS_MZD | D19: (18) - Superfície Agrícola Declarada para MZDs | E19: 14 | F19: 1 | G19: ha | H19: Superfície Agrícola Declarada para MZDs | I19: 18 | P19: < 5 ha | Q19: >= 5 e < 25 ha | R19: >= 25 e < 200 ha | S19: = 200 e < 1 000 ha | T19: >= 1 000 ha | X19: SomaDeRPA
A20: SumOfS_ECO | B20: 21 | C20: SumOfS_ECO | D20: (19) - Superfície Agrícola Declarada para Ecoregimess | E20: 15 | F20: 1 | G20: ha | H20: Superfície Agrícola Declarada para Ecoregimess | I20: 19 | P20: =+P$16& CHAR(10) & P18 -> MP < 4000€ de VPP | Q20: P >= 4000 e <25 000€ de VPP | R20: MP >=25000 e <100 000€ de VPP | S20: G >= 100 000 e < 500 000 € de VPP | T20: MG >= 500 000 € de VPP | X20: RPB_Total
A21: SumOfS_ASSO | B21: 22 | C21: SumOfS_ASSO | D21: (20) - Superfície Agrícola Declarada para Pagamentos Associados | E21: 16 | F21: 1 | G21: ha | H21: Superfície Agrícola Declarada para Pagamentos Associados | I21: 20 | P21: MP < 5 ha | Q21: P >= 5 e < 25 ha | R21: MP >= 25 e < 200 ha | S21: G = 200 e < 1 000 ha | T21: MG >= 1 000 ha | X21: SomaDeRPBAJU
A22: SumOfCereais_seq | B22: 23 | C22: SumOfCereais_seq | D22: (21) - Superfície de Cereais De Outono-Inverno | E22: 17 | F22: 1 | G22: ha | H22: Superfície de Cereais De Outono-Inverno | I22: 21 | X22: SomaDeRPBJOV
A23: SumOfMilho_grao | B23: 24 | C23: SumOfMilho_grao | D23: (22) - Superfície de Milho Grão; | E23: 18 | F23: 1 | G23: ha | H23: Superfície de Milho Grão; | I23: 22 | X23: SomaDeGREEN
A24: SumOfArroz | B24: 25 | C24: SumOfArroz | D24: (23) - Superfície de Arroz; | E24: 19 | F24: 1 | G24: ha | H24: Superfície de Arroz; | I24: 23
A25: SumOfOleag_proteag | B25: 26 | C25: SumOfOleag_proteag | D25: (24) - Superfície de Oleaginosas E Proteaginosas; | E25: 20 | F25: 1 | G25: ha | H25: Superfície de Oleaginosas E Proteaginosas; | I25: 24 | X25: Pag_ligados
A26: SumOfHorticolas | B26: 27 | C26: SumOfHorticolas | D26: (25) - Superfície de Hortícolas, Batata, Plantas E Flores; | E26: 21 | F26: 1 | G26: ha | H26: Superfície de Hortícolas, Batata, Plantas E Flores; | I26: 25 | P26: MP | Q26: Muito Pequenas | R26: < 4 000 € de VPP | S26: < 4 ha | T26: < 1250 € | X26: SomaDeVACAS_ALEIT
A27: SumOfForrag_prados_temp | B27: 28 | C27: SumOfForrag_prados_temp | D27: (26) - Superfície de Forragens E Prados Temporários; | E27: 21a | F27: 1 | G27: ha | H27: Superfície de Forragens E Prados Temporários; | I27: 26 | P27: P | Q27: Pequenas | R27: >= 4 000 e < 25 000 € de VPP | S27: >= 4 e < 25 ha | T27: >= 1 250 e < 5 000 € | X27: SomaDePAG_OV_CAP
A28: SumOfPousios | B28: 29 | C28: SumOfPousios | D28: (27) - Superfície de Pousios; | E28: 22 | F28: 1 | G28: ha | H28: Superfície de Pousios; | I28: 27 | P28: MP | Q28: Médias | R28: >= 25 000 e < 100 000 € de VPP | S28: >= 25 e < 200 ha | T28: >= 5 000 e < 50 000 € | X28: SomaDeVACAS_leite
A29: SumOfPomares | B29: 30 | C29: SumOfPomares | D29: (28) - Superfície de Pomares; | E29: 23 | F29: 1 | G29: ha | H29: Superfície de Pomares; | I29: 28 | P29: G | Q29: Grandes | R29: >= 100 000 e < 500 000 € de VPP | S29: = 200 e < 1 000 ha | T29: >= 50 000 e < 300 000 € | X29: SomaDePAG_COMPL_Leite
A30: SumOfVinha | B30: 31 | C30: SumOfVinha | D30: (29) - Superfície de Vinha; | E30: 24 | F30: 1 | G30: ha | H30: Superfície de Vinha; | I30: 29 | P30: MG | Q30: Muito Grandes | R30: >= 500 000 € de VPP | S30: >= 1 000 ha | T30: >= 300 000 € | X30: SomaDePAG_TOMATE
A31: SumOfOlival | B31: 32 | C31: SumOfOlival | D31: (30) - Superfície de Olival; | E31: 25 | F31: 1 | G31: ha | H31: Superfície de Olival; | I31: 30 | X31: SomaDePAG_ARROZ
A32: SumOfPast_prados_perm | B32: 34 | C32: SumOfPast_prados_perm | D32: (31) - Superfície de Prados E Pastagens Permanentes; | E32: 26 | F32: 1 | G32: ha | H32: Superfície de Prados E Pastagens Permanentes; | I32: 31
A33: SumOfOutras culturas | B33: 35 | C33: SumOfOutras culturas | D33: (32) - Superfície de Outras Culturas; | E33: 27 | F33: 1 | G33: ha | H33: Superfície de Outras Culturas; | I33: 32
A34: SumOfVacas_leite | B34: 33 | C34: SumOfVacas_leite | D34: (33) - Cabeças de Vacas Leiteiras | E34: 28 | F34: 1 | G34: Cab. | H34: Cabeças de Vacas Leiteiras | I34: 33
A35: SumOfVacas_aleit | B35: 36 | C35: SumOfVacas_aleit | D35: (34) - Cabeças de Vacas Aleitantes | E35: 29 | F35: 1 | G35: Cab. | H35: Cabeças de Vacas Aleitantes | I35: 34
A36: SumOfOutros_bov | B36: 37 | C36: SumOfOutros_bov | D36: (35) - Cabeças de Outros Bovinos | E36: 30 | F36: 1 | G36: Cab. | H36: Cabeças de Outros Bovinos | I36: 35
A37: SumOfOvelhas | B37: 38 | C37: SumOfOvelhas | D37: (36) - Cabeças de Ovelhas | E37: 31 | F37: 1 | G37: Cab. | H37: Cabeças de Ovelhas | I37: 36
A38: SumOfOutros_ovinos | B38: 39 | C38: SumOfOutros_ovinos | D38: (37) - Cabeças de Outros Ovinos | E38: 32 | F38: 1 | G38: Cab. | H38: Cabeças de Outros Ovinos | I38: 37 | S38: Não classificadas | T38: Arvenses e Outras Cult pred. Regadio | U38: Arvenses e Outras Cult pred. Sequeiro | V38: Arroz | W38: Horticultura e Industriais | X38: Horticultura e Floricultura | Y38: Vinhos | Z38: Fruticultura | AA38: Olival | AB38: Policultura | AC38: Bovinos Leite | AD38: Bov. Carne semi-int. (>1 < 3CN por ha SF) | AE38: Bov. Carne Int (>= 3CN por ha SF) | AF38: Bov. Carne Extensivos (<1 CN por ha SF) | AG38: Outros Ruminantes | AH38: Mistas | AI38: Pousio e Pastagem | AJ38: Tomate Indústria | AK38: Plantas tuberosas
A39: SumOfCabras | B39: 40 | C39: SumOfCabras | D39: (38) - Cabeças de Cabras | E39: 33 | F39: 1 | G39: Cab. | H39: Cabeças de Cabras | I39: 38
A40: SumOfOutros_cap | B40: 41 | C40: SumOfOutros_cap | D40: (39) - Cabeças de Outros Caprinos | E40: 34 | F40: 1 | G40: Cab. | H40: Cabeças de Outros Caprinos | I40: 39
A41: PP | D41: =+P41&"("&I41& ") - " & H41 & " " & IF(LEN(O41)>2,O41,"") -> (40) - Total de Pagamentos aos produtores (42+67) | F41: 1000 | G41: 1000 € | H41: Total de Pagamentos aos produtores | I41: 40 | J41: 42 | K41: 67 | O41: =+"("&J41&IF(LEN(K41)>0,"+","")&K41&IF(LEN(L41)>0,"+","")&L41&IF(LEN(M41)>0,"+","")&M41&")" -> (42+67)
A42: Pagamento ambiental | D42: =+P42&"("&I42& ") - " & H42 & " " & IF(LEN(O42)>2,O42,"") -> (41) - Pagamentos Ambientais (59+68+81+82) | F42: 1000 | G42: 1000 € | H42: Pagamentos Ambientais | I42: 41 | J42: 59 | K42: 68 | L42: 81 | M42: 82 | O42: (59+68+81+82)
A43: Primeiro Pilar | D43: (42) - Pagamentos Primeiro Pilar (43+56+59) | F43: 1000 | G43: 1000 € | H43: Pagamentos Primeiro Pilar | I43: 42 | J43: 43 | K43: 56 | L43: 59 | O43: (43+56+59)
A44: Rend_Resiliencia | B44: 42 | C44: Rend_Resiliencia | D44: (43) - Pagamentos Rendimento e resiliência (44+45) | E44: 35 | F44: 1000 | G44: 1000 € | H44: Pagamentos Rendimento e resiliência | I44: 43 | J44: 44 | K44: 45 | O44: (44+45)
A45: SumOfA_1_1 | B45: 43 | C45: SumOfA_1_1 | D45: (44) - Pagamentos Apoio ao Rendimento Base | E45: 36 | F45: 1000 | G45: 1000 € | H45: Pagamentos Apoio ao Rendimento Base | I45: 44 | O45: ()
A46: Apoios_Associados | B46: 44 | C46: Apoios_Associados | D46: (45) - Pagamentos Apoio Associado (46+…+55) | E46: 37 | F46: 1000 | G46: 1000 € | H46: Pagamentos Apoio Associado | I46: 45 | J46: 46 | K46: … | L46: 55 | O46: (46+…+55)
A47: SumOfA_1_2_1 | B47: 45 | C47: SumOfA_1_2_1 | D47: (46) - Pagamentos Pagamento por vaca em aleitamento | E47: 38 | F47: 1000 | G47: 1000 € | H47: Pagamentos Pagamento por vaca em aleitamento | I47: 46 | O47: ()
A48: SumOfA_1_2_2 | B48: 46 | C48: SumOfA_1_2_2 | D48: (47) - Pagamentos Pagamento aos pequenos ruminantes | E48: 39 | F48: 1000 | G48: 1000 € | H48: Pagamentos Pagamento aos pequenos ruminantes | I48: 47 | O48: ()
A49: SumOfA_1_2_3 | B49: 47 | C49: SumOfA_1_2_3 | D49: (48) - Pagamentos Pagamento ao leite de vaca | E49: 40 | F49: 1000 | G49: 1000 € | H49: Pagamentos Pagamento ao leite de vaca | I49: 48 | O49: ()
A50: SumOfA_1_2_4 | B50: 48 | C50: SumOfA_1_2_4 | D50: (49) - Pagamentos Pagamento ao arroz | E50: 41 | F50: 1000 | G50: 1000 € | H50: Pagamentos Pagamento ao arroz | I50: 49 | O50: ()
A51: SumOfA_1_2_5 | B51: 49 | C51: SumOfA_1_2_5 | D51: (50) - Pagamentos Pagamento ao tomate para indústria | E51: 42 | F51: 1000 | G51: 1000 € | H51: Pagamentos Pagamento ao tomate para indústria | I51: 50 | O51: ()
A52: SumOfA_1_2_6 | B52: 50 | C52: SumOfA_1_2_6 | D52: (51) - Pagamentos Pagamento às proteaginosas | E52: 43 | F52: 1000 | G52: 1000 € | H52: Pagamentos Pagamento às proteaginosas | I52: 51 | O52: ()
A53: SumOfA_1_2_7 | B53: 51 | C53: SumOfA_1_2_7 | D53: (52) - Pagamentos Pagamento aos cereais praganosos | E53: 44 | F53: 1000 | G53: 1000 € | H53: Pagamentos Pagamento aos cereais praganosos | I53: 52 | O53: ()
A54: SumOfA_1_2_8 | B54: 52 | C54: SumOfA_1_2_8 | D54: (53) - Pagamentos Pagamento ao milho grão | E54: 45 | F54: 1000 | G54: 1000 € | H54: Pagamentos Pagamento ao milho grão | I54: 53 | O54: ()
A55: SumOfA_1_2_9 | B55: 53 | C55: SumOfA_1_2_9 | D55: (54) - Pagamentos Pagamento ao milho silagem | E55: 46 | F55: 1000 | G55: 1000 € | H55: Pagamentos Pagamento ao milho silagem | I55: 54 | O55: ()
A56: SumOfA_1_2_10 | B56: 54 | C56: SumOfA_1_2_10 | D56: (55) - Pagamentos Pagamento à multiplicação de sementes certificadas | E56: 47 | F56: 1000 | G56: 1000 € | H56: Pagamentos Pagamento à multiplicação de sementes certificadas | I56: 55 | O56: ()
A57: Equidade | B57: 55 | C57: Equidade | D57: (56) - Pagamentos Equidade (57+58) | E57: 48 | F57: 1000 | G57: 1000 € | H57: Pagamentos Equidade | I57: 56 | J57: 57 | K57: 58 | O57: =+"("&J57&IF(LEN(K57)>0,"+","")&K57&IF(LEN(L57)>0,"+","")&L57&IF(LEN(M57)>0,"+","")&M57&")" -> (57+58)
A58: SumOfA_2_1 | B58: 56 | C58: SumOfA_2_1 | D58: (57) - Pagamentos Pagamento aos Pequenos Agricultores | E58: 49 | F58: 1000 | G58: 1000 € | H58: Pagamentos Pagamento aos Pequenos Agricultores | I58: 57 | O58: ()
A59: SumOfA_2_2 | B59: 57 | C59: SumOfA_2_2 | D59: (58) - Pagamentos Apoio Redistributivo Complementar | E59: 50 | F59: 1000 | G59: 1000 € | H59: Pagamentos Apoio Redistributivo Complementar | I59: 58 | O59: ()
A60: Sustentabilidade_1p | B60: 58 | C60: Sustentabilidade_1p | D60: (59) - Pagamentos Sustentabilidade 1º Pilar (60+…+66) | E60: 51 | F60: 1000 | G60: 1000 € | H60: Pagamentos Sustentabilidade 1º Pilar | I60: 59 | J60: 60 | K60: … | L60: 66 | O60: (60+…+66)
A61: SumOfA_3_1 | B61: 59 | C61: SumOfA_3_1 | D61: (60) - Pagamentos Agricultura biológica | E61: 52 | F61: 1000 | G61: 1000 € | H61: Pagamentos Agricultura biológica | I61: 60 | O61: ()
A62: SumOfA_3_2 | B62: 60 | C62: SumOfA_3_2 | D62: (61) - Pagamentos Produção integrada – Culturas agrícolas | E62: 53 | F62: 1000 | G62: 1000 € | H62: Pagamentos Produção integrada – Culturas agrícolas | I62: 61 | O62: ()
A63: SumOfA_3_3_1 | B63: 61 | C63: SumOfA_3_3_1 | D63: (62) - Pagamentos Maneio da pastagem permanente | E63: 54 | F63: 1000 | G63: 1000 € | H63: Pagamentos Maneio da pastagem permanente | I63: 62 | O63: ()
A64: SumOfA_3_3_2 | B64: 62 | C64: SumOfA_3_3_2 | D64: (63) - Pagamentos Promoção da fertilização orgânica | E64: 55 | F64: 1000 | G64: 1000 € | H64: Pagamentos Promoção da fertilização orgânica | I64: 63 | O64: ()
A65: SumOfA_3_4 | B65: 63 | C65: SumOfA_3_4 | D65: (64) - Pagamentos Melhorar a eficiência alimentar animal | E65: 56 | F65: 1000 | G65: 1000 € | H65: Pagamentos Melhorar a eficiência alimentar animal | I65: 64 | O65: ()
A66: SumOfA_3_5 | B66: 64 | C66: SumOfA_3_5 | D66: (65) - Pagamentos Bem-estar animal e uso racional de antimicrobianos | E66: 57 | F66: 1000 | G66: 1000 € | H66: Pagamentos Bem-estar animal e uso racional de antimicrobianos | I66: 65 | O66: =+"("&J66&IF(LEN(K66)>0,"+","")&K66&IF(LEN(L66)>0,"+","")&L66&IF(LEN(M66)>0,"+","")&M66&")" -> ()
A67: SumOfA_3_6 | B67: 65 | C67: SumOfA_3_6 | D67: (66) - Pagamentos Práticas promotoras da biodiversidade | E67: 58 | F67: 1000 | G67: 1000 € | H67: Pagamentos Práticas promotoras da biodiversidade | I67: 66 | O67: ()
A68: seg_pilar | D68: (67) - Pagamentos Segundo Pilar (68+77+81+82) | F68: 1000 | G68: 1000 € | H68: Pagamentos Segundo Pilar | I68: 67 | J68: 68 | K68: 77 | L68: 81 | M68: 82 | O68: =+"("&J68&IF(LEN(K68)>0,"+","")&K68&IF(LEN(L68)>0,"+","")&L68&IF(LEN(M68)>0,"+","")&M68&")" -> (68+77+81+82)
A69: Comprom_Ambi_Clima | B69: 66 | C69: Comprom_Ambi_Clima | D69: (68) - Pagamentos Compromissos Ambente e Clima 2º Pilar (69+…+76) | E69: 59 | F69: 1000 | G69: 1000 € | H69: Pagamentos Compromissos Ambente e Clima 2º Pilar | I69: =+I68+1 -> 68 | J69: 69 | K69: … | L69: 76 | O69: (69+…+76)
A70: SumOfC_1_1_1_1_1 | B70: 67 | C70: SumOfC_1_1_1_1_1 | D70: (69) - Pagamentos Conservação do solo – Sementeira direta | E70: 60 | F70: 1000 | G70: 1000 € | H70: Pagamentos Conservação do solo – Sementeira direta | I70: 69 | O70: =+"("&J70&IF(LEN(K70)>0,"+","")&K70&IF(LEN(L70)>0,"+","")&L70&IF(LEN(M70)>0,"+","")&M70&")" -> ()
A71: SumOfC_1_1_1_1_2 | B71: 68 | C71: SumOfC_1_1_1_1_2 | D71: (70) - Pagamentos Conservação do solo - Enrelvamento | E71: 61 | F71: 1000 | G71: 1000 € | H71: Pagamentos Conservação do solo - Enrelvamento | I71: 70 | O71: ()
A72: SumOfC_1_1_1_1_3 | B72: 69 | C72: SumOfC_1_1_1_1_3 | D72: (71) - Pagamentos Conservação do solo - Pastagens Biodiversas | E72: 62 | F72: 1000 | G72: 1000 € | H72: Pagamentos Conservação do solo - Pastagens Biodiversas | I72: 71 | O72: ()
A73: SumOfC_1_1_1_2 | B73: 70 | C73: SumOfC_1_1_1_2 | D73: (72) - Pagamentos Uso eficiente da água | E73: 63 | F73: 1000 | G73: 1000 € | H73: Pagamentos Uso eficiente da água | I73: 72 | O73: ()
A74: SumOfC_1_1_2_1 | B74: 71 | C74: SumOfC_1_1_2_1 | D74: (73) - Pagamentos Montados e lameiros | E74: 64 | F74: 1000 | G74: 1000 € | H74: Pagamentos Montados e lameiros | I74: 73 | O74: ()
A75: SumOfC_1_1_2_2 | B75: 72 | C75: SumOfC_1_1_2_2 | D75: (74) - Pagamentos Culturas permanentes e paisagens tradicionais | E75: 65 | F75: 1000 | G75: 1000 € | H75: Pagamentos Culturas permanentes e paisagens tradicionais | I75: 74 | O75: ()
A76: SumOfC_1_1_3 | B76: 73 | C76: SumOfC_1_1_3 | D76: (75) - Pagamentos Mosaico agroflorestal | E76: 66 | F76: 1000 | G76: 1000 € | H76: Pagamentos Mosaico agroflorestal | I76: 75 | O76: ()
A77: SumOfC_1_1_4 | B77: 74 | C77: SumOfC_1_1_4 | D77: (76) - Pagamentos Manutenção de raças autóctones | E77: 67 | F77: 1000 | G77: 1000 € | H77: Pagamentos Manutenção de raças autóctones | I77: 76 | O77: ()
A78: MZD | B78: 75 | C78: MZD | D78: (77) - Pagamentos Manutenção da atividade agrícola em zonas com condicionantes (78+79+80) | E78: 68 | F78: 1000 | G78: 1000 € | H78: Pagamentos Manutenção da atividade agrícola em zonas com condicionantes | I78: 77 | J78: 78 | K78: 79 | L78: 80 | O78: =+"("&J78&IF(LEN(K78)>0,"+","")&K78&IF(LEN(L78)>0,"+","")&L78&IF(LEN(M78)>0,"+","")&M78&")" -> (78+79+80)
A79: SumOfM9_M | B79: 76 | C79: SumOfM9_M | D79: (78) - Pagamentos Manutenção da atividade agrícola em zonas montanha | E79: 69 | F79: 1000 | G79: 1000 € | H79: Pagamentos Manutenção da atividade agrícola em zonas montanha | I79: 78 | O79: =+"("&J79&IF(LEN(K79)>0,"+","")&K79&IF(LEN(L79)>0,"+","")&L79&IF(LEN(M79)>0,"+","")&M79&")" -> ()
A80: SumOfM9_E | B80: 77 | C80: SumOfM9_E | D80: (79) - Pagamentos Manutenção da atividade agrícola em zonas específicas | E80: 70 | F80: 1000 | G80: 1000 € | H80: Pagamentos Manutenção da atividade agrícola em zonas específicas | I80: 79 | O80: ()
A81: SumOfM9_O | B81: 78 | C81: SumOfM9_O | D81: (80) - Pagamentos Manutenção da atividade agrícola em outras zonas | E81: 71 | F81: 1000 | G81: 1000 € | H81: Pagamentos Manutenção da atividade agrícola em outras zonas | I81: 80 | O81: ()
A82: SumOfM7_3_1 | B82: 79 | C82: SumOfM7_3_1 | D82: (81) - Pagamentos Rede Natura | E82: 72 | F82: 1000 | G82: 1000 € | H82: Pagamentos Rede Natura | I82: 81 | O82: ()
A83: Abor_TErrit | B83: 81 | C83: Abor_TErrit | D83: (82) - Pagamentos Abordagem Territorial (83+…+87) | E83: 74 | F83: 1000 | G83: 1000 € | H83: Pagamentos Abordagem Territorial | I83: 82 | J83: 83 | K83: … | L83: 87 | O83: (83+…+87)
A84: SumOfD_2_1 | B84: 82 | C84: SumOfD_2_1 | D84: (83) - Pagamentos Planos Zonais Agroambientais | E84: 75 | F84: 1000 | G84: 1000 € | H84: Pagamentos Planos Zonais Agroambientais | I84: 83 | O84: ()
A85: SumOfD_2_2 | B85: 83 | C85: SumOfD_2_2 | D85: (84) - Pagamentos Gestão do montado por resultados | E85: 76 | F85: 1000 | G85: 1000 € | H85: Pagamentos Gestão do montado por resultados | I85: 84 | O85: ()
A86: SumOfD_2_3 | B86: 84 | C86: SumOfD_2_3 | D86: (85) - Pagamentos Gestão integrada em zonas críticas | E86: 77 | F86: 1000 | G86: 1000 € | H86: Pagamentos Gestão integrada em zonas críticas | I86: 85 | O86: ()
A87: SumOfD_2_4 | B87: 85 | C87: SumOfD_2_4 | D87: (86) - Pagamentos Proteção de espécies com estatuto – Superfície agrícola | E87: 78 | F87: 1000 | G87: 1000 € | H87: Pagamentos Proteção de espécies com estatuto – Superfície agrícola | I87: 86 | O87: ()
A88: SumOfD_2_5 | B88: 86 | C88: SumOfD_2_5 | D88: (87) - Pagamentos Proteção de espécies com estatuto – Silvoambientais | E88: 79 | F88: 1000 | G88: 1000 € | H88: Pagamentos Proteção de espécies com estatuto – Silvoambientais | I88: 87 | O88: ()
A89: QTRend_Resiliencia | B89: 87 | C89: QTRend_Resiliencia | D89: =+"("&I89& ") - " & H89 -> (88) - Unidades Pagas em Rendimento e resiliência | E89: 80 | F89: 0 | G89: ha | H89: Unidades Pagas em Rendimento e resiliência | I89: 88 | O89: ()
A90: QTSumOfA_1_1 | B90: 88 | C90: QTSumOfA_1_1 | D90: (89) - Unidades Pagas em Apoio ao Rendimento Base | E90: 81 | F90: 1 | G90: ha | H90: Unidades Pagas em Apoio ao Rendimento Base | I90: 89 | O90: ()
A91: QTApoios_Associados | B91: 89 | C91: QTApoios_Associados | D91: (90) - Unidades Pagas em Apoio Associado | E91: 82 | F91: 0 | G91: ha | H91: Unidades Pagas em Apoio Associado | I91: 90 | O91: ()
A92: QTSumOfA_1_2_1 | B92: 90 | C92: QTSumOfA_1_2_1 | D92: (91) - Unidades Pagas em Pagamento por vaca em aleitamento | E92: 83 | F92: 1 | G92: Cab. | H92: Unidades Pagas em Pagamento por vaca em aleitamento | I92: 91
A93: QTSumOfA_1_2_2 | B93: 91 | C93: QTSumOfA_1_2_2 | D93: (92) - Unidades Pagas em Pagamento aos pequenos ruminantes | E93: 84 | F93: 1 | G93: Cab. | H93: Unidades Pagas em Pagamento aos pequenos ruminantes | I93: 92
A94: QTSumOfA_1_2_3 | B94: 92 | C94: QTSumOfA_1_2_3 | D94: (93) - Unidades Pagas em Pagamento ao leite de vaca | E94: 85 | F94: 1 | G94: Cab. | H94: Unidades Pagas em Pagamento ao leite de vaca | I94: 93
A95: QTSumOfA_1_2_4 | B95: 93 | C95: QTSumOfA_1_2_4 | D95: (94) - Unidades Pagas em Pagamento ao arroz | E95: 86 | F95: 1 | G95: ha | H95: Unidades Pagas em Pagamento ao arroz | I95: 94
A96: QTSumOfA_1_2_5 | B96: 94 | C96: QTSumOfA_1_2_5 | D96: (95) - Unidades Pagas em Pagamento ao tomate para indústria | E96: 87 | F96: 1 | G96: ha | H96: Unidades Pagas em Pagamento ao tomate para indústria | I96: 95
A97: QTSumOfA_1_2_6 | B97: 95 | C97: QTSumOfA_1_2_6 | D97: (96) - Unidades Pagas em Pagamento às proteaginosas | E97: 88 | F97: 1 | G97: ha | H97: Unidades Pagas em Pagamento às proteaginosas | I97: 96
A98: QTSumOfA_1_2_7 | B98: 96 | C98: QTSumOfA_1_2_7 | D98: (97) - Unidades Pagas em Pagamento aos cereais praganosos | E98: 89 | F98: 1 | G98: ha | H98: Unidades Pagas em Pagamento aos cereais praganosos | I98: 97
A99: QTSumOfA_1_2_8 | B99: 97 | C99: QTSumOfA_1_2_8 | D99: (98) - Unidades Pagas em Pagamento ao milho grão | E99: 90 | F99: 1 | G99: ha | H99: Unidades Pagas em Pagamento ao milho grão | I99: 98
A100: QTSumOfA_1_2_9 | B100: 98 | C100: QTSumOfA_1_2_9 | D100: (99) - Unidades Pagas em Pagamento ao milho silagem | E100: 91 | F100: 1 | G100: ha | H100: Unidades Pagas em Pagamento ao milho silagem | I100: 99
A101: QTSumOfA_1_2_10 | B101: 99 | C101: QTSumOfA_1_2_10 | D101: (100) - Unidades Pagas em Pagamento à multiplicação de sementes certificadas | E101: 92 | F101: 1 | G101: ha | H101: Unidades Pagas em Pagamento à multiplicação de sementes certificadas | I101: 100
A102: QTEquidade | B102: 100 | C102: QTEquidade | D102: (101) - Unidades Pagas em Equidade | E102: 93 | F102: 1 | G102: ha | H102: Unidades Pagas em Equidade | I102: 101
A103: QTSumOfA_2_1 | B103: 101 | C103: QTSumOfA_2_1 | D103: (102) - Unidades Pagas em Pagamento aos Pequenos Agricultores | E103: 94 | F103: 1 | G103: Benf | H103: Unidades Pagas em Pagamento aos Pequenos Agricultores | I103: 102
A104: QTSumOfA_2_2 | B104: 102 | C104: QTSumOfA_2_2 | D104: (103) - Unidades Pagas em Apoio Redistributivo Complementar | E104: 95 | F104: 1 | G104: ha | H104: Unidades Pagas em Apoio Redistributivo Complementar | I104: 103
A105: QTSustentabilidade_1p | B105: 103 | C105: QTSustentabilidade_1p | D105: (104) - Unidades Pagas em Sustentabilidade 1º Pilar | E105: 96 | F105: 0 | H105: Unidades Pagas em Sustentabilidade 1º Pilar | I105: 104
A106: QTSumOfA_3_1 | B106: 104 | C106: QTSumOfA_3_1 | D106: (105) - Unidades Pagas em Agricultura biológica | E106: 97 | F106: 1 | G106: ha | H106: Unidades Pagas em Agricultura biológica | I106: 105
A107: QTSumOfA_3_2 | B107: 105 | C107: QTSumOfA_3_2 | D107: (106) - Unidades Pagas em Produção integrada – Culturas agrícolas | F107: 1 | G107: ha | H107: Unidades Pagas em Produção integrada – Culturas agrícolas | I107: 106
A108: QTSumOfA_3_3_1 | B108: 106 | C108: QTSumOfA_3_3_1 | D108: (107) - Unidades Pagas em Maneio da pastagem permanente | F108: 1 | G108: ha | H108: Unidades Pagas em Maneio da pastagem permanente | I108: 107
A109: QTSumOfA_3_3_2 | C109: QTSumOfA_3_3_2 | D109: (108) - Unidades Pagas em Promoção da fertilização orgânica | F109: 1 | G109: ha | H109: Unidades Pagas em Promoção da fertilização orgânica | I109: 108
A110: QTSumOfA_3_4 | C110: QTSumOfA_3_4 | D110: (109) - Unidades Pagas em Melhorar a eficiência alimentar animal | F110: 1 | G110: Cab. | H110: Unidades Pagas em Melhorar a eficiência alimentar animal | I110: 109
A111: QTSumOfA_3_5 | C111: QTSumOfA_3_5 | D111: (110) - Unidades Pagas em Bem-estar animal e uso racional de antimicrobianos | F111: 1 | G111: Cab. | H111: Unidades Pagas em Bem-estar animal e uso racional de antimicrobianos | I111: 110
A112: QTSumOfA_3_6 | C112: QTSumOfA_3_6 | D112: (111) - Unidades Pagas em Práticas promotoras da biodiversidade | F112: 1 | G112: ha | H112: Unidades Pagas em Práticas promotoras da biodiversidade | I112: 111
A113: QTComprom_Ambi_Clima | C113: QTComprom_Ambi_Clima | D113: (112) - Unidades Pagas em Compromissos Ambente e Clima 2º Pilar | F113: 1 | G113: ha | H113: Unidades Pagas em Compromissos Ambente e Clima 2º Pilar | I113: 112
A114: QTSumOfC_1_1_1_1_1 | C114: QTSumOfC_1_1_1_1_1 | D114: (113) - Unidades Pagas em Conservação do solo – Sementeira direta | F114: 1 | G114: ha | H114: Unidades Pagas em Conservação do solo – Sementeira direta | I114: 113
A115: QTSumOfC_1_1_1_1_2 | C115: QTSumOfC_1_1_1_1_2 | D115: (114) - Unidades Pagas em Conservação do solo - Enrelvamento | F115: 1 | G115: ha | H115: Unidades Pagas em Conservação do solo - Enrelvamento | I115: 114
A116: QTSumOfC_1_1_1_1_3 | C116: QTSumOfC_1_1_1_1_3 | D116: (115) - Unidades Pagas em Conservação do solo - Pastagens Biodiversas | F116: 1 | G116: ha | H116: Unidades Pagas em Conservação do solo - Pastagens Biodiversas | I116: 115
A117: QTSumOfC_1_1_1_2 | C117: QTSumOfC_1_1_1_2 | D117: (116) - Unidades Pagas em Uso eficiente da água | F117: 1 | G117: ha | H117: Unidades Pagas em Uso eficiente da água | I117: 116
A118: QTSumOfC_1_1_2_1 | C118: QTSumOfC_1_1_2_1 | D118: (117) - Unidades Pagas em Montados e lameiros | F118: 1 | G118: ha | H118: Unidades Pagas em Montados e lameiros | I118: 117
A119: QTSumOfC_1_1_2_2 | C119: QTSumOfC_1_1_2_2 | D119: (118) - Unidades Pagas em Culturas permanentes e paisagens tradicionais | F119: 1 | G119: ha | H119: Unidades Pagas em Culturas permanentes e paisagens tradicionais | I119: 118
A120: QTSumOfC_1_1_3 | C120: QTSumOfC_1_1_3 | D120: (119) - Unidades Pagas em Mosaico agroflorestal | F120: 1 | G120: ha | H120: Unidades Pagas em Mosaico agroflorestal | I120: 119
A121: QTSumOfC_1_1_4 | C121: QTSumOfC_1_1_4 | D121: (120) - Unidades Pagas em Manutenção de raças autóctones | F121: 1 | G121: Cab. | H121: Unidades Pagas em Manutenção de raças autóctones | I121: 120
A122: QTMZD | C122: QTMZD | D122: (121) - Unidades Pagas em Manutenção da atividade agrícola em zonas com condicionantes | F122: 1 | G122: ha | H122: Unidades Pagas em Manutenção da atividade agrícola em zonas com condicionantes | I122: 121
A123: QTSumOfM9_M | C123: QTSumOfM9_M | D123: (122) - Unidades Pagas em Manutenção da atividade agrícola em zonas montanha | F123: 1 | G123: ha | H123: Unidades Pagas em Manutenção da atividade agrícola em zonas montanha | I123: 122
A124: QTSumOfM9_E | C124: QTSumOfM9_E | D124: (123) - Unidades Pagas em Manutenção da atividade agrícola em zonas específicas | F124: 1 | G124: ha | H124: Unidades Pagas em Manutenção da atividade agrícola em zonas específicas | I124: 123
A125: QTSumOfM9_O | C125: QTSumOfM9_O | D125: (124) - Unidades Pagas em Manutenção da atividade agrícola em outras zonas | F125: 1 | G125: ha | H125: Unidades Pagas em Manutenção da atividade agrícola em outras zonas | I125: 124
A126: QTSumOfM7_3_1 | C126: QTSumOfM7_3_1 | D126: (125) - Unidades Pagas em Rede Natura | F126: 1 | G126: ha | H126: Unidades Pagas em Rede Natura | I126: 125
A127: QTAbor_TErrit | C127: QTAbor_TErrit | D127: (126) - Unidades Pagas em Abordagem Territorial | F127: 0 | H127: Unidades Pagas em Abordagem Territorial | I127: 126
A128: QTSumOfD_2_1 | C128: QTSumOfD_2_1 | D128: (127) - Unidades Pagas em Planos Zonais Agroambientais | F128: 1 | G128: ha | H128: Unidades Pagas em Planos Zonais Agroambientais | I128: 127
A129: QTSumOfD_2_2 | C129: QTSumOfD_2_2 | D129: (128) - Unidades Pagas em Gestão do montado por resultados | F129: 1 | G129: ha | H129: Unidades Pagas em Gestão do montado por resultados | I129: 128
A130: QTSumOfD_2_3 | C130: QTSumOfD_2_3 | D130: (129) - Unidades Pagas em Gestão integrada em zonas críticas | F130: 1 | G130: ha | H130: Unidades Pagas em Gestão integrada em zonas críticas | I130: 129
A131: QTSumOfD_2_4 | C131: QTSumOfD_2_4 | D131: =+"("&I131& ") - " & H131 -> (130) - Unidades Pagas em Proteção de espécies com estatuto – Superfície agrícola | F131: 1 | G131: ha | H131: Unidades Pagas em Proteção de espécies com estatuto – Superfície agrícola | I131: 130
A132: QTSumOfD_2_5 | C132: QTSumOfD_2_5 | D132: (131) - Unidades Pagas em Proteção de espécies com estatuto – Silvoambientais | F132: 1 | G132: ha | H132: Unidades Pagas em Proteção de espécies com estatuto – Silvoambientais | I132: 131
A133: N_A_1_1 | C133: N_A_1_1 | D133: (132) - Nº de Beneficiários Apoio ao Rendimento Base | F133: 1 | G133: Nº | H133: Nº de Beneficiários Apoio ao Rendimento Base | I133: =+I132+1 -> 132
A134: N_A_1_2_1 | C134: N_A_1_2_1 | D134: (133) - Nº de Beneficiários Pagamento por vaca em aleitamento | F134: 1 | G134: Nº | H134: Nº de Beneficiários Pagamento por vaca em aleitamento | I134: 133
A135: N_A_1_2_2 | C135: N_A_1_2_2 | D135: (134) - Nº de Beneficiários Pagamento aos pequenos ruminantes | F135: 1 | G135: Nº | H135: Nº de Beneficiários Pagamento aos pequenos ruminantes | I135: 134
A136: N_A_1_2_3 | C136: N_A_1_2_3 | D136: (135) - Nº de Beneficiários Pagamento ao leite de vaca | F136: 1 | G136: Nº | H136: Nº de Beneficiários Pagamento ao leite de vaca | I136: 135
A137: N_A_1_2_4 | C137: N_A_1_2_4 | D137: (136) - Nº de Beneficiários Pagamento ao arroz | F137: 1 | G137: Nº | H137: Nº de Beneficiários Pagamento ao arroz | I137: 136
A138: N_A_1_2_5 | C138: N_A_1_2_5 | D138: (137) - Nº de Beneficiários Pagamento ao tomate para indústria | F138: 1 | G138: Nº | H138: Nº de Beneficiários Pagamento ao tomate para indústria | I138: 137
A139: N_A_1_2_6 | C139: N_A_1_2_6 | D139: (138) - Nº de Beneficiários Pagamento às proteaginosas | F139: 1 | G139: Nº | H139: Nº de Beneficiários Pagamento às proteaginosas | I139: 138
A140: N_A_1_2_7 | C140: N_A_1_2_7 | D140: (139) - Nº de Beneficiários Pagamento aos cereais praganosos | F140: 1 | G140: Nº | H140: Nº de Beneficiários Pagamento aos cereais praganosos | I140: 139
A141: N_A_1_2_8 | C141: N_A_1_2_8 | D141: (140) - Nº de Beneficiários Pagamento ao milho grão | F141: 1 | G141: Nº | H141: Nº de Beneficiários Pagamento ao milho grão | I141: 140
A142: N_A_1_2_9 | C142: N_A_1_2_9 | D142: (141) - Nº de Beneficiários Pagamento ao milho silagem | F142: 1 | G142: Nº | H142: Nº de Beneficiários Pagamento ao milho silagem | I142: 141
A143: N_A_1_2_10 | C143: N_A_1_2_10 | D143: (142) - Nº de Beneficiários Pagamento à multiplicação de sementes certificadas | F143: 1 | G143: Nº | H143: Nº de Beneficiários Pagamento à multiplicação de sementes certificadas | I143: 142
A144: N_A_2_1 | C144: N_A_2_1 | D144: (143) - Nº de Beneficiários Pagamento aos Pequenos Agricultores | F144: 1 | G144: Nº | H144: Nº de Beneficiários Pagamento aos Pequenos Agricultores | I144: 143
A145: N_A_2_2 | C145: N_A_2_2 | D145: (144) - Nº de Beneficiários Apoio Redistributivo Complementar | F145: 1 | G145: Nº | H145: Nº de Beneficiários Apoio Redistributivo Complementar | I145: 144
A146: N_A_3_1 | C146: N_A_3_1 | D146: (145) - Nº de Beneficiários Agricultura biológica | F146: 1 | G146: Nº | H146: Nº de Beneficiários Agricultura biológica | I146: 145
A147: N_A_3_2 | C147: N_A_3_2 | D147: (146) - Nº de Beneficiários Produção integrada – Culturas agrícolas | F147: 1 | G147: Nº | H147: Nº de Beneficiários Produção integrada – Culturas agrícolas | I147: 146
A148: N_A_3_3_1 | C148: N_A_3_3_1 | D148: (147) - Nº de Beneficiários Maneio da pastagem permanente | F148: 1 | G148: Nº | H148: Nº de Beneficiários Maneio da pastagem permanente | I148: 147
A149: N_A_3_3_2 | C149: N_A_3_3_2 | D149: (148) - Nº de Beneficiários Promoção da fertilização orgânica | F149: 1 | G149: Nº | H149: Nº de Beneficiários Promoção da fertilização orgânica | I149: 148
A150: N_A_3_4 | C150: N_A_3_4 | D150: (149) - Nº de Beneficiários Melhorar a eficiência alimentar animal | F150: 1 | G150: Nº | H150: Nº de Beneficiários Melhorar a eficiência alimentar animal | I150: 149
A151: N_A_3_5 | C151: N_A_3_5 | D151: (150) - Nº de Beneficiários Bem-estar animal e uso racional de antimicrobianos | F151: 1 | G151: Nº | H151: Nº de Beneficiários Bem-estar animal e uso racional de antimicrobianos | I151: 150
A152: N_A_3_6 | C152: N_A_3_6 | D152: (151) - Nº de Beneficiários Práticas promotoras da biodiversidade | F152: 1 | G152: Nº | H152: Nº de Beneficiários Práticas promotoras da biodiversidade | I152: 151
A153: N_C_1_1_1_1_1 | C153: N_C_1_1_1_1_1 | D153: (152) - Nº de Beneficiários Conservação do solo – Sementeira direta | F153: 1 | G153: Nº | H153: Nº de Beneficiários Conservação do solo – Sementeira direta | I153: 152
A154: N_C_1_1_1_1_2 | C154: N_C_1_1_1_1_2 | D154: (153) - Nº de Beneficiários Conservação do solo - Enrelvamento | F154: 1 | G154: Nº | H154: Nº de Beneficiários Conservação do solo - Enrelvamento | I154: 153
A155: N_C_1_1_1_1_3 | C155: N_C_1_1_1_1_3 | D155: (154) - Nº de Beneficiários Conservação do solo - Pastagens Biodiversas | F155: 1 | G155: Nº | H155: Nº de Beneficiários Conservação do solo - Pastagens Biodiversas | I155: 154
A156: N_C_1_1_1_2 | C156: N_C_1_1_1_2 | D156: (155) - Nº de Beneficiários Uso eficiente da água | F156: 1 | G156: Nº | H156: Nº de Beneficiários Uso eficiente da água | I156: 155
A157: N_C_1_1_2_1 | C157: N_C_1_1_2_1 | D157: (156) - Nº de Beneficiários Montados e lameiros | F157: 1 | G157: Nº | H157: Nº de Beneficiários Montados e lameiros | I157: 156
A158: N_C_1_1_2_2 | C158: N_C_1_1_2_2 | D158: (157) - Nº de Beneficiários Culturas permanentes e paisagens tradicionais | F158: 1 | G158: Nº | H158: Nº de Beneficiários Culturas permanentes e paisagens tradicionais | I158: 157
A159: N_C_1_1_3 | C159: N_C_1_1_3 | D159: (158) - Nº de Beneficiários Mosaico agroflorestal | F159: 1 | G159: Nº | H159: Nº de Beneficiários Mosaico agroflorestal | I159: 158
A160: N_C_1_1_4 | C160: N_C_1_1_4 | D160: (159) - Nº de Beneficiários Manutenção de raças autóctones | F160: 1 | G160: Nº | H160: Nº de Beneficiários Manutenção de raças autóctones | I160: 159
A161: N_D_2_1 | C161: N_D_2_1 | D161: (160) - Nº de Beneficiários Planos Zonais Agroambientais | F161: 1 | G161: Nº | H161: Nº de Beneficiários Planos Zonais Agroambientais | I161: 160
A162: N_D_2_2 | C162: N_D_2_2 | D162: (161) - Nº de Beneficiários Gestão do montado por resultados | F162: 1 | G162: Nº | H162: Nº de Beneficiários Gestão do montado por resultados | I162: 161
A163: N_D_2_3 | C163: N_D_2_3 | D163: (162) - Nº de Beneficiários Gestão integrada em zonas críticas | F163: 1 | G163: Nº | H163: Nº de Beneficiários Gestão integrada em zonas críticas | I163: 162
A164: N_D_2_4 | C164: N_D_2_4 | D164: (163) - Nº de Beneficiários Proteção de espécies com estatuto – Superfície agrícola | F164: 1 | G164: Nº | H164: Nº de Beneficiários Proteção de espécies com estatuto – Superfície agrícola | I164: 163
A165: N_D_2_5 | C165: N_D_2_5 | D165: (164) - Nº de Beneficiários Proteção de espécies com estatuto – Silvoambientais | F165: 1 | G165: Nº | H165: Nº de Beneficiários Proteção de espécies com estatuto – Silvoambientais | I165: 164
A166: N_M7_3_1 | C166: N_M7_3_1 | D166: (165) - Nº de Beneficiários Rede Natura | F166: 1 | G166: Nº | H166: Nº de Beneficiários Rede Natura | I166: 165
A167: N_M9_M | C167: N_M9_E | D167: (166) - Nº de Beneficiários Manutenção da atividade agrícola em zonas montanha | F167: 1 | G167: Nº | H167: Nº de Beneficiários Manutenção da atividade agrícola em zonas montanha | I167: 166
A168: N_M9_E | C168: N_M9_M | D168: (167) - Nº de Beneficiários Manutenção da atividade agrícola em zonas específicas | F168: 1 | G168: Nº | H168: Nº de Beneficiários Manutenção da atividade agrícola em zonas específicas | I168: 167
A169: N_M9_O | C169: N_M9_O | D169: (168) - Nº de Beneficiários Manutenção da atividade agrícola em outras zonas | F169: 1 | G169: Nº | H169: Nº de Beneficiários Manutenção da atividade agrícola em outras zonas | I169: 168

Sheet Sheet3 (hidden)
B1: 2 | C1: 1 | E1: 22 | F1: =+INDEX(Sheet6!F2:F169,C1) -> 1
A2: 1 | B2: =+A2-1 -> 0
A3: =+INDEX(Sheet6!T1:T5,Sheet3!A2) -> <5 | C3: =SUM(I8:M8) -> 273 | D3: 0 | E3: 0 | F3: 0 | G3: 0 | H3: 0 | I3: 1_1 | J3: 1_1 | K3: 1_1 | L3: 1_1 | M3: 1_1 | N3: 1_2 | O3: 1_2 | P3: 1_2 | Q3: 1_2 | R3: 1_2 | S3: 2 | T3: 2 | U3: 2 | V3: 2 | W3: 2 | X3: 3 | Y3: 3 | Z3: 3 | AA3: 3 | AB3: 3 | AC3: 4 | AD3: 4 | AE3: 4 | AF3: 4 | AG3: 4 | AH3: 5 | AI3: 5 | AJ3: 5 | AK3: 5 | AL3: 5 | AM3: 6 | AN3: 6 | AO3: 6 | AP3: 6 | AQ3: 6 | AR3: 7 | AS3: 7 | AT3: 7 | AU3: 7 | AV3: 7 | AW3: 8 | AX3: 8 | AY3: 8 | AZ3: 8 | BA3: 8 | BB3: 9 | BC3: 9 | BD3: 9 | BE3: 9 | BF3: 9 | BG3: 10_1 | BH3: 10_1 | BI3: 10_1 | BJ3: 10_1 | BK3: 10_1 | BL3: 10_15 | BM3: 10_15 | BN3: 10_15 | BO3: 10_15 | BP3: 10_15 | BQ3: 10_2 | BR3: 10_2 | BS3: 10_2 | BT3: 10_2 | BU3: 10_2 | BV3: 11 | BW3: 11 | BX3: 11 | BY3: 11 | BZ3: 11 | CA3: 12 | CB3: 12 | CC3: 12 | CD3: 12 | CE3: 12 | CF3: 13 | CG3: 13 | CH3: 13 | CI3: 13 | CJ3: 13 | CK3: 14 | CL3: 14 | CM3: 14 | CN3: 14 | CO3: 14 | CP3: 15 | CQ3: 15 | CR3: 15 | CS3: 15 | CT3: 15 | CU3: 0 | CV3: 1_1 | CW3: 1_2 | CX3: 2 | CY3: 3 | CZ3: 4 | DA3: 5 | DB3: 6 | DC3: 7 | DD3: 8 | DE3: 9 | DF3: 10_1 | DG3: 10_15 | DH3: 10_2 | DI3: 11 | DJ3: 12 | DK3: 13 | DL3: 14 | DM3: 15 | DN3: 1 | DO3: 2 | DP3: 3 | DQ3: 4 | DR3: 5
D4: 1 | E4: 2 | F4: 3 | G4: 4 | H4: 5 | I4: 1 | J4: 2 | K4: 3 | L4: 4 | M4: 5 | N4: 1 | O4: 2 | P4: 3 | Q4: 4 | R4: 5 | S4: 1 | T4: 2 | U4: 3 | V4: 4 | W4: 5 | X4: 1 | Y4: 2 | Z4: 3 | AA4: 4 | AB4: 5 | AC4: 1 | AD4: 2 | AE4: 3 | AF4: 4 | AG4: 5 | AH4: 1 | AI4: 2 | AJ4: 3 | AK4: 4 | AL4: 5 | AM4: 1 | AN4: 2 | AO4: 3 | AP4: 4 | AQ4: 5 | AR4: 1 | AS4: 2 | AT4: 3 | AU4: 4 | AV4: 5 | AW4: 1 | AX4: 2 | AY4: 3 | AZ4: 4 | BA4: 5 | BB4: 1 | BC4: 2 | BD4: 3 | BE4: 4 | BF4: 5 | BG4: 1 | BH4: 2 | BI4: 3 | BJ4: 4 | BK4: 5 | BL4: 1 | BM4: 2 | BN4: 3 | BO4: 4 | BP4: 5 | BQ4: 1 | BR4: 2 | BS4: 3 | BT4: 4 | BU4: 5 | BV4: 1 | BW4: 2 | BX4: 3 | BY4: 4 | BZ4: 5 | CA4: 1 | CB4: 2 | CC4: 3 | CD4: 4 | CE4: 5 | CF4: 1 | CG4: 2 | CH4: 3 | CI4: 4 | CJ4: 5 | CK4: 1 | CL4: 2 | CM4: 3 | CN4: 4 | CO4: 5 | CP4: 1 | CQ4: 2 | CR4: 3 | CS4: 4 | CT4: 5 | DN4: 1 | DO4: 2 | DP4: 3 | DQ4: 4 | DR4: 5
I5: Arvenses e Outras Cult pred. Regadio | J5: Arvenses e Outras Cult pred. Regadio | K5: Arvenses e Outras Cult pred. Regadio | L5: Arvenses e Outras Cult pred. Regadio | M5: Arvenses e Outras Cult pred. Regadio | N5: Arvenses e Outras Cult pred. Sequeiro | O5: Arvenses e Outras Cult pred. Sequeiro | P5: Arvenses e Outras Cult pred. Sequeiro | Q5: Arvenses e Outras Cult pred. Sequeiro | R5: Arvenses e Outras Cult pred. Sequeiro | S5: Arroz | T5: Arroz | U5: Arroz | V5: Arroz | W5: Arroz | X5: Horticultura e Industriais | Y5: Horticultura e Industriais | Z5: Horticultura e Industriais | AA5: Horticultura e Industriais | AB5: Horticultura e Industriais | AC5: Horticultura e Floricultura | AD5: Horticultura e Floricultura | AE5: Horticultura e Floricultura | AF5: Horticultura e Floricultura | AG5: Horticultura e Floricultura | AH5: Vinhos | AI5: Vinhos
I6: Muito Pequenas | J6: Pequenas | K6: Médias | L6: Grandes | M6: Muito Grandes | N6: Muito Pequenas | O6: Pequenas | P6: Médias | Q6: Grandes | R6: Muito Grandes | S6: Muito Pequenas | T6: Pequenas | U6: Médias | V6: Grandes | W6: Muito Grandes | X6: Muito Pequenas | Y6: Pequenas | Z6: Médias | AA6: Grandes | AB6: Muito Grandes | AC6: Muito Pequenas | AD6: Pequenas | AE6: Médias | AF6: Grandes | AG6: Muito Grandes | AH6: Muito Pequenas | AI6: Pequenas
C7: NUT'S III
A8: 1 | B8: 111 | C8: Alto Minho | D8: =+SUMIFS(Sheet4!$FV$2:$FV$8408,Sheet4!$C$2:$C$8408,Sheet3!$B8,Sheet4!$D$2:$D$8408,Sheet3!D$3,Sheet4!$E$2:$E$8408,Sheet3!D$4,Sheet4!$A$2:$A$8408,Sheet3!$B$1,Sheet4!$B$2:$B$8408,Sheet3!$A$3) -> 3 | E8: =+SUMIFS(Sheet4!$FV$2:$FV$8408,Sheet4!$C$2:$C$8408,Sheet3!$B8,Sheet4!$D$2:$D$8408,Sheet3!E$3,Sheet4!$E$2:$E$8408,Sheet3!E$4,Sheet4!$A$2:$A$8408,Sheet3!$B$1,Sheet4!$B$2:$B$8408,Sheet3!$A$3) -> 0 | F8: =+SUMIFS(Sheet4!$FV$2:$FV$8408,Sheet4!$C$2:$C$8408,Sheet3!$B8,Sheet4!$D$2:$D$8408,Sheet3!F$3,Sheet4!$E$2:$E$8408,Sheet3!F$4,Sheet4!$A$2:$A$8408,Sheet3!$B$1,Sheet4!$B$2:$B$8408,Sheet3!$A$3) -> 0 | G8: =+SUMIFS(Sheet4!$FV$2:$FV$8408,Sheet4!$C$2:$C$8408,Sheet3!$B8,Sheet4!$D$2:$D$8408,Sheet3!G$3,Sheet4!$E$2:$E$8408,Sheet3!G$4,Sheet4!$A$2:$A$8408,Sheet3!$B$1,Sheet4!$B$2:$B$8408,Sheet3!$A$3) -> 0 | H8: =+SUMIFS(Sheet4!$FV$2:$FV$8408,Sheet4!$C$2:$C$8408,Sheet3!$B8,Sheet4!$D$2:$D$8408,Sheet3!H$3,Sheet4!$E$2:$E$8408,Sheet3!H$4,Sheet4!$A$2:$A$8408,Sheet3!$B$1,Sheet4!$B$2:$B$8408,Sheet3!$A$3) -> 0 | I8: =+SUMIFS(Sheet4!$FV$2:$FV$8408,Sheet4!$C$2:$C$8408,Sheet3!$B8,Sheet4!$D$2:$D$8408,Sheet3!I$3,Sheet4!$E$2:$E$8408,Sheet3!I$4,Sheet4!$A$2:$A$8408,Sheet3!$B$1,Sheet4!$B$2:$B$8408,Sheet3!$A$3) -> 273 | J8: =+SUMIFS(Sheet4!$FV$2:$FV$8408,Sheet4!$C$2:$C$8408,Sheet3!$B8,Sheet4!$D$2:$D$8408,Sheet3!J$3,Sheet4!$E$2:$E$8408,Sheet3!J$4,Sheet4!$A$2:$A$8408,Sheet3!$B$1,Sheet4!$B$2:$B$8408,Sheet3!$A$3) -> 0 | K8: =+SUMIFS(Sheet4!$FV$2:$FV$8408,Sheet4!$C$2:$C$8408,Sheet3!$B8,Sheet4!$D$2:$D$8408,Sheet3!K$3,Sheet4!$E$2:$E$8408,Sheet3!K$4,Sheet4!$A$2:$A$8408,Sheet3!$B$1,Sheet4!$B$2:$B$8408,Sheet3!$A$3) -> 0 | L8: =+SUMIFS(Sheet4!$FV$2:$FV$8408,Sheet4!$C$2:$C$8408,Sheet3!$B8,Sheet4!$D$2:$D$8408,Sheet3!L$3,Sheet4!$E$2:$E$8408,Sheet3!L$4,Sheet4!$A$2:$A$8408,Sheet3!$B$1,Sheet4!$B$2:$B$8408,Sheet3!$A$3) -> 0 | M8: =+SUMIFS(Sheet4!$FV$2:$FV$8408,Sheet4!$C$2:$C$8408,Sheet3!$B8,Sheet4!$D$2:$D$8408,Sheet3!M$3,Sheet4!$E$2:$E$8408,Sheet3!M$4,Sheet4!$A$2:$A$8408,Sheet3!$B$1,Sheet4!$B$2:$B$8408,Sheet3!$A$3) -> 0 | N8: =+SUMIFS(Sheet4!$FV$2:$FV$8408,Sheet4!$C$2:$C$8408,Sheet3!$B8,Sheet4!$D$2:$D$8408,Sheet3!N$3,Sheet4!$E$2:$E$8408,Sheet3!N$4,Sheet4!$A$2:$A$8408,Sheet3!$B$1,Sheet4!$B$2:$B$8408,Sheet3!$A$3) -> 107 | O8: =+SUMIFS(Sheet4!$FV$2:$FV$8408,Sheet4!$C$2:$C$8408,Sheet3!$B8,Sheet4!$D$2:$D$8408,Sheet3!O$3,Sheet4!$E$2:$E$8408,Sheet3!O$4,Sheet4!$A$2:$A$8408,Sheet3!$B$1,Sheet4!$B$2:$B$8408,Sheet3!$A$3) -> 3 | P8: =+SUMIFS(Sheet4!$FV$2:$FV$8408,Sheet4!$C$2:$C$8408,Sheet3!$B8,Sheet4!$D$2:$D$8408,Sheet3!P$3,Sheet4!$E$2:$E$8408,Sheet3!P$4,Sheet4!$A$2:$A$8408,Sheet3!$B$1,Sheet4!$B$2:$B$8408,Sheet3!$A$3) -> 0 | Q8: =+SUMIFS(Sheet4!$FV$2:$FV$8408,Sheet4!$C$2:$C$8408,Sheet3!$B8,Sheet4!$D$2:$D$8408,Sheet3!Q$3,Sheet4!$E$2:$E$8408,Sheet3!Q$4,Sheet4!$A$2:$A$8408,Sheet3!$B$1,Sheet4!$B$2:$B$8408,Sheet3!$A$3) -> 0 | R8: =+SUMIFS(Sheet4!$FV$2:$FV$8408,Sheet4!$C$2:$C$8408,Sheet3!$B8,Sheet4!$D$2:$D$8408,Sheet3!R$3,Sheet4!$E$2:$E$8408,Sheet3!R$4,Sheet4!$A$2:$A$8408,Sheet3!$B$1,Sheet4!$B$2:$B$8408,Sheet3!$A$3) -> 0 | S8: =+SUMIFS(Sheet4!$FV$2:$FV$8408,Sheet4!$C$2:$C$8408,Sheet3!$B8,Sheet4!$D$2:$D$8408,Sheet3!S$3,Sheet4!$E$2:$E$8408,Sheet3!S$4,Sheet4!$A$2:$A$8408,Sheet3!$B$1,Sheet4!$B$2:$B$8408,Sheet3!$A$3) -> 0 | T8: =+SUMIFS(Sheet4!$FV$2:$FV$8408,Sheet4!$C$2:$C$8408,Sheet3!$B8,Sheet4!$D$2:$D$8408,Sheet3!T$3,Sheet4!$E$2:$E$8408,Sheet3!T$4,Sheet4!$A$2:$A$8408,Sheet3!$B$1,Sheet4!$B$2:$B$8408,Sheet3!$A$3) -> 0 | U8: =+SUMIFS(Sheet4!$FV$2:$FV$8408,Sheet4!$C$2:$C$8408,Sheet3!$B8,Sheet4!$D$2:$D$8408,Sheet3!U$3,Sheet4!$E$2:$E$8408,Sheet3!U$4,Sheet4!$A$2:$A$8408,Sheet3!$B$1,Sheet4!$B$2:$B$8408,Sheet3!$A$3) -> 0 | V8: =+SUMIFS(Sheet4!$FV$2:$FV$8408,Sheet4!$C$2:$C$8408,Sheet3!$B8,Sheet4!$D$2:$D$8408,Sheet3!V$3,Sheet4!$E$2:$E$8408,Sheet3!V$4,Sheet4!$A$2:$A$8408,Sheet3!$B$1,Sheet4!$B$2:$B$8408,Sheet3!$A$3) -> 0 | W8: =+SUMIFS(Sheet4!$FV$2:$FV$8408,Sheet4!$C$2:$C$8408,Sheet3!$B8,Sheet4!$D$2:$D$8408,Sheet3!W$3,Sheet4!$E$2:$E$8408,Sheet3!W$4,Sheet4!$A$2:$A$8408,Sheet3!$B$1,Sheet4!$B$2:$B$8408,Sheet3!$A$3) -> 0 | X8: =+SUMIFS(Sheet4!$FV$2:$FV$8408,Sheet4!$C$2:$C$8408,Sheet3!$B8,Sheet4!$D$2:$D$8408,Sheet3!X$3,Sheet4!$E$2:$E$8408,Sheet3!X$4,Sheet4!$A$2:$A$8408,Sheet3!$B$1,Sheet4!$B$2:$B$8408,Sheet3!$A$3) -> 0 | Y8: =+SUMIFS(Sheet4!$FV$2:$FV$8408,Sheet4!$C$2:$C$8408,Sheet3!$B8,Sheet4!$D$2:$D$8408,Sheet3!Y$3,Sheet4!$E$2:$E$8408,Sheet3!Y$4,Sheet4!$A$2:$A$8408,Sheet3!$B$1,Sheet4!$B$2:$B$8408,Sheet3!$A$3) -> 0 | Z8: =+SUMIFS(Sheet4!$FV$2:$FV$8408,Sheet4!$C$2:$C$8408,Sheet3!$B8,Sheet4!$D$2:$D$8408,Sheet3!Z$3,Sheet4!$E$2:$E$8408,Sheet3!Z$4,Sheet4!$A$2:$A$8408,Sheet3!$B$1,Sheet4!$B$2:$B$8408,Sheet3!$A$3) -> 0 | AA8: =+SUMIFS(Sheet4!$FV$2:$FV$8408,Sheet4!$C$2:$C$8408,Sheet3!$B8,Sheet4!$D$2:$D$8408,Sheet3!AA$3,Sheet4!$E$2:$E$8408,Sheet3!AA$4,Sheet4!$A$2:$A$8408,Sheet3!$B$1,Sheet4!$B$2:$B$8408,Sheet3!$A$3) -> 0 | AB8: =+SUMIFS(Sheet4!$FV$2:$FV$8408,Sheet4!$C$2:$C$8408,Sheet3!$B8,Sheet4!$D$2:$D$8408,Sheet3!AB$3,Sheet4!$E$2:$E$8408,Sheet3!AB$4,Sheet4!$A$2:$A$8408,Sheet3!$B$1,Sheet4!$B$2:$B$8408,Sheet3!$A$3) -> 0 | AC8: =+SUMIFS(Sheet4!$FV$2:$FV$8408,Sheet4!$C$2:$C$8408,Sheet3!$B8,Sheet4!$D$2:$D$8408,Sheet3!AC$3,Sheet4!$E$2:$E$8408,Sheet3!AC$4,Sheet4!$A$2:$A$8408,Sheet3!$B$1,Sheet4!$B$2:$B$8408,Sheet3!$A$3) -> 238 | AD8: =+SUMIFS(Sheet4!$FV$2:$FV$8408,Sheet4!$C$2:$C$8408,Sheet3!$B8,Sheet4!$D$2:$D$8408,Sheet3!AD$3,Sheet4!$E$2:$E$8408,Sheet3!AD$4,Sheet4!$A$2:$A$8408,Sheet3!$B$1,Sheet4!$B$2:$B$8408,Sheet3!$A$3) -> 7 | AE8: =+SUMIFS(Sheet4!$FV$2:$FV$8408,Sheet4!$C$2:$C$8408,Sheet3!$B8,Sheet4!$D$2:$D$8408,Sheet3!AE$3,Sheet4!$E$2:$E$8408,Sheet3!AE$4,Sheet4!$A$2:$A$8408,Sheet3!$B$1,Sheet4!$B$2:$B$8408,Sheet3!$A$3) -> 0 | AF8: =+SUMIFS(Sheet4!$FV$2:$FV$8408,Sheet4!$C$2:$C$8408,Sheet3!$B8,Sheet4!$D$2:$D$8408,Sheet3!AF$3,Sheet4!$E$2:$E$8408,Sheet3!AF$4,Sheet4!$A$2:$A$8408,Sheet3!$B$1,Sheet4!$B$2:$B$8408,Sheet3!$A$3) -> 0 | AG8: =+SUMIFS(Sheet4!$FV$2:$FV$8408,Sheet4!$C$2:$C$8408,Sheet3!$B8,Sheet4!$D$2:$D$8408,Sheet3!AG$3,Sheet4!$E$2:$E$8408,Sheet3!AG$4,Sheet4!$A$2:$A$8408,Sheet3!$B$1,Sheet4!$B$2:$B$8408,Sheet3!$A$3) -> 0 | AH8: =+SUMIFS(Sheet4!$FV$2:$FV$8408,Sheet4!$C$2:$C$8408,Sheet3!$B8,Sheet4!$D$2:$D$8408,Sheet3!AH$3,Sheet4!$E$2:$E$8408,Sheet3!AH$4,Sheet4!$A$2:$A$8408,Sheet3!$B$1,Sheet4!$B$2:$B$8408,Sheet3!$A$3) -> 712 | AI8: =+SUMIFS(Sheet4!$FV$2:$FV$8408,Sheet4!$C$2:$C$8408,Sheet3!$B8,Sheet4!$D$2:$D$8408,Sheet3!AI$3,Sheet4!$E$2:$E$8408,Sheet3!AI$4,Sheet4!$A$2:$A$8408,Sheet3!$B$1,Sheet4!$B$2:$B$8408,Sheet3!$A$3) -> 102 | AJ8: =+SUMIFS(Sheet4!$FV$2:$FV$8408,Sheet4!$C$2:$C$8408,Sheet3!$B8,Sheet4!$D$2:$D$8408,Sheet3!AJ$3,Sheet4!$E$2:$E$8408,Sheet3!AJ$4,Sheet4!$A$2:$A$8408,Sheet3!$B$1,Sheet4!$B$2:$B$8408,Sheet3!$A$3) -> 7 | AK8: =+SUMIFS(Sheet4!$FV$2:$FV$8408,Sheet4!$C$2:$C$8408,Sheet3!$B8,Sheet4!$D$2:$D$8408,Sheet3!AK$3,Sheet4!$E$2:$E$8408,Sheet3!AK$4,Sheet4!$A$2:$A$8408,Sheet3!$B$1,Sheet4!$B$2:$B$8408,Sheet3!$A$3) -> 0 | AL8: =+SUMIFS(Sheet4!$FV$2:$FV$8408,Sheet4!$C$2:$C$8408,Sheet3!$B8,Sheet4!$D$2:$D$8408,Sheet3!AL$3,Sheet4!$E$2:$E$8408,Sheet3!AL$4,Sheet4!$A$2:$A$8408,Sheet3!$B$1,Sheet4!$B$2:$B$8408,Sheet3!$A$3) -> 0 | AM8: =+SUMIFS(Sheet4!$FV$2:$FV$8408,Sheet4!$C$2:$C$8408,Sheet3!$B8,Sheet4!$D$2:$D$8408,Sheet3!AM$3,Sheet4!$E$2:$E$8408,Sheet3!AM$4,Sheet4!$A$2:$A$8408,Sheet3!$B$1,Sheet4!$B$2:$B$8408,Sheet3!$A$3) -> 124 | AN8: =+SUMIFS(Sheet4!$FV$2:$FV$8408,Sheet4!$C$2:$C$8408,Sheet3!$B8,Sheet4!$D$2:$D$8408,Sheet3!AN$3,Sheet4!$E$2:$E$8408,Sheet3!AN$4,Sheet4!$A$2:$A$8408,Sheet3!$B$1,Sheet4!$B$2:$B$8408,Sheet3!$A$3) -> 17 | AO8: =+SUMIFS(Sheet4!$FV$2:$FV$8408,Sheet4!$C$2:$C$8408,Sheet3!$B8,Sheet4!$D$2:$D$8408,Sheet3!AO$3,Sheet4!$E$2:$E$8408,Sheet3!AO$4,Sheet4!$A$2:$A$8408,Sheet3!$B$1,Sheet4!$B$2:$B$8408,Sheet3!$A$3) -> 4 | AP8: =+SUMIFS(Sheet4!$FV$2:$FV$8408,Sheet4!$C$2:$C$8408,Sheet3!$B8,Sheet4!$D$2:$D$8408,Sheet3!AP$3,Sheet4!$E$2:$E$8408,Sheet3!AP$4,Sheet4!$A$2:$A$8408,Sheet3!$B$1,Sheet4!$B$2:$B$8408,Sheet3!$A$3) -> 0 | AQ8: =+SUMIFS(Sheet4!$FV$2:$FV$8408,Sheet4!$C$2:$C$8408,Sheet3!$B8,Sheet4!$D$2:$D$8408,Sheet3!AQ$3,Sheet4!$E$2:$E$8408,Sheet3!AQ$4,Sheet4!$A$2:$A$8408,Sheet3!$B$1,Sheet4!$B$2:$B$8408,Sheet3!$A$3) -> 0 | AR8: =+SUMIFS(Sheet4!$FV$2:$FV$8408,Sheet4!$C$2:$C$8408,Sheet3!$B8,Sheet4!$D$2:$D$8408,Sheet3!AR$3,Sheet4!$E$2:$E$8408,Sheet3!AR$4,Sheet4!$A$2:$A$8408,Sheet3!$B$1,Sheet4!$B$2:$B$8408,Sheet3!$A$3) -> 0 | AS8: =+SUMIFS(Sheet4!$FV$2:$FV$8408,Sheet4!$C$2:$C$8408,Sheet3!$B8,Sheet4!$D$2:$D$8408,Sheet3!AS$3,Sheet4!$E$2:$E$8408,Sheet3!AS$4,Sheet4!$A$2:$A$8408,Sheet3!$B$1,Sheet4!$B$2:$B$8408,Sheet3!$A$3) -> 0 | AT8: =+SUMIFS(Sheet4!$FV$2:$FV$8408,Sheet4!$C$2:$C$8408,Sheet3!$B8,Sheet4!$D$2:$D$8408,Sheet3!AT$3,Sheet4!$E$2:$E$8408,Sheet3!AT$4,Sheet4!$A$2:$A$8408,Sheet3!$B$1,Sheet4!$B$2:$B$8408,Sheet3!$A$3) -> 0 | AU8: =+SUMIFS(Sheet4!$FV$2:$FV$8408,Sheet4!$C$2:$C$8408,Sheet3!$B8,Sheet4!$D$2:$D$8408,Sheet3!AU$3,Sheet4!$E$2:$E$8408,Sheet3!AU$4,Sheet4!$A$2:$A$8408,Sheet3!$B$1,Sheet4!$B$2:$B$8408,Sheet3!$A$3) -> 0 | AV8: =+SUMIFS(Sheet4!$FV$2:$FV$8408,Sheet4!$C$2:$C$8408,Sheet3!$B8,Sheet4!$D$2:$D$8408,Sheet3!AV$3,Sheet4!$E$2:$E$8408,Sheet3!AV$4,Sheet4!$A$2:$A$8408,Sheet3!$B$1,Sheet4!$B$2:$B$8408,Sheet3!$A$3) -> 0 | AW8: =+SUMIFS(Sheet4!$FV$2:$FV$8408,Sheet4!$C$2:$C$8408,Sheet3!$B8,Sheet4!$D$2:$D$8408,Sheet3!AW$3,Sheet4!$E$2:$E$8408,Sheet3!AW$4,Sheet4!$A$2:$A$8408,Sheet3!$B$1,Sheet4!$B$2:$B$8408,Sheet3!$A$3) -> 2151 | AX8: =+SUMIFS(Sheet4!$FV$2:$FV$8408,Sheet4!$C$2:$C$8408,Sheet3!$B8,Sheet4!$D$2:$D$8408,Sheet3!AX$3,Sheet4!$E$2:$E$8408,Sheet3!AX$4,Sheet4!$A$2:$A$8408,Sheet3!$B$1,Sheet4!$B$2:$B$8408,Sheet3!$A$3) -> 38 | AY8: =+SUMIFS(Sheet4!$FV$2:$FV$8408,Sheet4!$C$2:$C$8408,Sheet3!$B8,Sheet4!$D$2:$D$8408,Sheet3!AY$3,Sheet4!$E$2:$E$8408,Sheet3!AY$4,Sheet4!$A$2:$A$8408,Sheet3!$B$1,Sheet4!$B$2:$B$8408,Sheet3!$A$3) -> 0 | AZ8: =+SUMIFS(Sheet4!$FV$2:$FV$8408,Sheet4!$C$2:$C$8408,Sheet3!$B8,Sheet4!$D$2:$D$8408,Sheet3!AZ$3,Sheet4!$E$2:$E$8408,Sheet3!AZ$4,Sheet4!$A$2:$A$8408,Sheet3!$B$1,Sheet4!$B$2:$B$8408,Sheet3!$A$3) -> 0 | BA8: =+SUMIFS(Sheet4!$FV$2:$FV$8408,Sheet4!$C$2:$C$8408,Sheet3!$B8,Sheet4!$D$2:$D$8408,Sheet3!BA$3,Sheet4!$E$2:$E$8408,Sheet3!BA$4,Sheet4!$A$2:$A$8408,Sheet3!$B$1,Sheet4!$B$2:$B$8408,Sheet3!$A$3) -> 0 | BB8: =+SUMIFS(Sheet4!$FV$2:$FV$8408,Sheet4!$C$2:$C$8408,Sheet3!$B8,Sheet4!$D$2:$D$8408,Sheet3!BB$3,Sheet4!$E$2:$E$8408,Sheet3!BB$4,Sheet4!$A$2:$A$8408,Sheet3!$B$1,Sheet4!$B$2:$B$8408,Sheet3!$A$3) -> 5 | BC8: =+SUMIFS(Sheet4!$FV$2:$FV$8408,Sheet4!$C$2:$C$8408,Sheet3!$B8,Sheet4!$D$2:$D$8408,Sheet3!BC$3,Sheet4!$E$2:$E$8408,Sheet3!BC$4,Sheet4!$A$2:$A$8408,Sheet3!$B$1,Sheet4!$B$2:$B$8408,Sheet3!$A$3) -> 40 | BD8: =+SUMIFS(Sheet4!$FV$2:$FV$8408,Sheet4!$C$2:$C$8408,Sheet3!$B8,Sheet4!$D$2:$D$8408,Sheet3!BD$3,Sheet4!$E$2:$E$8408,Sheet3!BD$4,Sheet4!$A$2:$A$8408,Sheet3!$B$1,Sheet4!$B$2:$B$8408,Sheet3!$A$3) -> 9 | BE8: =+SUMIFS(Sheet4!$FV$2:$FV$8408,Sheet4!$C$2:$C$8408,Sheet3!$B8,Sheet4!$D$2:$D$8408,Sheet3!BE$3,Sheet4!$E$2:$E$8408,Sheet3!BE$4,Sheet4!$A$2:$A$8408,Sheet3!$B$1,Sheet4!$B$2:$B$8408,Sheet3!$A$3) -> 0 | BF8: =+SUMIFS(Sheet4!$FV$2:$FV$8408,Sheet4!$C$2:$C$8408,Sheet3!$B8,Sheet4!$D$2:$D$8408,Sheet3!BF$3,Sheet4!$E$2:$E$8408,Sheet3!BF$4,Sheet4!$A$2:$A$8408,Sheet3!$B$1,Sheet4!$B$2:$B$8408,Sheet3!$A$3) -> 0 | BG8: =+SUMIFS(Sheet4!$FV$2:$FV$8408,Sheet4!$C$2:$C$8408,Sheet3!$B8,Sheet4!$D$2:$D$8408,Sheet3!BG$3,Sheet4!$E$2:$E$8408,Sheet3!BG$4,Sheet4!$A$2:$A$8408,Sheet3!$B$1,Sheet4!$B$2:$B$8408,Sheet3!$A$3) -> 332 | BH8: =+SUMIFS(Sheet4!$FV$2:$FV$8408,Sheet4!$C$2:$C$8408,Sheet3!$B8,Sheet4!$D$2:$D$8408,Sheet3!BH$3,Sheet4!$E$2:$E$8408,Sheet3!BH$4,Sheet4!$A$2:$A$8408,Sheet3!$B$1,Sheet4!$B$2:$B$8408,Sheet3!$A$3) -> 169 | BI8: =+SUMIFS(Sheet4!$FV$2:$FV$8408,Sheet4!$C$2:$C$8408,Sheet3!$B8,Sheet4!$D$2:$D$8408,Sheet3!BI$3,Sheet4!$E$2:$E$8408,Sheet3!BI$4,Sheet4!$A$2:$A$8408,Sheet3!$B$1,Sheet4!$B$2:$B$8408,Sheet3!$A$3) -> 15 | BJ8: =+SUMIFS(Sheet4!$FV$2:$FV$8408,Sheet4!$C$2:$C$8408,Sheet3!$B8,Sheet4!$D$2:$D$8408,Sheet3!BJ$3,Sheet4!$E$2:$E$8408,Sheet3!BJ$4,Sheet4!$A$2:$A$8408,Sheet3!$B$1,Sheet4!$B$2:$B$8408,Sheet3!$A$3) -> 0 | BK8: =+SUMIFS(Sheet4!$FV$2:$FV$8408,Sheet4!$C$2:$C$8408,Sheet3!$B8,Sheet4!$D$2:$D$8408,Sheet3!BK$3,Sheet4!$E$2:$E$8408,Sheet3!BK$4,Sheet4!$A$2:$A$8408,Sheet3!$B$1,Sheet4!$B$2:$B$8408,Sheet3!$A$3) -> 0 | BL8: =+SUMIFS(Sheet4!$FV$2:$FV$8408,Sheet4!$C$2:$C$8408,Sheet3!$B8,Sheet4!$D$2:$D$8408,Sheet3!BL$3,Sheet4!$E$2:$E$8408,Sheet3!BL$4,Sheet4!$A$2:$A$8408,Sheet3!$B$1,Sheet4!$B$2:$B$8408,Sheet3!$A$3) -> 108 | BM8: =+SUMIFS(Sheet4!$FV$2:$FV$8408,Sheet4!$C$2:$C$8408,Sheet3!$B8,Sheet4!$D$2:$D$8408,Sheet3!BM$3,Sheet4!$E$2:$E$8408,Sheet3!BM$4,Sheet4!$A$2:$A$8408,Sheet3!$B$1,Sheet4!$B$2:$B$8408,Sheet3!$A$3) -> 17 | BN8: =+SUMIFS(Sheet4!$FV$2:$FV$8408,Sheet4!$C$2:$C$8408,Sheet3!$B8,Sheet4!$D$2:$D$8408,Sheet3!BN$3,Sheet4!$E$2:$E$8408,Sheet3!BN$4,Sheet4!$A$2:$A$8408,Sheet3!$B$1,Sheet4!$B$2:$B$8408,Sheet3!$A$3) -> 0 | BO8: =+SUMIFS(Sheet4!$FV$2:$FV$8408,Sheet4!$C$2:$C$8408,Sheet3!$B8,Sheet4!$D$2:$D$8408,Sheet3!BO$3,Sheet4!$E$2:$E$8408,Sheet3!BO$4,Sheet4!$A$2:$A$8408,Sheet3!$B$1,Sheet4!$B$2:$B$8408,Sheet3!$A$3) -> 0 | BP8: =+SUMIFS(Sheet4!$FV$2:$FV$8408,Sheet4!$C$2:$C$8408,Sheet3!$B8,Sheet4!$D$2:$D$8408,Sheet3!BP$3,Sheet4!$E$2:$E$8408,Sheet3!BP$4,Sheet4!$A$2:$A$8408,Sheet3!$B$1,Sheet4!$B$2:$B$8408,Sheet3!$A$3) -> 0 | BQ8: =+SUMIFS(Sheet4!$FV$2:$FV$8408,Sheet4!$C$2:$C$8408,Sheet3!$B8,Sheet4!$D$2:$D$8408,Sheet3!BQ$3,Sheet4!$E$2:$E$8408,Sheet3!BQ$4,Sheet4!$A$2:$A$8408,Sheet3!$B$1,Sheet4!$B$2:$B$8408,Sheet3!$A$3) -> 355 | BR8: =+SUMIFS(Sheet4!$FV$2:$FV$8408,Sheet4!$C$2:$C$8408,Sheet3!$B8,Sheet4!$D$2:$D$8408,Sheet3!BR$3,Sheet4!$E$2:$E$8408,Sheet3!BR$4,Sheet4!$A$2:$A$8408,Sheet3!$B$1,Sheet4!$B$2:$B$8408,Sheet3!$A$3) -> 267 | BS8: =+SUMIFS(Sheet4!$FV$2:$FV$8408,Sheet4!$C$2:$C$8408,Sheet3!$B8,Sheet4!$D$2:$D$8408,Sheet3!BS$3,Sheet4!$E$2:$E$8408,Sheet3!BS$4,Sheet4!$A$2:$A$8408,Sheet3!$B$1,Sheet4!$B$2:$B$8408,Sheet3!$A$3) -> 53 | BT8: =+SUMIFS(Sheet4!$FV$2:$FV$8408,Sheet4!$C$2:$C$8408,Sheet3!$B8,Sheet4!$D$2:$D$8408,Sheet3!BT$3,Sheet4!$E$2:$E$8408,Sheet3!BT$4,Sheet4!$A$2:$A$8408,Sheet3!$B$1,Sheet4!$B$2:$B$8408,Sheet3!$A$3) -> 9 | BU8: =+SUMIFS(Sheet4!$FV$2:$FV$8408,Sheet4!$C$2:$C$8408,Sheet3!$B8,Sheet4!$D$2:$D$8408,Sheet3!BU$3,Sheet4!$E$2:$E$8408,Sheet3!BU$4,Sheet4!$A$2:$A$8408,Sheet3!$B$1,Sheet4!$B$2:$B$8408,Sheet3!$A$3) -> 0 | BV8: =+SUMIFS(Sheet4!$FV$2:$FV$8408,Sheet4!$C$2:$C$8408,Sheet3!$B8,Sheet4!$D$2:$D$8408,Sheet3!BV$3,Sheet4!$E$2:$E$8408,Sheet3!BV$4,Sheet4!$A$2:$A$8408,Sheet3!$B$1,Sheet4!$B$2:$B$8408,Sheet3!$A$3) -> 1017 | BW8: =+SUMIFS(Sheet4!$FV$2:$FV$8408,Sheet4!$C$2:$C$8408,Sheet3!$B8,Sheet4!$D$2:$D$8408,Sheet3!BW$3,Sheet4!$E$2:$E$8408,Sheet3!BW$4,Sheet4!$A$2:$A$8408,Sheet3!$B$1,Sheet4!$B$2:$B$8408,Sheet3!$A$3) -> 184 | BX8: =+SUMIFS(Sheet4!$FV$2:$FV$8408,Sheet4!$C$2:$C$8408,Sheet3!$B8,Sheet4!$D$2:$D$8408,Sheet3!BX$3,Sheet4!$E$2:$E$8408,Sheet3!BX$4,Sheet4!$A$2:$A$8408,Sheet3!$B$1,Sheet4!$B$2:$B$8408,Sheet3!$A$3) -> 10 | BY8: =+SUMIFS(Sheet4!$FV$2:$FV$8408,Sheet4!$C$2:$C$8408,Sheet3!$B8,Sheet4!$D$2:$D$8408,Sheet3!BY$3,Sheet4!$E$2:$E$8408,Sheet3!BY$4,Sheet4!$A$2:$A$8408,Sheet3!$B$1,Sheet4!$B$2:$B$8408,Sheet3!$A$3) -> 0 | BZ8: =+SUMIFS(Sheet4!$FV$2:$FV$8408,Sheet4!$C$2:$C$8408,Sheet3!$B8,Sheet4!$D$2:$D$8408,Sheet3!BZ$3,Sheet4!$E$2:$E$8408,Sheet3!BZ$4,Sheet4!$A$2:$A$8408,Sheet3!$B$1,Sheet4!$B$2:$B$8408,Sheet3!$A$3) -> 0 | CA8: =+SUMIFS(Sheet4!$FV$2:$FV$8408,Sheet4!$C$2:$C$8408,Sheet3!$B8,Sheet4!$D$2:$D$8408,Sheet3!CA$3,Sheet4!$E$2:$E$8408,Sheet3!CA$4,Sheet4!$A$2:$A$8408,Sheet3!$B$1,Sheet4!$B$2:$B$8408,Sheet3!$A$3) -> 989 | CB8: =+SUMIFS(Sheet4!$FV$2:$FV$8408,Sheet4!$C$2:$C$8408,Sheet3!$B8,Sheet4!$D$2:$D$8408,Sheet3!CB$3,Sheet4!$E$2:$E$8408,Sheet3!CB$4,Sheet4!$A$2:$A$8408,Sheet3!$B$1,Sheet4!$B$2:$B$8408,Sheet3!$A$3) -> 49 | CC8: =+SUMIFS(Sheet4!$FV$2:$FV$8408,Sheet4!$C$2:$C$8408,Sheet3!$B8,Sheet4!$D$2:$D$8408,Sheet3!CC$3,Sheet4!$E$2:$E$8408,Sheet3!CC$4,Sheet4!$A$2:$A$8408,Sheet3!$B$1,Sheet4!$B$2:$B$8408,Sheet3!$A$3) -> 0 | CD8: =+SUMIFS(Sheet4!$FV$2:$FV$8408,Sheet4!$C$2:$C$8408,Sheet3!$B8,Sheet4!$D$2:$D$8408,Sheet3!CD$3,Sheet4!$E$2:$E$8408,Sheet3!CD$4,Sheet4!$A$2:$A$8408,Sheet3!$B$1,Sheet4!$B$2:$B$8408,Sheet3!$A$3) -> 0 | CE8: =+SUMIFS(Sheet4!$FV$2:$FV$8408,Sheet4!$C$2:$C$8408,Sheet3!$B8,Sheet4!$D$2:$D$8408,Sheet3!CE$3,Sheet4!$E$2:$E$8408,Sheet3!CE$4,Sheet4!$A$2:$A$8408,Sheet3!$B$1,Sheet4!$B$2:$B$8408,Sheet3!$A$3) -> 0 | CF8: =+SUMIFS(Sheet4!$FV$2:$FV$8408,Sheet4!$C$2:$C$8408,Sheet3!$B8,Sheet4!$D$2:$D$8408,Sheet3!CF$3,Sheet4!$E$2:$E$8408,Sheet3!CF$4,Sheet4!$A$2:$A$8408,Sheet3!$B$1,Sheet4!$B$2:$B$8408,Sheet3!$A$3) -> 314 | CG8: =+SUMIFS(Sheet4!$FV$2:$FV$8408,Sheet4!$C$2:$C$8408,Sheet3!$B8,Sheet4!$D$2:$D$8408,Sheet3!CG$3,Sheet4!$E$2:$E$8408,Sheet3!CG$4,Sheet4!$A$2:$A$8408,Sheet3!$B$1,Sheet4!$B$2:$B$8408,Sheet3!$A$3) -> 14 | CH8: =+SUMIFS(Sheet4!$FV$2:$FV$8408,Sheet4!$C$2:$C$8408,Sheet3!$B8,Sheet4!$D$2:$D$8408,Sheet3!CH$3,Sheet4!$E$2:$E$8408,Sheet3!CH$4,Sheet4!$A$2:$A$8408,Sheet3!$B$1,Sheet4!$B$2:$B$8408,Sheet3!$A$3) -> 0 | CI8: =+SUMIFS(Sheet4!$FV$2:$FV$8408,Sheet4!$C$2:$C$8408,Sheet3!$B8,Sheet4!$D$2:$D$8408,Sheet3!CI$3,Sheet4!$E$2:$E$8408,Sheet3!CI$4,Sheet4!$A$2:$A$8408,Sheet3!$B$1,Sheet4!$B$2:$B$8408,Sheet3!$A$3) -> 0 | CJ8: =+SUMIFS(Sheet4!$FV$2:$FV$8408,Sheet4!$C$2:$C$8408,Sheet3!$B8,Sheet4!$D$2:$D$8408,Sheet3!CJ$3,Sheet4!$E$2:$E$8408,Sheet3!CJ$4,Sheet4!$A$2:$A$8408,Sheet3!$B$1,Sheet4!$B$2:$B$8408,Sheet3!$A$3) -> 0 | CK8: =+SUMIFS(Sheet4!$FV$2:$FV$8408,Sheet4!$C$2:$C$8408,Sheet3!$B8,Sheet4!$D$2:$D$8408,Sheet3!CK$3,Sheet4!$E$2:$E$8408,Sheet3!CK$4,Sheet4!$A$2:$A$8408,Sheet3!$B$1,Sheet4!$B$2:$B$8408,Sheet3!$A$3) -> 0 | CL8: =+SUMIFS(Sheet4!$FV$2:$FV$8408,Sheet4!$C$2:$C$8408,Sheet3!$B8,Sheet4!$D$2:$D$8408,Sheet3!CL$3,Sheet4!$E$2:$E$8408,Sheet3!CL$4,Sheet4!$A$2:$A$8408,Sheet3!$B$1,Sheet4!$B$2:$B$8408,Sheet3!$A$3) -> 0 | CM8: =+SUMIFS(Sheet4!$FV$2:$FV$8408,Sheet4!$C$2:$C$8408,Sheet3!$B8,Sheet4!$D$2:$D$8408,Sheet3!CM$3,Sheet4!$E$2:$E$8408,Sheet3!CM$4,Sheet4!$A$2:$A$8408,Sheet3!$B$1,Sheet4!$B$2:$B$8408,Sheet3!$A$3) -> 0 | CN8: =+SUMIFS(Sheet4!$FV$2:$FV$8408,Sheet4!$C$2:$C$8408,Sheet3!$B8,Sheet4!$D$2:$D$8408,Sheet3!CN$3,Sheet4!$E$2:$E$8408,Sheet3!CN$4,Sheet4!$A$2:$A$8408,Sheet3!$B$1,Sheet4!$B$2:$B$8408,Sheet3!$A$3) -> 0 | CO8: =+SUMIFS(Sheet4!$FV$2:$FV$8408,Sheet4!$C$2:$C$8408,Sheet3!$B8,Sheet4!$D$2:$D$8408,Sheet3!CO$3,Sheet4!$E$2:$E$8408,Sheet3!CO$4,Sheet4!$A$2:$A$8408,Sheet3!$B$1,Sheet4!$B$2:$B$8408,Sheet3!$A$3) -> 0 | CP8: =+SUMIFS(Sheet4!$FV$2:$FV$8408,Sheet4!$C$2:$C$8408,Sheet3!$B8,Sheet4!$D$2:$D$8408,Sheet3!CP$3,Sheet4!$E$2:$E$8408,Sheet3!CP$4,Sheet4!$A$2:$A$8408,Sheet3!$B$1,Sheet4!$B$2:$B$8408,Sheet3!$A$3) -> 0 | CQ8: =+SUMIFS(Sheet4!$FV$2:$FV$8408,Sheet4!$C$2:$C$8408,Sheet3!$B8,Sheet4!$D$2:$D$8408,Sheet3!CQ$3,Sheet4!$E$2:$E$8408,Sheet3!CQ$4,Sheet4!$A$2:$A$8408,Sheet3!$B$1,Sheet4!$B$2:$B$8408,Sheet3!$A$3) -> 0 | CR8: =+SUMIFS(Sheet4!$FV$2:$FV$8408,Sheet4!$C$2:$C$8408,Sheet3!$B8,Sheet4!$D$2:$D$8408,Sheet3!CR$3,Sheet4!$E$2:$E$8408,Sheet3!CR$4,Sheet4!$A$2:$A$8408,Sheet3!$B$1,Sheet4!$B$2:$B$8408,Sheet3!$A$3) -> 0 | CS8: =+SUMIFS(Sheet4!$FV$2:$FV$8408,Sheet4!$C$2:$C$8408,Sheet3!$B8,Sheet4!$D$2:$D$8408,Sheet3!CS$3,Sheet4!$E$2:$E$8408,Sheet3!CS$4,Sheet4!$A$2:$A$8408,Sheet3!$B$1,Sheet4!$B$2:$B$8408,Sheet3!$A$3) -> 0 | CT8: =+SUMIFS(Sheet4!$FV$2:$FV$8408,Sheet4!$C$2:$C$8408,Sheet3!$B8,Sheet4!$D$2:$D$8408,Sheet3!CT$3,Sheet4!$E$2:$E$8408,Sheet3!CT$4,Sheet4!$A$2:$A$8408,Sheet3!$B$1,Sheet4!$B$2:$B$8408,Sheet3!$A$3) -> 0 | CU8: =+IF(SUMIFS(Sheet4!$FW$2:$FW$8408,Sheet4!$C$2:$C$8408,Sheet3!$B8,Sheet4!$D$2:$D$8408,Sheet3!CU$3,Sheet4!$A$2:$A$8408,Sheet3!$B$1,Sheet4!$B$2:$B$8408,Sheet3!$A$3)<3,0,SUMIFS(Sheet4!$FW$2:$FW$8408,Sheet4!$C$2:$C$8408,Sheet3!$B8,Sheet4!$D$2:$D$8408,Sheet3!CU$3,Sheet4!$A$2:$A$8408,Sheet3!$B$1,Sheet4!$B$2:$B$8408,Sheet3!$A$3)) -> 5 | CV8: =+IF(SUMIFS(Sheet4!$FW$2:$FW$8408,Sheet4!$C$2:$C$8408,Sheet3!$B8,Sheet4!$D$2:$D$8408,Sheet3!CV$3,Sheet4!$A$2:$A$8408,Sheet3!$B$1,Sheet4!$B$2:$B$8408,Sheet3!$A$3)<3,0,SUMIFS(Sheet4!$FW$2:$FW$8408,Sheet4!$C$2:$C$8408,Sheet3!$B8,Sheet4!$D$2:$D$8408,Sheet3!CV$3,Sheet4!$A$2:$A$8408,Sheet3!$B$1,Sheet4!$B$2:$B$8408,Sheet3!$A$3)) -> 276 | CW8: =+IF(SUMIFS(Sheet4!$FW$2:$FW$8408,Sheet4!$C$2:$C$8408,Sheet3!$B8,Sheet4!$D$2:$D$8408,Sheet3!CW$3,Sheet4!$A$2:$A$8408,Sheet3!$B$1,Sheet4!$B$2:$B$8408,Sheet3!$A$3)<3,0,SUMIFS(Sheet4!$FW$2:$FW$8408,Sheet4!$C$2:$C$8408,Sheet3!$B8,Sheet4!$D$2:$D$8408,Sheet3!CW$3,Sheet4!$A$2:$A$8408,Sheet3!$B$1,Sheet4!$B$2:$B$8408,Sheet3!$A$3)) -> 112 | CX8: =+IF(SUMIFS(Sheet4!$FW$2:$FW$8408,Sheet4!$C$2:$C$8408,Sheet3!$B8,Sheet4!$D$2:$D$8408,Sheet3!CX$3,Sheet4!$A$2:$A$8408,Sheet3!$B$1,Sheet4!$B$2:$B$8408,Sheet3!$A$3)<3,0,SUMIFS(Sheet4!$FW$2:$FW$8408,Sheet4!$C$2:$C$8408,Sheet3!$B8,Sheet4!$D$2:$D$8408,Sheet3!CX$3,Sheet4!$A$2:$A$8408,Sheet3!$B$1,Sheet4!$B$2:$B$8408,Sheet3!$A$3)) -> 0 | CY8: =+IF(SUMIFS(Sheet4!$FW$2:$FW$8408,Sheet4!$C$2:$C$8408,Sheet3!$B8,Sheet4!$D$2:$D$8408,Sheet3!CY$3,Sheet4!$A$2:$A$8408,Sheet3!$B$1,Sheet4!$B$2:$B$8408,Sheet3!$A$3)<3,0,SUMIFS(Sheet4!$FW$2:$FW$8408,Sheet4!$C$2:$C$8408,Sheet3!$B8,Sheet4!$D$2:$D$8408,Sheet3!CY$3,Sheet4!$A$2:$A$8408,Sheet3!$B$1,Sheet4!$B$2:$B$8408,Sheet3!$A$3)) -> 0 | CZ8: =+IF(SUMIFS(Sheet4!$FW$2:$FW$8408,Sheet4!$C$2:$C$8408,Sheet3!$B8,Sheet4!$D$2:$D$8408,Sheet3!CZ$3,Sheet4!$A$2:$A$8408,Sheet3!$B$1,Sheet4!$B$2:$B$8408,Sheet3!$A$3)<3,0,SUMIFS(Sheet4!$FW$2:$FW$8408,Sheet4!$C$2:$C$8408,Sheet3!$B8,Sheet4!$D$2:$D$8408,Sheet3!CZ$3,Sheet4!$A$2:$A$8408,Sheet3!$B$1,Sheet4!$B$2:$B$8408,Sheet3!$A$3)) -> 249 | DA8: =+IF(SUMIFS(Sheet4!$FW$2:$FW$8408,Sheet4!$C$2:$C$8408,Sheet3!$B8,Sheet4!$D$2:$D$8408,Sheet3!DA$3,Sheet4!$A$2:$A$8408,Sheet3!$B$1,Sheet4!$B$2:$B$8408,Sheet3!$A$3)<3,0,SUMIFS(Sheet4!$FW$2:$FW$8408,Sheet4!$C$2:$C$8408,Sheet3!$B8,Sheet4!$D$2:$D$8408,Sheet3!DA$3,Sheet4!$A$2:$A$8408,Sheet3!$B$1,Sheet4!$B$2:$B$8408,Sheet3!$A$3)) -> 824 | DB8: =+IF(SUMIFS(Sheet4!$FW$2:$FW$8408,Sheet4!$C$2:$C$8408,Sheet3!$B8,Sheet4!$D$2:$D$8408,Sheet3!DB$3,Sheet4!$A$2:$A$8408,Sheet3!$B$1,Sheet4!$B$2:$B$8408,Sheet3!$A$3)<3,0,SUMIFS(Sheet4!$FW$2:$FW$8408,Sheet4!$C$2:$C$8408,Sheet3!$B8,Sheet4!$D$2:$D$8408,Sheet3!DB$3,Sheet4!$A$2:$A$8408,Sheet3!$B$1,Sheet4!$B$2:$B$8408,Sheet3!$A$3)) -> 147 | DC8: =+IF(SUMIFS(Sheet4!$FW$2:$FW$8408,Sheet4!$C$2:$C$8408,Sheet3!$B8,Sheet4!$D$2:$D$8408,Sheet3!DC$3,Sheet4!$A$2:$A$8408,Sheet3!$B$1,Sheet4!$B$2:$B$8408,Sheet3!$A$3)<3,0,SUMIFS(Sheet4!$FW$2:$FW$8408,Sheet4!$C$2:$C$8408,Sheet3!$B8,Sheet4!$D$2:$D$8408,Sheet3!DC$3,Sheet4!$A$2:$A$8408,Sheet3!$B$1,Sheet4!$B$2:$B$8408,Sheet3!$A$3)) -> 0 | DD8: =+IF(SUMIFS(Sheet4!$FW$2:$FW$8408,Sheet4!$C$2:$C$8408,Sheet3!$B8,Sheet4!$D$2:$D$8408,Sheet3!DD$3,Sheet4!$A$2:$A$8408,Sheet3!$B$1,Sheet4!$B$2:$B$8408,Sheet3!$A$3)<3,0,SUMIFS(Sheet4!$FW$2:$FW$8408,Sheet4!$C$2:$C$8408,Sheet3!$B8,Sheet4!$D$2:$D$8408,Sheet3!DD$3,Sheet4!$A$2:$A$8408,Sheet3!$B$1,Sheet4!$B$2:$B$8408,Sheet3!$A$3)) -> 2193 | DE8: =+IF(SUMIFS(Sheet4!$FW$2:$FW$8408,Sheet4!$C$2:$C$8408,Sheet3!$B8,Sheet4!$D$2:$D$8408,Sheet3!DE$3,Sheet4!$A$2:$A$8408,Sheet3!$B$1,Sheet4!$B$2:$B$8408,Sheet3!$A$3)<3,0,SUMIFS(Sheet4!$FW$2:$FW$8408,Sheet4!$C$2:$C$8408,Sheet3!$B8,Sheet4!$D$2:$D$8408,Sheet3!DE$3,Sheet4!$A$2:$A$8408,Sheet3!$B$1,Sheet4!$B$2:$B$8408,Sheet3!$A$3)) -> 57 | DF8: =+IF(SUMIFS(Sheet4!$FW$2:$FW$8408,Sheet4!$C$2:$C$8408,Sheet3!$B8,Sheet4!$D$2:$D$8408,Sheet3!DF$3,Sheet4!$A$2:$A$8408,Sheet3!$B$1,Sheet4!$B$2:$B$8408,Sheet3!$A$3)<3,0,SUMIFS(Sheet4!$FW$2:$FW$8408,Sheet4!$C$2:$C$8408,Sheet3!$B8,Sheet4!$D$2:$D$8408,Sheet3!DF$3,Sheet4!$A$2:$A$8408,Sheet3!$B$1,Sheet4!$B$2:$B$8408,Sheet3!$A$3)) -> 517 | DG8: =+IF(SUMIFS(Sheet4!$FW$2:$FW$8408,Sheet4!$C$2:$C$8408,Sheet3!$B8,Sheet4!$D$2:$D$8408,Sheet3!DG$3,Sheet4!$A$2:$A$8408,Sheet3!$B$1,Sheet4!$B$2:$B$8408,Sheet3!$A$3)<3,0,SUMIFS(Sheet4!$FW$2:$FW$8408,Sheet4!$C$2:$C$8408,Sheet3!$B8,Sheet4!$D$2:$D$8408,Sheet3!DG$3,Sheet4!$A$2:$A$8408,Sheet3!$B$1,Sheet4!$B$2:$B$8408,Sheet3!$A$3)) -> 127 | DH8: =+IF(SUMIFS(Sheet4!$FW$2:$FW$8408,Sheet4!$C$2:$C$8408,Sheet3!$B8,Sheet4!$D$2:$D$8408,Sheet3!DH$3,Sheet4!$A$2:$A$8408,Sheet3!$B$1,Sheet4!$B$2:$B$8408,Sheet3!$A$3)<3,0,SUMIFS(Sheet4!$FW$2:$FW$8408,Sheet4!$C$2:$C$8408,Sheet3!$B8,Sheet4!$D$2:$D$8408,Sheet3!DH$3,Sheet4!$A$2:$A$8408,Sheet3!$B$1,Sheet4!$B$2:$B$8408,Sheet3!$A$3)) -> 685 | DI8: =+IF(SUMIFS(Sheet4!$FW$2:$FW$8408,Sheet4!$C$2:$C$8408,Sheet3!$B8,Sheet4!$D$2:$D$8408,Sheet3!DI$3,Sheet4!$A$2:$A$8408,Sheet3!$B$1,Sheet4!$B$2:$B$8408,Sheet3!$A$3)<3,0,SUMIFS(Sheet4!$FW$2:$FW$8408,Sheet4!$C$2:$C$8408,Sheet3!$B8,Sheet4!$D$2:$D$8408,Sheet3!DI$3,Sheet4!$A$2:$A$8408,Sheet3!$B$1,Sheet4!$B$2:$B$8408,Sheet3!$A$3)) -> 1214 | DJ8: =+IF(SUMIFS(Sheet4!$FW$2:$FW$8408,Sheet4!$C$2:$C$8408,Sheet3!$B8,Sheet4!$D$2:$D$8408,Sheet3!DJ$3,Sheet4!$A$2:$A$8408,Sheet3!$B$1,Sheet4!$B$2:$B$8408,Sheet3!$A$3)<3,0,SUMIFS(Sheet4!$FW$2:$FW$8408,Sheet4!$C$2:$C$8408,Sheet3!$B8,Sheet4!$D$2:$D$8408,Sheet3!DJ$3,Sheet4!$A$2:$A$8408,Sheet3!$B$1,Sheet4!$B$2:$B$8408,Sheet3!$A$3)) -> 1040 | DK8: =+IF(SUMIFS(Sheet4!$FW$2:$FW$8408,Sheet4!$C$2:$C$8408,Sheet3!$B8,Sheet4!$D$2:$D$8408,Sheet3!DK$3,Sheet4!$A$2:$A$8408,Sheet3!$B$1,Sheet4!$B$2:$B$8408,Sheet3!$A$3)<3,0,SUMIFS(Sheet4!$FW$2:$FW$8408,Sheet4!$C$2:$C$8408,Sheet3!$B8,Sheet4!$D$2:$D$8408,Sheet3!DK$3,Sheet4!$A$2:$A$8408,Sheet3!$B$1,Sheet4!$B$2:$B$8408,Sheet3!$A$3)) -> 331 | DL8: =+IF(SUMIFS(Sheet4!$FW$2:$FW$8408,Sheet4!$C$2:$C$8408,Sheet3!$B8,Sheet4!$D$2:$D$8408,Sheet3!DL$3,Sheet4!$A$2:$A$8408,Sheet3!$B$1,Sheet4!$B$2:$B$8408,Sheet3!$A$3)<3,0,SUMIFS(Sheet4!$FW$2:$FW$8408,Sheet4!$C$2:$C$8408,Sheet3!$B8,Sheet4!$D$2:$D$8408,Sheet3!DL$3,Sheet4!$A$2:$A$8408,Sheet3!$B$1,Sheet4!$B$2:$B$8408,Sheet3!$A$3)) -> 0 | DM8: =+IF(SUMIFS(Sheet4!$FW$2:$FW$8408,Sheet4!$C$2:$C$8408,Sheet3!$B8,Sheet4!$D$2:$D$8408,Sheet3!DM$3,Sheet4!$A$2:$A$8408,Sheet3!$B$1,Sheet4!$B$2:$B$8408,Sheet3!$A$3)<3,0,SUMIFS(Sheet4!$FW$2:$FW$8408,Sheet4!$C$2:$C$8408,Sheet3!$B8,Sheet4!$D$2:$D$8408,Sheet3!DM$3,Sheet4!$A$2:$A$8408,Sheet3!$B$1,Sheet4!$B$2:$B$8408,Sheet3!$A$3)) -> 3 | DN8: =+IF(SUMIFS(Sheet4!$FW$2:$FW$8408,Sheet4!$C$2:$C$8408,Sheet3!$B8,Sheet4!$E$2:$E$8408,Sheet3!DN$4,Sheet4!$A$2:$A$8408,Sheet3!$B$1,Sheet4!$B$2:$B$8408,Sheet3!$A$3)<3,0,SUMIFS(Sheet4!$FW$2:$FW$8408,Sheet4!$C$2:$C$8408,Sheet3!$B8,Sheet4!$E$2:$E$8408,Sheet3!DN$4,Sheet4!$A$2:$A$8408,Sheet3!$B$1,Sheet4!$B$2:$B$8408,Sheet3!$A$3)) -> 6738 | DO8: =+IF(SUMIFS(Sheet4!$FW$2:$FW$8408,Sheet4!$C$2:$C$8408,Sheet3!$B8,Sheet4!$E$2:$E$8408,Sheet3!DO$4,Sheet4!$A$2:$A$8408,Sheet3!$B$1,Sheet4!$B$2:$B$8408,Sheet3!$A$3)<3,0,SUMIFS(Sheet4!$FW$2:$FW$8408,Sheet4!$C$2:$C$8408,Sheet3!$B8,Sheet4!$E$2:$E$8408,Sheet3!DO$4,Sheet4!$A$2:$A$8408,Sheet3!$B$1,Sheet4!$B$2:$B$8408,Sheet3!$A$3)) -> 924 | DP8: =+IF(SUMIFS(Sheet4!$FW$2:$FW$8408,Sheet4!$C$2:$C$8408,Sheet3!$B8,Sheet4!$E$2:$E$8408,Sheet3!DP$4,Sheet4!$A$2:$A$8408,Sheet3!$B$1,Sheet4!$B$2:$B$8408,Sheet3!$A$3)<3,0,SUMIFS(Sheet4!$FW$2:$FW$8408,Sheet4!$C$2:$C$8408,Sheet3!$B8,Sheet4!$E$2:$E$8408,Sheet3!DP$4,Sheet4!$A$2:$A$8408,Sheet3!$B$1,Sheet4!$B$2:$B$8408,Sheet3!$A$3)) -> 110 | DQ8: =+IF(SUMIFS(Sheet4!$FW$2:$FW$8408,Sheet4!$C$2:$C$8408,Sheet3!$B8,Sheet4!$E$2:$E$8408,Sheet3!DQ$4,Sheet4!$A$2:$A$8408,Sheet3!$B$1,Sheet4!$B$2:$B$8408,Sheet3!$A$3)<3,0,SUMIFS(Sheet4!$FW$2:$FW$8408,Sheet4!$C$2:$C$8408,Sheet3!$B8,Sheet4!$E$2:$E$8408,Sheet3!DQ$4,Sheet4!$A$2:$A$8408,Sheet3!$B$1,Sheet4!$B$2:$B$8408,Sheet3!$A$3)) -> 10 | DR8: =+IF(SUMIFS(Sheet4!$FW$2:$FW$8408,Sheet4!$C$2:$C$8408,Sheet3!$B8,Sheet4!$E$2:$E$8408,Sheet3!DR$4,Sheet4!$A$2:$A$8408,Sheet3!$B$1,Sheet4!$B$2:$B$8408,Sheet3!$A$3)<3,0,SUMIFS(Sheet4!$FW$2:$FW$8408,Sheet4!$C$2:$C$8408,Sheet3!$B8,Sheet4!$E$2:$E$8408,Sheet3!DR$4,Sheet4!$A$2:$A$8408,Sheet3!$B$1,Sheet4!$B$2:$B$8408,Sheet3!$A$3)) -> 0
A9: 1 | B9: 112 | C9: Cávado | D9: =+SUMIFS(Sheet4!$FV$2:$FV$8408,Sheet4!$C$2:$C$8408,Sheet3!$B9,Sheet4!$D$2:$D$8408,Sheet3!D$3,Sheet4!$E$2:$E$8408,Sheet3!D$4,Sheet4!$A$2:$A$8408,Sheet3!$B$1,Sheet4!$B$2:$B$8408,Sheet3!$A$3) -> 0 | E9: =+SUMIFS(Sheet4!$FV$2:$FV$8408,Sheet4!$C$2:$C$8408,Sheet3!$B9,Sheet4!$D$2:$D$8408,Sheet3!E$3,Sheet4!$E$2:$E$8408,Sheet3!E$4,Sheet4!$A$2:$A$8408,Sheet3!$B$1,Sheet4!$B$2:$B$8408,Sheet3!$A$3) -> 0 | F9: =+SUMIFS(Sheet4!$FV$2:$FV$8408,Sheet4!$C$2:$C$8408,Sheet3!$B9,Sheet4!$D$2:$D$8408,Sheet3!F$3,Sheet4!$E$2:$E$8408,Sheet3!F$4,Sheet4!$A$2:$A$8408,Sheet3!$B$1,Sheet4!$B$2:$B$8408,Sheet3!$A$3) -> 0 | G9: =+SUMIFS(Sheet4!$FV$2:$FV$8408,Sheet4!$C$2:$C$8408,Sheet3!$B9,Sheet4!$D$2:$D$8408,Sheet3!G$3,Sheet4!$E$2:$E$8408,Sheet3!G$4,Sheet4!$A$2:$A$8408,Sheet3!$B$1,Sheet4!$B$2:$B$8408,Sheet3!$A$3) -> 0 | H9: =+SUMIFS(Sheet4!$FV$2:$FV$8408,Sheet4!$C$2:$C$8408,Sheet3!$B9,Sheet4!$D$2:$D$8408,Sheet3!H$3,Sheet4!$E$2:$E$8408,Sheet3!H$4,Sheet4!$A$2:$A$8408,Sheet3!$B$1,Sheet4!$B$2:$B$8408,Sheet3!$A$3) -> 0 | I9: =+SUMIFS(Sheet4!$FV$2:$FV$8408,Sheet4!$C$2:$C$8408,Sheet3!$B9,Sheet4!$D$2:$D$8408,Sheet3!I$3,Sheet4!$E$2:$E$8408,Sheet3!I$4,Sheet4!$A$2:$A$8408,Sheet3!$B$1,Sheet4!$B$2:$B$8408,Sheet3!$A$3) -> 946 | J9: =+SUMIFS(Sheet4!$FV$2:$FV$8408,Sheet4!$C$2:$C$8408,Sheet3!$B9,Sheet4!$D$2:$D$8408,Sheet3!J$3,Sheet4!$E$2:$E$8408,Sheet3!J$4,Sheet4!$A$2:$A$8408,Sheet3!$B$1,Sheet4!$B$2:$B$8408,Sheet3!$A$3) -> 19 | K9: =+SUMIFS(Sheet4!$FV$2:$FV$8408,Sheet4!$C$2:$C$8408,Sheet3!$B9,Sheet4!$D$2:$D$8408,Sheet3!K$3,Sheet4!$E$2:$E$8408,Sheet3!K$4,Sheet4!$A$2:$A$8408,Sheet3!$B$1,Sheet4!$B$2:$B$8408,Sheet3!$A$3) -> 0 | L9: =+SUMIFS(Sheet4!$FV$2:$FV$8408,Sheet4!$C$2:$C$8408,Sheet3!$B9,Sheet4!$D$2:$D$8408,Sheet3!L$3,Sheet4!$E$2:$E$8408,Sheet3!L$4,Sheet4!$A$2:$A$8408,Sheet3!$B$1,Sheet4!$B$2:$B$8408,Sheet3!$A$3) -> 0 | M9: =+SUMIFS(Sheet4!$FV$2:$FV$8408,Sheet4!$C$2:$C$8408,Sheet3!$B9,Sheet4!$D$2:$D$8408,Sheet3!M$3,Sheet4!$E$2:$E$8408,Sheet3!M$4,Sheet4!$A$2:$A$8408,Sheet3!$B$1,Sheet4!$B$2:$B$8408,Sheet3!$A$3) -> 0 | N9: =+SUMIFS(Sheet4!$FV$2:$FV$8408,Sheet4!$C$2:$C$8408,Sheet3!$B9,Sheet4!$D$2:$D$8408,Sheet3!N$3,Sheet4!$E$2:$E$8408,Sheet3!N$4,Sheet4!$A$2:$A$8408,Sheet3!$B$1,Sheet4!$B$2:$B$8408,Sheet3!$A$3) -> 328 | O9: =+SUMIFS(Sheet4!$FV$2:$FV$8408,Sheet4!$C$2:$C$8408,Sheet3!$B9,Sheet4!$D$2:$D$8408,Sheet3!O$3,Sheet4!$E$2:$E$8408,Sheet3!O$4,Sheet4!$A$2:$A$8408,Sheet3!$B$1,Sheet4!$B$2:$B$8408,Sheet3!$A$3) -> 9 | P9: =+SUMIFS(Sheet4!$FV$2:$FV$8408,Sheet4!$C$2:$C$8408,Sheet3!$B9,Sheet4!$D$2:$D$8408,Sheet3!P$3,Sheet4!$E$2:$E$8408,Sheet3!P$4,Sheet4!$A$2:$A$8408,Sheet3!$B$1,Sheet4!$B$2:$B$8408,Sheet3!$A$3) -> 0 | Q9: =+SUMIFS(Sheet4!$FV$2:$FV$8408,Sheet4!$C$2:$C$8408,Sheet3!$B9,Sheet4!$D$2:$D$8408,Sheet3!Q$3,Sheet4!$E$2:$E$8408,Sheet3!Q$4,Sheet4!$A$2:$A$8408,Sheet3!$B$1,Sheet4!$B$2:$B$8408,Sheet3!$A$3) -> 0 | R9: =+SUMIFS(Sheet4!$FV$2:$FV$8408,Sheet4!$C$2:$C$8408,Sheet3!$B9,Sheet4!$D$2:$D$8408,Sheet3!R$3,Sheet4!$E$2:$E$8408,Sheet3!R$4,Sheet4!$A$2:$A$8408,Sheet3!$B$1,Sheet4!$B$2:$B$8408,Sheet3!$A$3) -> 0 | S9: =+SUMIFS(Sheet4!$FV$2:$FV$8408,Sheet4!$C$2:$C$8408,Sheet3!$B9,Sheet4!$D$2:$D$8408,Sheet3!S$3,Sheet4!$E$2:$E$8408,Sheet3!S$4,Sheet4!$A$2:$A$8408,Sheet3!$B$1,Sheet4!$B$2:$B$8408,Sheet3!$A$3) -> 0 | T9: =+SUMIFS(Sheet4!$FV$2:$FV$8408,Sheet4!$C$2:$C$8408,Sheet3!$B9,Sheet4!$D$2:$D$8408,Sheet3!T$3,Sheet4!$E$2:$E$8408,Sheet3!T$4,Sheet4!$A$2:$A$8408,Sheet3!$B$1,Sheet4!$B$2:$B$8408,Sheet3!$A$3) -> 0 | U9: =+SUMIFS(Sheet4!$FV$2:$FV$8408,Sheet4!$C$2:$C$8408,Sheet3!$B9,Sheet4!$D$2:$D$8408,Sheet3!U$3,Sheet4!$E$2:$E$8408,Sheet3!U$4,Sheet4!$A$2:$A$8408,Sheet3!$B$1,Sheet4!$B$2:$B$8408,Sheet3!$A$3) -> 0 | V9: =+SUMIFS(Sheet4!$FV$2:$FV$8408,Sheet4!$C$2:$C$8408,Sheet3!$B9,Sheet4!$D$2:$D$8408,Sheet3!V$3,Sheet4!$E$2:$E$8408,Sheet3!V$4,Sheet4!$A$2:$A$8408,Sheet3!$B$1,Sheet4!$B$2:$B$8408,Sheet3!$A$3) -> 0 | W9: =+SUMIFS(Sheet4!$FV$2:$FV$8408,Sheet4!$C$2:$C$8408,Sheet3!$B9,Sheet4!$D$2:$D$8408,Sheet3!W$3,Sheet4!$E$2:$E$8408,Sheet3!W$4,Sheet4!$A$2:$A$8408,Sheet3!$B$1,Sheet4!$B$2:$B$8408,Sheet3!$A$3) -> 0 | X9: =+SUMIFS(Sheet4!$FV$2:$FV$8408,Sheet4!$C$2:$C$8408,Sheet3!$B9,Sheet4!$D$2:$D$8408,Sheet3!X$3,Sheet4!$E$2:$E$8408,Sheet3!X$4,Sheet4!$A$2:$A$8408,Sheet3!$B$1,Sheet4!$B$2:$B$8408,Sheet3!$A$3) -> 0 | Y9: =+SUMIFS(Sheet4!$FV$2:$FV$8408,Sheet4!$C$2:$C$8408,Sheet3!$B9,Sheet4!$D$2:$D$8408,Sheet3!Y$3,Sheet4!$E$2:$E$8408,Sheet3!Y$4,Sheet4!$A$2:$A$8408,Sheet3!$B$1,Sheet4!$B$2:$B$8408,Sheet3!$A$3) -> 0 | Z9: =+SUMIFS(Sheet4!$FV$2:$FV$8408,Sheet4!$C$2:$C$8408,Sheet3!$B9,Sheet4!$D$2:$D$8408,Sheet3!Z$3,Sheet4!$E$2:$E$8408,Sheet3!Z$4,Sheet4!$A$2:$A$8408,Sheet3!$B$1,Sheet4!$B$2:$B$8408,Sheet3!$A$3) -> 0 | AA9: =+SUMIFS(Sheet4!$FV$2:$FV$8408,Sheet4!$C$2:$C$8408,Sheet3!$B9,Sheet4!$D$2:$D$8408,Sheet3!AA$3,Sheet4!$E$2:$E$8408,Sheet3!AA$4,Sheet4!$A$2:$A$8408,Sheet3!$B$1,Sheet4!$B$2:$B$8408,Sheet3!$A$3) -> 0 | AB9: =+SUMIFS(Sheet4!$FV$2:$FV$8408,Sheet4!$C$2:$C$8408,Sheet3!$B9,Sheet4!$D$2:$D$8408,Sheet3!AB$3,Sheet4!$E$2:$E$8408,Sheet3!AB$4,Sheet4!$A$2:$A$8408,Sheet3!$B$1,Sheet4!$B$2:$B$8408,Sheet3!$A$3) -> 0 | AC9: =+SUMIFS(Sheet4!$FV$2:$FV$8408,Sheet4!$C$2:$C$8408,Sheet3!$B9,Sheet4!$D$2:$D$8408,Sheet3!AC$3,Sheet4!$E$2:$E$8408,Sheet3!AC$4,Sheet4!$A$2:$A$8408,Sheet3!$B$1,Sheet4!$B$2:$B$8408,Sheet3!$A$3) -> 451 | AD9: =+SUMIFS(Sheet4!$FV$2:$FV$8408,Sheet4!$C$2:$C$8408,Sheet3!$B9,Sheet4!$D$2:$D$8408,Sheet3!AD$3,Sheet4!$E$2:$E$8408,Sheet3!AD$4,Sheet4!$A$2:$A$8408,Sheet3!$B$1,Sheet4!$B$2:$B$8408,Sheet3!$A$3) -> 7 | AE9: =+SUMIFS(Sheet4!$FV$2:$FV$8408,Sheet4!$C$2:$C$8408,Sheet3!$B9,Sheet4!$D$2:$D$8408,Sheet3!AE$3,Sheet4!$E$2:$E$8408,Sheet3!AE$4,Sheet4!$A$2:$A$8408,Sheet3!$B$1,Sheet4!$B$2:$B$8408,Sheet3!$A$3) -> 0 | AF9: =+SUMIFS(Sheet4!$FV$2:$FV$8408,Sheet4!$C$2:$C$8408,Sheet3!$B9,Sheet4!$D$2:$D$8408,Sheet3!AF$3,Sheet4!$E$2:$E$8408,Sheet3!AF$4,Sheet4!$A$2:$A$8408,Sheet3!$B$1,Sheet4!$B$2:$B$8408,Sheet3!$A$3) -> 0 | AG9: =+SUMIFS(Sheet4!$FV$2:$FV$8408,Sheet4!$C$2:$C$8408,Sheet3!$B9,Sheet4!$D$2:$D$8408,Sheet3!AG$3,Sheet4!$E$2:$E$8408,Sheet3!AG$4,Sheet4!$A$2:$A$8408,Sheet3!$B$1,Sheet4!$B$2:$B$8408,Sheet3!$A$3) -> 0 | AH9: =+SUMIFS(Sheet4!$FV$2:$FV$8408,Sheet4!$C$2:$C$8408,Sheet3!$B9,Sheet4!$D$2:$D$8408,Sheet3!AH$3,Sheet4!$E$2:$E$8408,Sheet3!AH$4,Sheet4!$A$2:$A$8408,Sheet3!$B$1,Sheet4!$B$2:$B$8408,Sheet3!$A$3) -> 84 | AI9: =+SUMIFS(Sheet4!$FV$2:$FV$8408,Sheet4!$C$2:$C$8408,Sheet3!$B9,Sheet4!$D$2:$D$8408,Sheet3!AI$3,Sheet4!$E$2:$E$8408,Sheet3!AI$4,Sheet4!$A$2:$A$8408,Sheet3!$B$1,Sheet4!$B$2:$B$8408,Sheet3!$A$3) -> 49 | AJ9: =+SUMIFS(Sheet4!$FV$2:$FV$8408,Sheet4!$C$2:$C$8408,Sheet3!$B9,Sheet4!$D$2:$D$8408,Sheet3!AJ$3,Sheet4!$E$2:$E$8408,Sheet3!AJ$4,Sheet4!$A$2:$A$8408,Sheet3!$B$1,Sheet4!$B$2:$B$8408,Sheet3!$A$3) -> 6 | AK9: =+SUMIFS(Sheet4!$FV$2:$FV$8408,Sheet4!$C$2:$C$8408,Sheet3!$B9,Sheet4!$D$2:$D$8408,Sheet3!AK$3,Sheet4!$E$2:$E$8408,Sheet3!AK$4,Sheet4!$A$2:$A$8408,Sheet3!$B$1,Sheet4!$B$2:$B$8408,Sheet3!$A$3) -> 0 | AL9: =+SUMIFS(Sheet4!$FV$2:$FV$8408,Sheet4!$C$2:$C$8408,Sheet3!$B9,Sheet4!$D$2:$D$8408,Sheet3!AL$3,Sheet4!$E$2:$E$8408,Sheet3!AL$4,Sheet4!$A$2:$A$8408,Sheet3!$B$1,Sheet4!$B$2:$B$8408,Sheet3!$A$3) -> 0 | AM9: =+SUMIFS(Sheet4!$FV$2:$FV$8408,Sheet4!$C$2:$C$8408,Sheet3!$B9,Sheet4!$D$2:$D$8408,Sheet3!AM$3,Sheet4!$E$2:$E$8408,Sheet3!AM$4,Sheet4!$A$2:$A$8408,Sheet3!$B$1,Sheet4!$B$2:$B$8408,Sheet3!$A$3) -> 206 | AN9: =+SUMIFS(Sheet4!$FV$2:$FV$8408,Sheet4!$C$2:$C$8408,Sheet3!$B9,Sheet4!$D$2:$D$8408,Sheet3!AN$3,Sheet4!$E$2:$E$8408,Sheet3!AN$4,Sheet4!$A$2:$A$8408,Sheet3!$B$1,Sheet4!$B$2:$B$8408,Sheet3!$A$3) -> 28 | AO9: =+SUMIFS(Sheet4!$FV$2:$FV$8408,Sheet4!$C$2:$C$8408,Sheet3!$B9,Sheet4!$D$2:$D$8408,Sheet3!AO$3,Sheet4!$E$2:$E$8408,Sheet3!AO$4,Sheet4!$A$2:$A$8408,Sheet3!$B$1,Sheet4!$B$2:$B$8408,Sheet3!$A$3) -> 0 | AP9: =+SUMIFS(Sheet4!$FV$2:$FV$8408,Sheet4!$C$2:$C$8408,Sheet3!$B9,Sheet4!$D$2:$D$8408,Sheet3!AP$3,Sheet4!$E$2:$E$8408,Sheet3!AP$4,Sheet4!$A$2:$A$8408,Sheet3!$B$1,Sheet4!$B$2:$B$8408,Sheet3!$A$3) -> 0 | AQ9: =+SUMIFS(Sheet4!$FV$2:$FV$8408,Sheet4!$C$2:$C$8408,Sheet3!$B9,Sheet4!$D$2:$D$8408,Sheet3!AQ$3,Sheet4!$E$2:$E$8408,Sheet3!AQ$4,Sheet4!$A$2:$A$8408,Sheet3!$B$1,Sheet4!$B$2:$B$8408,Sheet3!$A$3) -> 0 | AR9: =+SUMIFS(Sheet4!$FV$2:$FV$8408,Sheet4!$C$2:$C$8408,Sheet3!$B9,Sheet4!$D$2:$D$8408,Sheet3!AR$3,Sheet4!$E$2:$E$8408,Sheet3!AR$4,Sheet4!$A$2:$A$8408,Sheet3!$B$1,Sheet4!$B$2:$B$8408,Sheet3!$A$3) -> 3 | AS9: =+SUMIFS(Sheet4!$FV$2:$FV$8408,Sheet4!$C$2:$C$8408,Sheet3!$B9,Sheet4!$D$2:$D$8408,Sheet3!AS$3,Sheet4!$E$2:$E$8408,Sheet3!AS$4,Sheet4!$A$2:$A$8408,Sheet3!$B$1,Sheet4!$B$2:$B$8408,Sheet3!$A$3) -> 0 | AT9: =+SUMIFS(Sheet4!$FV$2:$FV$8408,Sheet4!$C$2:$C$8408,Sheet3!$B9,Sheet4!$D$2:$D$8408,Sheet3!AT$3,Sheet4!$E$2:$E$8408,Sheet3!AT$4,Sheet4!$A$2:$A$8408,Sheet3!$B$1,Sheet4!$B$2:$B$8408,Sheet3!$A$3) -> 0 | AU9: =+SUMIFS(Sheet4!$FV$2:$FV$8408,Sheet4!$C$2:$C$8408,Sheet3!$B9,Sheet4!$D$2:$D$8408,Sheet3!AU$3,Sheet4!$E$2:$E$8408,Sheet3!AU$4,Sheet4!$A$2:$A$8408,Sheet3!$B$1,Sheet4!$B$2:$B$8408,Sheet3!$A$3) -> 0 | AV9: =+SUMIFS(Sheet4!$FV$2:$FV$8408,Sheet4!$C$2:$C$8408,Sheet3!$B9,Sheet4!$D$2:$D$8408,Sheet3!AV$3,Sheet4!$E$2:$E$8408,Sheet3!AV$4,Sheet4!$A$2:$A$8408,Sheet3!$B$1,Sheet4!$B$2:$B$8408,Sheet3!$A$3) -> 0 | AW9: =+SUMIFS(Sheet4!$FV$2:$FV$8408,Sheet4!$C$2:$C$8408,Sheet3!$B9,Sheet4!$D$2:$D$8408,Sheet3!AW$3,Sheet4!$E$2:$E$8408,Sheet3!AW$4,Sheet4!$A$2:$A$8408,Sheet3!$B$1,Sheet4!$B$2:$B$8408,Sheet3!$A$3) -> 1950 | AX9: =+SUMIFS(Sheet4!$FV$2:$FV$8408,Sheet4!$C$2:$C$8408,Sheet3!$B9,Sheet4!$D$2:$D$8408,Sheet3!AX$3,Sheet4!$E$2:$E$8408,Sheet3!AX$4,Sheet4!$A$2:$A$8408,Sheet3!$B$1,Sheet4!$B$2:$B$8408,Sheet3!$A$3) -> 51 | AY9: =+SUMIFS(Sheet4!$FV$2:$FV$8408,Sheet4!$C$2:$C$8408,Sheet3!$B9,Sheet4!$D$2:$D$8408,Sheet3!AY$3,Sheet4!$E$2:$E$8408,Sheet3!AY$4,Sheet4!$A$2:$A$8408,Sheet3!$B$1,Sheet4!$B$2:$B$8408,Sheet3!$A$3) -> 0 | AZ9: =+SUMIFS(Sheet4!$FV$2:$FV$8408,Sheet4!$C$2:$C$8408,Sheet3!$B9,Sheet4!$D$2:$D$8408,Sheet3!AZ$3,Sheet4!$E$2:$E$8408,Sheet3!AZ$4,Sheet4!$A$2:$A$8408,Sheet3!$B$1,Sheet4!$B$2:$B$8408,Sheet3!$A$3) -> 0 | BA9: =+SUMIFS(Sheet4!$FV$2:$FV$8408,Sheet4!$C$2:$C$8408,Sheet3!$B9,Sheet4!$D$2:$D$8408,Sheet3!BA$3,Sheet4!$E$2:$E$8408,Sheet3!BA$4,Sheet4!$A$2:$A$8408,Sheet3!$B$1,Sheet4!$B$2:$B$8408,Sheet3!$A$3) -> 0 | BB9: =+SUMIFS(Sheet4!$FV$2:$FV$8408,Sheet4!$C$2:$C$8408,Sheet3!$B9,Sheet4!$D$2:$D$8408,Sheet3!BB$3,Sheet4!$E$2:$E$8408,Sheet3!BB$4,Sheet4!$A$2:$A$8408,Sheet3!$B$1,Sheet4!$B$2:$B$8408,Sheet3!$A$3) -> 92 | BC9: =+SUMIFS(Sheet4!$FV$2:$FV$8408,Sheet4!$C$2:$C$8408,Sheet3!$B9,Sheet4!$D$2:$D$8408,Sheet3!BC$3,Sheet4!$E$2:$E$8408,Sheet3!BC$4,Sheet4!$A$2:$A$8408,Sheet3!$B$1,Sheet4!$B$2:$B$8408,Sheet3!$A$3) -> 274 | BD9: =+SUMIFS(Sheet4!$FV$2:$FV$8408,Sheet4!$C$2:$C$8408,Sheet3!$B9,Sheet4!$D$2:$D$8408,Sheet3!BD$3,Sheet4!$E$2:$E$8408,Sheet3!BD$4,Sheet4!$A$2:$A$8408,Sheet3!$B$1,Sheet4!$B$2:$B$8408,Sheet3!$A$3) -> 17 | BE9: =+SUMIFS(Sheet4!$FV$2:$FV$8408,Sheet4!$C$2:$C$8408,Sheet3!$B9,Sheet4!$D$2:$D$8408,Sheet3!BE$3,Sheet4!$E$2:$E$8408,Sheet3!BE$4,Sheet4!$A$2:$A$8408,Sheet3!$B$1,Sheet4!$B$2:$B$8408,Sheet3!$A$3) -> 0 | BF9: =+SUMIFS(Sheet4!$FV$2:$FV$8408,Sheet4!$C$2:$C$8408,Sheet3!$B9,Sheet4!$D$2:$D$8408,Sheet3!BF$3,Sheet4!$E$2:$E$8408,Sheet3!BF$4,Sheet4!$A$2:$A$8408,Sheet3!$B$1,Sheet4!$B$2:$B$8408,Sheet3!$A$3) -> 0 | BG9: =+SUMIFS(Sheet4!$FV$2:$FV$8408,Sheet4!$C$2:$C$8408,Sheet3!$B9,Sheet4!$D$2:$D$8408,Sheet3!BG$3,Sheet4!$E$2:$E$8408,Sheet3!BG$4,Sheet4!$A$2:$A$8408,Sheet3!$B$1,Sheet4!$B$2:$B$8408,Sheet3!$A$3) -> 213 | BH9: =+SUMIFS(Sheet4!$FV$2:$FV$8408,Sheet4!$C$2:$C$8408,Sheet3!$B9,Sheet4!$D$2:$D$8408,Sheet3!BH$3,Sheet4!$E$2:$E$8408,Sheet3!BH$4,Sheet4!$A$2:$A$8408,Sheet3!$B$1,Sheet4!$B$2:$B$8408,Sheet3!$A$3) -> 63 | BI9: =+SUMIFS(Sheet4!$FV$2:$FV$8408,Sheet4!$C$2:$C$8408,Sheet3!$B9,Sheet4!$D$2:$D$8408,Sheet3!BI$3,Sheet4!$E$2:$E$8408,Sheet3!BI$4,Sheet4!$A$2:$A$8408,Sheet3!$B$1,Sheet4!$B$2:$B$8408,Sheet3!$A$3) -> 3 | BJ9: =+SUMIFS(Sheet4!$FV$2:$FV$8408,Sheet4!$C$2:$C$8408,Sheet3!$B9,Sheet4!$D$2:$D$8408,Sheet3!BJ$3,Sheet4!$E$2:$E$8408,Sheet3!BJ$4,Sheet4!$A$2:$A$8408,Sheet3!$B$1,Sheet4!$B$2:$B$8408,Sheet3!$A$3) -> 0 | BK9: =+SUMIFS(Sheet4!$FV$2:$FV$8408,Sheet4!$C$2:$C$8408,Sheet3!$B9,Sheet4!$D$2:$D$8408,Sheet3!BK$3,Sheet4!$E$2:$E$8408,Sheet3!BK$4,Sheet4!$A$2:$A$8408,Sheet3!$B$1,Sheet4!$B$2:$B$8408,Sheet3!$A$3) -> 0 | BL9: =+SUMIFS(Sheet4!$FV$2:$FV$8408,Sheet4!$C$2:$C$8408,Sheet3!$B9,Sheet4!$D$2:$D$8408,Sheet3!BL$3,Sheet4!$E$2:$E$8408,Sheet3!BL$4,Sheet4!$A$2:$A$8408,Sheet3!$B$1,Sheet4!$B$2:$B$8408,Sheet3!$A$3) -> 375 | BM9: =+SUMIFS(Sheet4!$FV$2:$FV$8408,Sheet4!$C$2:$C$8408,Sheet3!$B9,Sheet4!$D$2:$D$8408,Sheet3!BM$3,Sheet4!$E$2:$E$8408,Sheet3!BM$4,Sheet4!$A$2:$A$8408,Sheet3!$B$1,Sheet4!$B$2:$B$8408,Sheet3!$A$3) -> 52 | BN9: =+SUMIFS(Sheet4!$FV$2:$FV$8408,Sheet4!$C$2:$C$8408,Sheet3!$B9,Sheet4!$D$2:$D$8408,Sheet3!BN$3,Sheet4!$E$2:$E$8408,Sheet3!BN$4,Sheet4!$A$2:$A$8408,Sheet3!$B$1,Sheet4!$B$2:$B$8408,Sheet3!$A$3) -> 0 | BO9: =+SUMIFS(Sheet4!$FV$2:$FV$8408,Sheet4!$C$2:$C$8408,Sheet3!$B9,Sheet4!$D$2:$D$8408,Sheet3!BO$3,Sheet4!$E$2:$E$8408,Sheet3!BO$4,Sheet4!$A$2:$A$8408,Sheet3!$B$1,Sheet4!$B$2:$B$8408,Sheet3!$A$3) -> 0 | BP9: =+SUMIFS(Sheet4!$FV$2:$FV$8408,Sheet4!$C$2:$C$8408,Sheet3!$B9,Sheet4!$D$2:$D$8408,Sheet3!BP$3,Sheet4!$E$2:$E$8408,Sheet3!BP$4,Sheet4!$A$2:$A$8408,Sheet3!$B$1,Sheet4!$B$2:$B$8408,Sheet3!$A$3) -> 0 | BQ9: =+SUMIFS(Sheet4!$FV$2:$FV$8408,Sheet4!$C$2:$C$8408,Sheet3!$B9,Sheet4!$D$2:$D$8408,Sheet3!BQ$3,Sheet4!$E$2:$E$8408,Sheet3!BQ$4,Sheet4!$A$2:$A$8408,Sheet3!$B$1,Sheet4!$B$2:$B$8408,Sheet3!$A$3) -> 114 | BR9: =+SUMIFS(Sheet4!$FV$2:$FV$8408,Sheet4!$C$2:$C$8408,Sheet3!$B9,Sheet4!$D$2:$D$8408,Sheet3!BR$3,Sheet4!$E$2:$E$8408,Sheet3!BR$4,Sheet4!$A$2:$A$8408,Sheet3!$B$1,Sheet4!$B$2:$B$8408,Sheet3!$A$3) -> 54 | BS9: =+SUMIFS(Sheet4!$FV$2:$FV$8408,Sheet4!$C$2:$C$8408,Sheet3!$B9,Sheet4!$D$2:$D$8408,Sheet3!BS$3,Sheet4!$E$2:$E$8408,Sheet3!BS$4,Sheet4!$A$2:$A$8408,Sheet3!$B$1,Sheet4!$B$2:$B$8408,Sheet3!$A$3) -> 10 | BT9: =+SUMIFS(Sheet4!$FV$2:$FV$8408,Sheet4!$C$2:$C$8408,Sheet3!$B9,Sheet4!$D$2:$D$8408,Sheet3!BT$3,Sheet4!$E$2:$E$8408,Sheet3!BT$4,Sheet4!$A$2:$A$8408,Sheet3!$B$1,Sheet4!$B$2:$B$8408,Sheet3!$A$3) -> 0 | BU9: =+SUMIFS(Sheet4!$FV$2:$FV$8408,Sheet4!$C$2:$C$8408,Sheet3!$B9,Sheet4!$D$2:$D$8408,Sheet3!BU$3,Sheet4!$E$2:$E$8408,Sheet3!BU$4,Sheet4!$A$2:$A$8408,Sheet3!$B$1,Sheet4!$B$2:$B$8408,Sheet3!$A$3) -> 0 | BV9: =+SUMIFS(Sheet4!$FV$2:$FV$8408,Sheet4!$C$2:$C$8408,Sheet3!$B9,Sheet4!$D$2:$D$8408,Sheet3!BV$3,Sheet4!$E$2:$E$8408,Sheet3!BV$4,Sheet4!$A$2:$A$8408,Sheet3!$B$1,Sheet4!$B$2:$B$8408,Sheet3!$A$3) -> 227 | BW9: =+SUMIFS(Sheet4!$FV$2:$FV$8408,Sheet4!$C$2:$C$8408,Sheet3!$B9,Sheet4!$D$2:$D$8408,Sheet3!BW$3,Sheet4!$E$2:$E$8408,Sheet3!BW$4,Sheet4!$A$2:$A$8408,Sheet3!$B$1,Sheet4!$B$2:$B$8408,Sheet3!$A$3) -> 51 | BX9: =+SUMIFS(Sheet4!$FV$2:$FV$8408,Sheet4!$C$2:$C$8408,Sheet3!$B9,Sheet4!$D$2:$D$8408,Sheet3!BX$3,Sheet4!$E$2:$E$8408,Sheet3!BX$4,Sheet4!$A$2:$A$8408,Sheet3!$B$1,Sheet4!$B$2:$B$8408,Sheet3!$A$3) -> 6 | BY9: =+SUMIFS(Sheet4!$FV$2:$FV$8408,Sheet4!$C$2:$C$8408,Sheet3!$B9,Sheet4!$D$2:$D$8408,Sheet3!BY$3,Sheet4!$E$2:$E$8408,Sheet3!BY$4,Sheet4!$A$2:$A$8408,Sheet3!$B$1,Sheet4!$B$2:$B$8408,Sheet3!$A$3) -> 0 | BZ9: =+SUMIFS(Sheet4!$FV$2:$FV$8408,Sheet4!$C$2:$C$8408,Sheet3!$B9,Sheet4!$D$2:$D$8408,Sheet3!BZ$3,Sheet4!$E$2:$E$8408,Sheet3!BZ$4,Sheet4!$A$2:$A$8408,Sheet3!$B$1,Sheet4!$B$2:$B$8408,Sheet3!$A$3) -> 0 | CA9: =+SUMIFS(Sheet4!$FV$2:$FV$8408,Sheet4!$C$2:$C$8408,Sheet3!$B9,Sheet4!$D$2:$D$8408,Sheet3!CA$3,Sheet4!$E$2:$E$8408,Sheet3!CA$4,Sheet4!$A$2:$A$8408,Sheet3!$B$1,Sheet4!$B$2:$B$8408,Sheet3!$A$3) -> 538 | CB9: =+SUMIFS(Sheet4!$FV$2:$FV$8408,Sheet4!$C$2:$C$8408,Sheet3!$B9,Sheet4!$D$2:$D$8408,Sheet3!CB$3,Sheet4!$E$2:$E$8408,Sheet3!CB$4,Sheet4!$A$2:$A$8408,Sheet3!$B$1,Sheet4!$B$2:$B$8408,Sheet3!$A$3) -> 53 | CC9: =+SUMIFS(Sheet4!$FV$2:$FV$8408,Sheet4!$C$2:$C$8408,Sheet3!$B9,Sheet4!$D$2:$D$8408,Sheet3!CC$3,Sheet4!$E$2:$E$8408,Sheet3!CC$4,Sheet4!$A$2:$A$8408,Sheet3!$B$1,Sheet4!$B$2:$B$8408,Sheet3!$A$3) -> 0 | CD9: =+SUMIFS(Sheet4!$FV$2:$FV$8408,Sheet4!$C$2:$C$8408,Sheet3!$B9,Sheet4!$D$2:$D$8408,Sheet3!CD$3,Sheet4!$E$2:$E$8408,Sheet3!CD$4,Sheet4!$A$2:$A$8408,Sheet3!$B$1,Sheet4!$B$2:$B$8408,Sheet3!$A$3) -> 0 | CE9: =+SUMIFS(Sheet4!$FV$2:$FV$8408,Sheet4!$C$2:$C$8408,Sheet3!$B9,Sheet4!$D$2:$D$8408,Sheet3!CE$3,Sheet4!$E$2:$E$8408,Sheet3!CE$4,Sheet4!$A$2:$A$8408,Sheet3!$B$1,Sheet4!$B$2:$B$8408,Sheet3!$A$3) -> 0 | CF9: =+SUMIFS(Sheet4!$FV$2:$FV$8408,Sheet4!$C$2:$C$8408,Sheet3!$B9,Sheet4!$D$2:$D$8408,Sheet3!CF$3,Sheet4!$E$2:$E$8408,Sheet3!CF$4,Sheet4!$A$2:$A$8408,Sheet3!$B$1,Sheet4!$B$2:$B$8408,Sheet3!$A$3) -> 795 | CG9: =+SUMIFS(Sheet4!$FV$2:$FV$8408,Sheet4!$C$2:$C$8408,Sheet3!$B9,Sheet4!$D$2:$D$8408,Sheet3!CG$3,Sheet4!$E$2:$E$8408,Sheet3!CG$4,Sheet4!$A$2:$A$8408,Sheet3!$B$1,Sheet4!$B$2:$B$8408,Sheet3!$A$3) -> 68 | CH9: =+SUMIFS(Sheet4!$FV$2:$FV$8408,Sheet4!$C$2:$C$8408,Sheet3!$B9,Sheet4!$D$2:$D$8408,Sheet3!CH$3,Sheet4!$E$2:$E$8408,Sheet3!CH$4,Sheet4!$A$2:$A$8408,Sheet3!$B$1,Sheet4!$B$2:$B$8408,Sheet3!$A$3) -> 0 | CI9: =+SUMIFS(Sheet4!$FV$2:$FV$8408,Sheet4!$C$2:$C$8408,Sheet3!$B9,Sheet4!$D$2:$D$8408,Sheet3!CI$3,Sheet4!$E$2:$E$8408,Sheet3!CI$4,Sheet4!$A$2:$A$8408,Sheet3!$B$1,Sheet4!$B$2:$B$8408,Sheet3!$A$3) -> 0 | CJ9: =+SUMIFS(Sheet4!$FV$2:$FV$8408,Sheet4!$C$2:$C$8408,Sheet3!$B9,Sheet4!$D$2:$D$8408,Sheet3!CJ$3,Sheet4!$E$2:$E$8408,Sheet3!CJ$4,Sheet4!$A$2:$A$8408,Sheet3!$B$1,Sheet4!$B$2:$B$8408,Sheet3!$A$3) -> 0 | CK9: =+SUMIFS(Sheet4!$FV$2:$FV$8408,Sheet4!$C$2:$C$8408,Sheet3!$B9,Sheet4!$D$2:$D$8408,Sheet3!CK$3,Sheet4!$E$2:$E$8408,Sheet3!CK$4,Sheet4!$A$2:$A$8408,Sheet3!$B$1,Sheet4!$B$2:$B$8408,Sheet3!$A$3) -> 0 | CL9: =+SUMIFS(Sheet4!$FV$2:$FV$8408,Sheet4!$C$2:$C$8408,Sheet3!$B9,Sheet4!$D$2:$D$8408,Sheet3!CL$3,Sheet4!$E$2:$E$8408,Sheet3!CL$4,Sheet4!$A$2:$A$8408,Sheet3!$B$1,Sheet4!$B$2:$B$8408,Sheet3!$A$3) -> 0 | CM9: =+SUMIFS(Sheet4!$FV$2:$FV$8408,Sheet4!$C$2:$C$8408,Sheet3!$B9,Sheet4!$D$2:$D$8408,Sheet3!CM$3,Sheet4!$E$2:$E$8408,Sheet3!CM$4,Sheet4!$A$2:$A$8408,Sheet3!$B$1,Sheet4!$B$2:$B$8408,Sheet3!$A$3) -> 0 | CN9: =+SUMIFS(Sheet4!$FV$2:$FV$8408,Sheet4!$C$2:$C$8408,Sheet3!$B9,Sheet4!$D$2:$D$8408,Sheet3!CN$3,Sheet4!$E$2:$E$8408,Sheet3!CN$4,Sheet4!$A$2:$A$8408,Sheet3!$B$1,Sheet4!$B$2:$B$8408,Sheet3!$A$3) -> 0 | CO9: =+SUMIFS(Sheet4!$FV$2:$FV$8408,Sheet4!$C$2:$C$8408,Sheet3!$B9,Sheet4!$D$2:$D$8408,Sheet3!CO$3,Sheet4!$E$2:$E$8408,Sheet3!CO$4,Sheet4!$A$2:$A$8408,Sheet3!$B$1,Sheet4!$B$2:$B$8408,Sheet3!$A$3) -> 0 | CP9: =+SUMIFS(Sheet4!$FV$2:$FV$8408,Sheet4!$C$2:$C$8408,Sheet3!$B9,Sheet4!$D$2:$D$8408,Sheet3!CP$3,Sheet4!$E$2:$E$8408,Sheet3!CP$4,Sheet4!$A$2:$A$8408,Sheet3!$B$1,Sheet4!$B$2:$B$8408,Sheet3!$A$3) -> 0 | CQ9: =+SUMIFS(Sheet4!$FV$2:$FV$8408,Sheet4!$C$2:$C$8408,Sheet3!$B9,Sheet4!$D$2:$D$8408,Sheet3!CQ$3,Sheet4!$E$2:$E$8408,Sheet3!CQ$4,Sheet4!$A$2:$A$8408,Sheet3!$B$1,Sheet4!$B$2:$B$8408,Sheet3!$A$3) -> 0 | CR9: =+SUMIFS(Sheet4!$FV$2:$FV$8408,Sheet4!$C$2:$C$8408,Sheet3!$B9,Sheet4!$D$2:$D$8408,Sheet3!CR$3,Sheet4!$E$2:$E$8408,Sheet3!CR$4,Sheet4!$A$2:$A$8408,Sheet3!$B$1,Sheet4!$B$2:$B$8408,Sheet3!$A$3) -> 0 | CS9: =+SUMIFS(Sheet4!$FV$2:$FV$8408,Sheet4!$C$2:$C$8408,Sheet3!$B9,Sheet4!$D$2:$D$8408,Sheet3!CS$3,Sheet4!$E$2:$E$8408,Sheet3!CS$4,Sheet4!$A$2:$A$8408,Sheet3!$B$1,Sheet4!$B$2:$B$8408,Sheet3!$A$3) -> 0 | CT9: =+SUMIFS(Sheet4!$FV$2:$FV$8408,Sheet4!$C$2:$C$8408,Sheet3!$B9,Sheet4!$D$2:$D$8408,Sheet3!CT$3,Sheet4!$E$2:$E$8408,Sheet3!CT$4,Sheet4!$A$2:$A$8408,Sheet3!$B$1,Sheet4!$B$2:$B$8408,Sheet3!$A$3) -> 0 | CU9: =+IF(SUMIFS(Sheet4!$FW$2:$FW$8408,Sheet4!$C$2:$C$8408,Sheet3!$B9,Sheet4!$D$2:$D$8408,Sheet3!CU$3,Sheet4!$A$2:$A$8408,Sheet3!$B$1,Sheet4!$B$2:$B$8408,Sheet3!$A$3)<3,0,SUMIFS(Sheet4!$FW$2:$FW$8408,Sheet4!$C$2:$C$8408,Sheet3!$B9,Sheet4!$D$2:$D$8408,Sheet3!CU$3,Sheet4!$A$2:$A$8408,Sheet3!$B$1,Sheet4!$B$2:$B$8408,Sheet3!$A$3)) -> 4 | CV9: =+IF(SUMIFS(Sheet4!$FW$2:$FW$8408,Sheet4!$C$2:$C$8408,Sheet3!$B9,Sheet4!$D$2:$D$8408,Sheet3!CV$3,Sheet4!$A$2:$A$8408,Sheet3!$B$1,Sheet4!$B$2:$B$8408,Sheet3!$A$3)<3,0,SUMIFS(Sheet4!$FW$2:$FW$8408,Sheet4!$C$2:$C$8408,Sheet3!$B9,Sheet4!$D$2:$D$8408,Sheet3!CV$3,Sheet4!$A$2:$A$8408,Sheet3!$B$1,Sheet4!$B$2:$B$8408,Sheet3!$A$3)) -> 967 | CW9: =+IF(SUMIFS(Sheet4!$FW$2:$FW$8408,Sheet4!$C$2:$C$8408,Sheet3!$B9,Sheet4!$D$2:$D$8408,Sheet3!CW$3,Sheet4!$A$2:$A$8408,Sheet3!$B$1,Sheet4!$B$2:$B$8408,Sheet3!$A$3)<3,0,SUMIFS(Sheet4!$FW$2:$FW$8408,Sheet4!$C$2:$C$8408,Sheet3!$B9,Sheet4!$D$2:$D$8408,Sheet3!CW$3,Sheet4!$A$2:$A$8408,Sheet3!$B$1,Sheet4!$B$2:$B$8408,Sheet3!$A$3)) -> 337 | CX9: =+IF(SUMIFS(Sheet4!$FW$2:$FW$8408,Sheet4!$C$2:$C$8408,Sheet3!$B9,Sheet4!$D$2:$D$8408,Sheet3!CX$3,Sheet4!$A$2:$A$8408,Sheet3!$B$1,Sheet4!$B$2:$B$8408,Sheet3!$A$3)<3,0,SUMIFS(Sheet4!$FW$2:$FW$8408,Sheet4!$C$2:$C$8408,Sheet3!$B9,Sheet4!$D$2:$D$8408,Sheet3!CX$3,Sheet4!$A$2:$A$8408,Sheet3!$B$1,Sheet4!$B$2:$B$8408,Sheet3!$A$3)) -> 0 | CY9: =+IF(SUMIFS(Sheet4!$FW$2:$FW$8408,Sheet4!$C$2:$C$8408,Sheet3!$B9,Sheet4!$D$2:$D$8408,Sheet3!CY$3,Sheet4!$A$2:$A$8408,Sheet3!$B$1,Sheet4!$B$2:$B$8408,Sheet3!$A$3)<3,0,SUMIFS(Sheet4!$FW$2:$FW$8408,Sheet4!$C$2:$C$8408,Sheet3!$B9,Sheet4!$D$2:$D$8408,Sheet3!CY$3,Sheet4!$A$2:$A$8408,Sheet3!$B$1,Sheet4!$B$2:$B$8408,Sheet3!$A$3)) -> 0 | CZ9: =+IF(SUMIFS(Sheet4!$FW$2:$FW$8408,Sheet4!$C$2:$C$8408,Sheet3!$B9,Sheet4!$D$2:$D$8408,Sheet3!CZ$3,Sheet4!$A$2:$A$8408,Sheet3!$B$1,Sheet4!$B$2:$B$8408,Sheet3!$A$3)<3,0,SUMIFS(Sheet4!$FW$2:$FW$8408,Sheet4!$C$2:$C$8408,Sheet3!$B9,Sheet4!$D$2:$D$8408,Sheet3!CZ$3,Sheet4!$A$2:$A$8408,Sheet3!$B$1,Sheet4!$B$2:$B$8408,Sheet3!$A$3)) -> 462 | DA9: =+IF(SUMIFS(Sheet4!$FW$2:$FW$8408,Sheet4!$C$2:$C$8408,Sheet3!$B9,Sheet4!$D$2:$D$8408,Sheet3!DA$3,Sheet4!$A$2:$A$8408,Sheet3!$B$1,Sheet4!$B$2:$B$8408,Sheet3!$A$3)<3,0,SUMIFS(Sheet4!$FW$2:$FW$8408,Sheet4!$C$2:$C$8408,Sheet3!$B9,Sheet4!$D$2:$D$8408,Sheet3!DA$3,Sheet4!$A$2:$A$8408,Sheet3!$B$1,Sheet4!$B$2:$B$8408,Sheet3!$A$3)) -> 141 | DB9: =+IF(SUMIFS(Sheet4!$FW$2:$FW$8408,Sheet4!$C$2:$C$8408,Sheet3!$B9,Sheet4!$D$2:$D$8408,Sheet3!DB$3,Sheet4!$A$2:$A$8408,Sheet3!$B$1,Sheet4!$B$2:$B$8408,Sheet3!$A$3)<3,0,SUMIFS(Sheet4!$FW$2:$FW$8408,Sheet4!$C$2:$C$8408,Sheet3!$B9,Sheet4!$D$2:$D$8408,Sheet3!DB$3,Sheet4!$A$2:$A$8408,Sheet3!$B$1,Sheet4!$B$2:$B$8408,Sheet3!$A$3)) -> 239 | DC9: =+IF(SUMIFS(Sheet4!$FW$2:$FW$8408,Sheet4!$C$2:$C$8408,Sheet3!$B9,Sheet4!$D$2:$D$8408,Sheet3!DC$3,Sheet4!$A$2:$A$8408,Sheet3!$B$1,Sheet4!$B$2:$B$8408,Sheet3!$A$3)<3,0,SUMIFS(Sheet4!$FW$2:$FW$8408,Sheet4!$C$2:$C$8408,Sheet3!$B9,Sheet4!$D$2:$D$8408,Sheet3!DC$3,Sheet4!$A$2:$A$8408,Sheet3!$B$1,Sheet4!$B$2:$B$8408,Sheet3!$A$3)) -> 4 | DD9: =+IF(SUMIFS(Sheet4!$FW$2:$FW$8408,Sheet4!$C$2:$C$8408,Sheet3!$B9,Sheet4!$D$2:$D$8408,Sheet3!DD$3,Sheet4!$A$2:$A$8408,Sheet3!$B$1,Sheet4!$B$2:$B$8408,Sheet3!$A$3)<3,0,SUMIFS(Sheet4!$FW$2:$FW$8408,Sheet4!$C$2:$C$8408,Sheet3!$B9,Sheet4!$D$2:$D$8408,Sheet3!DD$3,Sheet4!$A$2:$A$8408,Sheet3!$B$1,Sheet4!$B$2:$B$8408,Sheet3!$A$3)) -> 2006 | DE9: =+IF(SUMIFS(Sheet4!$FW$2:$FW$8408,Sheet4!$C$2:$C$8408,Sheet3!$B9,Sheet4!$D$2:$D$8408,Sheet3!DE$3,Sheet4!$A$2:$A$8408,Sheet3!$B$1,Sheet4!$B$2:$B$8408,Sheet3!$A$3)<3,0,SUMIFS(Sheet4!$FW$2:$FW$8408,Sheet4!$C$2:$C$8408,Sheet3!$B9,Sheet4!$D$2:$D$8408,Sheet3!DE$3,Sheet4!$A$2:$A$8408,Sheet3!$B$1,Sheet4!$B$2:$B$8408,Sheet3!$A$3)) -> 383 | DF9: =+IF(SUMIFS(Sheet4!$FW$2:$FW$8408,Sheet4!$C$2:$C$8408,Sheet3!$B9,Sheet4!$D$2:$D$8408,Sheet3!DF$3,Sheet4!$A$2:$A$8408,Sheet3!$B$1,Sheet4!$B$2:$B$8408,Sheet3!$A$3)<3,0,SUMIFS(Sheet4!$FW$2:$FW$8408,Sheet4!$C$2:$C$8408,Sheet3!$B9,Sheet4!$D$2:$D$8408,Sheet3!DF$3,Sheet4!$A$2:$A$8408,Sheet3!$B$1,Sheet4!$B$2:$B$8408,Sheet3!$A$3)) -> 279 | DG9: =+IF(SUMIFS(Sheet4!$FW$2:$FW$8408,Sheet4!$C$2:$C$8408,Sheet3!$B9,Sheet4!$D$2:$D$8408,Sheet3!DG$3,Sheet4!$A$2:$A$8408,Sheet3!$B$1,Sheet4!$B$2:$B$8408,Sheet3!$A$3)<3,0,SUMIFS(Sheet4!$FW$2:$FW$8408,Sheet4!$C$2:$C$8408,Sheet3!$B9,Sheet4!$D$2:$D$8408,Sheet3!DG$3,Sheet4!$A$2:$A$8408,Sheet3!$B$1,Sheet4!$B$2:$B$8408,Sheet3!$A$3)) -> 430 | DH9: =+IF(SUMIFS(Sheet4!$FW$2:$FW$8408,Sheet4!$C$2:$C$8408,Sheet3!$B9,Sheet4!$D$2:$D$8408,Sheet3!DH$3,Sheet4!$A$2:$A$8408,Sheet3!$B$1,Sheet4!$B$2:$B$8408,Sheet3!$A$3)<3,0,SUMIFS(Sheet4!$FW$2:$FW$8408,Sheet4!$C$2:$C$8408,Sheet3!$B9,Sheet4!$D$2:$D$8408,Sheet3!DH$3,Sheet4!$A$2:$A$8408,Sheet3!$B$1,Sheet4!$B$2:$B$8408,Sheet3!$A$3)) -> 179 | DI9: =+IF(SUMIFS(Sheet4!$FW$2:$FW$8408,Sheet4!$C$2:$C$8408,Sheet3!$B9,Sheet4!$D$2:$D$8408,Sheet3!DI$3,Sheet4!$A$2:$A$8408,Sheet3!$B$1,Sheet4!$B$2:$B$8408,Sheet3!$A$3)<3,0,SUMIFS(Sheet4!$FW$2:$FW$8408,Sheet4!$C$2:$C$8408,Sheet3!$B9,Sheet4!$D$2:$D$8408,Sheet3!DI$3,Sheet4!$A$2:$A$8408,Sheet3!$B$1,Sheet4!$B$2:$B$8408,Sheet3!$A$3)) -> 290 | DJ9: =+IF(SUMIFS(Sheet4!$FW$2:$FW$8408,Sheet4!$C$2:$C$8408,Sheet3!$B9,Sheet4!$D$2:$D$8408,Sheet3!DJ$3,Sheet4!$A$2:$A$8408,Sheet3!$B$1,Sheet4!$B$2:$B$8408,Sheet3!$A$3)<3,0,SUMIFS(Sheet4!$FW$2:$FW$8408,Sheet4!$C$2:$C$8408,Sheet3!$B9,Sheet4!$D$2:$D$8408,Sheet3!DJ$3,Sheet4!$A$2:$A$8408,Sheet3!$B$1,Sheet4!$B$2:$B$8408,Sheet3!$A$3)) -> 596 | DK9: =+IF(SUMIFS(Sheet4!$FW$2:$FW$8408,Sheet4!$C$2:$C$8408,Sheet3!$B9,Sheet4!$D$2:$D$8408,Sheet3!DK$3,Sheet4!$A$2:$A$8408,Sheet3!$B$1,Sheet4!$B$2:$B$8408,Sheet3!$A$3)<3,0,SUMIFS(Sheet4!$FW$2:$FW$8408,Sheet4!$C$2:$C$8408,Sheet3!$B9,Sheet4!$D$2:$D$8408,Sheet3!DK$3,Sheet4!$A$2:$A$8408,Sheet3!$B$1,Sheet4!$B$2:$B$8408,Sheet3!$A$3)) -> 865 | DL9: =+IF(SUMIFS(Sheet4!$FW$2:$FW$8408,Sheet4!$C$2:$C$8408,Sheet3!$B9,Sheet4!$D$2:$D$8408,Sheet3!DL$3,Sheet4!$A$2:$A$8408,Sheet3!$B$1,Sheet4!$B$2:$B$8408,Sheet3!$A$3)<3,0,SUMIFS(Sheet4!$FW$2:$FW$8408,Sheet4!$C$2:$C$8408,Sheet3!$B9,Sheet4!$D$2:$D$8408,Sheet3!DL$3,Sheet4!$A$2:$A$8408,Sheet3!$B$1,Sheet4!$B$2:$B$8408,Sheet3!$A$3)) -> 0 | DM9: =+IF(SUMIFS(Sheet4!$FW$2:$FW$8408,Sheet4!$C$2:$C$8408,Sheet3!$B9,Sheet4!$D$2:$D$8408,Sheet3!DM$3,Sheet4!$A$2:$A$8408,Sheet3!$B$1,Sheet4!$B$2:$B$8408,Sheet3!$A$3)<3,0,SUMIFS(Sheet4!$FW$2:$FW$8408,Sheet4!$C$2:$C$8408,Sheet3!$B9,Sheet4!$D$2:$D$8408,Sheet3!DM$3,Sheet4!$A$2:$A$8408,Sheet3!$B$1,Sheet4!$B$2:$B$8408,Sheet3!$A$3)) -> 0 | DN9: =+IF(SUMIFS(Sheet4!$FW$2:$FW$8408,Sheet4!$C$2:$C$8408,Sheet3!$B9,Sheet4!$E$2:$E$8408,Sheet3!DN$4,Sheet4!$A$2:$A$8408,Sheet3!$B$1,Sheet4!$B$2:$B$8408,Sheet3!$A$3)<3,0,SUMIFS(Sheet4!$FW$2:$FW$8408,Sheet4!$C$2:$C$8408,Sheet3!$B9,Sheet4!$E$2:$E$8408,Sheet3!DN$4,Sheet4!$A$2:$A$8408,Sheet3!$B$1,Sheet4!$B$2:$B$8408,Sheet3!$A$3)) -> 6332 | DO9: =+IF(SUMIFS(Sheet4!$FW$2:$FW$8408,Sheet4!$C$2:$C$8408,Sheet3!$B9,Sheet4!$E$2:$E$8408,Sheet3!DO$4,Sheet4!$A$2:$A$8408,Sheet3!$B$1,Sheet4!$B$2:$B$8408,Sheet3!$A$3)<3,0,SUMIFS(Sheet4!$FW$2:$FW$8408,Sheet4!$C$2:$C$8408,Sheet3!$B9,Sheet4!$E$2:$E$8408,Sheet3!DO$4,Sheet4!$A$2:$A$8408,Sheet3!$B$1,Sheet4!$B$2:$B$8408,Sheet3!$A$3)) -> 802 | DP9: =+IF(SUMIFS(Sheet4!$FW$2:$FW$8408,Sheet4!$C$2:$C$8408,Sheet3!$B9,Sheet4!$E$2:$E$8408,Sheet3!DP$4,Sheet4!$A$2:$A$8408,Sheet3!$B$1,Sheet4!$B$2:$B$8408,Sheet3!$A$3)<3,0,SUMIFS(Sheet4!$FW$2:$FW$8408,Sheet4!$C$2:$C$8408,Sheet3!$B9,Sheet4!$E$2:$E$8408,Sheet3!DP$4,Sheet4!$A$2:$A$8408,Sheet3!$B$1,Sheet4!$B$2:$B$8408,Sheet3!$A$3)) -> 49 | DQ9: =+IF(SUMIFS(Sheet4!$FW$2:$FW$8408,Sheet4!$C$2:$C$8408,Sheet3!$B9,Sheet4!$E$2:$E$8408,Sheet3!DQ$4,Sheet4!$A$2:$A$8408,Sheet3!$B$1,Sheet4!$B$2:$B$8408,Sheet3!$A$3)<3,0,SUMIFS(Sheet4!$FW$2:$FW$8408,Sheet4!$C$2:$C$8408,Sheet3!$B9,Sheet4!$E$2:$E$8408,Sheet3!DQ$4,Sheet4!$A$2:$A$8408,Sheet3!$B$1,Sheet4!$B$2:$B$8408,Sheet3!$A$3)) -> 0 | DR9: =+IF(SUMIFS(Sheet4!$FW$2:$FW$8408,Sheet4!$C$2:$C$8408,Sheet3!$B9,Sheet4!$E$2:$E$8408,Sheet3!DR$4,Sheet4!$A$2:$A$8408,Sheet3!$B$1,Sheet4!$B$2:$B$8408,Sheet3!$A$3)<3,0,SUMIFS(Sheet4!$FW$2:$FW$8408,Sheet4!$C$2:$C$8408,Sheet3!$B9,Sheet4!$E$2:$E$8408,Sheet3!DR$4,Sheet4!$A$2:$A$8408,Sheet3!$B$1,Sheet4!$B$2:$B$8408,Sheet3!$A$3)) -> 0
